Workbook

Sheet Introduction
B6: Main results
B8: Table of contents
B10: Sensitivity of results (Monte Carlo)

Sheet Main results
B2: Lower secondary education vs upper secondary education
B4: Discount rate | C4: =Assumptions!C5 -> 0.06 | D4: =C4 -> 0.06
C5: Total | D5: Per person
B6: 1. Earnings | C6: ='Main tables discountrate1'!D39 -> 16487068.97 | D6: =C6/(Assumptions!$H$25/2) -> 22740.78478
B7: 2. Tax revenue | C7: ='Main tables discountrate1'!D49 -> 11000000 | D7: =C7/(Assumptions!$H$25/2) -> 15172.41379
B8: 3. Health | C8: ='COSTS - YOL & QALY'!H102 -> 27576747.69 | D8: =C8/(Assumptions!$H$25/2) -> 38036.89337
B9: 4. Social assistance | C9: =SUM(C10:C14) -> 54687.91388 | D9: =C9/(Assumptions!$H$25/2) -> 75.43160535
B10: 4.1. Subsistence benefit | C10: =subsist!I41 -> 155534.5458 | D10: =C10/(Assumptions!$H$25/2) -> 214.530408
B11: 4.2. Unemployment allowance | C11: =UA!G58 -> 23548.87018 | D11: =C11/(Assumptions!$H$25/2) -> 32.48120025
B12: 4.3. Unemployment insurance | C12: =UIB!G59 -> 325791.8092 | D12: =C12/(Assumptions!$H$25/2) -> 449.3680127
B13: 4.4. Disability benefit | C13: =disability!I98 -> 80844.22218 | D13: =C13/(Assumptions!$H$25/2) -> 111.509272
B14: 4.5. Pension | C14: =Pensions!H137 -> -531031.5335 | D14: =C14/(Assumptions!$H$25/2) -> -732.4572875
B15: 5. Crime | C15: ='Cost of crime B v C'!Q311 -> 1380543.788 | D15: =C15/(Assumptions!$H$25/2) -> 1904.198329
B16: TOTAL | C16: =C15+C9+C8+C7+C6 -> 56499048.36 | D16: =C16/(Assumptions!$H$25/2) -> 77929.72188
B18: As a share in GDP | C18: =C16/Assumptions!C8 -> 0.003531190523
B26: Cost | C26: Discount rate
C27: 0.06 | D27: 0.03
B28: 1. Earnings | C28: 16487068.97 | D28: 35189439.66
B29: 2. Tax revenue | C29: 11000000 | D29: 25000000
B30: 3. Health | C30: 27576747.69 | D30: 53358436.1
B31: 4. Social assistance | C31: 54687.91388 | D31: -1764749.625
B32: 4.1. Subsistence benefit | C32: 155534.5458 | D32: 228399.6617
B33: 4.2. Unemployment allowance | C33: 23548.87018 | D33: 38483.98123
B34: 4.3. Unemployment insurance | C34: 325791.8092 | D34: 545918.3427
B35: 4.4. Disability benefit | C35: 80844.22218 | D35: 178163.3191
B36: 4.5. Pension | C36: -531031.5335 | D36: -2755714.929
B37: 5. Crime | C37: 1380543.788 | D37: 1955598.344
B38: TOTAL | C38: 56499048.36 | D38: 113738724.5
B40: As a share in GDP | C40: 0.003537931527 | D40: 0.007117035697
B46: Cost | C46: Discount rate
C47: 0.06 | D47: 0.03
B48: 1. Earnings | C48: =ROUND(C28,-5) -> 16500000 | D48: =ROUND(D28,-5) -> 35200000
B49: 2. Tax revenue | C49: =ROUND(C29,-5) -> 11000000 | D49: 25000000
B50: 3. Health | C50: =ROUND(C30,-5) -> 27600000 | D50: 53400000
B51: 4. Social assistance | C51: =ROUND(C31,-5) -> 100000 | D51: -1800000
B52: 4.1. Subsistence benefit | C52: =ROUND(C32,-5) -> 200000 | D52: 200000
B53: 4.2. Unemployment allowance | C53: =ROUND(C33,-5) -> 0 | D53: 0
B54: 4.3. Unemployment insurance | C54: =ROUND(C34,-5) -> 300000 | D54: 500000
B55: 4.4. Disability benefit | C55: =ROUND(C35,-5) -> 100000 | D55: 200000
B56: 4.5. Pension | C56: =ROUND(C36,-5) -> -500000 | D56: -2800000
B57: 5. Crime | C57: =ROUND(C37,-5) -> 1400000 | D57: 2000000
B58: TOTAL | C58: =C57+C51+C50+C49+C48 -> 56600000 | D58: =D57+D51+D50+D49+D48 -> 113800000
B66: Upper secondary education vs higher education
B68: Discount rate | C68: =Assumptions!C5 -> 0.06 | D68: Per person
C69: Men | D69: Women
B70: 1. Earnings | C70: =('Main tables discountrate1'!D29-'Main tables discountrate1'!E29) -> 46512.90114 | D70: ='Main tables discountrate1'!D28-'Main tables discountrate1'!E28 -> 34897.48728
B71: 2. Tax revenue | C71: ='Main tables discountrate1'!E45 -> 39000 | D71: ='Main tables discountrate1'!E44 -> 29000
B72: 3. Health | C72: ='COSTS - YOL & QALY'!H88 -> 59776.61436 | D72: ='COSTS - YOL & QALY'!H92 -> 65569.42531
B73: 4. Social assistance | C73: =SUM(C74:C78) -> -574.049554 | D73: =SUM(D74:D78) -> -291.137086
B74: 4.1. Subsistence benefit | C74: =subsist!I26 -> 78.50657217 | D74: =subsist!I27 -> 70.88149717
B75: 4.2. Unemployment allowance | C75: =UA!G45 -> 38.11207359 | D75: =UA!G46 -> 53.96835456
B76: 4.3. Unemployment insurance | C76: =UIB!G44 -> 189.5868609 | D76: =UIB!G45 -> 167.3012107
B77: 4.4. Disability benefit | C77: =disability!I85 -> 40.5807281 | D77: =disability!I86 -> 37.59259475
B78: 4.5. Pension | C78: =Pensions!I124 -> -920.8357887 | D78: =Pensions!I125 -> -620.8807432
B79: 5. Crime | C79: ='Cost of Crime C v D'!H318 -> 2529.81202 | D79: ='Cost of Crime C v D'!G318 -> 274.707451
B80: TOTAL | C80: =C79+C73+C72+C71+C70 -> 147245.278 | D80: =D79+D73+D72+D71+D70 -> 129450.483
B83: Cost per capita | C83: Discount rate 3% | E83: Discount rate 6%
C84: Men | D84: Women | E84: Men | F84: Women
B85: 1. Earnings | C85: 104703.8542 | D85: 76084.37834 | E85: 46512.90114 | F85: 34897.48728
B86: 2. Tax revenue | C86: 80000 | D86: 58000 | E86: 39000 | F86: 29000
B87: 3. Health | C87: 102445.7453 | D87: 104569.6054 | E87: 59776.61436 | F87: 65569.42531
B88: 4. Social assistance | C88: -3812.312839 | D88: -2459.833956 | E88: -574.049554 | F88: -291.137086
B89: 4.1. Subsistence benefit | C89: 120.7445605 | D89: 118.8978364 | E89: 78.50657217 | F89: 70.88149717
B90: 4.2. Unemployment allowance | C90: 58.44809443 | D90: 84.65237136 | E90: 38.11207359 | F90: 53.96835456
B91: 4.3. Unemployment insurance | C91: 287.7711219 | D91: 265.2826791 | E91: 189.5868609 | F91: 167.3012107
B92: 4.4. Disability benefit | C92: 90.43469377 | D92: 87.79398886 | E92: 40.5807281 | F92: 37.59259475
B93: 4.5. Pension | C93: -4369.71131 | D93: -3016.460832 | E93: -920.8357887 | F93: -620.8807432
B94: 5. Crime | C94: 4116.387022 | D94: 459.8157227 | E94: 2529.81202 | F94: 274.707451
B95: TOTAL | C95: 287453.6736 | D95: 236653.9655 | E95: 147245.278 | F95: 129450.483

Sheet Assumptions
B5: Discount rate | C5: 0.06
B6: Statistical value of life year (2010), € | C6: ='Value of Life'!D7 -> 58541.19646
B7: Statistical value of life (2010), € | C7: ='Value of Life'!B9 -> 815425.3595
B8: GDP (2011) € | C8: 16000000000
B9: Random seed | C9: =RAND() -> 0.8054230931
B10: Average size of the cohort of in basic, primary and lower secondar education (2011) (age 7-15) | C10: 12500
B11: Share of ealry school leavers (2010) | C11: 0.116
B13: Estimations for the cohort of current early school leavers, for calculating total costs
D14: Estimation of the number of early school-leavers for each birth year (18-24 year olds, 2004-2009) | F14: % | H14: Estimation of the number of early school-leavers based on the average size of cohorts of current basic, primary and lower secondary education pupils
D15: With either basic or lower secondary | E15: With lower secondary education | F15: With either basic or lower secondary | G15: With lower secondary education | H15: With lower secondary education
B17: Man | C17: Estonian | D17: 1833 | E17: 1481 | F17: =D17/$D$21 -> 0.4651103781 | G17: =E17/$E$21 -> 0.4402497027 | H17: =G17*$H$21 -> 638.362069
B18: Woman | C18: Estonian | D18: 913 | E18: 818 | F18: =D18/$D$21 -> 0.2316670896 | G18: =E18/$E$21 -> 0.2431629013 | H18: =G18*$H$21 -> 352.5862069
B19: Man | C19: Non-Estonian | D19: 886 | E19: 824 | F19: 0.2248160365 | G19: =E19/$E$21 -> 0.2449464923 | H19: 355.1724138
B20: Woman | C20: Non-Estonian | D20: 309 | E20: 241 | F20: 0.07840649581 | G20: =E20/$E$21 -> 0.07164090369 | H20: 103.8793103
B21: TOTAL | D21: =SUM(D17:D20) -> 3941 | E21: =SUM(E17:E20) -> 3364 | F21: =SUM(F17:F20) -> 1 | G21: =SUM(G17:G20) -> 1 | H21: =C10*C11 -> 1450
B23: Man | D23: =D17+D19 -> 2719 | E23: 2305 | F23: 0.6899264146 | G23: 0.685196195 | H23: 993.5344828
B24: Woman | D24: 1222 | E24: 1059 | F24: 0.3100735854 | G24: 0.314803805 | H24: 456.4655172
B25: TOTAL | D25: =SUM(D23:D24) -> 3941 | E25: =SUM(E23:E24) -> 3364 | F25: =SUM(F23:F24) -> 1 | G25: =SUM(G23:G24) -> 1 | H25: =SUM(H23:H24) -> 1450

Sheet Table of contents
B2: Table of contents
B4: Wages and employment | C4: Demographic and macroeconomic projections
B5: Main results: total amount of increased wages from reduced school leaving | C5: Macroeconomic forecast
B6: Main results: tax revenue from reduced school leaving | C6: Population by age and level of education
B7: Expected wages over lifetime, by gender and level of education | C7: Number of deaths by age and level of education
B8: Expected payroll taxes over lifetime, by gender and level of education | C8: Mortality rates by age and level of education
B9: Graphs: Age-earnings profiles | C9: Probability of being alive
B10: Distribution of labour force, by age, gender, ethnicity and level of education | C10: Probability of being alive (randomized table for Monte Carlo)
B11: Probability of employment, by age and level of education | C11: Expected years of life
B12: Raw model estimates of wages, taxes, and probability of working
B13: Results of Monte Carlo sensitivity analysis
B15: Health | C15: Crime
B16: Main results: Health capital gains from reduction of early school leaving | C16: Main results: crime cost savings from reduction of early school leaving
B17: Statistical value of life and life year | C17: Cost of crime, by type of crime
B18: Quality adjusted life year weights | C18: Expected cost of crime, by type of crime, gender, age and level of education
B19: Health capital based on expected years of life at 25 | C19: Net present value of expected cost of crime, by type of crime, gender and level of education
B20: Randomized tables for Monte Carlo simulations | C20: Number of crimes committed, by type of crime, age, gender and level of education (2007-2011)
C21: Probability of commiting a crime, by type of crime, age, gender and level of education
C22: Probability of committing a crime, by type of crime, age group, gender and level of education
B23: Social assistance | C23: Average probabilities of committing a crime, by type of crime, gender and education
B24: Main results: disability benefit savings from reduced school leaving | C24: Expected cost of crime and cost savings from reduction of school leaving: randomized tables for Monte Carlo simulation
B25: Main results: subsistence benefit savings from reduced school leaving | C25: Probabilities of commiting crimes: randomized tables for Monte Carlo simulation
B26: Main results: additional pension costs from reduced school leaving | C26: Standard deviation of number of crimes committed in different years
B27: Main results: unemployment insurance benefit savings from reduced school leaving
B28: Main results: unemployment assistance benefit savings from reduced school leaving
B29: Regression model of the probability of being in registered unemployment
B30: Regression model of the probability of receiving unemployment allowance for registered unemployed
B31: Duration model of the exit from unemployment to employment
B32: Regression model of the probability of being employed
B33: Regression model of disability benefit receipt per recipient
B34: Regression model of the probability of receiving disability benefit
B35: Regression model of the probability of receiving subsistence benefit
B36: Regression model of subsistence benefit receipt per recipient
B37: Predicted probability of exit to employment, by age and education
B38: Predicted mean duration of unemployment, by age and education
B39: Predicted mean duration of unemployment for those unemployed for up to 6, 9 and 12 months
B40: Average unemployment benefit rates, by age and education
B41: Average wages by age and education level
B42: Educational attainment of household members

Sheet Sensitivity
B1: To Table of Contents
J3: Turn on Monte Carlo: | K3: 0
J10: 1. Earnings | K10: ='Main tables discountrate1'!D39 -> 16487068.97
J11: 2. Tax revenue | K11: ='Main tables discountrate1'!D49 -> 11000000
J12: 3. Health | K12: =IF(mc=1,'MC-technical'!H75,'Main results'!C8) -> 27576747.69
J13: 4. Social assistance | K13: ='Main results'!C9 -> 54687.91388
J14: 4.1. Subsistence benefit | K14: ='Main results'!C10 -> 155534.5458
J15: 4.2. Unemployment allowance | K15: ='Main results'!C11 -> 23548.87018
J16: 4.3. Unemployment insurance | K16: ='Main results'!C12 -> 325791.8092
J17: 4.4. Disability benefit | K17: ='Main results'!C13 -> 80844.22218
J18: 4.5. Pension | K18: ='Main results'!C14 -> -531031.5335
J19: 5. Crime | K19: =IF(mc=1,'Cost of crime (MC)'!Q311,'Main results'!C15) -> 1380543.788
J20: TOTAL | K20: =SUM(K19,K10:K13) -> 56499048.36
J22: As share in GDP | K22: =K20/Assumptions!C8 -> 0.003531190523

Sheet Monte Carlo results
G1: NPV 6% | H1: NPV 3%
F2: 0.05 | G2: 40446900.99 | H2: 89394046.55
F3: 0.1 | G3: 43916165.5 | H3: 94826641.5
F4: 0.15 | G4: 46434993.63 | H4: 97573227.39
F5: 0.2 | G5: 48279654.89 | H5: 100430978.6
F6: 0.25 | G6: 50006252.84 | H6: 103766241.4
F7: 0.3 | G7: 51749903.12 | H7: 105792844.1
F8: 0.35 | G8: 53146965.4 | H8: 107555219.8
F9: 0.4 | G9: 54495482.23 | H9: 109415239.8
F10: 0.45 | G10: 56323723.98 | H10: 110847658
F11: 0.5 | G11: 57394476.84 | H11: 112875136.4
F12: 0.55 | G12: 58948703.78 | H12: 114861268.6
F13: 0.6 | G13: 60374429.12 | H13: 116429580.2
F14: 0.65 | G14: 61644399.21 | H14: 117937631.5
F15: 0.7 | G15: 62771201.11 | H15: 120205175.1
F16: 0.75 | G16: 64064940.01 | H16: 122565492.9
F17: 0.8 | G17: 65288888.08 | H17: 125095252.8
F18: 0.85 | G18: 66800556.86 | H18: 127573411.6
F19: 0.9 | G19: 69523155.24 | H19: 132512586.9
F20: 0.95 | G20: 73132446.12 | H20: 137172303.2
F21: 1

Sheet HEALTH

Sheet Value of Life
A1: To Table of Contents
B2: Used in calculations | C2: 2006 | D2: 2010
A3: Statistical value of life (EEK) | B3: =D3 -> 12758634.43 | C3: 12041707.98 | D3: =C3*'Macro forecast'!H20 -> 12758634.43
A4: Future value of statistical value of life (EEK) | B4: =D4 -> 77675850.48 | C4: =C3*(1+dr)^('Value of Life'!C5) -> 82372385.79 | D4: =D3*(1+dr)^('Value of Life'!D5) -> 77675850.48
A5: Life expectancy at the average age of people killed in road accidents in Estonia | B5: =D5 -> 31 | C5: 33 | D5: 31
A6: Statistical value of life year (EEK) | B6: =D6 -> 915970.6845 | C6: =C8*15.6466 -> 846206.1618 | D6: =D8*15.6466 -> 915970.6845
A7: Statistical value of life year (€) | B7: =D7 -> 58541.19646 | C7: =C6/15.6466 -> 54082.4308 | D7: =D6/15.6466 -> 58541.19646
A8: Statistical value of life year (€) (depends on discount rate) | C8: =dr*'Value of Life'!C3/(1-(1+dr)^(-C5))/15.6466 -> 54082.4308 | D8: =dr*'Value of Life'!D3/(1-(1+dr)^(-D5))/15.6466 -> 58541.19646
A9: Statistical value of life (€) | B9: =D9 -> 815425.3595 | C9: =C3/15.6466 -> 769605.4083 | D9: =D3/15.6466 -> 815425.3595
A10: Upper bound coefficient | B10: 1.667841188
A11: Lower bound coefficient | B11: 0.5003523563
B13: 2010 | E13: 2006
B14: Men | C14: Women | D14: Total | E14: Men | F14: Women | G14: Total
A15: Number of people killed in road accidents in Estonia | B15: 56 | C15: 23 | D15: 79 | E15: 153 | F15: 51 | G15: 204
A16: Average age of people killed in road accidents in Estonia | B16: 45 | C16: 53 | D16: 47 | E16: 40 | F16: 50 | G16: 43
A17: Life expectancy at the average age of people killed in road accidents in Estonia | B17: 33 | C17: 29.28 | D17: 31.2 | E17: 30.39 | F17: 30.49 | G17: 32.64

Sheet Macro forecast
A1: To Table of Contents | B1: 2000 | C1: 2001 | D1: 2002 | E1: 2003 | F1: 2004 | G1: 2005 | H1: 2006 | I1: 2007 | J1: 2008 | K1: 2009 | L1: 2010 | M1: 2011 | N1: 2012 | O1: 2013 | P1: 2014 | Q1: 2015 | R1: 2016 | S1: 2017 | T1: 2018 | U1: 2019 | V1: 2020 | W1: 2021 | X1: 2022 | Y1: 2023 | Z1: 2024 | AA1: 2025 | AB1: 2026 | AC1: 2027 | AD1: 2028 | AE1: 2029 | AF1: 2030 | AG1: 2031 | AH1: 2032 | AI1: 2033 | AJ1: 2034 | AK1: 2035 | AL1: 2036 | AM1: 2037 | AN1: 2038 | AO1: 2039 | AP1: 2040 | AQ1: 2041 | AR1: 2042 | AS1: 2043 | AT1: 2044 | AU1: 2045 | AV1: 2046 | AW1: 2047 | AX1: 2048 | AY1: 2049 | AZ1: 2050 | BA1: 2051 | BB1: 2052 | BC1: 2053 | BD1: 2054 | BE1: 2055 | BF1: 2056 | BG1: 2057 | BH1: 2058 | BI1: 2059 | BJ1: 2060 | BK1: 2061
B2: actual | C2: actual | D2: actual | E2: actual | F2: actual | G2: actual | H2: actual | I2: actual | J2: actual | K2: actual | L2: prognoos | M2: prognoos | N2: prognoos | O2: prognoos | P2: prognoos | Q2: prognoos | R2: prognoos | S2: prognoos | T2: prognoos | U2: prognoos | V2: prognoos | W2: prognoos | X2: prognoos | Y2: prognoos | Z2: prognoos | AA2: prognoos | AB2: prognoos | AC2: prognoos | AD2: prognoos | AE2: prognoos | AF2: prognoos | AG2: prognoos | AH2: prognoos | AI2: prognoos | AJ2: prognoos | AK2: prognoos | AL2: prognoos | AM2: prognoos | AN2: prognoos | AO2: prognoos | AP2: prognoos | AQ2: prognoos | AR2: prognoos | AS2: prognoos | AT2: prognoos | AU2: prognoos | AV2: prognoos | AW2: prognoos | AX2: prognoos | AY2: prognoos | AZ2: prognoos | BA2: prognoos | BB2: prognoos | BC2: prognoos | BD2: prognoos | BE2: prognoos | BF2: prognoos | BG2: prognoos | BH2: prognoos | BI2: prognoos | BJ2: prognoos | BK2: prognoos
A4: GDP current prices (mio EEK) | B4: 96380.46764 | C4: 109070.3909 | D4: 121672.7399 | E4: 136421.1148 | F4: 151541.6108 | G4: 174956.2104 | H4: 206995.8788 | I4: 244503.6817 | J4: 251492.8039 | K4: 214828.1463 | L4: 218178.9 | M4: 230369.1 | N4: 245486 | O4: 261544.2 | P4: 278262.6 | Q4: 295777.8 | R4: 314091.8 | S4: 333539.7 | T4: 353504.8 | U4: 374299.7 | V4: 395164.6 | W4: 416788 | X4: 438741.1 | Y4: 461401.2 | Z4: 484286.7 | AA4: 507315.5 | AB4: 531439.4 | AC4: 556166.7 | AD4: 581475.6 | AE4: 607936.3 | AF4: 635601 | AG4: 662574 | AH4: 689336 | AI4: 715768.6 | AJ4: 742482.5 | AK4: 769433.9 | AL4: 797363.6 | AM4: 825491.4 | AN4: 854611.4 | AO4: 883884.4 | AP4: 913255.9 | AQ4: 942681 | AR4: 972090.8 | AS4: 1001424.6 | AT4: 1031643.6 | AU4: 1061720.1 | AV4: 1092673.5 | AW4: 1124529.3 | AX4: 1156164.6 | AY4: 1188689.8 | AZ4: 1222130 | BA4: 1255281.5 | BB4: 1289332.3 | BC4: 1325623.1 | BD4: 1364288.9 | BE4: 1404082.5 | BF4: 1446470.3 | BG4: 1491614.7 | BH4: 1539690.9 | BI4: 1589316.7 | BJ4: 1642164.6
A5: GDP real growth | B5: 0.0997428 | C5: 0.0751607 | D5: 0.0793943 | E5: 0.0755922 | F5: 0.0722888 | G5: 0.0943107 | H5: 0.0995569 | I5: 0.0720371 | J5: -0.0357628 | K5: -0.1408439 | L5: 0.02 | M5: 0.036 | N5: 0.04 | O5: 0.038 | P5: 0.035 | Q5: 0.035 | R5: 0.034 | S5: 0.034 | T5: 0.033 | U5: 0.033 | V5: 0.031 | W5: 0.03 | X5: 0.028 | Y5: 0.027 | Z5: 0.025 | AA5: 0.023 | AB5: 0.023 | AC5: 0.023 | AD5: 0.022 | AE5: 0.022 | AF5: 0.022 | AG5: 0.019 | AH5: 0.017 | AI5: 0.015 | AJ5: 0.014 | AK5: 0.013 | AL5: 0.013 | AM5: 0.012 | AN5: 0.012 | AO5: 0.011 | AP5: 0.01 | AQ5: 0.01 | AR5: 0.009 | AS5: 0.008 | AT5: 0.008 | AU5: 0.007 | AV5: 0.007 | AW5: 0.007 | AX5: 0.006 | AY5: 0.006 | AZ5: 0.006 | BA5: 0.006 | BB5: 0.006 | BC5: 0.007 | BD5: 0.008 | BE5: 0.008 | BF5: 0.009 | BG5: 0.01 | BH5: 0.011 | BI5: 0.011 | BJ5: 0.012
B6: =C6/(1+C5) -> 149546.2513 | C6: 160786.2522 | D6: 173551.7641 | E6: 186670.9238 | F6: 200165.1409 | G6: 219042.8554 | H6: 240850.0831 | I6: 258200.2246 | J6: 248966.2616 | K6: =L6/(1+L5) -> 213900.8824 | L6: =L4 -> 218178.9 | M6: =L6*(1+M5) -> 226033.3404 | N6: 235074.674 | O6: 244007.5116 | P6: 252547.7745 | Q6: 261386.9466 | R6: 270274.1028 | S6: 279463.4223 | T6: 288685.7153 | U6: 298212.3439 | V6: 307456.9265 | W6: 316680.6343 | X6: 325547.6921 | Y6: 334337.4798 | Z6: 342695.9168 | AA6: 350577.9228 | AB6: 358641.2151 | AC6: 366889.963 | AD6: 374961.5422 | AE6: 383210.6961 | AF6: 391641.3315 | AG6: 399082.5167 | AH6: 405866.9195 | AI6: 411954.9233 | AJ6: 417722.2923 | AK6: 423152.6821 | AL6: 428653.6669 | AM6: 433797.5109 | AN6: 439003.0811 | AO6: 443832.1149 | AP6: 448270.4361 | AQ6: 452753.1405 | AR6: 456827.9187 | AS6: 460482.5421 | AT6: 464166.4024 | AU6: 467415.5672 | AV6: 470687.4762 | AW6: 473982.2885 | AX6: 476826.1823 | AY6: 479687.1394 | AZ6: 482565.2622 | BA6: 485460.6538 | BB6: 488373.4177 | BC6: 491792.0316 | BD6: 495726.3679 | BE6: 499692.1788 | BF6: 504189.4084 | BG6: 509231.3025 | BH6: 514832.8468 | BI6: 520496.0081 | BJ6: 526741.9602
A7: GDP nominal growth | B7: 0.1495497869 | C7: 0.1316648861 | D7: 0.1155432641 | E7: 0.1212134686 | F7: 0.1108369192 | G7: 0.154509375 | H7: 0.183129643 | I7: 0.181200723 | J7: 0.02858493669 | K7: -0.1457880982 | L7: =L4/K4-1 -> 0.01559736812 | M7: =M4/L4-1 -> 0.05587249729 | N7: 0.06562034578 | O7: 0.06541391362 | P7: 0.0639218916 | Q7: 0.06294485856 | R7: 0.06191810203 | S7: 0.06191788515 | T7: 0.05985824176 | U7: 0.05882494382 | V7: 0.05574383308 | W7: 0.05471998251 | X7: 0.05267210188 | Y7: 0.05164799924 | Z7: 0.04960000104 | AA7: 0.04755199761 | AB7: 0.04755206573 | AC7: 0.0465289175 | AD7: 0.04550596071 | AE7: 0.0455061227 | AF7: 0.04550591896 | AG7: 0.04243700057 | AH7: 0.0403909601 | AI7: 0.03834501607 | AJ7: 0.03732197808 | AK7: 0.03629903735 | AL7: 0.03629902452 | AM7: 0.03527600206 | AN7: 0.03527595805 | AO7: 0.03425299499 | AP7: 0.0332300242 | AQ7: 0.03221999442 | AR7: 0.03119804048 | AS7: 0.03017598768 | AT7: 0.03017601125 | AU7: 0.02915396364 | AV7: 0.0291540115 | AW7: 0.02915399705 | AX7: 0.02813203711 | AY7: 0.02813198052 | AZ7: 0.02813198195 | BA7: 0.02712600133 | BB7: 0.02712602711 | BC7: 0.02814697189 | BD7: 0.02916801918 | BE7: 0.02916801566 | BF7: 0.03018896682 | BG7: 0.03121004282 | BH7: 0.03223097761 | BI7: 0.03223101468 | BJ7: 0.03325196293
A8: CPI | B8: 0.04 | C8: 0.058 | D8: 0.036 | E8: 0.013 | F8: 0.03 | G8: 0.041 | H8: 0.044 | I8: 0.066 | J8: 0.104 | K8: -0.001 | L8: 0.026 | M8: 0.025 | N8: 0.026 | O8: 0.027 | P8: 0.027 | Q8: 0.027 | R8: 0.027 | S8: 0.027 | T8: 0.026 | U8: 0.025 | V8: 0.024 | W8: 0.024 | X8: 0.024 | Y8: 0.024 | Z8: 0.024 | AA8: 0.024 | AB8: 0.024 | AC8: 0.023 | AD8: 0.023 | AE8: 0.023 | AF8: 0.023 | AG8: 0.023 | AH8: 0.023 | AI8: 0.023 | AJ8: 0.023 | AK8: 0.023 | AL8: 0.023 | AM8: 0.023 | AN8: 0.023 | AO8: 0.023 | AP8: 0.023 | AQ8: 0.022 | AR8: 0.022 | AS8: 0.022 | AT8: 0.022 | AU8: 0.022 | AV8: 0.022 | AW8: 0.022 | AX8: 0.022 | AY8: 0.022 | AZ8: 0.022 | BA8: 0.021 | BB8: 0.021 | BC8: 0.021 | BD8: 0.021 | BE8: 0.021 | BF8: 0.021 | BG8: 0.021 | BH8: 0.021 | BI8: 0.021 | BJ8: 0.021 | BK8: 0.02
A9: Employment( thousands) | B9: 572.5 | C9: 577.7 | D9: 585.6 | E9: 594.3 | F9: 595.5 | G9: 607.4 | H9: 646.3 | I9: 655.3 | J9: 656.5 | K9: 595.8 | L9: 565.8 | M9: 570.2 | N9: 579.3 | O9: 589.7 | P9: 599.8 | Q9: 604.6 | R9: 608.2 | S9: 610.7 | T9: 610.7 | U9: 609.4 | V9: 606.7 | W9: 602.4 | X9: 597.8 | Y9: 593.5 | Z9: 589.2 | AA9: 585.2 | AB9: 581.7 | AC9: 578.4 | AD9: 575.3 | AE9: 572.4 | AF9: 569.5 | AG9: 566.7 | AH9: 563.8 | AI9: 560.9 | AJ9: 558 | AK9: 555.2 | AL9: 552.2 | AM9: 549.2 | AN9: 546.1 | AO9: 542.6 | AP9: 539 | AQ9: 535.1 | AR9: 530.9 | AS9: 526.4 | AT9: 521.7 | AU9: 516.8 | AV9: 511.7 | AW9: 506.3 | AX9: 500.7 | AY9: 495.2 | AZ9: 489.6 | BA9: 484 | BB9: 478.6 | BC9: 473.5 | BD9: 468.9 | BE9: 464.8 | BF9: 460.9 | BG9: 457.6 | BH9: 454.6 | BI9: 452 | BJ9: 449.6
A10: Employment growth | B10: -0.012 | C10: =C9/B9-1 -> 0.009082969432 | D10: 0.01367491778 | E10: 0.01485655738 | F10: 0.002019182231 | G10: 0.01998320739 | H10: 0.06404346394 | I10: 0.01392542163 | J10: 0.001831222341 | K10: -0.09246001523 | L10: -0.05035246727 | M10: 0.007776599505 | N10: 0.01595931252 | O10: 0.01795270154 | P10: 0.01712735289 | Q10: 0.008002667556 | R10: 0.005954349983 | S10: 0.00411048997 | T10: 0 | U10: -0.002128704765 | V10: -0.004430587463 | W10: -0.007087522664 | X10: -0.007636122178 | Y10: -0.007193041151 | Z10: -0.007245155855 | AA10: -0.006788866259 | AB10: -0.005980861244 | AC10: -0.005673027334 | AD10: -0.005359612725 | AE10: -0.005040848253 | AF10: -0.005066387142 | AG10: -0.004916593503 | AH10: -0.005117346038 | AI10: -0.005143667967 | AJ10: -0.005170262079 | AK10: -0.005017921147 | AL10: -0.005403458213 | AM10: -0.005432814198 | AN10: -0.005644573926 | AO10: -0.006409082586 | AP10: -0.00663472171 | AQ10: -0.007235621521 | AR10: -0.007849000187 | AS10: -0.008476172537 | AT10: -0.008928571429 | AU10: -0.009392371094 | AV10: -0.009868421053 | AW10: -0.01055305843 | AX10: -0.01106063599 | AY10: -0.01098462153 | AZ10: -0.0113085622 | BA10: -0.0114379085 | BB10: -0.01115702479 | BC10: -0.01065608023 | BD10: -0.009714889124 | BE10: -0.008743868629 | BF10: -0.00839070568 | BG10: -0.007159904535 | BH10: -0.006555944056 | BI10: -0.005719313682 | BJ10: -0.005309734513
A11: Average nominal wage (EEK) | B11: 4907 | C11: 5510 | D11: 6144 | E11: 6723 | F11: 7287 | G11: 8073 | H11: 9407 | I11: 11336 | J11: 12912 | K11: 12317 | L11: 12187 | M11: 12507 | N11: 12957 | O11: 13514 | P11: 14081 | Q11: 14848.5 | R11: 15674.6 | S11: 16577 | T11: 17569.2 | U11: 18642.4 | V11: 19769.2 | W11: 20999.8 | X11: 22276 | Y11: 23596.3 | Z11: 24947.4 | AA11: 26312.3 | AB11: 27729.4 | AC11: 29185.1 | AD11: 30677.7 | AE11: 32236.2 | AF11: 33874.7 | AG11: 35486.8 | AH11: 37110 | AI11: 38732.2 | AJ11: 40386.6 | AK11: 42063.7 | AL11: 43827.3 | AM11: 45621.2 | AN11: 47498.7 | AO11: 49442.5 | AP11: 51426.7 | AQ11: 53470.6 | AR11: 55575 | AS11: 57741.4 | AT11: 60019.7 | AU11: 62355.2 | AV11: 64812.7 | AW11: 67413.7 | AX11: 70085.3 | AY11: 72857.3 | AZ11: 75763.7 | BA11: 78719.2 | BB11: 81766.9 | BC11: 84973.8 | BD11: 88310.3 | BE11: 91687.8 | BF11: 95255 | BG11: 98936.3 | BH11: 102799.1 | BI11: 106722.8 | BJ11: 110860.2
A12: Growth of average nominal wage | B12: 0.062 | C12: =C11/B11-1 -> 0.1228856735 | D12: 0.1150635209 | E12: 0.09423828125 | F12: 0.08389112004 | G12: 0.1078633182 | H12: 0.1652421652 | I12: 0.2050600617 | J12: 0.1390261115 | K12: -0.04608116481 | L12: -0.01055451815 | M12: 0.02625748749 | N12: 0.03597985128 | O12: 0.04298834607 | P12: 0.04195648957 | Q12: 0.05450607201 | R12: 0.05563524935 | S12: 0.0575708471 | T12: 0.0598540146 | U12: 0.06108417002 | V12: 0.06044286143 | W12: 0.06224834591 | X12: 0.06077200735 | Y12: 0.05927006644 | Z12: 0.05725897704 | AA12: 0.05471111218 | AB12: 0.05385694143 | AC12: 0.05249662813 | AD12: 0.05114253506 | AE12: 0.05080237436 | AF12: 0.05082795119 | AG12: 0.04759008936 | AH12: 0.04574095157 | AI12: 0.04371328483 | AJ12: 0.04271381435 | AK12: 0.04152614976 | AL12: 0.04192688708 | AM12: 0.04093110915 | AN12: 0.04115411256 | AO12: 0.04092322527 | AP12: 0.04013146584 | AQ12: 0.03974394624 | AR12: 0.03935620696 | AS12: 0.03898155646 | AT12: 0.03945695809 | AU12: 0.03891222382 | AV12: 0.03941130812 | AW12: 0.0401310237 | AX12: 0.03962992685 | AY12: 0.0395518033 | AZ12: 0.03989167867 | BA12: 0.03900944648 | BB12: 0.03871609468 | BC12: 0.03922002669 | BD12: 0.03926504405 | BE12: 0.03824582184 | BF12: 0.0389059395 | BG12: 0.03864679019 | BH12: 0.03904330362 | BI12: 0.0381686221 | BJ12: 0.03876772349 | BK12: 0.04
A13: Social tax (mln EEK) | B13: 10390.4 | C13: 11529.9 | D13: 12814.5 | E13: 14254.3 | F13: 15737.5 | G13: 19133 | H13: 21746.4 | I13: 27267.7 | J13: 31299.1 | K13: 28084.27624 | L13: 26600 | M13: 27300 | N13: 28600 | O13: 30300 | P13: 32000 | Q13: 34000 | R13: 36100 | S13: 38300 | T13: 40600 | U13: 43000 | V13: 45400 | W13: 47900 | X13: 50400 | Y13: 53000 | Z13: 55600 | AA13: 58200 | AB13: 61000 | AC13: 63800 | AD13: 66700 | AE13: 69700 | AF13: 72900 | AG13: 76000 | AH13: 79100 | AI13: 82100 | AJ13: 85200 | AK13: 88300 | AL13: 91500 | AM13: 94700 | AN13: 98000 | AO13: 101400 | AP13: 104800 | AQ13: 108200 | AR13: 111600 | AS13: 115000 | AT13: 118500 | AU13: 122000 | AV13: 125600 | AW13: 129300 | AX13: 132900 | AY13: 136600 | AZ13: 140400 | BA13: 144208 | BB13: 148120 | BC13: 152289 | BD13: 156731 | BE13: 161303 | BF13: 166172 | BG13: 171359 | BH13: 176882 | BI13: 182583 | BJ13: 188654
A14: Population (version 1) | B14: 1369515 | C14: 1364101 | D14: 1358644 | E14: 1353557 | F14: 1349290 | G14: 1346097 | H14: 1343547 | I14: 1341672 | J14: 1340675 | K14: 1340271 | L14: 1336558 | M14: 1335347 | N14: 1334371 | O14: 1333598 | P14: 1332975 | Q14: 1332419 | R14: 1331869 | S14: 1331262 | T14: 1330583 | U14: 1329582 | V14: 1328259 | W14: 1326575 | X14: 1324526 | Y14: 1322049 | Z14: 1319175 | AA14: 1315932 | AB14: 1312393 | AC14: 1308594 | AD14: 1304610 | AE14: 1300510 | AF14: 1296382 | AG14: 1292289 | AH14: 1288303 | AI14: 1284472 | AJ14: 1280837 | AK14: 1277462 | AL14: 1274329 | AM14: 1271478 | AN14: 1268886 | AO14: 1266587 | AP14: 1264490 | AQ14: 1262625 | AR14: 1260941 | AS14: 1259420 | AT14: 1258007 | AU14: 1256677 | AV14: 1255399 | AW14: 1254126 | AX14: 1252836 | AY14: 1251509 | AZ14: 1250110
A15: Population (version 2) | B15: 1369515 | C15: 1364101 | D15: 1358644 | E15: 1353557 | F15: 1349290 | G15: 1346097 | H15: 1343547 | I15: 1341672 | J15: 1340675 | K15: 1340271 | L15: 1320386 | M15: 1316651 | N15: 1313966 | O15: 1312608 | P15: 1312495 | Q15: 1313446 | R15: 1315264 | S15: 1317706 | T15: 1319919 | U15: 1321270 | V15: 1321872 | W15: 1321623 | X15: 1320558 | Y15: 1318681 | Z15: 1316050 | AA15: 1312678 | AB15: 1308709 | AC15: 1304246 | AD15: 1299609 | AE15: 1294876 | AF15: 1290146 | AG15: 1285487 | AH15: 1280964 | AI15: 1276632 | AJ15: 1272560 | AK15: 1268771 | AL15: 1265295 | AM15: 1262125 | AN15: 1259269 | AO15: 1256697 | AP15: 1254411 | AQ15: 1252354 | AR15: 1250492 | AS15: 1248803 | AT15: 1247236 | AU15: 1245753 | AV15: 1244307 | AW15: 1242882 | AX15: 1241406 | AY15: 1239865 | AZ15: 1238245
A16: GDP per capita (nominal) | B16: =B4*1000000/B14 -> 70375.6203 | C16: 79957.70909 | D16: 89554.54109 | E16: 100787.1222 | F16: 112312.1129 | G16: 129972.9592 | H16: 154066.7195 | I16: 182238.0445 | J16: 187586.7037 | K16: 160287.0959 | L16: 163239.3806 | M16: 172516.2823 | N16: 183971.3243 | O16: 196119.2203 | P16: 208753.0524 | Q16: 221985.5766 | R16: 235827.8479 | S16: 250543.9951 | T16: 265676.6245 | U16: 281516.8226 | V16: 297505.6823 | W16: 314183.5177 | X16: 331243.8563 | Y16: 349004.6133 | Z16: 367113.3095 | AA16: 385518.0207 | AB16: 404939.2217 | AC16: 425010.8896 | AD16: 445708.3726 | AE16: 467459.9196 | AF16: 490288.3564 | AG16: 512713.4875 | AH16: =AH4*1000000/AH14 -> 535072.8827 | AI16: 557247.3359 | AJ16: 579685.3932 | AK16: 602314.5111 | AL16: 625712.5122 | AM16: 649237.6589 | AN16: 673513.1446 | AO16: 697847.3646 | AP16: 722232.5997 | AQ16: 746604.0986 | AR16: 770924.8886 | AS16: 795147.4488 | AT16: 820061.8915 | AU16: 844863.159 | AV16: 870379.457 | AW16: 896663.7324 | AX16: 922837.9453 | AY16: 949805.2351 | AZ16: 977617.9696
A17: GDP per capita growth (nominal) | C17: =C16/B16-1 -> 0.136156367 | D17: 0.1200238489 | E17: 0.1254272645 | F17: 0.1143498343 | G17: 0.1572479209 | H17: 0.1853751771 | I17: 0.1828514628 | J17: 0.02934984927 | K17: -0.1455306118 | L17: 0.01841872943 | M17: =M16/L16-1 -> 0.05683004735 | N17: =N16/M16-1 -> 0.06639977329 | O17: 0.06603146476 | P17: 0.06441914274 | Q17: 0.06338841073 | R17: 0.06235662486 | S17: 0.06240207546 | T17: 0.06039909021 | U17: 0.05962209944 | V17: 0.05679539689 | W17: 0.05605888039 | X17: 0.05430055247 | Y17: 0.05361837409 | Z17: 0.05188669568 | AA17: 0.05013359843 | AB17: 0.05037689545 | AC17: 0.0495671122 | AD17: 0.04869871238 | AE17: 0.04880219509 | AF17: 0.04883506765 | AG17: 0.04573865728 | AH17: 0.04360992208 | AI17: 0.04144193041 | AJ17: 0.04026588538 | AK17: 0.03903689511 | AL17: 0.03884681621 | AM17: 0.03759737285 | AN17: 0.03739075425 | AO17: 0.03613028224 | AP17: 0.03494350818 | AQ17: 0.03374466745 | AR17: 0.03257521634 | AS17: 0.03142012996 | AT17: 0.0313331103 | AU17: 0.03024316537 | AV17: 0.03020169341 | AW17: 0.03019863933 | AX17: 0.02919066755 | AY17: 0.0292221294 | AZ17: 0.02928256601
A18: GDP per capita (real) | B18: =B6*1000000/B16 -> 2124972.407 | C18: =C6*1000000/C14 -> 117869.7561 | D18: =D6*1000000/D14 -> 127738.9545 | E18: 137911.3874 | F18: 148348.495 | G18: 162724.4214 | H18: 179264.3526 | I18: 192446.6074 | J18: 185702.1736 | K18: 159595.2478 | L18: 163239.3806 | M18: 169269.3662 | N18: 176168.9021 | O18: 182969.3143 | P18: 189461.7487 | Q18: 196174.7368 | R18: 202928.4433 | S18: 209923.6832 | T18: 216961.8245 | U18: 224290.2987 | V18: 231473.6256 | W18: 238720.4902 | X18: 245784.2972 | Y18: 252893.41 | Z18: 259780.4816 | AA18: 266410.3638 | AB18: 273272.7278 | AC18: 280369.5898 | AD18: 287412.7457 | AE18: 294661.8605 | AF18: 302103.3395 | AG18: 308818.3191 | AH18: 315039.9553 | AI18: 320719.2709 | AJ18: 326132.2809 | AK18: 331244.8292 | AL18: 336375.9806 | AM18: 341175.7898 | AN18: 345975.1948 | AO18: 350415.8143 | AP18: 354506.9048 | AQ18: 358580.8458 | AR18: 362291.2719 | AS18: 365630.6411 | AT18: 368969.6499 | AU18: 371945.6688 | AV18: 374930.5808 | AW18: 377938.332 | AX18: 380597.4463 | AY18: 383287.0074 | AZ18: 386018.2401
A19: GDP per capita growth (real) | C19: =C18/B18-1 -> -0.9445311592 | D19: =D18/C18-1 -> 0.08372969227 | E19: =E18/D18-1 -> 0.07963453994 | F19: =F18/E18-1 -> 0.07567981032 | G19: =G18/F18-1 -> 0.09690645206 | H19: =H18/G18-1 -> 0.1016438163 | I19: =I18/H18-1 -> 0.07353528254 | J19: =J18/I18-1 -> -0.03504573995 | K19: =K18/J18-1 -> -0.1405849232 | L19: =L18/K18-1 -> 0.02283359196 | M19: =M18/L18-1 -> 0.03693952808 | N19: =N18/M18-1 -> 0.04076068799 | O19: =O18/N18-1 -> 0.03860166107 | P19: =P18/O18-1 -> 0.03548373375 | Q19: =Q18/P18-1 -> 0.03543189117 | R19: =R18/Q18-1 -> 0.03442699395 | S19: =S18/R18-1 -> 0.03447146091 | T19: =T18/S18-1 -> 0.03352714261 | U19: =U18/T18-1 -> 0.03377771285 | V19: =V18/U18-1 -> 0.03202691794 | W19: =W18/V18-1 -> 0.03130751748 | X19: =X18/W18-1 -> 0.02959028362 | Y19: =Y18/X18-1 -> 0.02892419419 | Z19: =Z18/Y18-1 -> 0.02723310023 | AA19: =AA18/Z18-1 -> 0.02552109456 | AB19: =AB18/AA18-1 -> 0.02575862261 | AC19: =AC18/AB18-1 -> 0.02596988753 | AD19: =AD18/AC18-1 -> 0.02512096949 | AE19: =AE18/AD18-1 -> 0.02522196677 | AF19: =AF18/AE18-1 -> 0.02525430004 | AG19: =AG18/AF18-1 -> 0.02222742591 | AH19: =AH18/AG18-1 -> 0.02014659051 | AI19: =AI18/AH18-1 -> 0.0180272867 | AJ19: =AJ18/AI18-1 -> 0.0168777198 | AK19: =AK18/AJ18-1 -> 0.0156763027 | AL19: =AL18/AK18-1 -> 0.01549050991 | AM19: =AM18/AL18-1 -> 0.01426917965 | AN19: =AN18/AM18-1 -> 0.01406724954 | AO19: =AO18/AN18-1 -> 0.01283508042 | AP19: =AP18/AO18-1 -> 0.01167495987 | AQ19: =AQ18/AP18-1 -> 0.01149185229 | AR19: =AR18/AQ18-1 -> 0.01034753014 | AS19: =AS18/AR18-1 -> 0.009217360372 | AT19: =AT18/AS18-1 -> 0.009132190838 | AU19: =AU18/AT18-1 -> 0.008065755162 | AV19: =AV18/AU18-1 -> 0.008025129063 | AW19: =AW18/AV18-1 -> 0.008022154871 | AX19: =AX18/AW18-1 -> 0.007035841882 | AY19: =AY18/AX18-1 -> 0.007066681902 | AZ19: =AZ18/AY18-1 -> 0.007125816128
A20: GDP per capita growth (nominal, index) | H20: =$L$16/H16 -> 1.05953694 | I20: =$L$16/I16 -> 0.8957480914 | J20: =$L$16/J16 -> 0.8702076287 | K20: =$L$16/K16 -> 1.018418729 | L20: =$L$16/L16 -> 1
A21: Sources: Ministry of Finance, Statistics Estonia, authors' calculations
A23: Average nominal GDP per capita growth 2010-2050 | B23: =AVERAGE(L17:AZ17) -> 0.04516475483
A24: Average nominal GDP per capita growth 2010-2050 | B24: =AVERAGE(L19:AZ19) -> 0.02182941162
A26: Index of real wage (nominal wage / inflation, 2009=1) | K26: 1 | L26: =K26*(1+'Macro forecast'!L12)/(1+'Macro forecast'!L8) -> 0.9643718147 | M26: =L26*(1+'Macro forecast'!M12)/(1+'Macro forecast'!M8) -> 0.9655549225 | N26: =M26*(1+'Macro forecast'!N12)/(1+'Macro forecast'!N8) -> 0.9749468275 | O26: =N26*(1+'Macro forecast'!O12)/(1+'Macro forecast'!O8) -> 0.9901248092 | P26: =O26*(1+'Macro forecast'!P12)/(1+'Macro forecast'!P8) -> 1.004544275 | Q26: =P26*(1+'Macro forecast'!Q12)/(1+'Macro forecast'!Q8) -> 1.031448917 | R26: =Q26*(1+'Macro forecast'!R12)/(1+'Macro forecast'!R8) -> 1.060208213 | S26: =R26*(1+'Macro forecast'!S12)/(1+'Macro forecast'!S8) -> 1.091767573 | T26: =S26*(1+'Macro forecast'!T12)/(1+'Macro forecast'!T8) -> 1.127791662 | U26: =T26*(1+'Macro forecast'!U12)/(1+'Macro forecast'!U8) -> 1.167494517 | V26: =U26*(1+'Macro forecast'!V12)/(1+'Macro forecast'!V8) -> 1.209044166 | W26: =V26*(1+'Macro forecast'!W12)/(1+'Macro forecast'!W8) -> 1.254204264 | X26: =W26*(1+'Macro forecast'!X12)/(1+'Macro forecast'!X8) -> 1.299242944 | Y26: =X26*(1+'Macro forecast'!Y12)/(1+'Macro forecast'!Y8) -> 1.34399332 | Z26: =Y26*(1+'Macro forecast'!Z12)/(1+'Macro forecast'!Z8) -> 1.38764551 | AA26: =Z26*(1+'Macro forecast'!AA12)/(1+'Macro forecast'!AA8) -> 1.429262831 | AB26: =AA26*(1+'Macro forecast'!AB12)/(1+'Macro forecast'!AB8) -> 1.47093609 | AC26: =AB26*(1+'Macro forecast'!AC12)/(1+'Macro forecast'!AC8) -> 1.513348264 | AD26: =AC26*(1+'Macro forecast'!AD12)/(1+'Macro forecast'!AD8) -> 1.554980187 | AE26: =AD26*(1+'Macro forecast'!AE12)/(1+'Macro forecast'!AE8) -> 1.597240344 | AF26: =AE26*(1+'Macro forecast'!AF12)/(1+'Macro forecast'!AF8) -> 1.640688953 | AG26: =AF26*(1+'Macro forecast'!AG12)/(1+'Macro forecast'!AG8) -> 1.680126575 | AH26: =AG26*(1+'Macro forecast'!AH12)/(1+'Macro forecast'!AH8) -> 1.717475233 | AI26: =AH26*(1+'Macro forecast'!AI12)/(1+'Macro forecast'!AI8) -> 1.752249968 | AJ26: =AI26*(1+'Macro forecast'!AJ12)/(1+'Macro forecast'!AJ8) -> 1.78601686 | AK26: =AJ26*(1+'Macro forecast'!AK12)/(1+'Macro forecast'!AK8) -> 1.818360962 | AL26: =AK26*(1+'Macro forecast'!AL12)/(1+'Macro forecast'!AL8) -> 1.852003105 | AM26: =AL26*(1+'Macro forecast'!AM12)/(1+'Macro forecast'!AM8) -> 1.884464952 | AN26: =AM26*(1+'Macro forecast'!AN12)/(1+'Macro forecast'!AN8) -> 1.917906584 | AO26: =AN26*(1+'Macro forecast'!AO12)/(1+'Macro forecast'!AO8) -> 1.951508804 | AP26: =AO26*(1+'Macro forecast'!AP12)/(1+'Macro forecast'!AP8) -> 1.984189358 | AQ26: =AP26*(1+'Macro forecast'!AQ12)/(1+'Macro forecast'!AQ8) -> 2.018638819 | AR26: =AQ26*(1+'Macro forecast'!AR12)/(1+'Macro forecast'!AR8) -> 2.052920535 | AS26: =AR26*(1+'Macro forecast'!AS12)/(1+'Macro forecast'!AS8) -> 2.087031871 | AT26: =AS26*(1+'Macro forecast'!AT12)/(1+'Macro forecast'!AT8) -> 2.122680822 | AU26: =AT26*(1+'Macro forecast'!AU12)/(1+'Macro forecast'!AU8) -> 2.157807293 | AV26: =AU26*(1+'Macro forecast'!AV12)/(1+'Macro forecast'!AV8) -> 2.194568788 | AW26: =AV26*(1+'Macro forecast'!AW12)/(1+'Macro forecast'!AW8) -> 2.233502035 | AX26: =AW26*(1+'Macro forecast'!AX12)/(1+'Macro forecast'!AX8) -> 2.272030878 | AY26: =AX26*(1+'Macro forecast'!AY12)/(1+'Macro forecast'!AY8) -> 2.311050681 | AZ26: =AY26*(1+'Macro forecast'!AZ12)/(1+'Macro forecast'!AZ8) -> 2.351509171 | BA26: =AZ26*(1+'Macro forecast'!BA12)/(1+'Macro forecast'!BA8) -> 2.392987504 | BB26: =BA26*(1+'Macro forecast'!BB12)/(1+'Macro forecast'!BB8) -> 2.434509926 | BC26: =BB26*(1+'Macro forecast'!BC12)/(1+'Macro forecast'!BC8) -> 2.477954428 | BD26: =BC26*(1+'Macro forecast'!BD12)/(1+'Macro forecast'!BD8) -> 2.522283465 | BE26: =BD26*(1+'Macro forecast'!BE12)/(1+'Macro forecast'!BE8) -> 2.564887629 | BF26: =BE26*(1+'Macro forecast'!BF12)/(1+'Macro forecast'!BF8) -> 2.609869727 | BG26: =BF26*(1+'Macro forecast'!BG12)/(1+'Macro forecast'!BG8) -> 2.654978271 | BH26: =BG26*(1+'Macro forecast'!BH12)/(1+'Macro forecast'!BH8) -> 2.701897546 | BI26: =BH26*(1+'Macro forecast'!BI12)/(1+'Macro forecast'!BI8) -> 2.747331295 | BJ26: =BI26*(1+'Macro forecast'!BJ12)/(1+'Macro forecast'!BJ8) -> 2.795141111 | BK26: =BJ26*(1+'Macro forecast'!BK12)/(1+'Macro forecast'!BK8) -> 2.8499478

Sheet Population
A1: To Table of Contents
A2: POPULATION (AVERAGE 2004-2008)
C3: age | D3: 14 | E3: 15 | F3: 16 | G3: 17 | H3: 18 | I3: 19 | J3: 20 | K3: 21 | L3: 22 | M3: 23 | N3: 24 | O3: 25 | P3: 26 | Q3: 27 | R3: 28 | S3: 29 | T3: 30 | U3: 31 | V3: 32 | W3: 33 | X3: 34 | Y3: 35 | Z3: 36 | AA3: 37 | AB3: 38 | AC3: 39 | AD3: 40 | AE3: 41 | AF3: 42 | AG3: 43 | AH3: 44 | AI3: 45 | AJ3: 46 | AK3: 47 | AL3: 48 | AM3: 49 | AN3: 50 | AO3: 51 | AP3: 52 | AQ3: 53 | AR3: 54 | AS3: 55 | AT3: 56 | AU3: 57 | AV3: 58 | AW3: 59 | AX3: 60 | AY3: 61 | AZ3: 62 | BA3: 63 | BB3: 64 | BC3: 65 | BD3: 66 | BE3: 67 | BF3: 68 | BG3: 69 | BH3: 70 | BI3: 71 | BJ3: 72 | BK3: 73 | BL3: 74 | BM3: 75 | BN3: 76 | BO3: 77 | BP3: 78 | BQ3: 79 | BR3: 80 | BS3: 81 | BT3: 82 | BU3: 83 | BV3: 84
A4: Man | B4: Ethnic | C4: A) Basic education or lower | G4: =IF(G$8*G76>=15, G$8*G76,15) -> 2994.07548 | H4: 1376.6532 | I4: 457.59042 | J4: 339.76122 | K4: 210.28032 | L4: 156.82464 | M4: 178.77 | N4: 199.09616 | O4: 188.54 | P4: 197.42926 | Q4: 232.59366 | R4: 318.17192 | S4: 205.3863 | T4: 231.4712 | U4: 150.53346 | V4: 95.97748 | W4: 44.3339 | X4: 116.90272 | Y4: 60.50226 | Z4: 81.64044 | AA4: 96.3594 | AB4: 54.9774 | AC4: 67.0768 | AD4: 111.1698 | AE4: 55.13598 | AF4: 31.44808 | AG4: 15 | AH4: 67.14008 | AI4: 52.8228 | AJ4: 53.54196 | AK4: 94.40176 | AL4: 73.81234 | AM4: =IF(AM$8*AM76>=15, AM$8*AM76,15) -> 21.7184 | AN4: 79.464 | AO4: 32.24248 | AP4: 28.67424 | AQ4: 88.71876 | AR4: 58.28728 | AS4: 56.67528 | AT4: 151.22282 | AU4: 79.23058 | AV4: 33.25856 | AW4: 79.71436 | AX4: 106.08444 | AY4: 209.43846 | AZ4: 293.53674 | BA4: 364.9998 | BB4: 319.92756 | BC4: 277.27374 | BD4: 359.16848 | BE4: 350.30548 | BF4: 517.5344 | BG4: 629.87232 | BH4: 517.64766 | BI4: 474.593 | BJ4: 417.62144 | BK4: 348.6924 | BL4: 329.50636 | BM4: 369.92748 | BN4: 380.6768 | BO4: 422.2512 | BP4: 462.13662 | BQ4: 388.85904 | BR4: 440.4948 | BS4: 509.0349 | BT4: 339.27064 | BU4: 302.2128 | BV4: 221.74912
A5: Man | B5: Ethnic | C5: B) Lower secondary education | G5: =IF(G$8*G77>=15, G$8*G77,15) -> 4780.72452 | H5: 6268.77108 | I5: 6254.48712 | J5: 3829.56246 | K5: 2315.27394 | L5: 1855.0322 | M5: 1250.67492 | N5: 1179.80304 | O5: 1346.5184 | P5: 1483.75164 | Q5: 1650.68606 | R5: 1559.30536 | S5: 1643.74242 | T5: 1466.201 | U5: 1721.03406 | V5: 1775.58338 | W5: 1600.6523 | X5: 1196.92444 | Y5: 1087.71096 | Z5: 1067.15718 | AA5: 838.8936 | AB5: 807.55692 | AC5: 696.5207 | AD5: 741.7202 | AE5: 864.38988 | AF5: 721.52576 | AG5: 911.81552 | AH5: 805.0868 | AI5: 741.86688 | AJ5: 750.16316 | AK5: 795.91424 | AL5: 774.1971 | AM5: =IF(AM$8*AM77>=15, AM$8*AM77,15) -> 1109.81024 | AN5: 1046.276 | AO5: 1288.13908 | AP5: 1608.31764 | AQ5: 1506.72366 | AR5: 1183.52816 | AS5: 1531.20972 | AT5: 1503.53168 | AU5: 1604.30204 | AV5: 1456.63504 | AW5: 1372.19532 | AX5: 1453.5213 | AY5: 1441.06776 | AZ5: 1357.55508 | BA5: 1520.8325 | BB5: 1362.82458 | BC5: 1271.14882 | BD5: 1331.85052 | BE5: 1578.24196 | BF5: 1247.7048 | BG5: 1292.12444 | BH5: 1275.03762 | BI5: 1301.202 | BJ5: 1237.82032 | BK5: 1065.0654 | BL5: 915.26496 | BM5: 885.7238 | BN5: 673.876 | BO5: 568.86336 | BP5: 587.83494 | BQ5: 564.60672 | BR5: 412.28184 | BS5: 348.6042 | BT5: 338.57946 | BU5: 216.9108 | BV5: 196.66408
A6: Man | B6: Ethnic | C6: C) Upper secondary education | H6: =IF(H$8*H78>=15, H$8*H78,15) -> 45.37572 | I6: 788.949 | J6: 3182.0088 | K6: 4682.38782 | L6: 4812.19312 | M6: 4626.5676 | N6: 4180.31584 | O6: 3437.5984 | P6: 3091.48616 | Q6: 2701.00216 | R6: 2665.01852 | S6: 2500.4967 | T6: 3215.239 | U6: 3268.0749 | V6: 3299.39022 | W6: 3258.2108 | X6: 3669.15128 | Y6: 3644.76252 | Z6: 3572.09322 | AA6: 3929.3222 | AB6: 3759.23244 | AC6: 3762.8887 | AD6: 3446.2638 | AE6: 3537.00276 | AF6: 3678.832 | AG6: 3545.08616 | AH6: 3636.2592 | AI6: 3631.27404 | AJ6: 3521.67924 | AK6: 3055.3384 | AL6: 3239.41826 | AM6: 3205.09288 | AN6: =IF(AN$8*AN78>=15, AN$8*AN78,15) -> 3191.804 | AO6: 2735.4104 | AP6: 2359.48032 | AQ6: 2209.49586 | AR6: 2301.8536 | AS6: 1902.04194 | AT6: 1863.47098 | AU6: 1875.74882 | AV6: 2120.00848 | AW6: 2007.35252 | AX6: 1904.17458 | AY6: 1638.62028 | AZ6: 1715.57778 | BA6: 1631.17152 | BB6: 1735.79496 | BC6: 1611.83494 | BD6: 1447.7496 | BE6: 1119.63308 | BF6: 986.7752 | BG6: 826.87784 | BH6: 800.7719 | BI6: 803.6651 | BJ6: 806.05752 | BK6: 772.7622 | BL6: 783.84652 | BM6: 719.60252 | BN6: 723.24 | BO6: 630.8208 | BP6: 346.203 | BQ6: 247.09232 | BR6: 198.15612 | BS6: 153.9498 | BT6: 165.29076 | BU6: 175.23468 | BV6: 128.58552
A7: Man | B7: Ethnic | C7: D) Higher education | J7: =IF(J$8*J79>=15, J$8*J79,15) -> 84.01098 | K7: 92.72778 | L7: 436.35004 | M7: 1094.0724 | N7: 1475.28144 | O7: 1883.3432 | P7: 1965.53294 | Q7: 2042.98078 | R7: 2031.3042 | S7: 2169.92256 | T7: 1589.739 | U7: 1377.60924 | V7: 1403.5063 | W7: 1713.803 | X7: 1659.22156 | Y7: 1855.62426 | Z7: 1758.50916 | AA7: 1433.4248 | AB7: 1486.83324 | AC7: 1461.9149 | AD7: 1582.8462 | AE7: 1472.07138 | AF7: 1501.2008 | AG7: 1505.7504 | AH7: 1433.11392 | AI7: 1443.23628 | AJ7: 1431.81564 | AK7: 1707.1456 | AL7: 1462.3723 | AM7: 1092.97848 | AN7: 980.056 | AO7: 1144.088 | AP7: =IF(AP$8*AP79>=15, AP$8*AP79,15) -> 1123.41576 | AQ7: 1178.7633 | AR7: 1395.93096 | AS7: 1395.87306 | AT7: 1313.17452 | AU7: 1129.38738 | AV7: 884.49792 | AW7: 803.5378 | AX7: 648.01968 | AY7: 809.06364 | AZ7: 820.7304 | BA7: 678.39618 | BB7: 758.0529 | BC7: 984.3425 | BD7: 816.8314 | BE7: 686.04602 | BF7: 851.6252 | BG7: 659.18456 | BH7: 668.01664 | BI7: 563.5399 | BJ7: 547.6016 | BK7: 690.48 | BL7: 714.98216 | BM7: 588.60256 | BN7: 518.4368 | BO7: 422.86464 | BP7: 379.22544 | BQ7: 336.88816 | BR7: 280.00032 | BS7: 125.4111 | BT7: 144.35788 | BU7: 117.96048 | BV7: 111.40128
C8: KOKKU | D8: 7048 | E8: 7450 | F8: 7686.8 | G8: 7774.8 | H8: 7690.8 | I8: 7513.8 | J8: 7434.6 | K8: 7301.4 | L8: 7260.4 | M8: 7150.8 | N8: 7035.2 | O8: 6856 | P8: 6738.2 | Q8: 6626.6 | R8: 6573.8 | S8: 6520.2 | T8: 6502 | U8: 6516.6 | V8: 6573.8 | W8: 6617 | X8: 6642.2 | Y8: 6648.6 | Z8: 6479.4 | AA8: 6298 | AB8: 6108.6 | AC8: 5989 | AD8: 5882 | AE8: 5928.6 | AF8: 5933.6 | AG8: 5975.2 | AH8: 5941.6 | AI8: 5869.2 | AJ8: 5757.2 | AK8: 5652.8 | AL8: 5549.8 | AM8: 5429.6 | AN8: 5297.6 | AO8: 5200.4 | AP8: 5120.4 | AQ8: 4984.2 | AR8: 4939.6 | AS8: 4885.8 | AT8: 4831.4 | AU8: 4688.2 | AV8: 4494.4 | AW8: 4262.8 | AX8: 4111.8 | AY8: 4098.6 | AZ8: 4187.4 | BA8: 4195.4 | BB8: 4176.6 | BC8: 4144.6 | BD8: 3955.6 | BE8: 3734.6 | BF8: 3604 | BG8: 3408.4 | BH8: 3261.8 | BI8: 3143 | BJ8: 3008.8 | BK8: 2877 | BL8: 2743.6 | BM8: 2563.6 | BN8: 2296 | BO8: 2044.8 | BP8: 1775.4 | BQ8: 1537.6 | BR8: 1330.8 | BS8: 1137 | BT8: 987.4 | BU8: 812.4 | BV8: 658.4
A9: Man | B9: Non-ethnic | C9: A) Basic education or lower | G9: =IF(G$13*G81>=15, G$13*G81,15) -> 743.23164 | H9: 282.1147 | I9: 127.71216 | J9: 146.587 | K9: 256.90108 | L9: 263.32216 | M9: 104.27472 | N9: 107.98106 | O9: 100.89936 | P9: 64.0794 | Q9: 47.4496 | R9: 15 | S9: 15 | T9: 15 | U9: 15 | V9: 72.19344 | W9: 43.16088 | X9: 15 | Y9: 30.43068 | Z9: 15 | AA9: 15 | AB9: 15 | AC9: 15 | AD9: 15 | AE9: 15 | AF9: 15 | AG9: 15 | AH9: 61.788 | AI9: 55.07448 | AJ9: 15 | AK9: 15 | AL9: 15 | AM9: =IF(AM$13*AM81>=15, AM$13*AM81,15) -> 15 | AN9: 15 | AO9: 15 | AP9: 15 | AQ9: 15 | AR9: 15 | AS9: 15 | AT9: 15 | AU9: 15 | AV9: 15 | AW9: 15 | AX9: 15 | AY9: 15 | AZ9: 15 | BA9: 25.30268 | BB9: 36.72508 | BC9: 36.91432 | BD9: 223.4449 | BE9: 260.14572 | BF9: 184.25316 | BG9: 164.04976 | BH9: 48.74368 | BI9: 218.27862 | BJ9: 186.57196 | BK9: 229.31982 | BL9: 254.013 | BM9: 228.6064 | BN9: 326.0547 | BO9: 351.81872 | BP9: 275.42428 | BQ9: 149.9472 | BR9: 76.2381 | BS9: 107.52118 | BT9: 26.1248 | BU9: 15.52878 | BV9: 69.9279
A10: Man | B10: Non-ethnic | C10: B) Lower secondary education | G10: =IF(G$13*G82>=15, G$13*G82,15) -> 2376.96836 | H10: 2986.8853 | I10: 2731.54572 | J10: 1242.9214 | K10: 631.18516 | L10: 685.83152 | M10: 661.60512 | N10: 734.01788 | O10: 904.09518 | P10: 825.4037 | Q10: 811.0916 | R10: 967.7824 | S10: 784.98652 | T10: 984.164 | U10: 891.14536 | V10: 666.42202 | W10: 591.92064 | X10: 319.92558 | Y10: 342.40908 | Z10: 237.30934 | AA10: 175.01798 | AB10: 238.7008 | AC10: 169.62348 | AD10: 203.50768 | AE10: 383.5572 | AF10: 241.24962 | AG10: 130.48498 | AH10: 351.216 | AI10: 444.62568 | AJ10: 255.78696 | AK10: 293.88144 | AL10: 380.85616 | AM10: =IF(AM$13*AM82>=15, AM$13*AM82,15) -> 358.79916 | AN10: 432.3678 | AO10: 229.51188 | AP10: 536.81852 | AQ10: 556.9914 | AR10: 734.928 | AS10: 812.42784 | AT10: 862.9812 | AU10: 669.0523 | AV10: 423.62316 | AW10: 375.46628 | AX10: 381.77864 | AY10: 467.5746 | AZ10: 523.9163 | BA10: 709.22364 | BB10: 553.58404 | BC10: 609.27656 | BD10: 577.86764 | BE10: 457.92774 | BF10: 600.1762 | BG10: 551.89376 | BH10: 468.6336 | BI10: 541.44272 | BJ10: 411.38464 | BK10: 384.82768 | BL10: 359.8704 | BM10: 349.94784 | BN10: 280.2636 | BO10: 323.6772 | BP10: 187.132 | BQ10: 197.58 | BR10: 253.36754 | BS10: 201.94824 | BT10: 118.41024 | BU10: 78.1803 | BV10: 61.6635
A11: Man | B11: Non-ethnic | C11: C) Upper secondary education | I11: =IF(I$13*I83>=15, I$13*I83,15) -> 537.34212 | J11: 2011.6509 | K11: 2375.49654 | L11: 2134.1034 | M11: 2182.90464 | N11: 1978.17502 | O11: 1637.46126 | P11: 1497.32198 | Q11: 1563.76088 | R11: 1525.8276 | S11: 1584.688 | T11: 1485.4464 | U11: 1426.76744 | V11: 1475.59016 | W11: 1527.78792 | X11: 1496.4261 | Y11: 1330.51116 | Z11: 1651.53472 | AA11: 1739.58724 | AB11: 1649.8864 | AC11: 1892.01168 | AD11: 1879.71352 | AE11: 1851.91422 | AF11: 2067.98106 | AG11: 2201.42798 | AH11: 2017.2156 | AI11: 2031.37518 | AJ11: 2082.9336 | AK11: 2009.65026 | AL11: 1872.091 | AM11: 1904.08572 | AN11: 1828.0814 | AO11: =IF(AO$13*AO83>=15, AO$13*AO83,15) -> 1855.05756 | AP11: 1422.27908 | AQ11: 1470.95656 | AR11: 1443.21486 | AS11: 1327.91568 | AT11: 1223.9668 | AU11: 1151.13656 | AV11: 902.21154 | AW11: 787.47382 | AX11: 572.50862 | AY11: 480.786 | AZ11: 470.6622 | BA11: 394.36248 | BB11: 692.53008 | BC11: 778.62576 | BD11: 640.26746 | BE11: 615.12386 | BF11: 495.26204 | BG11: 552.0588 | BH11: 518.5344 | BI11: 252.81718 | BJ11: 225.644 | BK11: 223.03552 | BL11: 183.6279 | BM11: 211.36544 | BN11: 150.6141 | BO11: 135.03952 | BP11: 166.12218 | BQ11: 150.5168 | BR11: 127.00508 | BS11: 49.78402 | BT11: 99.30752 | BU11: 104.35662 | BV11: 62.409
A12: Man | B12: Non-ethnic | C12: D) Higher education | J12: =IF(J$13*J84>=15, J$13*J84,15) -> 19.7722 | K12: 162.6593 | L12: 418.86132 | M12: 657.68256 | N12: 944.59678 | O12: 1096.05006 | P12: 1075.31336 | Q12: 1318.50576 | R12: 1314.416 | S12: 1285.86112 | T12: 1032.954 | U12: 1013.50256 | V12: 943.71046 | W12: 1221.37248 | X12: 1046.5721 | Y12: 929.5422 | Z12: 916.64128 | AA12: 844.03444 | AB12: 914.9392 | AC12: 1151.74592 | AD12: 1197.104 | AE12: 1567.30366 | AF12: 1368.56488 | AG12: 1528.13794 | AH12: 1473.156 | AI12: 1804.69668 | AJ12: 1791.86568 | AK12: 1729.24962 | AL12: 1382.4672 | AM12: 1322.4216 | AN12: 1476.8444 | AO12: 1376.74434 | AP12: =IF(AP$13*AP84>=15, AP$13*AP84,15) -> 1502.18964 | AQ12: 1491.5512 | AR12: 1130.56424 | AS12: 1162.5201 | AT12: 1093.39154 | AU12: 1154.54074 | AV12: 1008.23232 | AW12: 876.21688 | AX12: 717.8267 | AY12: 477.6534 | AZ12: 430.8243 | BA12: 575.52368 | BB12: 577.78536 | BC12: 709.7444 | BD12: 840.64708 | BE12: 726.98256 | BF12: 650.95316 | BG12: 519.876 | BH12: 342.94144 | BI12: 303.10126 | BJ12: 274.9294 | BK12: 203.83984 | BL12: 140.8821 | BM12: 153.96832 | BN12: 208.98396 | BO12: 148.26504 | BP12: 99.69032 | BQ12: 144.6072 | BR12: 28.9179 | BS12: 81.02536 | BT12: 33.71264 | BU12: 24.16482 | BV12: 40.8321
C13: KOKKU | D13: 2181.8 | E13: 2539.4 | F13: 2841.6 | G13: 3120.2 | H13: 3269 | I13: 3396.6 | J13: 3409 | K13: 3353.8 | L13: 3316.4 | M13: 3268.8 | N13: 3166.6 | O13: 3076.2 | P13: 3051.4 | Q13: 2965.6 | R13: 2908 | S13: 2829.8 | T13: 2788 | U13: 2749.6 | V13: 2734.6 | W13: 2680.8 | X13: 2646.2 | Y13: 2557.2 | Z13: 2469.4 | AA13: 2407.4 | AB13: 2416 | AC13: 2490.8 | AD13: 2602.4 | AE13: 2779.4 | AF13: 2967.4 | AG13: 3114.2 | AH13: 3252 | AI13: 3358.2 | AJ13: 3392.4 | AK13: 3370.2 | AL13: 3388.4 | AM13: 3356.4 | AN13: 3298 | AO13: 3269.4 | AP13: 3222.2 | AQ13: 3120.4 | AR13: 3062.2 | AS13: 2969.4 | AT13: 2820.2 | AU13: 2618.6 | AV13: 2299.8 | AW13: 1933.4 | AX13: 1593.4 | AY13: 1362 | AZ13: 1369 | BA13: 1497.2 | BB13: 1692.4 | BC13: 1902.8 | BD13: 2059.4 | BE13: 1979.8 | BF13: 1866.8 | BG13: 1650.4 | BH13: 1446.4 | BI13: 1269.8 | BJ13: 1187.6 | BK13: 1142.6 | BL13: 1119 | BM13: 1091.2 | BN13: 1103.4 | BO13: 994.4 | BP13: 850.6 | BQ13: 712 | BR13: 584.2 | BS13: 439.4 | BT13: 332.8 | BU13: 268.2 | BV13: 213
A14: Woman | B14: Ethnic | C14: A) Basic education or lower | G14: =IF(G$18*G86>=15, G$18*G86,15) -> 1972.18714 | H14: 568.3041 | I14: 266.61816 | J14: 217.7883 | K14: 167.70908 | L14: 96.18876 | M14: 111.76704 | N14: 20.9033 | O14: 106.55624 | P14: 67.96816 | Q14: 30.48796 | R14: 160.545 | S14: 112.29264 | T14: 71.0908 | U14: 171.0456 | V14: 63.64558 | W14: 72.86432 | X14: 22.91736 | Y14: 40.542 | Z14: 15 | AA14: 57.84288 | AB14: 50.6368 | AC14: 22.34592 | AD14: 23.8953 | AE14: 15 | AF14: 15 | AG14: 15 | AH14: 15 | AI14: 15.7095 | AJ14: 15 | AK14: 25.23714 | AL14: 26.29192 | AM14: =IF(AM$18*AM86>=15, AM$18*AM86,15) -> 124.5252 | AN14: 85.90752 | AO14: 87.36736 | AP14: 15 | AQ14: 21.86824 | AR14: 45.35548 | AS14: 61.0029 | AT14: 107.7498 | AU14: 29.80744 | AV14: 63.10372 | AW14: 88.42424 | AX14: 89.39762 | AY14: 127.26064 | AZ14: 116.55488 | BA14: 73.0377 | BB14: 162.0396 | BC14: 197.2344 | BD14: 148.82472 | BE14: 289.66546 | BF14: 223.9585 | BG14: 173.80272 | BH14: 307.51104 | BI14: 317.98296 | BJ14: 444.97728 | BK14: 633.35628 | BL14: 662.18536 | BM14: 868.93664 | BN14: 1012.41264 | BO14: 1040.36248 | BP14: 1161.8649 | BQ14: 1025.1828 | BR14: 1108.8496 | BS14: 1251.82476 | BT14: 1389.01392 | BU14: 1120.44244 | BV14: 979.1784
A15: Woman | B15: Ethnic | C15: B) Lower secondary education | G15: =IF(G$18*G87>=15, G$18*G87,15) -> 5451.94892 | H15: 6744.465 | I15: 5936.79456 | J15: 2359.25424 | K15: 1359.9938 | L15: 950.73528 | M15: 589.8816 | N15: 626.4247 | O15: 715.44904 | P15: 1132.58482 | Q15: 1178.65156 | R15: 1366.55904 | S15: 968.68536 | T15: 804.6186 | U15: 796.2691 | V15: 607.58564 | W15: 620.34944 | X15: 523.05504 | Y15: 435.8265 | Z15: 578.4255 | AA15: 375.65376 | AB15: 404.46144 | AC15: 451.26344 | AD15: 378.6486 | AE15: 352.567 | AF15: 403.081 | AG15: 500.33376 | AH15: 382.65088 | AI15: 493.2783 | AJ15: 409.25216 | AK15: 571.22112 | AL15: 479.9804 | AM15: =IF(AM$18*AM87>=15, AM$18*AM87,15) -> 557.62992 | AN15: 675.32856 | AO15: 685.36152 | AP15: 762.78784 | AQ15: 748.69948 | AR15: 705.01936 | AS15: 995.79972 | AT15: 1076.3394 | AU15: 1161.91694 | AV15: 999.04916 | AW15: 997.62072 | AX15: 1018.81548 | AY15: 1038.57624 | AZ15: 1236.15416 | BA15: 1581.525 | BB15: 1591.6281 | BC15: 1673.504 | BD15: 1738.83744 | BE15: 1616.11786 | BF15: 1524.705 | BG15: 1447.09656 | BH15: 1334.30304 | BI15: 1584.19942 | BJ15: 1673.29998 | BK15: 1945.12776 | BL15: 2097.58716 | BM15: 1663.6598 | BN15: 1445.3031 | BO15: 1380.82066 | BP15: 1163.5253 | BQ15: 1327.5103 | BR15: 1221.0784 | BS15: 1080.86184 | BT15: 766.46866 | BU15: 653.0186 | BV15: 588.5784
A16: Woman | B16: Ethnic | C16: C) Upper secondary education | H16: =IF(H$18*H88>=15, H$18*H88,15) -> 57.4938 | I16: 1061.38728 | J16: 4510.00296 | K16: 5026.33978 | L16: 4677.0042 | M16: 3834.57536 | N16: 3350.5967 | O16: 3013.35752 | P16: 2274.97274 | Q16: 2371.57408 | R16: 1950.30066 | S16: 2266.50432 | T16: 2361.50712 | U16: 2700.4472 | V16: 2884.39144 | W16: 2798.25728 | X16: 2895.0018 | Y16: 3158.2218 | Z16: 3255.2316 | AA16: 3484.87104 | AB16: 2734.3872 | AC16: 2955.86864 | AD16: 3053.6968 | AE16: 3165.74508 | AF16: 2822.19 | AG16: 2741.15016 | AH16: 2947.29288 | AI16: 2815.1424 | AJ16: 3023.84942 | AK16: 2902.2711 | AL16: 3109.78384 | AM16: 3042.05952 | AN16: =IF(AN$18*AN88>=15, AN$18*AN88,15) -> 3093.2673 | AO16: 2899.06152 | AP16: 2973.93664 | AQ16: 2649.50992 | AR16: 2826.96688 | AS16: 2681.2227 | AT16: 2824.6668 | AU16: 2793.87428 | AV16: 2706.20024 | AW16: 2417.29088 | AX16: 2178.86862 | AY16: 1988.71712 | AZ16: 2260.49224 | BA16: 2084.1624 | BB16: 2145.8505 | BC16: 2084.11016 | BD16: 1688.2488 | BE16: 1608.74868 | BF16: 1857.0125 | BG16: 1983.618 | BH16: 1851.91152 | BI16: 1840.35236 | BJ16: 1646.00392 | BK16: 1425.1782 | BL16: 1308.86638 | BM16: 1448.88304 | BN16: 1582.59522 | BO16: 1288.08886 | BP16: 1003.2967 | BQ16: 786.4416 | BR16: 733.664 | BS16: 682.17228 | BT16: 649.1864 | BU16: 683.4223 | BV16: 426.5352
A17: Woman | B17: Ethnic | C17: D) Higher education | J17: =IF(J$18*J89>=15, J$18*J89,15) -> 53.5545 | K17: 492.55734 | L17: 1246.27176 | M17: 2362.976 | N17: 2745.0753 | O17: 2782.37536 | P17: 3059.87428 | Q17: 2906.0864 | R17: 2945.03748 | S17: 3106.11768 | T17: 3225.58348 | U17: 2811.2381 | V17: 3005.77734 | W17: 3193.32896 | X17: 3300.09984 | Y17: 3122.4097 | Z17: 2839.3002 | AA17: 2580.83232 | AB17: 3140.11456 | AC17: 2777.722 | AD17: 2670.1466 | AE17: 2608.9958 | AF17: 3000.368 | AG17: 3044.11608 | AH17: 2964.2856 | AI17: 2959.04142 | AJ17: 2805.49842 | AK17: 2657.28618 | AL17: 2498.34384 | AM17: 2350.18536 | AN17: 2111.29662 | AO17: 2231.4096 | AP17: =IF(AP$18*AP89>=15, AP$18*AP89,15) -> 2112.87552 | AQ17: 2334.14688 | AR17: 2163.85828 | AS17: 2072.35566 | AT17: 1784.244 | AU17: 1747.17456 | AV17: 1815.48844 | AW17: 1920.92168 | AX17: 2002.71828 | AY17: 2237.846 | AZ17: 1990.39872 | BA17: 2012.2749 | BB17: 1971.4818 | BC17: 2021.35376 | BD17: 2306.48904 | BE17: 2154.068 | BF17: 1979.324 | BG17: 1793.08272 | BH17: 1771.8744 | BI17: 1453.26526 | BJ17: 1385.91882 | BK17: 1059.64404 | BL17: 932.26096 | BM17: 933.812 | BN17: 629.48904 | BO17: 706.08642 | BP17: 822.3131 | BQ17: 761.4752 | BR17: 568.408 | BS17: 343.60524 | BT17: 257.53102 | BU17: 186.91666 | BV17: 237.9312
C18: KOKKU | D18: 6695.6 | E18: 7132.6 | F18: 7338 | G18: 7433.8 | H18: 7371 | I18: 7264.8 | J18: 7140.6 | K18: 7046.6 | L18: 6970.2 | M18: 6899.2 | N18: 6743 | O18: 6618.4 | P18: 6535.4 | Q18: 6486.8 | R18: 6421.8 | S18: 6453.6 | T18: 6462.8 | U18: 6479 | V18: 6561.4 | W18: 6684.8 | X18: 6740.4 | Y18: 6757 | Z18: 6687 | AA18: 6499.2 | AB18: 6329.6 | AC18: 6207.2 | AD18: 6127 | AE18: 6131.6 | AF18: 6230 | AG18: 6285.6 | AH18: 6293.6 | AI18: 6283.8 | AJ18: 6238.6 | AK18: 6155.4 | AL18: 6114.4 | AM18: 6074.4 | AN18: 5965.8 | AO18: 5903.2 | AP18: 5849.6 | AQ18: 5754.8 | AR18: 5741.2 | AS18: 5809.8 | AT18: 5793 | AU18: 5732.2 | AV18: 5584.4 | AW18: 5424.8 | AX18: 5289.8 | AY18: 5392.4 | AZ18: 5603.6 | BA18: 5751 | BB18: 5871 | BC18: 5976.8 | BD18: 5882.4 | BE18: 5668.6 | BF18: 5585 | BG18: 5397.6 | BH18: 5265.6 | BI18: 5195.8 | BJ18: 5150.2 | BK18: 5062.8 | BL18: 5001.4 | BM18: 4914.8 | BN18: 4669.8 | BO18: 4415.8 | BP18: 4151 | BQ18: 3901 | BR18: 3632 | BS18: 3358.8 | BT18: 3062.2 | BU18: 2643.8 | BV18: 2232
A19: Woman | B19: Non-ethnic | C19: A) Basic education or lower | G19: =IF(G$23*G91>=15, G$23*G91,15) -> 502.49056 | H19: 74.3485 | I19: 15 | J19: 46.2896 | K19: 27.60744 | L19: 15 | M19: 15 | N19: 18.04728 | O19: 16.4406 | P19: 15 | Q19: 15 | R19: 15 | S19: 15 | T19: 15 | U19: 49.69048 | V19: 15 | W19: 15 | X19: 15 | Y19: 15 | Z19: 15 | AA19: 15 | AB19: 15 | AC19: 23.65944 | AD19: 15 | AE19: 15 | AF19: 15 | AG19: 15 | AH19: 15 | AI19: 15 | AJ19: 15 | AK19: 23.35404 | AL19: 21.02118 | AM19: =IF(AM$23*AM91>=15, AM$23*AM91,15) -> 15.31652 | AN19: 15 | AO19: 15 | AP19: 15 | AQ19: 15 | AR19: 15 | AS19: 15 | AT19: 35.99448 | AU19: 19.8825 | AV19: 22.652 | AW19: 18.03252 | AX19: 15 | AY19: 62.43098 | AZ19: 73.5946 | BA19: 109.07784 | BB19: 176.95426 | BC19: 162.27066 | BD19: 151.81824 | BE19: 233.87188 | BF19: 270.13128 | BG19: 345.9352 | BH19: 480.82062 | BI19: 565.84216 | BJ19: 654.34614 | BK19: 901.13 | BL19: 841.8202 | BM19: 807.04884 | BN19: 765.72912 | BO19: 783.0833 | BP19: 750.513 | BQ19: 497.00112 | BR19: 443.90052 | BS19: 312.78896 | BT19: 382.13258 | BU19: 499.0725 | BV19: 312.92184
A20: Woman | B20: Non-ethnic | C20: B) Lower secondary education | G20: =IF(G$23*G92>=15, G$23*G92,15) -> 2388.70944 | H20: 2999.854 | I20: 2606.93316 | J20: 1026.96784 | K20: 519.61146 | L20: 324.33266 | M20: 266.12558 | N20: 247.99452 | O20: 414.0042 | P20: 667.92166 | Q20: 602.47558 | R20: 398.9357 | S20: 361.01142 | T20: 349.398 | U20: 185.92056 | V20: 398.30766 | W20: 327.8236 | X20: 238.1984 | Y20: 142.55226 | Z20: 142.128 | AA20: 64.55752 | AB20: 102.7216 | AC20: 38.30576 | AD20: 137.79806 | AE20: 65.25144 | AF20: 60.46656 | AG20: 98.30776 | AH20: 120.9222 | AI20: 100.24438 | AJ20: 108.89328 | AK20: 110.6244 | AL20: 255.13942 | AM20: =IF(AM$23*AM92>=15, AM$23*AM92,15) -> 303.43268 | AN20: 258.61242 | AO20: 374.77596 | AP20: 295.87872 | AQ20: 340.66756 | AR20: 439.1928 | AS20: 508.65948 | AT20: 628.75464 | AU20: 452.9595 | AV20: 494.1372 | AW20: 473.49026 | AX20: 227.3711 | AY20: 235.56226 | AZ20: 227.2894 | BA20: 297.83188 | BB20: 425.26526 | BC20: 663.58728 | BD20: 621.8448 | BE20: 896.95562 | BF20: 966.20112 | BG20: 810.0976 | BH20: 688.80222 | BI20: 568.62582 | BJ20: 530.85256 | BK20: 597.7625 | BL20: 649.50888 | BM20: 688.1232 | BN20: 658.69944 | BO20: 801.2027 | BP20: 879.29668 | BQ20: 890.24376 | BR20: 863.82576 | BS20: 662.66752 | BT20: 457.56522 | BU20: 274.1875 | BV20: 120.86144
A21: Woman | B21: Non-ethnic | C21: C) Upper secondary education | I21: =IF(I$23*I93>=15, I$23*I93,15) -> 622.26684 | J21: 2213.96544 | K21: 2579.981 | L21: 2529.72916 | M21: 2285.6624 | N21: 1917.36792 | O21: 1494.00216 | P21: 1215.16962 | Q21: 985.63518 | R21: 1157.0555 | S21: 1176.5985 | T21: 1395.9282 | U21: 1527.28436 | V21: 1416.66698 | W21: 1164.3768 | X21: 1398.0622 | Y21: 1566.4641 | Z21: 1513.1368 | AA21: 1653.625 | AB21: 1576.50624 | AC21: 1452.52062 | AD21: 1469.34994 | AE21: 1329.65802 | AF21: 1790.63472 | AG21: 1769.9065 | AH21: 1978.9014 | AI21: 1746.88812 | AJ21: 1815.29584 | AK21: 1861.35796 | AL21: 2163.53282 | AM21: 2189.8484 | AN21: 2005.79298 | AO21: =IF(AO$23*AO93>=15, AO$23*AO93,15) -> 2008.73296 | AP21: 1908.25152 | AQ21: 1763.83776 | AR21: 2125.61182 | AS21: 1907.17524 | AT21: 1679.48712 | AU21: 1548.3045 | AV21: 1300.2248 | AW21: 1002.17096 | AX21: 1021.9055 | AY21: 996.90108 | AZ21: 1092.3309 | BA21: 974.74292 | BB21: 1118.96778 | BC21: 1068.50848 | BD21: 1231.8288 | BE21: 989.09712 | BF21: 891.07392 | BG21: 909.9272 | BH21: 918.1293 | BI21: 792.0778 | BJ21: 679.336 | BK21: 493.73 | BL21: 644.62168 | BM21: 646.48676 | BN21: 516.47208 | BO21: 392.3547 | BP21: 290.63344 | BQ21: 206.11752 | BR21: 393.08724 | BS21: 284.97176 | BT21: 305.29832 | BU21: 159.3875 | BV21: 215.7666
A22: Woman | B22: Non-ethnic | C22: D) Higher education | J22: =IF(J$23*J94>=15, J$23*J94,15) -> 19.17712 | K22: 159.4001 | L22: 414.18822 | M22: 645.89224 | N22: 928.19028 | O22: 1065.05196 | P22: 1024.70872 | Q22: 1271.28924 | R22: 1283.4088 | S22: 1280.59008 | T22: 1027.3965 | U22: 1028.98376 | V22: 956.54818 | W22: 1248.7996 | X22: 1070.5394 | Y22: 975.8521 | Z22: 976.9984 | AA22: 927.61748 | AB22: 1023.70184 | AC22: 1302.39584 | AD22: 1369.052 | AE22: 1803.69054 | AF22: 1584.49872 | AG22: 1799.98574 | AH22: 1738.9764 | AI22: 2146.26812 | AJ22: 2154.21088 | AK22: 2102.27332 | AL22: 1681.6944 | AM22: 1631.0024 | AN22: 1846.99588 | AO22: 1741.92226 | AP22: =IF(AP$23*AP94>=15, AP$23*AP94,15) -> 1937.34072 | AQ22: 1940.8712 | AR22: 1501.38872 | AS22: 1554.5682 | AT22: 1484.58084 | AU22: 1593.8535 | AV22: 1418.6624 | AW22: 1238.23304 | AX22: 1035.6995 | AY22: 699.50622 | AZ22: 639.7851 | BA22: 862.74736 | BB22: 892.35132 | BC22: 1127.1314 | BD22: 1383.30816 | BE22: 1230.34032 | BF22: 1138.99368 | BG22: 950.04 | BH22: 648.84786 | BI22: 604.05422 | BJ22: 561.6653 | BK22: 432.62 | BL22: 307.64924 | BM22: 351.79052 | BN22: 453.49936 | BO22: 346.3593 | BP22: 254.95688 | BQ22: 406.03752 | BR22: 88.5654 | BS22: 284.97176 | BT22: 129.07646 | BU22: 92.3525 | BV22: 154.05012
C23: KOKKU | D23: 2026.2 | E23: 2360 | F23: 2652.2 | G23: 2891.2 | H23: 3085 | I23: 3229.2 | J23: 3306.4 | K23: 3286.6 | L23: 3279.4 | M23: 3210.2 | N23: 3111.6 | O23: 2989.2 | P23: 2907.8 | Q23: 2859.4 | R23: 2839.4 | S23: 2818.2 | T23: 2773 | U23: 2791.6 | V23: 2771.8 | W23: 2741 | X23: 2706.8 | Y23: 2684.6 | Z23: 2632 | AA23: 2645.8 | AB23: 2703.2 | AC23: 2816.6 | AD23: 2976.2 | AE23: 3198.6 | AF23: 3435.6 | AG23: 3668.2 | AH23: 3838.8 | AI23: 3993.8 | AJ23: 4078.4 | AK23: 4097.2 | AL23: 4121.8 | AM23: 4139.6 | AN23: 4124.6 | AO23: 4136.6 | AP23: 4155.6 | AQ23: 4060.4 | AR23: 4066.6 | AS23: 3970.8 | AT23: 3829.2 | AU23: 3615 | AV23: 3236 | AW23: 2732.2 | AX23: 2299 | AY23: 1994.6 | AZ23: 2033 | BA23: 2244.4 | BB23: 2613.8 | BC23: 3021.8 | BD23: 3388.8 | BE23: 3350.6 | BF23: 3266.4 | BG23: 3016 | BH23: 2736.6 | BI23: 2530.6 | BJ23: 2426.2 | BK23: 2425 | BL23: 2443.6 | BM23: 2493.2 | BN23: 2394.4 | BO23: 2323 | BP23: 2175.4 | BQ23: 1999.2 | BR23: 1789.2 | BS23: 1545.4 | BT23: 1274.2 | BU23: 1025 | BV23: 803.6
A24: Source: Statistics Estonia, authors calculations
A26: POPULATION (Changing randomly - corrected for zeroes)(AVERAGE 2004-2008)
C27: age | D27: 14 | E27: 15 | F27: 16 | G27: 17 | H27: 18 | I27: 19 | J27: 20 | K27: 21 | L27: 22 | M27: 23 | N27: 24 | O27: 25 | P27: 26 | Q27: 27 | R27: 28 | S27: 29 | T27: 30 | U27: 31 | V27: 32 | W27: 33 | X27: 34 | Y27: 35 | Z27: 36 | AA27: 37 | AB27: 38 | AC27: 39 | AD27: 40 | AE27: 41 | AF27: 42 | AG27: 43 | AH27: 44 | AI27: 45 | AJ27: 46 | AK27: 47 | AL27: 48 | AM27: 49 | AN27: 50 | AO27: 51 | AP27: 52 | AQ27: 53 | AR27: 54 | AS27: 55 | AT27: 56 | AU27: 57 | AV27: 58 | AW27: 59 | AX27: 60 | AY27: 61 | AZ27: 62 | BA27: 63 | BB27: 64 | BC27: 65 | BD27: 66 | BE27: 67 | BF27: 68 | BG27: 69 | BH27: 70 | BI27: 71 | BJ27: 72 | BK27: 73 | BL27: 74 | BM27: 75 | BN27: 76 | BO27: 77 | BP27: 78 | BQ27: 79 | BR27: 80 | BS27: 81 | BT27: 82 | BU27: 83 | BV27: 84
A28: Man | B28: Ethnic | C28: A) Basic education or lower | G28: =IF(G52>=15,G52,15) -> 3152.753898 | H28: =IF(H52>=15,H52,15) -> 1505.138528 | I28: 534.5897386 | J28: 406.3454277 | K28: 259.3237723 | L28: 199.9656123 | M28: 231.1124259 | N28: 259.6799918 | O28: 242.8573941 | P28: 257.7765159 | Q28: 310.7729304 | R28: 420.6368745 | S28: 269.3960393 | T28: 296.4221106 | U28: 201.0395634 | V28: 131.6420774 | W28: 69.40619569 | X28: 166.0942906 | Y28: 92.56484413 | Z28: 119.5827697 | AA28: 137.0359592 | AB28: 80.75355043 | AC28: 96.98998084 | AD28: 149.6660922 | AE28: 82.19476607 | AF28: 48.31021243 | AG28: 20.26626159 | AH28: 120.8646564 | AI28: 84.66475675 | AJ28: 79.32267454 | AK28: 135.292333 | AL28: 107.2669262 | AM28: 34.81040484 | AN28: 117.3289638 | AO28: 46.57316724 | AP28: 43.22541684 | AQ28: 134.6448559 | AR28: 88.91428773 | AS28: 86.54796943 | AT28: 208.6387457 | AU28: 115.9696207 | AV28: 55.70668155 | AW28: 116.0564954 | AX28: 142.2015044 | AY28: 304.382587 | AZ28: 369.2625684 | BA28: 441.2315902 | BB28: 389.7033728 | BC28: 336.5213725 | BD28: 433.4274894 | BE28: 445.1793025 | BF28: 626.7809512 | BG28: 738.7665219 | BH28: 614.555009 | BI28: 565.2642239 | BJ28: 503.6438675 | BK28: 420.7887271 | BL28: 402.9850615 | BM28: 452.9351833 | BN28: 453.635744 | BO28: 498.3214552 | BP28: 533.3829375 | BQ28: 449.3708105 | BR28: 509.0269357 | BS28: 576.9865841 | BT28: =IF(BT52>=15,BT52,15) -> 393.0097526 | BU28: 353.5634877 | BV28: 269.6591917
A29: Man | B29: Ethnic | C29: B) Lower secondary education | G29: =IF(G53>=15,G53,15) -> 4939.402938 | H29: 6399.243294 | I29: 6378.074262 | J29: 3995.382747 | K29: 2480.009639 | L29: 2020.718543 | M29: 1388.612607 | N29: 1324.598398 | O29: 1508.880176 | P29: 1654.34869 | Q29: 1869.816278 | R29: 1744.987709 | S29: 1867.215019 | T29: 1684.570441 | U29: 1937.649126 | V29: 1959.00131 | W29: 1778.437669 | X29: 1356.511047 | Y29: 1238.863142 | Z29: 1207.76699 | AA29: 971.228006 | AB29: 936.963716 | AC29: 813.5947009 | AD29: 869.3658005 | AE29: 1005.299785 | AF29: 824.7424494 | AG29: 1035.308985 | AH29: 913.0476154 | AI29: 858.6207214 | AJ29: 845.8492736 | AK29: 898.1406724 | AL29: 877.9063172 | AM29: 1246.808719 | AN29: 1169.907388 | AO29: 1418.010933 | AP29: 1760.44358 | AQ29: 1655.232344 | AR29: 1314.543693 | AS29: 1688.567267 | AT29: 1647.071494 | AU29: 1751.661929 | AV29: 1599.838574 | AW29: 1504.348539 | AX29: 1591.970047 | AY29: 1580.130905 | AZ29: 1494.58277 | BA29: 1659.567132 | BB29: 1489.428117 | BC29: 1396.782354 | BD29: 1458.567729 | BE29: 1713.959767 | BF29: 1371.538249 | BG29: 1409.824103 | BH29: 1388.798421 | BI29: 1418.12728 | BJ29: 1353.639673 | BK29: 1173.333768 | BL29: 1019.694497 | BM29: 997.21021 | BN29: 765.0252499 | BO29: 647.0466778 | BP29: 661.9861503 | BQ29: 640.7429739 | BR29: 484.7104516 | BS29: =IF(BS53>=15,BS53,15) -> 412.2477082 | BT29: 391.8083912 | BU29: 260.2160803 | BV29: 240.60527
A30: Man | B30: Ethnic | C30: C) Upper secondary education | H30: =IF(H54>=15,H54,15) -> 70.54294919 | I30: 892.4774957 | J30: 3347.829087 | K30: 4850.26733 | L30: 5000.387796 | M30: 4833.474131 | N30: 4409.928563 | O30: 3685.569112 | P30: 3310.244963 | Q30: 2929.262804 | R30: 2882.968838 | S30: 2744.182901 | T30: 3477.282329 | U30: 3503.770049 | V30: 3526.964318 | W30: 3480.442512 | X30: 3892.229333 | Y30: 3866.910424 | Z30: 3785.797813 | AA30: 4135.416767 | AB30: 3959.129117 | AC30: 3962.997565 | AD30: 3645.836683 | AE30: 3748.367617 | AF30: 3854.606956 | AG30: 3722.608017 | AH30: 3811.759483 | AI30: 3798.065242 | AJ30: 3677.850876 | AK30: 3222.795032 | AL30: 3412.426263 | AM30: 3372.483513 | AN30: =IF(AN54>=15,AN54,15) -> 3350.106921 | AO30: 2896.182797 | AP30: 2515.133818 | AQ30: 2367.447293 | AR30: 2470.727518 | AS30: 2069.497298 | AT30: 2018.660402 | AU30: 2033.605577 | AV30: 2269.791636 | AW30: 2149.784323 | AX30: 2045.101949 | AY30: 1780.859994 | AZ30: 1863.062846 | BA30: 1777.854491 | BB30: 1883.259307 | BC30: 1758.169454 | BD30: 1584.004663 | BE30: 1245.702702 | BF30: 1101.918582 | BG30: 928.727673 | BH30: 908.9148837 | BI30: 911.1172668 | BJ30: 913.5855544 | BK30: 881.2783213 | BL30: 886.1496639 | BM30: 834.8419379 | BN30: 829.0205828 | BO30: 723.7955563 | BP30: 408.7346392 | BQ30: 300.0566706 | BR30: 245.1430358 | BS30: =IF(BS54>=15,BS54,15) -> 198.4023427 | BT30: 204.9998828 | BU30: 222.4577239 | BV30: 169.8051912
A31: Man | B31: Ethnic | C31: D) Higher education | J31: =IF(J55>=15,J55,15) -> 156.3572826 | K31: 172.5805806 | L31: 812.1141609 | M31: 2036.236066 | N31: 2745.724393 | O31: 3505.189738 | P31: 3658.157415 | Q31: 3802.29969 | R31: 3780.567789 | S31: 4038.557757 | T31: 2958.747417 | U31: 2563.94149 | V31: 2612.13988 | W31: 3189.649496 | X31: 3088.065088 | Y31: 3453.600551 | Z31: 3272.854497 | AA31: 2667.822784 | AB31: 2767.224059 | AC31: 2720.847218 | AD31: 2945.918862 | AE31: 2739.74998 | AF31: 2793.964286 | AG31: 2802.431787 | AH31: 2667.244189 | AI31: 2686.083449 | AJ31: 2664.827891 | AK31: 3177.259057 | AL31: 2721.698509 | AM31: 2034.200114 | AN31: 1824.034108 | AO31: 2129.322748 | AP31: =IF(AP55>=15,AP55,15) -> 2090.848547 | AQ31: 2193.858784 | AR31: 2598.041014 | AS31: 2597.933253 | AT31: 2444.018622 | AU31: 2101.962645 | AV31: 1646.185906 | AW31: 1495.506741 | AX31: 1206.063734 | AY31: 1505.791174 | AZ31: 1527.504799 | BA31: 1262.599047 | BB31: 1410.852385 | BC31: 1832.01194 | BD31: 1520.248164 | BE31: 1276.836569 | BF31: 1585.004747 | BG31: 1226.843283 | BH31: 1243.281135 | BI31: 1048.833943 | BJ31: 1019.170329 | BK31: 1285.088884 | BL31: 1330.691151 | BM31: 1095.479386 | BN31: 964.8901758 | BO31: 787.015769 | BP31: 705.7965435 | BQ31: 627.0003902 | BR31: 521.1234194 | BS31: =IF(BS55>=15,BS55,15) -> 233.4092378 | BT31: 268.6720931 | BU31: 219.5424944 | BV31: 207.3348201
C32: KOKKU | D32: 7048 | E32: 7450 | F32: 7686.8 | G32: 7774.8 | H32: 7690.8 | I32: 7513.8 | J32: 7434.6 | K32: 7301.4 | L32: 7260.4 | M32: 7150.8 | N32: 7035.2 | O32: 6856 | P32: 6738.2 | Q32: 6626.6 | R32: 6573.8 | S32: 6520.2 | T32: 6502 | U32: 6516.6 | V32: 6573.8 | W32: 6617 | X32: 6642.2 | Y32: 6648.6 | Z32: 6479.4 | AA32: 6298 | AB32: 6108.6 | AC32: 5989 | AD32: 5882 | AE32: 5928.6 | AF32: 5933.6 | AG32: 5975.2 | AH32: 5941.6 | AI32: 5869.2 | AJ32: 5757.2 | AK32: 5652.8 | AL32: 5549.8 | AM32: 5429.6 | AN32: 5297.6 | AO32: 5200.4 | AP32: 5120.4 | AQ32: 4984.2 | AR32: 4939.6 | AS32: 4885.8 | AT32: 4831.4 | AU32: 4688.2 | AV32: 4494.4 | AW32: 4262.8 | AX32: 4111.8 | AY32: 4098.6 | AZ32: 4187.4 | BA32: 4195.4 | BB32: 4176.6 | BC32: 4144.6 | BD32: 3955.6 | BE32: 3734.6 | BF32: 3604 | BG32: 3408.4 | BH32: 3261.8 | BI32: 3143 | BJ32: 3008.8 | BK32: 2877 | BL32: 2743.6 | BM32: 2563.6 | BN32: 2296 | BO32: 2044.8 | BP32: 1775.4 | BQ32: 1537.6 | BR32: 1330.8 | BS32: 1137 | BT32: 987.4 | BU32: 812.4 | BV32: 658.4
A33: Man | B33: Non-ethnic | C33: A) Basic education or lower | G33: =IF(G57>=15,G57,15) -> 846.9486593 | H33: 352.2109133 | I33: 175.389531 | J33: 196.4933965 | K33: 364.3396923 | L33: 377.5592647 | M33: 149.3137078 | N33: 155.9749736 | O33: 142.4898953 | P33: 95.87483727 | Q33: 72.22180111 | R33: 20.56648447 | S33: 15 | T33: 15 | U33: 15 | V33: 115.9947444 | W33: 73.40326238 | X33: 18.22243679 | Y33: 56.63614962 | Z33: 15 | AA33: 15 | AB33: 15 | AC33: 15 | AD33: 15 | AE33: 15 | AF33: 15 | AG33: 15 | AH33: 114.4368241 | AI33: 102.2128381 | AJ33: 15 | AK33: 15 | AL33: 15 | AM33: 17.49096646 | AN33: 15 | AO33: 15 | AP33: 15 | AQ33: 15 | AR33: 15 | AS33: 15 | AT33: 15 | AU33: 15 | AV33: 26.10970517 | AW33: 15 | AX33: 15 | AY33: 22.56052374 | AZ33: 15 | BA33: 46.96322551 | BB33: 59.89798231 | BC33: 59.69088528 | BD33: 296.334039 | BE33: 340.1060269 | BF33: 247.4318523 | BG33: 218.7677624 | BH33: 74.52701245 | BI33: 293.8389176 | BJ33: 253.8659644 | BK33: 298.590136 | BL33: 318.5762195 | BM33: 290.625946 | BN33: 395.9891371 | BO33: 421.6952876 | BP33: 335.7820075 | BQ33: 196.9137926 | BR33: 104.9139763 | BS33: =IF(BS57>=15,BS57,15) -> 148.2738479 | BT33: 41.71538844 | BU33: 28.64737725 | BV33: 100.5232862
A34: Man | B34: Non-ethnic | C34: B) Lower secondary education | G34: =IF(G58>=15,G58,15) -> 2480.685379 | H34: 3056.981513 | I34: 2835.675438 | J34: 1370.623062 | K34: 725.9159794 | L34: 800.925403 | M34: 783.4918808 | N34: 873.9092303 | O34: 1039.198193 | P34: 961.7824764 | Q34: 947.7217814 | R34: 1125.799487 | S34: 922.6708387 | T34: 1129.89829 | U34: 1037.713797 | V34: 795.7065151 | W34: 716.8147535 | X34: 426.8004988 | Y34: 452.0756672 | Z34: 327.8995638 | AA34: 251.309517 | AB34: 317.1373657 | AC34: 234.4012644 | AD34: 275.4458478 | AE34: 496.7692055 | AF34: 327.6216412 | AG34: 179.2937854 | AH34: 456.7936952 | AI34: 555.6755543 | AJ34: 331.1584412 | AK34: 378.6273633 | AL34: 466.0597344 | AM34: 451.8691943 | AN34: 526.3745276 | AO34: 294.5488542 | AP34: 656.4127022 | AQ34: 665.5519223 | AR34: 860.4502729 | AS34: 946.1645647 | AT34: 989.5124858 | AU34: 783.8325683 | AV34: 500.2677181 | AW34: 445.5608055 | AX34: 454.6403943 | AY34: 545.1026493 | AZ34: 611.15626 | BA34: 817.7842312 | BB34: 667.8453948 | BC34: 728.239052 | BD34: 688.8861339 | BE34: 540.6159039 | BF34: 699.3651393 | BG34: 645.6960499 | BH34: 556.0727274 | BI34: 621.2676365 | BJ34: 481.133137 | BK34: 453.7044146 | BL34: 429.4444963 | BM34: 424.1833572 | BN34: 352.0034098 | BO34: 392.2692719 | BP34: 239.5787632 | BQ34: 251.9042833 | BR34: 300.8085073 | BS34: =IF(BS58>=15,BS58,15) -> 253.6363964 | BT34: 149.8206902 | BU34: 107.3968942 | BV34: 93.87303127
A35: Man | B35: Non-ethnic | C35: C) Upper secondary education | H35: =IF(H59>=15,H59,15) -> 15 | I35: 633.8668588 | J35: 2142.581799 | K35: 2507.195484 | L35: 2279.470116 | M35: 2320.273553 | N35: 2127.883307 | O35: 1790.048192 | P35: 1651.306494 | Q35: 1724.141728 | R35: 1695.614581 | S35: 1740.16162 | T35: 1639.103642 | U35: 1581.623269 | V35: 1627.010798 | W35: 1676.229537 | X35: 1658.903322 | Y35: 1489.725904 | Z35: 1802.518426 | AA35: 1864.804871 | AB35: 1791.15544 | AC35: 2011.700434 | AD35: 2002.299744 | AE35: 1998.156367 | AF35: 2213.126942 | AG35: 2345.977134 | AH35: 2184.683668 | AI35: 2186.671489 | AJ35: 2241.856413 | AK35: 2162.599238 | AL35: 2010.692705 | AM35: 2055.252266 | AN35: =IF(AN59>=15,AN59,15) -> 1968.949487 | AO35: 2002.024229 | AP35: 1575.448427 | AQ35: 1613.375067 | AR35: 1586.405184 | AS35: 1460.885272 | AT35: 1353.412434 | AU35: 1275.16239 | AV35: 1007.573051 | AW35: 880.5446982 | AX35: 655.1127181 | AY35: 559.2523616 | AZ35: 558.9631865 | BA35: 488.7405712 | BB35: 819.9081719 | BC35: 908.8946046 | BD35: 754.8328707 | BE35: 708.7234517 | BF35: 586.8952578 | BG35: 642.7343469 | BH35: 601.9876983 | BI35: 310.0068119 | BJ35: 278.211049 | BK35: 277.349745 | BL35: 237.591188 | BM35: 289.0778105 | BN35: 206.485634 | BO35: 182.2233298 | BP35: 223.9161691 | BQ35: 205.0250256 | BR35: 167.4531581 | BS35: =IF(BS59>=15,BS59,15) -> 81.15260098 | BT35: 129.5716034 | BU35: 135.6518652 | BV35: 93.92151408
A36: Man | B36: Non-ethnic | C36: D) Higher education | J36: =IF(J60>=15,J60,15) -> 36.79908821 | K36: 219.8443678 | L36: 507.1094834 | M36: 767.7465865 | N36: 1097.304687 | O36: 1239.895032 | P36: 1225.619063 | Q36: 1486.037347 | R36: 1486.707214 | S36: 1446.939588 | T36: 1205.818397 | U36: 1167.411258 | V36: 1097.956989 | W36: 1373.276966 | X36: 1191.274815 | Y36: 1060.349334 | Z36: 1053.164575 | AA36: 964.6911643 | AB36: 1038.523603 | AC36: 1276.797073 | AD36: 1326.86163 | AE36: 1699.902922 | AF36: 1502.722605 | AG36: 1667.59167 | AH36: 1605.338154 | AI36: 1935.700829 | AJ36: 1925.956804 | AK36: 1858.400085 | AL36: 1505.895666 | AM36: 1446.707671 | AN36: 1593.855795 | AO36: 1497.808837 | AP36: =IF(AP60>=15,AP60,15) -> 1630.663205 | AQ36: 1613.547431 | AR36: 1250.285063 | AS36: 1281.681312 | AT36: 1205.108222 | AU36: 1264.359975 | AV36: 1107.256297 | AW36: 957.7995818 | AX36: 795.9026665 | AY36: 546.5020611 | AZ36: 504.270915 | BA36: 660.102953 | BB36: 664.2100837 | BC36: 807.5689286 | BD36: 942.0888987 | BE36: 812.2280898 | BF36: 729.7255753 | BG36: 589.943468 | BH36: 404.0990063 | BI36: 359.1973999 | BJ36: 332.8145163 | BK36: 250.9712056 | BL36: 181.450929 | BM36: 195.69056 | BN36: 260.9596898 | BO36: 187.3137102 | BP36: 130.0156831 | BQ36: 181.3956537 | BR36: 43.10491248 | BS36: =IF(BS60>=15,BS60,15) -> 106.2261742 | BT36: 52.57037381 | BU36: 38.34583886 | BV36: 56.45995914
C37: KOKKU | D37: 2181.8 | E37: 2539.4 | F37: 2841.6 | G37: 3120.2 | H37: 3269 | I37: 3396.6 | J37: 3409 | K37: 3353.8 | L37: 3316.4 | M37: 3268.8 | N37: 3166.6 | O37: 3076.2 | P37: 3051.4 | Q37: 2965.6 | R37: 2908 | S37: 2829.8 | T37: 2788 | U37: 2749.6 | V37: 2734.6 | W37: 2680.8 | X37: 2646.2 | Y37: 2557.2 | Z37: 2469.4 | AA37: 2407.4 | AB37: 2416 | AC37: 2490.8 | AD37: 2602.4 | AE37: 2779.4 | AF37: 2967.4 | AG37: 3114.2 | AH37: 3252 | AI37: 3358.2 | AJ37: 3392.4 | AK37: 3370.2 | AL37: 3388.4 | AM37: 3356.4 | AN37: 3298 | AO37: 3269.4 | AP37: 3222.2 | AQ37: 3120.4 | AR37: 3062.2 | AS37: 2969.4 | AT37: 2820.2 | AU37: 2618.6 | AV37: 2299.8 | AW37: 1933.4 | AX37: 1593.4 | AY37: 1362 | AZ37: 1369 | BA37: 1497.2 | BB37: 1692.4 | BC37: 1902.8 | BD37: 2059.4 | BE37: 1979.8 | BF37: 1866.8 | BG37: 1650.4 | BH37: 1446.4 | BI37: 1269.8 | BJ37: 1187.6 | BK37: 1142.6 | BL37: 1119 | BM37: 1091.2 | BN37: 1103.4 | BO37: 994.4 | BP37: 850.6 | BQ37: 712 | BR37: 584.2 | BS37: 439.4 | BT37: 332.8 | BU37: 268.2 | BV37: 213
A38: Woman | B38: Ethnic | C38: A) Basic education or lower | G38: =IF(G62>=15,G62,15) -> 2109.822373 | H38: 662.2479634 | I38: 317.2926016 | J38: 271.2858937 | K38: 221.1092428 | L38: 140.0063401 | M38: 154.5441579 | N38: 34.25883487 | O38: 154.4316589 | P38: 102.2988315 | Q38: 50.59801686 | R38: 255.1105986 | S38: 171.2025283 | T38: 131.7543057 | U38: 257.5264537 | V38: 102.6331255 | W38: 110.8581122 | X38: 34.52639059 | Y38: 58.58031234 | Z38: 27.3801654 | AA38: 87.50594758 | AB38: 74.62011612 | AC38: 36.24382621 | AD38: 38.66889542 | AE38: 15 | AF38: 15 | AG38: 15 | AH38: 15 | AI38: 29.23778215 | AJ38: 15 | AK38: 46.97017737 | AL38: 43.14130736 | AM38: 177.8812718 | AN38: 131.6309694 | AO38: 126.510757 | AP38: 15 | AQ38: 40.70013922 | AR38: 69.08692611 | AS38: 86.01853182 | AT38: 150.6522674 | AU38: 47.08449314 | AV38: 95.80507294 | AW38: 121.5924756 | AX38: 123.5625713 | AY38: 162.5526166 | AZ38: 148.8861094 | BA38: 95.32390757 | BB38: 202.4862314 | BC38: 254.8801157 | BD38: 194.4155346 | BE38: 369.7225777 | BF38: 284.5586937 | BG38: 227.2565499 | BH38: 384.1438692 | BI38: 388.2307018 | BJ38: 535.0100106 | BK38: 747.5842221 | BL38: 784.5033173 | BM38: 1006.066221 | BN38: 1157.585614 | BO38: 1171.935179 | BP38: 1291.26708 | BQ38: 1146.791546 | BR38: 1236.772836 | BS38: =IF(BS62>=15,BS62,15) -> 1386.033999 | BT38: 1518.228024 | BU38: 1242.246754 | BV38: 1094.888421
A39: Woman | B39: Ethnic | C39: B) Lower secondary education | G39: =IF(G63>=15,G63,15) -> 5589.584153 | H39: 6839.678375 | I39: 6046.276378 | J39: 2507.448724 | K39: 1505.023788 | L39: 1085.189225 | M39: 696.8243948 | N39: 741.9791104 | O39: 841.9769329 | P39: 1321.684912 | Q39: 1374.166002 | R39: 1607.673666 | S39: 1159.86462 | T39: 920.3801521 | U39: 911.2049442 | V39: 705.9020591 | W39: 722.2418828 | X39: 612.4445755 | Y39: 513.2166787 | Z39: 694.7478005 | AA39: 463.5236017 | AB39: 482.9522928 | AC39: 543.7379698 | AD39: 453.0442055 | AE39: 411.1777237 | AF39: 467.460794 | AG39: 592.8937162 | AH39: 456.3595094 | AI39: 577.6947806 | AJ39: 474.7953027 | AK39: 659.2134176 | AL39: 559.4884466 | AM39: 652.3107925 | AN39: 781.6741108 | AO39: 790.0828158 | AP39: 871.0919454 | AQ39: 854.2572309 | AR39: 809.3388419 | AS39: 1118.876629 | AT39: 1214.026388 | AU39: 1289.767133 | AV39: 1120.236527 | AW39: 1116.278915 | AX39: 1144.086968 | AY39: 1157.454477 | AZ39: 1369.339523 | BA39: 1740.499947 | BB39: 1738.247139 | BC39: 1821.73584 | BD39: 1892.326516 | BE39: 1764.028267 | BF39: 1675.243576 | BG39: 1588.400597 | BH39: 1473.05834 | BI39: 1735.433412 | BJ39: 1828.085315 | BK39: 2105.134076 | BL39: 2265.9897 | BM39: 1825.760509 | BN39: 1602.54031 | BO39: 1523.801397 | BP39: 1291.497622 | BQ39: 1463.90022 | BR39: 1359.635842 | BS39: =IF(BS63>=15,BS63,15) -> 1203.790561 | BT39: 865.6207075 | BU39: 752.2834241 | BV39: 684.2986497
A40: Woman | B40: Ethnic | C40: C) Upper secondary education | H40: =IF(H64>=15,H64,15) -> 77.80598668 | I40: 1162.110553 | J40: 4661.272018 | K40: 5192.608469 | L40: 4854.675484 | M40: 4053.808089 | N40: 3584.608898 | O40: 3245.325324 | P40: 2483.770759 | Q40: 2589.433029 | R40: 2165.423571 | S40: 2486.027017 | T40: 2580.229668 | U40: 2918.044187 | V40: 3093.45509 | W40: 3012.979773 | X40: 3115.573381 | Y40: 3371.772143 | Z40: 3462.53867 | AA40: 3677.96082 | AB40: 2915.352222 | AC40: 3130.661537 | AD40: 3225.176033 | AE40: 3333.128859 | AF40: 2984.74898 | AG40: 2912.196629 | AH40: 3124.518776 | AI40: 2981.269705 | AJ40: 3184.483844 | AK40: 3068.184288 | AL40: 3283.016604 | AM40: 3215.728303 | AN40: =IF(AN64>=15,AN64,15) -> 3263.831179 | AO40: 3073.935917 | AP40: 3145.711989 | AQ40: 2814.536826 | AR40: 2989.131762 | AS40: 2845.825557 | AT40: 2998.770999 | AU40: 2964.670291 | AV40: 2883.172268 | AW40: 2587.803641 | AX40: 2348.326778 | AY40: 2152.639064 | AZ40: 2435.659946 | BA40: 2254.528076 | BB40: 2315.220769 | BC40: 2249.841593 | BD40: 1847.310087 | BE40: 1765.933997 | BF40: 2033.041634 | BG40: 2160.248047 | BH40: 2017.420293 | BI40: 2006.351801 | BJ40: 1807.885431 | BK40: 1577.772779 | BL40: 1458.748947 | BM40: 1610.13727 | BN40: 1762.754478 | BO40: 1446.280313 | BP40: 1134.128739 | BQ40: 901.3316309 | BR40: 850.64026 | BS40: =IF(BS64>=15,BS64,15) -> 797.8699001 | BT40: 755.7221106 | BU40: 790.427959 | BV40: 516.6813789
A41: Woman | B41: Ethnic | C41: D) Higher education | J41: =IF(J65>=15,J65,15) -> 82.45549889 | K41: 589.0417251 | L41: 1383.726909 | M41: 2579.238096 | N41: 2976.184121 | O41: 3016.053 | P41: 3297.937789 | Q41: 3141.262343 | R41: 3209.378744 | S41: 3353.42806 | T41: 3461.002406 | U41: 3036.08832 | V41: 3223.316543 | W41: 3417.837732 | X41: 3530.539097 | Y41: 3342.942615 | Z41: 3047.758976 | AA41: 2772.802738 | AB41: 3329.800788 | AC41: 2955.187572 | AD41: 2842.681089 | AE41: 2777.963652 | AF41: 3165.072973 | AG41: 3220.034125 | AH41: 3142.053471 | AI41: 3127.33325 | AJ41: 2966.132844 | AK41: 2827.43996 | AL41: 2673.156234 | AM41: 2525.423439 | AN41: 2274.154299 | AO41: 2400.692083 | AP41: =IF(AP65>=15,AP65,15) -> 2279.109728 | AQ41: 2499.669363 | AR41: 2324.045541 | AS41: 2232.455704 | AT41: 1947.872015 | AU41: 1909.578859 | AV41: 1990.055956 | AW41: 2094.704548 | AX41: 2176.731765 | AY41: 2412.44841 | AZ41: 2171.839649 | BA41: 2189.574062 | BB41: 2145.907898 | BC41: 2186.570499 | BD41: 2483.280088 | BE41: 2336.149128 | BF41: 2170.743659 | BG41: 1979.009085 | BH41: 1950.079736 | BI41: 1617.474949 | BJ41: 1548.243842 | BK41: 1213.110588 | BL41: 1067.499828 | BM41: 1083.638765 | BN41: 758.5763655 | BO41: 828.912957 | BP41: 948.498099 | BQ41: 889.4667256 | BR41: 683.1948648 | BS41: =IF(BS65>=15,BS65,15) -> 430.6676991 | BT41: 328.9943308 | BU41: 244.9729218 | BV41: 320.9656335
C42: KOKKU | D42: 6695.6 | E42: 7132.6 | F42: 7338 | G42: 7433.8 | H42: 7371 | I42: 7264.8 | J42: 7140.6 | K42: 7046.6 | L42: 6970.2 | M42: 6899.2 | N42: 6743 | O42: 6618.4 | P42: 6535.4 | Q42: 6486.8 | R42: 6421.8 | S42: 6453.6 | T42: 6462.8 | U42: 6479 | V42: 6561.4 | W42: 6684.8 | X42: 6740.4 | Y42: 6757 | Z42: 6687 | AA42: 6499.2 | AB42: 6329.6 | AC42: 6207.2 | AD42: 6127 | AE42: 6131.6 | AF42: 6230 | AG42: 6285.6 | AH42: 6293.6 | AI42: 6283.8 | AJ42: 6238.6 | AK42: 6155.4 | AL42: 6114.4 | AM42: 6074.4 | AN42: 5965.8 | AO42: 5903.2 | AP42: 5849.6 | AQ42: 5754.8 | AR42: 5741.2 | AS42: 5809.8 | AT42: 5793 | AU42: 5732.2 | AV42: 5584.4 | AW42: 5424.8 | AX42: 5289.8 | AY42: 5392.4 | AZ42: 5603.6 | BA42: 5751 | BB42: 5871 | BC42: 5976.8 | BD42: 5882.4 | BE42: 5668.6 | BF42: 5585 | BG42: 5397.6 | BH42: 5265.6 | BI42: 5195.8 | BJ42: 5150.2 | BK42: 5062.8 | BL42: 5001.4 | BM42: 4914.8 | BN42: 4669.8 | BO42: 4415.8 | BP42: 4151 | BQ42: 3901 | BR42: 3632 | BS42: 3358.8 | BT42: 3062.2 | BU42: 2643.8 | BV42: 2232
A43: Woman | B43: Non-ethnic | C43: A) Basic education or lower | G43: =IF(G67>=15,G67,15) -> 589.8813251 | H43: 109.6820358 | I43: 15 | J43: 74.47802928 | K43: 44.87205809 | L43: 20.75178086 | M43: 22.70375807 | N43: 33.58874827 | O43: 30.59847106 | P43: 15 | Q43: 15 | R43: 15 | S43: 15 | T43: 15 | U43: 92.00078415 | V43: 15 | W43: 15 | X43: 15 | Y43: 15 | Z43: 15 | AA43: 15 | AB43: 15 | AC43: 43.79128403 | AD43: 15 | AE43: 15 | AF43: 15 | AG43: 15 | AH43: 15 | AI43: 15 | AJ43: 15 | AK43: 43.11260868 | AL43: 39.12363101 | AM43: 28.50638626 | AN43: 24.15237656 | AO43: 20.78688221 | AP43: 26.29630437 | AQ43: 27.20529147 | AR43: 15 | AS43: 15 | AT43: 66.99123236 | AU43: 37.00437338 | AV43: 42.15883645 | AW43: 33.56127766 | AX43: 26.10062275 | AY43: 114.9912432 | AZ43: 135.2200824 | BA43: 165.7080498 | BB43: 244.4807068 | BC43: 221.3413255 | BD43: 212.2265344 | BE43: 301.6782876 | BF43: 345.5161952 | BG43: 438.6565707 | BH43: 598.1808509 | BI43: 676.5472287 | BJ43: 770.5128473 | BK43: 1030.186686 | BL43: 967.6581371 | BM43: 928.3558381 | BN43: 884.7033237 | BO43: 902.9107513 | BP43: 866.2861605 | BQ43: 600.4702994 | BR43: 541.4315677 | BS43: =IF(BS67>=15,BS67,15) -> 389.9768539 | BT43: 474.7431031 | BU43: 596.4322988 | BV43: 378.7331802
A44: Woman | B44: Non-ethnic | C44: B) Lower secondary education | G44: =IF(G68>=15,G68,15) -> 2476.100205 | H44: 3036.515864 | I44: 2712.32681 | J44: 1143.992531 | K44: 604.5194178 | L44: 391.545406 | M44: 334.4080674 | N44: 316.8593018 | O44: 502.2978323 | P44: 783.3588502 | Q44: 724.1171877 | R44: 497.7200696 | S44: 455.9032578 | T44: 465.2148898 | U44: 267.6563748 | V44: 553.4590022 | W44: 443.0121065 | X44: 326.7752138 | Y44: 204.741057 | Z44: 217.1509554 | AA44: 99.87331605 | AB44: 150.2101201 | AC44: 59.65036572 | AD44: 194.6958472 | AE44: 106.0178003 | AF44: 92.12333442 | AG44: 140.9526565 | AH44: 170.1785293 | AI44: 138.0763788 | AJ44: 146.4730299 | AK44: 149.4358742 | AL44: 321.8700237 | AM44: 381.502429 | AN44: 322.1916345 | AO44: 467.0381123 | AP44: 368.8823062 | AQ44: 424.9362323 | AR44: 540.0493792 | AS44: 611.5854097 | AT44: 743.838327 | AU44: 556.3133538 | AV44: 596.1300877 | AW44: 565.4863849 | AX44: 289.5365253 | AY44: 306.6732043 | AZ44: 307.9977733 | BA44: 390.2183655 | BB44: 524.9793131 | BC44: 789.0148605 | BD44: 741.2022512 | BE44: 1017.564464 | BF44: 1091.092547 | BG44: 933.4663705 | BH44: 812.525355 | BI44: 688.48367 | BJ44: 645.7656698 | BK44: 710.1128186 | BL44: 759.1436045 | BM44: 802.5597133 | BN44: 772.5187822 | BO44: 919.2297388 | BP44: 998.254539 | BQ44: 1009.207492 | BR44: 977.997176 | BS44: =IF(BS68>=15,BS68,15) -> 768.8674154 | BT44: 560.7096414 | BU44: 354.3350043 | BV44: 165.2892848
A45: Woman | B45: Non-ethnic | C45: C) Upper secondary education | H45: =IF(H69>=15,H69,15) -> 20.0957989 | I45: 727.6604896 | J45: 2332.698521 | K45: 2678.191205 | L45: 2634.50197 | M45: 2407.29922 | N45: 2073.050559 | O45: 1643.818177 | P45: 1363.159597 | Q45: 1132.639309 | R45: 1321.859127 | S45: 1335.07515 | T45: 1574.548888 | U45: 1688.592395 | V45: 1589.481706 | W45: 1318.040156 | X45: 1550.507559 | Y45: 1707.255837 | Z45: 1662.7294 | AA45: 1786.91365 | AB45: 1716.643932 | AC45: 1593.443528 | AD45: 1615.951446 | AE45: 1480.328284 | AF45: 1946.55173 | AG45: 1933.852435 | AH45: 2135.265452 | AI45: 1901.655388 | AJ45: 1975.09758 | AK45: 2016.956688 | AL45: 2315.096478 | AM45: 2346.344381 | AN45: =IF(AN69>=15,AN69,15) -> 2152.131731 | AO45: 2165.471752 | AP45: 2073.583171 | AQ45: 1920.136916 | AR45: 2291.254743 | AS45: 2070.283773 | AT45: 1836.119645 | AU45: 1699.599599 | AV45: 1435.37931 | AW45: 1112.754537 | AX45: 1133.169733 | AY45: 1103.739262 | AZ45: 1212.255489 | BA45: 1107.71761 | BB45: 1257.622084 | BC45: 1215.534586 | BD45: 1394.66855 | BE45: 1125.287011 | BF45: 1023.278809 | BG45: 1042.905748 | BH45: 1076.25925 | BI45: 912.5894201 | BJ45: 792.1597805 | BK45: 594.3858617 | BL45: 756.9920118 | BM45: 759.84976 | BN45: 619.5693103 | BO45: 474.5735355 | BP45: 366.1295301 | BQ45: 267.2349222 | BR45: 483.9929558 | BS45: =IF(BS69>=15,BS69,15) -> 370.1446085 | BT45: 400.2131333 | BU45: 228.3249459 | BV45: 275.4189399
A46: Woman | B46: Non-ethnic | C46: D) Higher education | J46: =IF(J70>=15,J70,15) -> 35.69155331 | K46: 215.4393522 | L46: 501.4518272 | M46: 753.9831412 | N46: 1078.245836 | O46: 1204.82876 | P46: 1167.940982 | Q46: 1432.821415 | R46: 1451.635647 | S46: 1441.008251 | T46: 1199.330852 | U46: 1185.243406 | V46: 1112.892994 | W46: 1404.11525 | X46: 1218.555918 | Y46: 1113.176061 | Z46: 1122.511202 | AA46: 1060.222598 | AB46: 1161.977237 | AC46: 1443.803853 | AD46: 1517.44758 | AE46: 1956.288943 | AF46: 1739.824015 | AG46: 1964.247564 | AH46: 1895.009873 | AI46: 2302.06717 | AJ46: 2315.417471 | AK46: 2259.283375 | AL46: 1831.838258 | AM46: 1784.290035 | AN46: 1993.334631 | AO46: 1895.098806 | AP46: =IF(AP70>=15,AP70,15) -> 2103.030232 | AQ46: 2099.617993 | AR46: 1660.377911 | AS46: 1713.91532 | AT46: 1636.267075 | AU46: 1745.459906 | AV46: 1557.996946 | AW46: 1353.522301 | AX46: 1148.349586 | AY46: 800.3326072 | AZ46: 748.855201 | BA46: 989.5371811 | BB46: 1025.828597 | BC46: 1282.484648 | BD46: 1550.233495 | BE46: 1374.609272 | BF46: 1276.824309 | BG46: 1078.083798 | BH46: 764.5584491 | BI46: 715.8489055 | BJ46: 679.9213366 | BK46: 532.6493729 | BL46: 396.2408312 | BM46: 447.1184973 | BN46: 566.2877299 | BO46: 437.5801978 | BP46: 332.5136574 | BQ46: 509.3345377 | BR46: 132.0152506 | BS46: =IF(BS70>=15,BS70,15) -> 373.6047554 | BT46: 201.277555 | BU46: 146.5491604 | BV46: 213.0104374
C47: KOKKU | D47: 2026.2 | E47: 2360 | F47: 2652.2 | G47: 2891.2 | H47: 3085 | I47: 3229.2 | J47: 3306.4 | K47: 3286.6 | L47: 3279.4 | M47: 3210.2 | N47: 3111.6 | O47: 2989.2 | P47: 2907.8 | Q47: 2859.4 | R47: 2839.4 | S47: 2818.2 | T47: 2773 | U47: 2791.6 | V47: 2771.8 | W47: 2741 | X47: 2706.8 | Y47: 2684.6 | Z47: 2632 | AA47: 2645.8 | AB47: 2703.2 | AC47: 2816.6 | AD47: 2976.2 | AE47: 3198.6 | AF47: 3435.6 | AG47: 3668.2 | AH47: 3838.8 | AI47: 3993.8 | AJ47: 4078.4 | AK47: 4097.2 | AL47: 4121.8 | AM47: 4139.6 | AN47: 4124.6 | AO47: 4136.6 | AP47: 4155.6 | AQ47: 4060.4 | AR47: 4066.6 | AS47: 3970.8 | AT47: 3829.2 | AU47: 3615 | AV47: 3236 | AW47: 2732.2 | AX47: 2299 | AY47: 1994.6 | AZ47: 2033 | BA47: 2244.4 | BB47: 2613.8 | BC47: 3021.8 | BD47: 3388.8 | BE47: 3350.6 | BF47: 3266.4 | BG47: 3016 | BH47: 2736.6 | BI47: 2530.6 | BJ47: 2426.2 | BK47: 2425 | BL47: 2443.6 | BM47: 2493.2 | BN47: 2394.4 | BO47: 2323 | BP47: 2175.4 | BQ47: 1999.2 | BR47: 1789.2 | BS47: 1545.4 | BT47: 1274.2 | BU47: 1025 | BV47: 803.6
A48: Source: Statistics Estonia, authors calculations
A50: POPULATION (Changing randomly)(AVERAGE 2004-2008)
C51: age | D51: 14 | E51: 15 | F51: 16 | G51: 17 | H51: 18 | I51: 19 | J51: 20 | K51: 21 | L51: 22 | M51: 23 | N51: 24 | O51: 25 | P51: 26 | Q51: 27 | R51: 28 | S51: 29 | T51: 30 | U51: 31 | V51: 32 | W51: 33 | X51: 34 | Y51: 35 | Z51: 36 | AA51: 37 | AB51: 38 | AC51: 39 | AD51: 40 | AE51: 41 | AF51: 42 | AG51: 43 | AH51: 44 | AI51: 45 | AJ51: 46 | AK51: 47 | AL51: 48 | AM51: 49 | AN51: 50 | AO51: 51 | AP51: 52 | AQ51: 53 | AR51: 54 | AS51: 55 | AT51: 56 | AU51: 57 | AV51: 58 | AW51: 59 | AX51: 60 | AY51: 61 | AZ51: 62 | BA51: 63 | BB51: 64 | BC51: 65 | BD51: 66 | BE51: 67 | BF51: 68 | BG51: 69 | BH51: 70 | BI51: 71 | BJ51: 72 | BK51: 73 | BL51: 74 | BM51: 75 | BN51: 76 | BO51: 77 | BP51: 78 | BQ51: 79 | BR51: 80 | BS51: 81 | BT51: 82 | BU51: 83 | BV51: 84
A52: Man | B52: Ethnic | C52: A) Basic education or lower | G52: =((NORMSINV(Assumptions!C9)*G98)+G76)*G$56 -> 3152.753898 | H52: =((NORMSINV(Assumptions!C9)*H98)+H76)*H$56 -> 1505.138528 | I52: =((NORMSINV(Assumptions!C9)*I98)+I76)*I$56 -> 534.5897386 | J52: =((NORMSINV(Assumptions!C9)*J98)+J76)*J$56 -> 406.3454277 | K52: =((NORMSINV(Assumptions!C9)*K98)+K76)*K$56 -> 259.3237723 | L52: =((NORMSINV(Assumptions!C9)*L98)+L76)*L$56 -> 199.9656123 | M52: =((NORMSINV(Assumptions!C9)*M98)+M76)*M$56 -> 231.1124259 | N52: =((NORMSINV(Assumptions!C9)*N98)+N76)*N$56 -> 259.6799918 | O52: =((NORMSINV(Assumptions!C9)*O98)+O76)*O$56 -> 242.8573941 | P52: =((NORMSINV(Assumptions!C9)*P98)+P76)*P$56 -> 257.7765159 | Q52: =((NORMSINV(Assumptions!C9)*Q98)+Q76)*Q$56 -> 310.7729304 | R52: =((NORMSINV(Assumptions!C9)*R98)+R76)*R$56 -> 420.6368745 | S52: =((NORMSINV(Assumptions!C9)*S98)+S76)*S$56 -> 269.3960393 | T52: =((NORMSINV(Assumptions!C9)*T98)+T76)*T$56 -> 296.4221106 | U52: =((NORMSINV(Assumptions!C9)*U98)+U76)*U$56 -> 201.0395634 | V52: =((NORMSINV(Assumptions!C9)*V98)+V76)*V$56 -> 131.6420774 | W52: =((NORMSINV(Assumptions!C9)*W98)+W76)*W$56 -> 69.40619569 | X52: =((NORMSINV(Assumptions!C9)*X98)+X76)*X$56 -> 166.0942906 | Y52: =((NORMSINV(Assumptions!C9)*Y98)+Y76)*Y$56 -> 92.56484413 | Z52: =((NORMSINV(Assumptions!C9)*Z98)+Z76)*Z$56 -> 119.5827697 | AA52: =((NORMSINV(Assumptions!C9)*AA98)+AA76)*AA$56 -> 137.0359592 | AB52: =((NORMSINV(Assumptions!C9)*AB98)+AB76)*AB$56 -> 80.75355043 | AC52: =((NORMSINV(Assumptions!C9)*AC98)+AC76)*AC$56 -> 96.98998084 | AD52: =((NORMSINV(Assumptions!C9)*AD98)+AD76)*AD$56 -> 149.6660922 | AE52: =((NORMSINV(Assumptions!C9)*AE98)+AE76)*AE$56 -> 82.19476607 | AF52: =((NORMSINV(Assumptions!C9)*AF98)+AF76)*AF$56 -> 48.31021243 | AG52: =((NORMSINV(Assumptions!C9)*AG98)+AG76)*AG$56 -> 20.26626159 | AH52: =((NORMSINV(Assumptions!C9)*AH98)+AH76)*AH$56 -> 120.8646564 | AI52: =((NORMSINV(Assumptions!C9)*AI98)+AI76)*AI$56 -> 84.66475675 | AJ52: =((NORMSINV(Assumptions!C9)*AJ98)+AJ76)*AJ$56 -> 79.32267454 | AK52: =((NORMSINV(Assumptions!C9)*AK98)+AK76)*AK$56 -> 135.292333 | AL52: =((NORMSINV(Assumptions!C9)*AL98)+AL76)*AL$56 -> 107.2669262 | AM52: =((NORMSINV(Assumptions!C9)*AM98)+AM76)*AM$56 -> 34.81040484 | AN52: =((NORMSINV(Assumptions!C9)*AN98)+AN76)*AN$56 -> 117.3289638 | AO52: =((NORMSINV(Assumptions!C9)*AO98)+AO76)*AO$56 -> 46.57316724 | AP52: =((NORMSINV(Assumptions!C9)*AP98)+AP76)*AP$56 -> 43.22541684 | AQ52: =((NORMSINV(Assumptions!C9)*AQ98)+AQ76)*AQ$56 -> 134.6448559 | AR52: =((NORMSINV(Assumptions!C9)*AR98)+AR76)*AR$56 -> 88.91428773 | AS52: =((NORMSINV(Assumptions!C9)*AS98)+AS76)*AS$56 -> 86.54796943 | AT52: =((NORMSINV(Assumptions!C9)*AT98)+AT76)*AT$56 -> 208.6387457 | AU52: =((NORMSINV(Assumptions!C9)*AU98)+AU76)*AU$56 -> 115.9696207 | AV52: =((NORMSINV(Assumptions!C9)*AV98)+AV76)*AV$56 -> 55.70668155 | AW52: =((NORMSINV(Assumptions!C9)*AW98)+AW76)*AW$56 -> 116.0564954 | AX52: =((NORMSINV(Assumptions!C9)*AX98)+AX76)*AX$56 -> 142.2015044 | AY52: =((NORMSINV(Assumptions!C9)*AY98)+AY76)*AY$56 -> 304.382587 | AZ52: =((NORMSINV(Assumptions!C9)*AZ98)+AZ76)*AZ$56 -> 369.2625684 | BA52: =((NORMSINV(Assumptions!C9)*BA98)+BA76)*BA$56 -> 441.2315902 | BB52: =((NORMSINV(Assumptions!C9)*BB98)+BB76)*BB$56 -> 389.7033728 | BC52: =((NORMSINV(Assumptions!C9)*BC98)+BC76)*BC$56 -> 336.5213725 | BD52: =((NORMSINV(Assumptions!C9)*BD98)+BD76)*BD$56 -> 433.4274894 | BE52: =((NORMSINV(Assumptions!C9)*BE98)+BE76)*BE$56 -> 445.1793025 | BF52: =((NORMSINV(Assumptions!C9)*BF98)+BF76)*BF$56 -> 626.7809512 | BG52: =((NORMSINV(Assumptions!C9)*BG98)+BG76)*BG$56 -> 738.7665219 | BH52: =((NORMSINV(Assumptions!C9)*BH98)+BH76)*BH$56 -> 614.555009 | BI52: =((NORMSINV(Assumptions!C9)*BI98)+BI76)*BI$56 -> 565.2642239 | BJ52: =((NORMSINV(Assumptions!C9)*BJ98)+BJ76)*BJ$56 -> 503.6438675 | BK52: =((NORMSINV(Assumptions!C9)*BK98)+BK76)*BK$56 -> 420.7887271 | BL52: =((NORMSINV(Assumptions!C9)*BL98)+BL76)*BL$56 -> 402.9850615 | BM52: =((NORMSINV(Assumptions!C9)*BM98)+BM76)*BM$56 -> 452.9351833 | BN52: =((NORMSINV(Assumptions!C9)*BN98)+BN76)*BN$56 -> 453.635744 | BO52: =((NORMSINV(Assumptions!C9)*BO98)+BO76)*BO$56 -> 498.3214552 | BP52: =((NORMSINV(Assumptions!C9)*BP98)+BP76)*BP$56 -> 533.3829375 | BQ52: =((NORMSINV(Assumptions!C9)*BQ98)+BQ76)*BQ$56 -> 449.3708105 | BR52: =((NORMSINV(Assumptions!C9)*BR98)+BR76)*BR$56 -> 509.0269357 | BS52: =((NORMSINV(Assumptions!C9)*BS98)+BS76)*BS$56 -> 576.9865841 | BT52: =((NORMSINV(Assumptions!C9)*BT98)+BT76)*BT$56 -> 393.0097526 | BU52: =((NORMSINV(Assumptions!C9)*BU98)+BU76)*BU$56 -> 353.5634877 | BV52: =((NORMSINV(Assumptions!C9)*BV98)+BV76)*BV$56 -> 269.6591917
A53: Man | B53: Ethnic | C53: B) Lower secondary education | G53: =((NORMSINV(Assumptions!C9)*G99)+G77)*G$56 -> 4939.402938 | H53: =((NORMSINV(Assumptions!C9)*H99)+H77)*H$56 -> 6399.243294 | I53: =((NORMSINV(Assumptions!C9)*I99)+I77)*I$56 -> 6378.074262 | J53: =((NORMSINV(Assumptions!C9)*J99)+J77)*J$56 -> 3995.382747 | K53: =((NORMSINV(Assumptions!C9)*K99)+K77)*K$56 -> 2480.009639 | L53: =((NORMSINV(Assumptions!C9)*L99)+L77)*L$56 -> 2020.718543 | M53: =((NORMSINV(Assumptions!C9)*M99)+M77)*M$56 -> 1388.612607 | N53: =((NORMSINV(Assumptions!C9)*N99)+N77)*N$56 -> 1324.598398 | O53: =((NORMSINV(Assumptions!C9)*O99)+O77)*O$56 -> 1508.880176 | P53: =((NORMSINV(Assumptions!C9)*P99)+P77)*P$56 -> 1654.34869 | Q53: =((NORMSINV(Assumptions!C9)*Q99)+Q77)*Q$56 -> 1869.816278 | R53: =((NORMSINV(Assumptions!C9)*R99)+R77)*R$56 -> 1744.987709 | S53: =((NORMSINV(Assumptions!C9)*S99)+S77)*S$56 -> 1867.215019 | T53: =((NORMSINV(Assumptions!C9)*T99)+T77)*T$56 -> 1684.570441 | U53: =((NORMSINV(Assumptions!C9)*U99)+U77)*U$56 -> 1937.649126 | V53: =((NORMSINV(Assumptions!C9)*V99)+V77)*V$56 -> 1959.00131 | W53: =((NORMSINV(Assumptions!C9)*W99)+W77)*W$56 -> 1778.437669 | X53: =((NORMSINV(Assumptions!C9)*X99)+X77)*X$56 -> 1356.511047 | Y53: =((NORMSINV(Assumptions!C9)*Y99)+Y77)*Y$56 -> 1238.863142 | Z53: =((NORMSINV(Assumptions!C9)*Z99)+Z77)*Z$56 -> 1207.76699 | AA53: =((NORMSINV(Assumptions!C9)*AA99)+AA77)*AA$56 -> 971.228006 | AB53: =((NORMSINV(Assumptions!C9)*AB99)+AB77)*AB$56 -> 936.963716 | AC53: =((NORMSINV(Assumptions!C9)*AC99)+AC77)*AC$56 -> 813.5947009 | AD53: =((NORMSINV(Assumptions!C9)*AD99)+AD77)*AD$56 -> 869.3658005 | AE53: =((NORMSINV(Assumptions!C9)*AE99)+AE77)*AE$56 -> 1005.299785 | AF53: =((NORMSINV(Assumptions!C9)*AF99)+AF77)*AF$56 -> 824.7424494 | AG53: =((NORMSINV(Assumptions!C9)*AG99)+AG77)*AG$56 -> 1035.308985 | AH53: =((NORMSINV(Assumptions!C9)*AH99)+AH77)*AH$56 -> 913.0476154 | AI53: =((NORMSINV(Assumptions!C9)*AI99)+AI77)*AI$56 -> 858.6207214 | AJ53: =((NORMSINV(Assumptions!C9)*AJ99)+AJ77)*AJ$56 -> 845.8492736 | AK53: =((NORMSINV(Assumptions!C9)*AK99)+AK77)*AK$56 -> 898.1406724 | AL53: =((NORMSINV(Assumptions!C9)*AL99)+AL77)*AL$56 -> 877.9063172 | AM53: =((NORMSINV(Assumptions!C9)*AM99)+AM77)*AM$56 -> 1246.808719 | AN53: =((NORMSINV(Assumptions!C9)*AN99)+AN77)*AN$56 -> 1169.907388 | AO53: =((NORMSINV(Assumptions!C9)*AO99)+AO77)*AO$56 -> 1418.010933 | AP53: =((NORMSINV(Assumptions!C9)*AP99)+AP77)*AP$56 -> 1760.44358 | AQ53: =((NORMSINV(Assumptions!C9)*AQ99)+AQ77)*AQ$56 -> 1655.232344 | AR53: =((NORMSINV(Assumptions!C9)*AR99)+AR77)*AR$56 -> 1314.543693 | AS53: =((NORMSINV(Assumptions!C9)*AS99)+AS77)*AS$56 -> 1688.567267 | AT53: =((NORMSINV(Assumptions!C9)*AT99)+AT77)*AT$56 -> 1647.071494 | AU53: =((NORMSINV(Assumptions!C9)*AU99)+AU77)*AU$56 -> 1751.661929 | AV53: =((NORMSINV(Assumptions!C9)*AV99)+AV77)*AV$56 -> 1599.838574 | AW53: =((NORMSINV(Assumptions!C9)*AW99)+AW77)*AW$56 -> 1504.348539 | AX53: =((NORMSINV(Assumptions!C9)*AX99)+AX77)*AX$56 -> 1591.970047 | AY53: =((NORMSINV(Assumptions!C9)*AY99)+AY77)*AY$56 -> 1580.130905 | AZ53: =((NORMSINV(Assumptions!C9)*AZ99)+AZ77)*AZ$56 -> 1494.58277 | BA53: =((NORMSINV(Assumptions!C9)*BA99)+BA77)*BA$56 -> 1659.567132 | BB53: =((NORMSINV(Assumptions!C9)*BB99)+BB77)*BB$56 -> 1489.428117 | BC53: =((NORMSINV(Assumptions!C9)*BC99)+BC77)*BC$56 -> 1396.782354 | BD53: =((NORMSINV(Assumptions!C9)*BD99)+BD77)*BD$56 -> 1458.567729 | BE53: =((NORMSINV(Assumptions!C9)*BE99)+BE77)*BE$56 -> 1713.959767 | BF53: =((NORMSINV(Assumptions!C9)*BF99)+BF77)*BF$56 -> 1371.538249 | BG53: =((NORMSINV(Assumptions!C9)*BG99)+BG77)*BG$56 -> 1409.824103 | BH53: =((NORMSINV(Assumptions!C9)*BH99)+BH77)*BH$56 -> 1388.798421 | BI53: =((NORMSINV(Assumptions!C9)*BI99)+BI77)*BI$56 -> 1418.12728 | BJ53: =((NORMSINV(Assumptions!C9)*BJ99)+BJ77)*BJ$56 -> 1353.639673 | BK53: =((NORMSINV(Assumptions!C9)*BK99)+BK77)*BK$56 -> 1173.333768 | BL53: =((NORMSINV(Assumptions!C9)*BL99)+BL77)*BL$56 -> 1019.694497 | BM53: =((NORMSINV(Assumptions!C9)*BM99)+BM77)*BM$56 -> 997.21021 | BN53: =((NORMSINV(Assumptions!C9)*BN99)+BN77)*BN$56 -> 765.0252499 | BO53: =((NORMSINV(Assumptions!C9)*BO99)+BO77)*BO$56 -> 647.0466778 | BP53: =((NORMSINV(Assumptions!C9)*BP99)+BP77)*BP$56 -> 661.9861503 | BQ53: =((NORMSINV(Assumptions!C9)*BQ99)+BQ77)*BQ$56 -> 640.7429739 | BR53: =((NORMSINV(Assumptions!C9)*BR99)+BR77)*BR$56 -> 484.7104516 | BS53: =((NORMSINV(Assumptions!C9)*BS99)+BS77)*BS$56 -> 412.2477082 | BT53: =((NORMSINV(Assumptions!C9)*BT99)+BT77)*BT$56 -> 391.8083912 | BU53: =((NORMSINV(Assumptions!C9)*BU99)+BU77)*BU$56 -> 260.2160803 | BV53: =((NORMSINV(Assumptions!C9)*BV99)+BV77)*BV$56 -> 240.60527
A54: Man | B54: Ethnic | C54: C) Upper secondary education | G54: =((NORMSINV(Assumptions!C9)*G100)+G78)*G$56 -> 0 | H54: =((NORMSINV(Assumptions!C9)*H100)+H78)*H$56 -> 70.54294919 | I54: =((NORMSINV(Assumptions!C9)*I100)+I78)*I$56 -> 892.4774957 | J54: =((NORMSINV(Assumptions!C9)*J100)+J78)*J$56 -> 3347.829087 | K54: =((NORMSINV(Assumptions!C9)*K100)+K78)*K$56 -> 4850.26733 | L54: =((NORMSINV(Assumptions!C9)*L100)+L78)*L$56 -> 5000.387796 | M54: =((NORMSINV(Assumptions!C9)*M100)+M78)*M$56 -> 4833.474131 | N54: =((NORMSINV(Assumptions!C9)*N100)+N78)*N$56 -> 4409.928563 | O54: =((NORMSINV(Assumptions!C9)*O100)+O78)*O$56 -> 3685.569112 | P54: =((NORMSINV(Assumptions!C9)*P100)+P78)*P$56 -> 3310.244963 | Q54: =((NORMSINV(Assumptions!C9)*Q100)+Q78)*Q$56 -> 2929.262804 | R54: =((NORMSINV(Assumptions!C9)*R100)+R78)*R$56 -> 2882.968838 | S54: =((NORMSINV(Assumptions!C9)*S100)+S78)*S$56 -> 2744.182901 | T54: =((NORMSINV(Assumptions!C9)*T100)+T78)*T$56 -> 3477.282329 | U54: =((NORMSINV(Assumptions!C9)*U100)+U78)*U$56 -> 3503.770049 | V54: =((NORMSINV(Assumptions!C9)*V100)+V78)*V$56 -> 3526.964318 | W54: =((NORMSINV(Assumptions!C9)*W100)+W78)*W$56 -> 3480.442512 | X54: =((NORMSINV(Assumptions!C9)*X100)+X78)*X$56 -> 3892.229333 | Y54: =((NORMSINV(Assumptions!C9)*Y100)+Y78)*Y$56 -> 3866.910424 | Z54: =((NORMSINV(Assumptions!C9)*Z100)+Z78)*Z$56 -> 3785.797813 | AA54: =((NORMSINV(Assumptions!C9)*AA100)+AA78)*AA$56 -> 4135.416767 | AB54: =((NORMSINV(Assumptions!C9)*AB100)+AB78)*AB$56 -> 3959.129117 | AC54: =((NORMSINV(Assumptions!C9)*AC100)+AC78)*AC$56 -> 3962.997565 | AD54: =((NORMSINV(Assumptions!C9)*AD100)+AD78)*AD$56 -> 3645.836683 | AE54: =((NORMSINV(Assumptions!C9)*AE100)+AE78)*AE$56 -> 3748.367617 | AF54: =((NORMSINV(Assumptions!C9)*AF100)+AF78)*AF$56 -> 3854.606956 | AG54: =((NORMSINV(Assumptions!C9)*AG100)+AG78)*AG$56 -> 3722.608017 | AH54: =((NORMSINV(Assumptions!C9)*AH100)+AH78)*AH$56 -> 3811.759483 | AI54: =((NORMSINV(Assumptions!C9)*AI100)+AI78)*AI$56 -> 3798.065242 | AJ54: =((NORMSINV(Assumptions!C9)*AJ100)+AJ78)*AJ$56 -> 3677.850876 | AK54: =((NORMSINV(Assumptions!C9)*AK100)+AK78)*AK$56 -> 3222.795032 | AL54: =((NORMSINV(Assumptions!C9)*AL100)+AL78)*AL$56 -> 3412.426263 | AM54: =((NORMSINV(Assumptions!C9)*AM100)+AM78)*AM$56 -> 3372.483513 | AN54: =((NORMSINV(Assumptions!C9)*AN100)+AN78)*AN$56 -> 3350.106921 | AO54: =((NORMSINV(Assumptions!C9)*AO100)+AO78)*AO$56 -> 2896.182797 | AP54: =((NORMSINV(Assumptions!C9)*AP100)+AP78)*AP$56 -> 2515.133818 | AQ54: =((NORMSINV(Assumptions!C9)*AQ100)+AQ78)*AQ$56 -> 2367.447293 | AR54: =((NORMSINV(Assumptions!C9)*AR100)+AR78)*AR$56 -> 2470.727518 | AS54: =((NORMSINV(Assumptions!C9)*AS100)+AS78)*AS$56 -> 2069.497298 | AT54: =((NORMSINV(Assumptions!C9)*AT100)+AT78)*AT$56 -> 2018.660402 | AU54: =((NORMSINV(Assumptions!C9)*AU100)+AU78)*AU$56 -> 2033.605577 | AV54: =((NORMSINV(Assumptions!C9)*AV100)+AV78)*AV$56 -> 2269.791636 | AW54: =((NORMSINV(Assumptions!C9)*AW100)+AW78)*AW$56 -> 2149.784323 | AX54: =((NORMSINV(Assumptions!C9)*AX100)+AX78)*AX$56 -> 2045.101949 | AY54: =((NORMSINV(Assumptions!C9)*AY100)+AY78)*AY$56 -> 1780.859994 | AZ54: =((NORMSINV(Assumptions!C9)*AZ100)+AZ78)*AZ$56 -> 1863.062846 | BA54: =((NORMSINV(Assumptions!C9)*BA100)+BA78)*BA$56 -> 1777.854491 | BB54: =((NORMSINV(Assumptions!C9)*BB100)+BB78)*BB$56 -> 1883.259307 | BC54: =((NORMSINV(Assumptions!C9)*BC100)+BC78)*BC$56 -> 1758.169454 | BD54: =((NORMSINV(Assumptions!C9)*BD100)+BD78)*BD$56 -> 1584.004663 | BE54: =((NORMSINV(Assumptions!C9)*BE100)+BE78)*BE$56 -> 1245.702702 | BF54: =((NORMSINV(Assumptions!C9)*BF100)+BF78)*BF$56 -> 1101.918582 | BG54: =((NORMSINV(Assumptions!C9)*BG100)+BG78)*BG$56 -> 928.727673 | BH54: =((NORMSINV(Assumptions!C9)*BH100)+BH78)*BH$56 -> 908.9148837 | BI54: =((NORMSINV(Assumptions!C9)*BI100)+BI78)*BI$56 -> 911.1172668 | BJ54: =((NORMSINV(Assumptions!C9)*BJ100)+BJ78)*BJ$56 -> 913.5855544 | BK54: =((NORMSINV(Assumptions!C9)*BK100)+BK78)*BK$56 -> 881.2783213 | BL54: =((NORMSINV(Assumptions!C9)*BL100)+BL78)*BL$56 -> 886.1496639 | BM54: =((NORMSINV(Assumptions!C9)*BM100)+BM78)*BM$56 -> 834.8419379 | BN54: =((NORMSINV(Assumptions!C9)*BN100)+BN78)*BN$56 -> 829.0205828 | BO54: =((NORMSINV(Assumptions!C9)*BO100)+BO78)*BO$56 -> 723.7955563 | BP54: =((NORMSINV(Assumptions!C9)*BP100)+BP78)*BP$56 -> 408.7346392 | BQ54: =((NORMSINV(Assumptions!C9)*BQ100)+BQ78)*BQ$56 -> 300.0566706 | BR54: =((NORMSINV(Assumptions!C9)*BR100)+BR78)*BR$56 -> 245.1430358 | BS54: =((NORMSINV(Assumptions!C9)*BS100)+BS78)*BS$56 -> 198.4023427 | BT54: =((NORMSINV(Assumptions!C9)*BT100)+BT78)*BT$56 -> 204.9998828 | BU54: =((NORMSINV(Assumptions!C9)*BU100)+BU78)*BU$56 -> 222.4577239 | BV54: =((NORMSINV(Assumptions!C9)*BV100)+BV78)*BV$56 -> 169.8051912
A55: Man | B55: Ethnic | C55: D) Higher education | G55: =((NORMSINV(Assumptions!C9)*G101)+G79)*G$56 -> 0 | H55: =((NORMSINV(Assumptions!C9)*H101)+H79)*H$56 -> 0 | I55: =((NORMSINV(Assumptions!C9)*I101)+I79)*I$56 -> 23.77336266 | J55: =((NORMSINV(Assumptions!C9)*J101)+J79)*J$56 -> 156.3572826 | K55: =((NORMSINV(Assumptions!C9)*K101)+K79)*K$56 -> 172.5805806 | L55: =((NORMSINV(Assumptions!C9)*L101)+L79)*L$56 -> 812.1141609 | M55: =((NORMSINV(Assumptions!C9)*M101)+M79)*M$56 -> 2036.236066 | N55: =((NORMSINV(Assumptions!C9)*N101)+N79)*N$56 -> 2745.724393 | O55: =((NORMSINV(Assumptions!C9)*O101)+O79)*O$56 -> 3505.189738 | P55: =((NORMSINV(Assumptions!C9)*P101)+P79)*P$56 -> 3658.157415 | Q55: =((NORMSINV(Assumptions!C9)*Q101)+Q79)*Q$56 -> 3802.29969 | R55: =((NORMSINV(Assumptions!C9)*R101)+R79)*R$56 -> 3780.567789 | S55: =((NORMSINV(Assumptions!C9)*S101)+S79)*S$56 -> 4038.557757 | T55: =((NORMSINV(Assumptions!C9)*T101)+T79)*T$56 -> 2958.747417 | U55: =((NORMSINV(Assumptions!C9)*U101)+U79)*U$56 -> 2563.94149 | V55: =((NORMSINV(Assumptions!C9)*V101)+V79)*V$56 -> 2612.13988 | W55: =((NORMSINV(Assumptions!C9)*W101)+W79)*W$56 -> 3189.649496 | X55: =((NORMSINV(Assumptions!C9)*X101)+X79)*X$56 -> 3088.065088 | Y55: =((NORMSINV(Assumptions!C9)*Y101)+Y79)*Y$56 -> 3453.600551 | Z55: =((NORMSINV(Assumptions!C9)*Z101)+Z79)*Z$56 -> 3272.854497 | AA55: =((NORMSINV(Assumptions!C9)*AA101)+AA79)*AA$56 -> 2667.822784 | AB55: =((NORMSINV(Assumptions!C9)*AB101)+AB79)*AB$56 -> 2767.224059 | AC55: =((NORMSINV(Assumptions!C9)*AC101)+AC79)*AC$56 -> 2720.847218 | AD55: =((NORMSINV(Assumptions!C9)*AD101)+AD79)*AD$56 -> 2945.918862 | AE55: =((NORMSINV(Assumptions!C9)*AE101)+AE79)*AE$56 -> 2739.74998 | AF55: =((NORMSINV(Assumptions!C9)*AF101)+AF79)*AF$56 -> 2793.964286 | AG55: =((NORMSINV(Assumptions!C9)*AG101)+AG79)*AG$56 -> 2802.431787 | AH55: =((NORMSINV(Assumptions!C9)*AH101)+AH79)*AH$56 -> 2667.244189 | AI55: =((NORMSINV(Assumptions!C9)*AI101)+AI79)*AI$56 -> 2686.083449 | AJ55: =((NORMSINV(Assumptions!C9)*AJ101)+AJ79)*AJ$56 -> 2664.827891 | AK55: =((NORMSINV(Assumptions!C9)*AK101)+AK79)*AK$56 -> 3177.259057 | AL55: =((NORMSINV(Assumptions!C9)*AL101)+AL79)*AL$56 -> 2721.698509 | AM55: =((NORMSINV(Assumptions!C9)*AM101)+AM79)*AM$56 -> 2034.200114 | AN55: =((NORMSINV(Assumptions!C9)*AN101)+AN79)*AN$56 -> 1824.034108 | AO55: =((NORMSINV(Assumptions!C9)*AO101)+AO79)*AO$56 -> 2129.322748 | AP55: =((NORMSINV(Assumptions!C9)*AP101)+AP79)*AP$56 -> 2090.848547 | AQ55: =((NORMSINV(Assumptions!C9)*AQ101)+AQ79)*AQ$56 -> 2193.858784 | AR55: =((NORMSINV(Assumptions!C9)*AR101)+AR79)*AR$56 -> 2598.041014 | AS55: =((NORMSINV(Assumptions!C9)*AS101)+AS79)*AS$56 -> 2597.933253 | AT55: =((NORMSINV(Assumptions!C9)*AT101)+AT79)*AT$56 -> 2444.018622 | AU55: =((NORMSINV(Assumptions!C9)*AU101)+AU79)*AU$56 -> 2101.962645 | AV55: =((NORMSINV(Assumptions!C9)*AV101)+AV79)*AV$56 -> 1646.185906 | AW55: =((NORMSINV(Assumptions!C9)*AW101)+AW79)*AW$56 -> 1495.506741 | AX55: =((NORMSINV(Assumptions!C9)*AX101)+AX79)*AX$56 -> 1206.063734 | AY55: =((NORMSINV(Assumptions!C9)*AY101)+AY79)*AY$56 -> 1505.791174 | AZ55: =((NORMSINV(Assumptions!C9)*AZ101)+AZ79)*AZ$56 -> 1527.504799 | BA55: =((NORMSINV(Assumptions!C9)*BA101)+BA79)*BA$56 -> 1262.599047 | BB55: =((NORMSINV(Assumptions!C9)*BB101)+BB79)*BB$56 -> 1410.852385 | BC55: =((NORMSINV(Assumptions!C9)*BC101)+BC79)*BC$56 -> 1832.01194 | BD55: =((NORMSINV(Assumptions!C9)*BD101)+BD79)*BD$56 -> 1520.248164 | BE55: =((NORMSINV(Assumptions!C9)*BE101)+BE79)*BE$56 -> 1276.836569 | BF55: =((NORMSINV(Assumptions!C9)*BF101)+BF79)*BF$56 -> 1585.004747 | BG55: =((NORMSINV(Assumptions!C9)*BG101)+BG79)*BG$56 -> 1226.843283 | BH55: =((NORMSINV(Assumptions!C9)*BH101)+BH79)*BH$56 -> 1243.281135 | BI55: =((NORMSINV(Assumptions!C9)*BI101)+BI79)*BI$56 -> 1048.833943 | BJ55: =((NORMSINV(Assumptions!C9)*BJ101)+BJ79)*BJ$56 -> 1019.170329 | BK55: =((NORMSINV(Assumptions!C9)*BK101)+BK79)*BK$56 -> 1285.088884 | BL55: =((NORMSINV(Assumptions!C9)*BL101)+BL79)*BL$56 -> 1330.691151 | BM55: =((NORMSINV(Assumptions!C9)*BM101)+BM79)*BM$56 -> 1095.479386 | BN55: =((NORMSINV(Assumptions!C9)*BN101)+BN79)*BN$56 -> 964.8901758 | BO55: =((NORMSINV(Assumptions!C9)*BO101)+BO79)*BO$56 -> 787.015769 | BP55: =((NORMSINV(Assumptions!C9)*BP101)+BP79)*BP$56 -> 705.7965435 | BQ55: =((NORMSINV(Assumptions!C9)*BQ101)+BQ79)*BQ$56 -> 627.0003902 | BR55: =((NORMSINV(Assumptions!C9)*BR101)+BR79)*BR$56 -> 521.1234194 | BS55: =((NORMSINV(Assumptions!C9)*BS101)+BS79)*BS$56 -> 233.4092378 | BT55: =((NORMSINV(Assumptions!C9)*BT101)+BT79)*BT$56 -> 268.6720931 | BU55: =((NORMSINV(Assumptions!C9)*BU101)+BU79)*BU$56 -> 219.5424944 | BV55: =((NORMSINV(Assumptions!C9)*BV101)+BV79)*BV$56 -> 207.3348201
C56: KOKKU | D56: 7048 | E56: 7450 | F56: 7686.8 | G56: 7774.8 | H56: 7690.8 | I56: 7513.8 | J56: 7434.6 | K56: 7301.4 | L56: 7260.4 | M56: 7150.8 | N56: 7035.2 | O56: 6856 | P56: 6738.2 | Q56: 6626.6 | R56: 6573.8 | S56: 6520.2 | T56: 6502 | U56: 6516.6 | V56: 6573.8 | W56: 6617 | X56: 6642.2 | Y56: 6648.6 | Z56: 6479.4 | AA56: 6298 | AB56: 6108.6 | AC56: 5989 | AD56: 5882 | AE56: 5928.6 | AF56: 5933.6 | AG56: 5975.2 | AH56: 5941.6 | AI56: 5869.2 | AJ56: 5757.2 | AK56: 5652.8 | AL56: 5549.8 | AM56: 5429.6 | AN56: 5297.6 | AO56: 5200.4 | AP56: 5120.4 | AQ56: 4984.2 | AR56: 4939.6 | AS56: 4885.8 | AT56: 4831.4 | AU56: 4688.2 | AV56: 4494.4 | AW56: 4262.8 | AX56: 4111.8 | AY56: 4098.6 | AZ56: 4187.4 | BA56: 4195.4 | BB56: 4176.6 | BC56: 4144.6 | BD56: 3955.6 | BE56: 3734.6 | BF56: 3604 | BG56: 3408.4 | BH56: 3261.8 | BI56: 3143 | BJ56: 3008.8 | BK56: 2877 | BL56: 2743.6 | BM56: 2563.6 | BN56: 2296 | BO56: 2044.8 | BP56: 1775.4 | BQ56: 1537.6 | BR56: 1330.8 | BS56: 1137 | BT56: 987.4 | BU56: 812.4 | BV56: 658.4
A57: Man | B57: Non-ethnic | C57: A) Basic education or lower | G57: =IF(((NORMSINV(Assumptions!C9)*G103)+G81)*G$61>=15,((NORMSINV(Assumptions!C9)*G103)+G81)*G$61,15) -> 846.9486593 | H57: =IF(((NORMSINV(Assumptions!C9)*H103)+H81)*H$61>=15,((NORMSINV(Assumptions!C9)*H103)+H81)*H$61,15) -> 352.2109133 | I57: =IF(((NORMSINV(Assumptions!C9)*I103)+I81)*I$61>=15,((NORMSINV(Assumptions!C9)*I103)+I81)*I$61,15) -> 175.389531 | J57: =IF(((NORMSINV(Assumptions!C9)*J103)+J81)*J$61>=15,((NORMSINV(Assumptions!C9)*J103)+J81)*J$61,15) -> 196.4933965 | K57: =IF(((NORMSINV(Assumptions!C9)*K103)+K81)*K$61>=15,((NORMSINV(Assumptions!C9)*K103)+K81)*K$61,15) -> 364.3396923 | L57: =IF(((NORMSINV(Assumptions!C9)*L103)+L81)*L$61>=15,((NORMSINV(Assumptions!C9)*L103)+L81)*L$61,15) -> 377.5592647 | M57: =IF(((NORMSINV(Assumptions!C9)*M103)+M81)*M$61>=15,((NORMSINV(Assumptions!C9)*M103)+M81)*M$61,15) -> 149.3137078 | N57: =IF(((NORMSINV(Assumptions!C9)*N103)+N81)*N$61>=15,((NORMSINV(Assumptions!C9)*N103)+N81)*N$61,15) -> 155.9749736 | O57: =IF(((NORMSINV(Assumptions!C9)*O103)+O81)*O$61>=15,((NORMSINV(Assumptions!C9)*O103)+O81)*O$61,15) -> 142.4898953 | P57: =IF(((NORMSINV(Assumptions!C9)*P103)+P81)*P$61>=15,((NORMSINV(Assumptions!C9)*P103)+P81)*P$61,15) -> 95.87483727 | Q57: =IF(((NORMSINV(Assumptions!C9)*Q103)+Q81)*Q$61>=15,((NORMSINV(Assumptions!C9)*Q103)+Q81)*Q$61,15) -> 72.22180111 | R57: =IF(((NORMSINV(Assumptions!C9)*R103)+R81)*R$61>=15,((NORMSINV(Assumptions!C9)*R103)+R81)*R$61,15) -> 20.56648447 | S57: =IF(((NORMSINV(Assumptions!C9)*S103)+S81)*S$61>=15,((NORMSINV(Assumptions!C9)*S103)+S81)*S$61,15) -> 15 | T57: =IF(((NORMSINV(Assumptions!C9)*T103)+T81)*T$61>=15,((NORMSINV(Assumptions!C9)*T103)+T81)*T$61,15) -> 15 | U57: =IF(((NORMSINV(Assumptions!C9)*U103)+U81)*U$61>=15,((NORMSINV(Assumptions!C9)*U103)+U81)*U$61,15) -> 15 | V57: =IF(((NORMSINV(Assumptions!C9)*V103)+V81)*V$61>=15,((NORMSINV(Assumptions!C9)*V103)+V81)*V$61,15) -> 115.9947444 | W57: =IF(((NORMSINV(Assumptions!C9)*W103)+W81)*W$61>=15,((NORMSINV(Assumptions!C9)*W103)+W81)*W$61,15) -> 73.40326238 | X57: =IF(((NORMSINV(Assumptions!C9)*X103)+X81)*X$61>=15,((NORMSINV(Assumptions!C9)*X103)+X81)*X$61,15) -> 18.22243679 | Y57: =IF(((NORMSINV(Assumptions!C9)*Y103)+Y81)*Y$61>=15,((NORMSINV(Assumptions!C9)*Y103)+Y81)*Y$61,15) -> 56.63614962 | Z57: =IF(((NORMSINV(Assumptions!C9)*Z103)+Z81)*Z$61>=15,((NORMSINV(Assumptions!C9)*Z103)+Z81)*Z$61,15) -> 15 | AA57: =IF(((NORMSINV(Assumptions!C9)*AA103)+AA81)*AA$61>=15,((NORMSINV(Assumptions!C9)*AA103)+AA81)*AA$61,15) -> 15 | AB57: =IF(((NORMSINV(Assumptions!C9)*AB103)+AB81)*AB$61>=15,((NORMSINV(Assumptions!C9)*AB103)+AB81)*AB$61,15) -> 15 | AC57: =IF(((NORMSINV(Assumptions!C9)*AC103)+AC81)*AC$61>=15,((NORMSINV(Assumptions!C9)*AC103)+AC81)*AC$61,15) -> 15 | AD57: =IF(((NORMSINV(Assumptions!C9)*AD103)+AD81)*AD$61>=15,((NORMSINV(Assumptions!C9)*AD103)+AD81)*AD$61,15) -> 15 | AE57: =IF(((NORMSINV(Assumptions!C9)*AE103)+AE81)*AE$61>=15,((NORMSINV(Assumptions!C9)*AE103)+AE81)*AE$61,15) -> 15 | AF57: =IF(((NORMSINV(Assumptions!C9)*AF103)+AF81)*AF$61>=15,((NORMSINV(Assumptions!C9)*AF103)+AF81)*AF$61,15) -> 15 | AG57: =IF(((NORMSINV(Assumptions!C9)*AG103)+AG81)*AG$61>=15,((NORMSINV(Assumptions!C9)*AG103)+AG81)*AG$61,15) -> 15 | AH57: =IF(((NORMSINV(Assumptions!C9)*AH103)+AH81)*AH$61>=15,((NORMSINV(Assumptions!C9)*AH103)+AH81)*AH$61,15) -> 114.4368241 | AI57: =IF(((NORMSINV(Assumptions!C9)*AI103)+AI81)*AI$61>=15,((NORMSINV(Assumptions!C9)*AI103)+AI81)*AI$61,15) -> 102.2128381 | AJ57: =IF(((NORMSINV(Assumptions!C9)*AJ103)+AJ81)*AJ$61>=15,((NORMSINV(Assumptions!C9)*AJ103)+AJ81)*AJ$61,15) -> 15 | AK57: =IF(((NORMSINV(Assumptions!C9)*AK103)+AK81)*AK$61>=15,((NORMSINV(Assumptions!C9)*AK103)+AK81)*AK$61,15) -> 15 | AL57: =IF(((NORMSINV(Assumptions!C9)*AL103)+AL81)*AL$61>=15,((NORMSINV(Assumptions!C9)*AL103)+AL81)*AL$61,15) -> 15 | AM57: =IF(((NORMSINV(Assumptions!C9)*AM103)+AM81)*AM$61>=15,((NORMSINV(Assumptions!C9)*AM103)+AM81)*AM$61,15) -> 17.49096646 | AN57: =IF(((NORMSINV(Assumptions!C9)*AN103)+AN81)*AN$61>=15,((NORMSINV(Assumptions!C9)*AN103)+AN81)*AN$61,15) -> 15 | AO57: =IF(((NORMSINV(Assumptions!C9)*AO103)+AO81)*AO$61>=15,((NORMSINV(Assumptions!C9)*AO103)+AO81)*AO$61,15) -> 15 | AP57: =IF(((NORMSINV(Assumptions!C9)*AP103)+AP81)*AP$61>=15,((NORMSINV(Assumptions!C9)*AP103)+AP81)*AP$61,15) -> 15 | AQ57: =IF(((NORMSINV(Assumptions!C9)*AQ103)+AQ81)*AQ$61>=15,((NORMSINV(Assumptions!C9)*AQ103)+AQ81)*AQ$61,15) -> 15 | AR57: =IF(((NORMSINV(Assumptions!C9)*AR103)+AR81)*AR$61>=15,((NORMSINV(Assumptions!C9)*AR103)+AR81)*AR$61,15) -> 15 | AS57: =IF(((NORMSINV(Assumptions!C9)*AS103)+AS81)*AS$61>=15,((NORMSINV(Assumptions!C9)*AS103)+AS81)*AS$61,15) -> 15 | AT57: =IF(((NORMSINV(Assumptions!C9)*AT103)+AT81)*AT$61>=15,((NORMSINV(Assumptions!C9)*AT103)+AT81)*AT$61,15) -> 15 | AU57: =IF(((NORMSINV(Assumptions!C9)*AU103)+AU81)*AU$61>=15,((NORMSINV(Assumptions!C9)*AU103)+AU81)*AU$61,15) -> 15 | AV57: =IF(((NORMSINV(Assumptions!C9)*AV103)+AV81)*AV$61>=15,((NORMSINV(Assumptions!C9)*AV103)+AV81)*AV$61,15) -> 26.10970517 | AW57: =IF(((NORMSINV(Assumptions!C9)*AW103)+AW81)*AW$61>=15,((NORMSINV(Assumptions!C9)*AW103)+AW81)*AW$61,15) -> 15 | AX57: =IF(((NORMSINV(Assumptions!C9)*AX103)+AX81)*AX$61>=15,((NORMSINV(Assumptions!C9)*AX103)+AX81)*AX$61,15) -> 15 | AY57: =IF(((NORMSINV(Assumptions!C9)*AY103)+AY81)*AY$61>=15,((NORMSINV(Assumptions!C9)*AY103)+AY81)*AY$61,15) -> 22.56052374 | AZ57: =IF(((NORMSINV(Assumptions!C9)*AZ103)+AZ81)*AZ$61>=15,((NORMSINV(Assumptions!C9)*AZ103)+AZ81)*AZ$61,15) -> 15 | BA57: =IF(((NORMSINV(Assumptions!C9)*BA103)+BA81)*BA$61>=15,((NORMSINV(Assumptions!C9)*BA103)+BA81)*BA$61,15) -> 46.96322551 | BB57: =IF(((NORMSINV(Assumptions!C9)*BB103)+BB81)*BB$61>=15,((NORMSINV(Assumptions!C9)*BB103)+BB81)*BB$61,15) -> 59.89798231 | BC57: =IF(((NORMSINV(Assumptions!C9)*BC103)+BC81)*BC$61>=15,((NORMSINV(Assumptions!C9)*BC103)+BC81)*BC$61,15) -> 59.69088528 | BD57: =IF(((NORMSINV(Assumptions!C9)*BD103)+BD81)*BD$61>=15,((NORMSINV(Assumptions!C9)*BD103)+BD81)*BD$61,15) -> 296.334039 | BE57: =IF(((NORMSINV(Assumptions!C9)*BE103)+BE81)*BE$61>=15,((NORMSINV(Assumptions!C9)*BE103)+BE81)*BE$61,15) -> 340.1060269 | BF57: =IF(((NORMSINV(Assumptions!C9)*BF103)+BF81)*BF$61>=15,((NORMSINV(Assumptions!C9)*BF103)+BF81)*BF$61,15) -> 247.4318523 | BG57: =IF(((NORMSINV(Assumptions!C9)*BG103)+BG81)*BG$61>=15,((NORMSINV(Assumptions!C9)*BG103)+BG81)*BG$61,15) -> 218.7677624 | BH57: =IF(((NORMSINV(Assumptions!C9)*BH103)+BH81)*BH$61>=15,((NORMSINV(Assumptions!C9)*BH103)+BH81)*BH$61,15) -> 74.52701245 | BI57: =IF(((NORMSINV(Assumptions!C9)*BI103)+BI81)*BI$61>=15,((NORMSINV(Assumptions!C9)*BI103)+BI81)*BI$61,15) -> 293.8389176 | BJ57: =IF(((NORMSINV(Assumptions!C9)*BJ103)+BJ81)*BJ$61>=15,((NORMSINV(Assumptions!C9)*BJ103)+BJ81)*BJ$61,15) -> 253.8659644 | BK57: =IF(((NORMSINV(Assumptions!C9)*BK103)+BK81)*BK$61>=15,((NORMSINV(Assumptions!C9)*BK103)+BK81)*BK$61,15) -> 298.590136 | BL57: =IF(((NORMSINV(Assumptions!C9)*BL103)+BL81)*BL$61>=15,((NORMSINV(Assumptions!C9)*BL103)+BL81)*BL$61,15) -> 318.5762195 | BM57: =IF(((NORMSINV(Assumptions!C9)*BM103)+BM81)*BM$61>=15,((NORMSINV(Assumptions!C9)*BM103)+BM81)*BM$61,15) -> 290.625946 | BN57: =IF(((NORMSINV(Assumptions!C9)*BN103)+BN81)*BN$61>=15,((NORMSINV(Assumptions!C9)*BN103)+BN81)*BN$61,15) -> 395.9891371 | BO57: =IF(((NORMSINV(Assumptions!C9)*BO103)+BO81)*BO$61>=15,((NORMSINV(Assumptions!C9)*BO103)+BO81)*BO$61,15) -> 421.6952876 | BP57: =IF(((NORMSINV(Assumptions!C9)*BP103)+BP81)*BP$61>=15,((NORMSINV(Assumptions!C9)*BP103)+BP81)*BP$61,15) -> 335.7820075 | BQ57: =IF(((NORMSINV(Assumptions!C9)*BQ103)+BQ81)*BQ$61>=15,((NORMSINV(Assumptions!C9)*BQ103)+BQ81)*BQ$61,15) -> 196.9137926 | BR57: =IF(((NORMSINV(Assumptions!C9)*BR103)+BR81)*BR$61>=15,((NORMSINV(Assumptions!C9)*BR103)+BR81)*BR$61,15) -> 104.9139763 | BS57: =IF(((NORMSINV(Assumptions!C9)*BS103)+BS81)*BS$61>=15,((NORMSINV(Assumptions!C9)*BS103)+BS81)*BS$61,15) -> 148.2738479 | BT57: =IF(((NORMSINV(Assumptions!C9)*BT103)+BT81)*BT$61>=15,((NORMSINV(Assumptions!C9)*BT103)+BT81)*BT$61,15) -> 41.71538844 | BU57: =IF(((NORMSINV(Assumptions!C9)*BU103)+BU81)*BU$61>=15,((NORMSINV(Assumptions!C9)*BU103)+BU81)*BU$61,15) -> 28.64737725 | BV57: =IF(((NORMSINV(Assumptions!C9)*BV103)+BV81)*BV$61>=15,((NORMSINV(Assumptions!C9)*BV103)+BV81)*BV$61,15) -> 100.5232862
A58: Man | B58: Non-ethnic | C58: B) Lower secondary education | G58: =IF(((NORMSINV(Assumptions!C9)*G104)+G82)*G$61>=15,((NORMSINV(Assumptions!C9)*G104)+G82)*G$61,15) -> 2480.685379 | H58: =IF(((NORMSINV(Assumptions!C9)*H104)+H82)*H$61>=15,((NORMSINV(Assumptions!C9)*H104)+H82)*H$61,15) -> 3056.981513 | I58: =IF(((NORMSINV(Assumptions!C9)*I104)+I82)*I$61>=15,((NORMSINV(Assumptions!C9)*I104)+I82)*I$61,15) -> 2835.675438 | J58: =IF(((NORMSINV(Assumptions!C9)*J104)+J82)*J$61>=15,((NORMSINV(Assumptions!C9)*J104)+J82)*J$61,15) -> 1370.623062 | K58: =IF(((NORMSINV(Assumptions!C9)*K104)+K82)*K$61>=15,((NORMSINV(Assumptions!C9)*K104)+K82)*K$61,15) -> 725.9159794 | L58: =IF(((NORMSINV(Assumptions!C9)*L104)+L82)*L$61>=15,((NORMSINV(Assumptions!C9)*L104)+L82)*L$61,15) -> 800.925403 | M58: =IF(((NORMSINV(Assumptions!C9)*M104)+M82)*M$61>=15,((NORMSINV(Assumptions!C9)*M104)+M82)*M$61,15) -> 783.4918808 | N58: =IF(((NORMSINV(Assumptions!C9)*N104)+N82)*N$61>=15,((NORMSINV(Assumptions!C9)*N104)+N82)*N$61,15) -> 873.9092303 | O58: =IF(((NORMSINV(Assumptions!C9)*O104)+O82)*O$61>=15,((NORMSINV(Assumptions!C9)*O104)+O82)*O$61,15) -> 1039.198193 | P58: =IF(((NORMSINV(Assumptions!C9)*P104)+P82)*P$61>=15,((NORMSINV(Assumptions!C9)*P104)+P82)*P$61,15) -> 961.7824764 | Q58: =IF(((NORMSINV(Assumptions!C9)*Q104)+Q82)*Q$61>=15,((NORMSINV(Assumptions!C9)*Q104)+Q82)*Q$61,15) -> 947.7217814 | R58: =IF(((NORMSINV(Assumptions!C9)*R104)+R82)*R$61>=15,((NORMSINV(Assumptions!C9)*R104)+R82)*R$61,15) -> 1125.799487 | S58: =IF(((NORMSINV(Assumptions!C9)*S104)+S82)*S$61>=15,((NORMSINV(Assumptions!C9)*S104)+S82)*S$61,15) -> 922.6708387 | T58: =IF(((NORMSINV(Assumptions!C9)*T104)+T82)*T$61>=15,((NORMSINV(Assumptions!C9)*T104)+T82)*T$61,15) -> 1129.89829 | U58: =IF(((NORMSINV(Assumptions!C9)*U104)+U82)*U$61>=15,((NORMSINV(Assumptions!C9)*U104)+U82)*U$61,15) -> 1037.713797 | V58: =IF(((NORMSINV(Assumptions!C9)*V104)+V82)*V$61>=15,((NORMSINV(Assumptions!C9)*V104)+V82)*V$61,15) -> 795.7065151 | W58: =IF(((NORMSINV(Assumptions!C9)*W104)+W82)*W$61>=15,((NORMSINV(Assumptions!C9)*W104)+W82)*W$61,15) -> 716.8147535 | X58: =IF(((NORMSINV(Assumptions!C9)*X104)+X82)*X$61>=15,((NORMSINV(Assumptions!C9)*X104)+X82)*X$61,15) -> 426.8004988 | Y58: =IF(((NORMSINV(Assumptions!C9)*Y104)+Y82)*Y$61>=15,((NORMSINV(Assumptions!C9)*Y104)+Y82)*Y$61,15) -> 452.0756672 | Z58: =IF(((NORMSINV(Assumptions!C9)*Z104)+Z82)*Z$61>=15,((NORMSINV(Assumptions!C9)*Z104)+Z82)*Z$61,15) -> 327.8995638 | AA58: =IF(((NORMSINV(Assumptions!C9)*AA104)+AA82)*AA$61>=15,((NORMSINV(Assumptions!C9)*AA104)+AA82)*AA$61,15) -> 251.309517 | AB58: =IF(((NORMSINV(Assumptions!C9)*AB104)+AB82)*AB$61>=15,((NORMSINV(Assumptions!C9)*AB104)+AB82)*AB$61,15) -> 317.1373657 | AC58: =IF(((NORMSINV(Assumptions!C9)*AC104)+AC82)*AC$61>=15,((NORMSINV(Assumptions!C9)*AC104)+AC82)*AC$61,15) -> 234.4012644 | AD58: =IF(((NORMSINV(Assumptions!C9)*AD104)+AD82)*AD$61>=15,((NORMSINV(Assumptions!C9)*AD104)+AD82)*AD$61,15) -> 275.4458478 | AE58: =IF(((NORMSINV(Assumptions!C9)*AE104)+AE82)*AE$61>=15,((NORMSINV(Assumptions!C9)*AE104)+AE82)*AE$61,15) -> 496.7692055 | AF58: =IF(((NORMSINV(Assumptions!C9)*AF104)+AF82)*AF$61>=15,((NORMSINV(Assumptions!C9)*AF104)+AF82)*AF$61,15) -> 327.6216412 | AG58: =IF(((NORMSINV(Assumptions!C9)*AG104)+AG82)*AG$61>=15,((NORMSINV(Assumptions!C9)*AG104)+AG82)*AG$61,15) -> 179.2937854 | AH58: =IF(((NORMSINV(Assumptions!C9)*AH104)+AH82)*AH$61>=15,((NORMSINV(Assumptions!C9)*AH104)+AH82)*AH$61,15) -> 456.7936952 | AI58: =IF(((NORMSINV(Assumptions!C9)*AI104)+AI82)*AI$61>=15,((NORMSINV(Assumptions!C9)*AI104)+AI82)*AI$61,15) -> 555.6755543 | AJ58: =IF(((NORMSINV(Assumptions!C9)*AJ104)+AJ82)*AJ$61>=15,((NORMSINV(Assumptions!C9)*AJ104)+AJ82)*AJ$61,15) -> 331.1584412 | AK58: =IF(((NORMSINV(Assumptions!C9)*AK104)+AK82)*AK$61>=15,((NORMSINV(Assumptions!C9)*AK104)+AK82)*AK$61,15) -> 378.6273633 | AL58: =IF(((NORMSINV(Assumptions!C9)*AL104)+AL82)*AL$61>=15,((NORMSINV(Assumptions!C9)*AL104)+AL82)*AL$61,15) -> 466.0597344 | AM58: =IF(((NORMSINV(Assumptions!C9)*AM104)+AM82)*AM$61>=15,((NORMSINV(Assumptions!C9)*AM104)+AM82)*AM$61,15) -> 451.8691943 | AN58: =IF(((NORMSINV(Assumptions!C9)*AN104)+AN82)*AN$61>=15,((NORMSINV(Assumptions!C9)*AN104)+AN82)*AN$61,15) -> 526.3745276 | AO58: =IF(((NORMSINV(Assumptions!C9)*AO104)+AO82)*AO$61>=15,((NORMSINV(Assumptions!C9)*AO104)+AO82)*AO$61,15) -> 294.5488542 | AP58: =IF(((NORMSINV(Assumptions!C9)*AP104)+AP82)*AP$61>=15,((NORMSINV(Assumptions!C9)*AP104)+AP82)*AP$61,15) -> 656.4127022 | AQ58: =IF(((NORMSINV(Assumptions!C9)*AQ104)+AQ82)*AQ$61>=15,((NORMSINV(Assumptions!C9)*AQ104)+AQ82)*AQ$61,15) -> 665.5519223 | AR58: =IF(((NORMSINV(Assumptions!C9)*AR104)+AR82)*AR$61>=15,((NORMSINV(Assumptions!C9)*AR104)+AR82)*AR$61,15) -> 860.4502729 | AS58: =IF(((NORMSINV(Assumptions!C9)*AS104)+AS82)*AS$61>=15,((NORMSINV(Assumptions!C9)*AS104)+AS82)*AS$61,15) -> 946.1645647 | AT58: =IF(((NORMSINV(Assumptions!C9)*AT104)+AT82)*AT$61>=15,((NORMSINV(Assumptions!C9)*AT104)+AT82)*AT$61,15) -> 989.5124858 | AU58: =IF(((NORMSINV(Assumptions!C9)*AU104)+AU82)*AU$61>=15,((NORMSINV(Assumptions!C9)*AU104)+AU82)*AU$61,15) -> 783.8325683 | AV58: =IF(((NORMSINV(Assumptions!C9)*AV104)+AV82)*AV$61>=15,((NORMSINV(Assumptions!C9)*AV104)+AV82)*AV$61,15) -> 500.2677181 | AW58: =IF(((NORMSINV(Assumptions!C9)*AW104)+AW82)*AW$61>=15,((NORMSINV(Assumptions!C9)*AW104)+AW82)*AW$61,15) -> 445.5608055 | AX58: =IF(((NORMSINV(Assumptions!C9)*AX104)+AX82)*AX$61>=15,((NORMSINV(Assumptions!C9)*AX104)+AX82)*AX$61,15) -> 454.6403943 | AY58: =IF(((NORMSINV(Assumptions!C9)*AY104)+AY82)*AY$61>=15,((NORMSINV(Assumptions!C9)*AY104)+AY82)*AY$61,15) -> 545.1026493 | AZ58: =IF(((NORMSINV(Assumptions!C9)*AZ104)+AZ82)*AZ$61>=15,((NORMSINV(Assumptions!C9)*AZ104)+AZ82)*AZ$61,15) -> 611.15626 | BA58: =IF(((NORMSINV(Assumptions!C9)*BA104)+BA82)*BA$61>=15,((NORMSINV(Assumptions!C9)*BA104)+BA82)*BA$61,15) -> 817.7842312 | BB58: =IF(((NORMSINV(Assumptions!C9)*BB104)+BB82)*BB$61>=15,((NORMSINV(Assumptions!C9)*BB104)+BB82)*BB$61,15) -> 667.8453948 | BC58: =IF(((NORMSINV(Assumptions!C9)*BC104)+BC82)*BC$61>=15,((NORMSINV(Assumptions!C9)*BC104)+BC82)*BC$61,15) -> 728.239052 | BD58: =IF(((NORMSINV(Assumptions!C9)*BD104)+BD82)*BD$61>=15,((NORMSINV(Assumptions!C9)*BD104)+BD82)*BD$61,15) -> 688.8861339 | BE58: =IF(((NORMSINV(Assumptions!C9)*BE104)+BE82)*BE$61>=15,((NORMSINV(Assumptions!C9)*BE104)+BE82)*BE$61,15) -> 540.6159039 | BF58: =IF(((NORMSINV(Assumptions!C9)*BF104)+BF82)*BF$61>=15,((NORMSINV(Assumptions!C9)*BF104)+BF82)*BF$61,15) -> 699.3651393 | BG58: =IF(((NORMSINV(Assumptions!C9)*BG104)+BG82)*BG$61>=15,((NORMSINV(Assumptions!C9)*BG104)+BG82)*BG$61,15) -> 645.6960499 | BH58: =IF(((NORMSINV(Assumptions!C9)*BH104)+BH82)*BH$61>=15,((NORMSINV(Assumptions!C9)*BH104)+BH82)*BH$61,15) -> 556.0727274 | BI58: =IF(((NORMSINV(Assumptions!C9)*BI104)+BI82)*BI$61>=15,((NORMSINV(Assumptions!C9)*BI104)+BI82)*BI$61,15) -> 621.2676365 | BJ58: =IF(((NORMSINV(Assumptions!C9)*BJ104)+BJ82)*BJ$61>=15,((NORMSINV(Assumptions!C9)*BJ104)+BJ82)*BJ$61,15) -> 481.133137 | BK58: =IF(((NORMSINV(Assumptions!C9)*BK104)+BK82)*BK$61>=15,((NORMSINV(Assumptions!C9)*BK104)+BK82)*BK$61,15) -> 453.7044146 | BL58: =IF(((NORMSINV(Assumptions!C9)*BL104)+BL82)*BL$61>=15,((NORMSINV(Assumptions!C9)*BL104)+BL82)*BL$61,15) -> 429.4444963 | BM58: =IF(((NORMSINV(Assumptions!C9)*BM104)+BM82)*BM$61>=15,((NORMSINV(Assumptions!C9)*BM104)+BM82)*BM$61,15) -> 424.1833572 | BN58: =IF(((NORMSINV(Assumptions!C9)*BN104)+BN82)*BN$61>=15,((NORMSINV(Assumptions!C9)*BN104)+BN82)*BN$61,15) -> 352.0034098 | BO58: =IF(((NORMSINV(Assumptions!C9)*BO104)+BO82)*BO$61>=15,((NORMSINV(Assumptions!C9)*BO104)+BO82)*BO$61,15) -> 392.2692719 | BP58: =IF(((NORMSINV(Assumptions!C9)*BP104)+BP82)*BP$61>=15,((NORMSINV(Assumptions!C9)*BP104)+BP82)*BP$61,15) -> 239.5787632 | BQ58: =IF(((NORMSINV(Assumptions!C9)*BQ104)+BQ82)*BQ$61>=15,((NORMSINV(Assumptions!C9)*BQ104)+BQ82)*BQ$61,15) -> 251.9042833 | BR58: =IF(((NORMSINV(Assumptions!C9)*BR104)+BR82)*BR$61>=15,((NORMSINV(Assumptions!C9)*BR104)+BR82)*BR$61,15) -> 300.8085073 | BS58: =IF(((NORMSINV(Assumptions!C9)*BS104)+BS82)*BS$61>=15,((NORMSINV(Assumptions!C9)*BS104)+BS82)*BS$61,15) -> 253.6363964 | BT58: =IF(((NORMSINV(Assumptions!C9)*BT104)+BT82)*BT$61>=15,((NORMSINV(Assumptions!C9)*BT104)+BT82)*BT$61,15) -> 149.8206902 | BU58: =IF(((NORMSINV(Assumptions!C9)*BU104)+BU82)*BU$61>=15,((NORMSINV(Assumptions!C9)*BU104)+BU82)*BU$61,15) -> 107.3968942 | BV58: =IF(((NORMSINV(Assumptions!C9)*BV104)+BV82)*BV$61>=15,((NORMSINV(Assumptions!C9)*BV104)+BV82)*BV$61,15) -> 93.87303127
A59: Man | B59: Non-ethnic | C59: C) Upper secondary education | I59: =IF(((NORMSINV(Assumptions!C9)*I105)+I83)*I$61>=15,((NORMSINV(Assumptions!C9)*I105)+I83)*I$61,15) -> 633.8668588 | J59: =IF(((NORMSINV(Assumptions!C9)*J105)+J83)*J$61>=15,((NORMSINV(Assumptions!C9)*J105)+J83)*J$61,15) -> 2142.581799 | K59: =IF(((NORMSINV(Assumptions!C9)*K105)+K83)*K$61>=15,((NORMSINV(Assumptions!C9)*K105)+K83)*K$61,15) -> 2507.195484 | L59: =IF(((NORMSINV(Assumptions!C9)*L105)+L83)*L$61>=15,((NORMSINV(Assumptions!C9)*L105)+L83)*L$61,15) -> 2279.470116 | M59: =IF(((NORMSINV(Assumptions!C9)*M105)+M83)*M$61>=15,((NORMSINV(Assumptions!C9)*M105)+M83)*M$61,15) -> 2320.273553 | N59: =IF(((NORMSINV(Assumptions!C9)*N105)+N83)*N$61>=15,((NORMSINV(Assumptions!C9)*N105)+N83)*N$61,15) -> 2127.883307 | O59: =IF(((NORMSINV(Assumptions!C9)*O105)+O83)*O$61>=15,((NORMSINV(Assumptions!C9)*O105)+O83)*O$61,15) -> 1790.048192 | P59: =IF(((NORMSINV(Assumptions!C9)*P105)+P83)*P$61>=15,((NORMSINV(Assumptions!C9)*P105)+P83)*P$61,15) -> 1651.306494 | Q59: =IF(((NORMSINV(Assumptions!C9)*Q105)+Q83)*Q$61>=15,((NORMSINV(Assumptions!C9)*Q105)+Q83)*Q$61,15) -> 1724.141728 | R59: =IF(((NORMSINV(Assumptions!C9)*R105)+R83)*R$61>=15,((NORMSINV(Assumptions!C9)*R105)+R83)*R$61,15) -> 1695.614581 | S59: =IF(((NORMSINV(Assumptions!C9)*S105)+S83)*S$61>=15,((NORMSINV(Assumptions!C9)*S105)+S83)*S$61,15) -> 1740.16162 | T59: =IF(((NORMSINV(Assumptions!C9)*T105)+T83)*T$61>=15,((NORMSINV(Assumptions!C9)*T105)+T83)*T$61,15) -> 1639.103642 | U59: =IF(((NORMSINV(Assumptions!C9)*U105)+U83)*U$61>=15,((NORMSINV(Assumptions!C9)*U105)+U83)*U$61,15) -> 1581.623269 | V59: =IF(((NORMSINV(Assumptions!C9)*V105)+V83)*V$61>=15,((NORMSINV(Assumptions!C9)*V105)+V83)*V$61,15) -> 1627.010798 | W59: =IF(((NORMSINV(Assumptions!C9)*W105)+W83)*W$61>=15,((NORMSINV(Assumptions!C9)*W105)+W83)*W$61,15) -> 1676.229537 | X59: =IF(((NORMSINV(Assumptions!C9)*X105)+X83)*X$61>=15,((NORMSINV(Assumptions!C9)*X105)+X83)*X$61,15) -> 1658.903322 | Y59: =IF(((NORMSINV(Assumptions!C9)*Y105)+Y83)*Y$61>=15,((NORMSINV(Assumptions!C9)*Y105)+Y83)*Y$61,15) -> 1489.725904 | Z59: =IF(((NORMSINV(Assumptions!C9)*Z105)+Z83)*Z$61>=15,((NORMSINV(Assumptions!C9)*Z105)+Z83)*Z$61,15) -> 1802.518426 | AA59: =IF(((NORMSINV(Assumptions!C9)*AA105)+AA83)*AA$61>=15,((NORMSINV(Assumptions!C9)*AA105)+AA83)*AA$61,15) -> 1864.804871 | AB59: =IF(((NORMSINV(Assumptions!C9)*AB105)+AB83)*AB$61>=15,((NORMSINV(Assumptions!C9)*AB105)+AB83)*AB$61,15) -> 1791.15544 | AC59: =IF(((NORMSINV(Assumptions!C9)*AC105)+AC83)*AC$61>=15,((NORMSINV(Assumptions!C9)*AC105)+AC83)*AC$61,15) -> 2011.700434 | AD59: =IF(((NORMSINV(Assumptions!C9)*AD105)+AD83)*AD$61>=15,((NORMSINV(Assumptions!C9)*AD105)+AD83)*AD$61,15) -> 2002.299744 | AE59: =IF(((NORMSINV(Assumptions!C9)*AE105)+AE83)*AE$61>=15,((NORMSINV(Assumptions!C9)*AE105)+AE83)*AE$61,15) -> 1998.156367 | AF59: =IF(((NORMSINV(Assumptions!C9)*AF105)+AF83)*AF$61>=15,((NORMSINV(Assumptions!C9)*AF105)+AF83)*AF$61,15) -> 2213.126942 | AG59: =IF(((NORMSINV(Assumptions!C9)*AG105)+AG83)*AG$61>=15,((NORMSINV(Assumptions!C9)*AG105)+AG83)*AG$61,15) -> 2345.977134 | AH59: =IF(((NORMSINV(Assumptions!C9)*AH105)+AH83)*AH$61>=15,((NORMSINV(Assumptions!C9)*AH105)+AH83)*AH$61,15) -> 2184.683668 | AI59: =IF(((NORMSINV(Assumptions!C9)*AI105)+AI83)*AI$61>=15,((NORMSINV(Assumptions!C9)*AI105)+AI83)*AI$61,15) -> 2186.671489 | AJ59: =IF(((NORMSINV(Assumptions!C9)*AJ105)+AJ83)*AJ$61>=15,((NORMSINV(Assumptions!C9)*AJ105)+AJ83)*AJ$61,15) -> 2241.856413 | AK59: =IF(((NORMSINV(Assumptions!C9)*AK105)+AK83)*AK$61>=15,((NORMSINV(Assumptions!C9)*AK105)+AK83)*AK$61,15) -> 2162.599238 | AL59: =IF(((NORMSINV(Assumptions!C9)*AL105)+AL83)*AL$61>=15,((NORMSINV(Assumptions!C9)*AL105)+AL83)*AL$61,15) -> 2010.692705 | AM59: =IF(((NORMSINV(Assumptions!C9)*AM105)+AM83)*AM$61>=15,((NORMSINV(Assumptions!C9)*AM105)+AM83)*AM$61,15) -> 2055.252266 | AN59: =IF(((NORMSINV(Assumptions!C9)*AN105)+AN83)*AN$61>=15,((NORMSINV(Assumptions!C9)*AN105)+AN83)*AN$61,15) -> 1968.949487 | AO59: =IF(((NORMSINV(Assumptions!C9)*AO105)+AO83)*AO$61>=15,((NORMSINV(Assumptions!C9)*AO105)+AO83)*AO$61,15) -> 2002.024229 | AP59: =IF(((NORMSINV(Assumptions!C9)*AP105)+AP83)*AP$61>=15,((NORMSINV(Assumptions!C9)*AP105)+AP83)*AP$61,15) -> 1575.448427 | AQ59: =IF(((NORMSINV(Assumptions!C9)*AQ105)+AQ83)*AQ$61>=15,((NORMSINV(Assumptions!C9)*AQ105)+AQ83)*AQ$61,15) -> 1613.375067 | AR59: =IF(((NORMSINV(Assumptions!C9)*AR105)+AR83)*AR$61>=15,((NORMSINV(Assumptions!C9)*AR105)+AR83)*AR$61,15) -> 1586.405184 | AS59: =IF(((NORMSINV(Assumptions!C9)*AS105)+AS83)*AS$61>=15,((NORMSINV(Assumptions!C9)*AS105)+AS83)*AS$61,15) -> 1460.885272 | AT59: =IF(((NORMSINV(Assumptions!C9)*AT105)+AT83)*AT$61>=15,((NORMSINV(Assumptions!C9)*AT105)+AT83)*AT$61,15) -> 1353.412434 | AU59: =IF(((NORMSINV(Assumptions!C9)*AU105)+AU83)*AU$61>=15,((NORMSINV(Assumptions!C9)*AU105)+AU83)*AU$61,15) -> 1275.16239 | AV59: =IF(((NORMSINV(Assumptions!C9)*AV105)+AV83)*AV$61>=15,((NORMSINV(Assumptions!C9)*AV105)+AV83)*AV$61,15) -> 1007.573051 | AW59: =IF(((NORMSINV(Assumptions!C9)*AW105)+AW83)*AW$61>=15,((NORMSINV(Assumptions!C9)*AW105)+AW83)*AW$61,15) -> 880.5446982 | AX59: =IF(((NORMSINV(Assumptions!C9)*AX105)+AX83)*AX$61>=15,((NORMSINV(Assumptions!C9)*AX105)+AX83)*AX$61,15) -> 655.1127181 | AY59: =IF(((NORMSINV(Assumptions!C9)*AY105)+AY83)*AY$61>=15,((NORMSINV(Assumptions!C9)*AY105)+AY83)*AY$61,15) -> 559.2523616 | AZ59: =IF(((NORMSINV(Assumptions!C9)*AZ105)+AZ83)*AZ$61>=15,((NORMSINV(Assumptions!C9)*AZ105)+AZ83)*AZ$61,15) -> 558.9631865 | BA59: =IF(((NORMSINV(Assumptions!C9)*BA105)+BA83)*BA$61>=15,((NORMSINV(Assumptions!C9)*BA105)+BA83)*BA$61,15) -> 488.7405712 | BB59: =IF(((NORMSINV(Assumptions!C9)*BB105)+BB83)*BB$61>=15,((NORMSINV(Assumptions!C9)*BB105)+BB83)*BB$61,15) -> 819.9081719 | BC59: =IF(((NORMSINV(Assumptions!C9)*BC105)+BC83)*BC$61>=15,((NORMSINV(Assumptions!C9)*BC105)+BC83)*BC$61,15) -> 908.8946046 | BD59: =IF(((NORMSINV(Assumptions!C9)*BD105)+BD83)*BD$61>=15,((NORMSINV(Assumptions!C9)*BD105)+BD83)*BD$61,15) -> 754.8328707 | BE59: =IF(((NORMSINV(Assumptions!C9)*BE105)+BE83)*BE$61>=15,((NORMSINV(Assumptions!C9)*BE105)+BE83)*BE$61,15) -> 708.7234517 | BF59: =IF(((NORMSINV(Assumptions!C9)*BF105)+BF83)*BF$61>=15,((NORMSINV(Assumptions!C9)*BF105)+BF83)*BF$61,15) -> 586.8952578 | BG59: =IF(((NORMSINV(Assumptions!C9)*BG105)+BG83)*BG$61>=15,((NORMSINV(Assumptions!C9)*BG105)+BG83)*BG$61,15) -> 642.7343469 | BH59: =IF(((NORMSINV(Assumptions!C9)*BH105)+BH83)*BH$61>=15,((NORMSINV(Assumptions!C9)*BH105)+BH83)*BH$61,15) -> 601.9876983 | BI59: =IF(((NORMSINV(Assumptions!C9)*BI105)+BI83)*BI$61>=15,((NORMSINV(Assumptions!C9)*BI105)+BI83)*BI$61,15) -> 310.0068119 | BJ59: =IF(((NORMSINV(Assumptions!C9)*BJ105)+BJ83)*BJ$61>=15,((NORMSINV(Assumptions!C9)*BJ105)+BJ83)*BJ$61,15) -> 278.211049 | BK59: =IF(((NORMSINV(Assumptions!C9)*BK105)+BK83)*BK$61>=15,((NORMSINV(Assumptions!C9)*BK105)+BK83)*BK$61,15) -> 277.349745 | BL59: =IF(((NORMSINV(Assumptions!C9)*BL105)+BL83)*BL$61>=15,((NORMSINV(Assumptions!C9)*BL105)+BL83)*BL$61,15) -> 237.591188 | BM59: =IF(((NORMSINV(Assumptions!C9)*BM105)+BM83)*BM$61>=15,((NORMSINV(Assumptions!C9)*BM105)+BM83)*BM$61,15) -> 289.0778105 | BN59: =IF(((NORMSINV(Assumptions!C9)*BN105)+BN83)*BN$61>=15,((NORMSINV(Assumptions!C9)*BN105)+BN83)*BN$61,15) -> 206.485634 | BO59: =IF(((NORMSINV(Assumptions!C9)*BO105)+BO83)*BO$61>=15,((NORMSINV(Assumptions!C9)*BO105)+BO83)*BO$61,15) -> 182.2233298 | BP59: =IF(((NORMSINV(Assumptions!C9)*BP105)+BP83)*BP$61>=15,((NORMSINV(Assumptions!C9)*BP105)+BP83)*BP$61,15) -> 223.9161691 | BQ59: =IF(((NORMSINV(Assumptions!C9)*BQ105)+BQ83)*BQ$61>=15,((NORMSINV(Assumptions!C9)*BQ105)+BQ83)*BQ$61,15) -> 205.0250256 | BR59: =IF(((NORMSINV(Assumptions!C9)*BR105)+BR83)*BR$61>=15,((NORMSINV(Assumptions!C9)*BR105)+BR83)*BR$61,15) -> 167.4531581 | BS59: =IF(((NORMSINV(Assumptions!C9)*BS105)+BS83)*BS$61>=15,((NORMSINV(Assumptions!C9)*BS105)+BS83)*BS$61,15) -> 81.15260098 | BT59: =IF(((NORMSINV(Assumptions!C9)*BT105)+BT83)*BT$61>=15,((NORMSINV(Assumptions!C9)*BT105)+BT83)*BT$61,15) -> 129.5716034 | BU59: =IF(((NORMSINV(Assumptions!C9)*BU105)+BU83)*BU$61>=15,((NORMSINV(Assumptions!C9)*BU105)+BU83)*BU$61,15) -> 135.6518652 | BV59: =IF(((NORMSINV(Assumptions!C9)*BV105)+BV83)*BV$61>=15,((NORMSINV(Assumptions!C9)*BV105)+BV83)*BV$61,15) -> 93.92151408
A60: Man | B60: Non-ethnic | C60: D) Higher education | J60: =IF(((NORMSINV(Assumptions!C9)*J106)+J84)*J$61>=15,((NORMSINV(Assumptions!C9)*J106)+J84)*J$61,15) -> 36.79908821 | K60: =IF(((NORMSINV(Assumptions!C9)*K106)+K84)*K$61>=15,((NORMSINV(Assumptions!C9)*K106)+K84)*K$61,15) -> 219.8443678 | L60: =IF(((NORMSINV(Assumptions!C9)*L106)+L84)*L$61>=15,((NORMSINV(Assumptions!C9)*L106)+L84)*L$61,15) -> 507.1094834 | M60: =IF(((NORMSINV(Assumptions!C9)*M106)+M84)*M$61>=15,((NORMSINV(Assumptions!C9)*M106)+M84)*M$61,15) -> 767.7465865 | N60: =IF(((NORMSINV(Assumptions!C9)*N106)+N84)*N$61>=15,((NORMSINV(Assumptions!C9)*N106)+N84)*N$61,15) -> 1097.304687 | O60: =IF(((NORMSINV(Assumptions!C9)*O106)+O84)*O$61>=15,((NORMSINV(Assumptions!C9)*O106)+O84)*O$61,15) -> 1239.895032 | P60: =IF(((NORMSINV(Assumptions!C9)*P106)+P84)*P$61>=15,((NORMSINV(Assumptions!C9)*P106)+P84)*P$61,15) -> 1225.619063 | Q60: =IF(((NORMSINV(Assumptions!C9)*Q106)+Q84)*Q$61>=15,((NORMSINV(Assumptions!C9)*Q106)+Q84)*Q$61,15) -> 1486.037347 | R60: =IF(((NORMSINV(Assumptions!C9)*R106)+R84)*R$61>=15,((NORMSINV(Assumptions!C9)*R106)+R84)*R$61,15) -> 1486.707214 | S60: =IF(((NORMSINV(Assumptions!C9)*S106)+S84)*S$61>=15,((NORMSINV(Assumptions!C9)*S106)+S84)*S$61,15) -> 1446.939588 | T60: =IF(((NORMSINV(Assumptions!C9)*T106)+T84)*T$61>=15,((NORMSINV(Assumptions!C9)*T106)+T84)*T$61,15) -> 1205.818397 | U60: =IF(((NORMSINV(Assumptions!C9)*U106)+U84)*U$61>=15,((NORMSINV(Assumptions!C9)*U106)+U84)*U$61,15) -> 1167.411258 | V60: =IF(((NORMSINV(Assumptions!C9)*V106)+V84)*V$61>=15,((NORMSINV(Assumptions!C9)*V106)+V84)*V$61,15) -> 1097.956989 | W60: =IF(((NORMSINV(Assumptions!C9)*W106)+W84)*W$61>=15,((NORMSINV(Assumptions!C9)*W106)+W84)*W$61,15) -> 1373.276966 | X60: =IF(((NORMSINV(Assumptions!C9)*X106)+X84)*X$61>=15,((NORMSINV(Assumptions!C9)*X106)+X84)*X$61,15) -> 1191.274815 | Y60: =IF(((NORMSINV(Assumptions!C9)*Y106)+Y84)*Y$61>=15,((NORMSINV(Assumptions!C9)*Y106)+Y84)*Y$61,15) -> 1060.349334 | Z60: =IF(((NORMSINV(Assumptions!C9)*Z106)+Z84)*Z$61>=15,((NORMSINV(Assumptions!C9)*Z106)+Z84)*Z$61,15) -> 1053.164575 | AA60: =IF(((NORMSINV(Assumptions!C9)*AA106)+AA84)*AA$61>=15,((NORMSINV(Assumptions!C9)*AA106)+AA84)*AA$61,15) -> 964.6911643 | AB60: =IF(((NORMSINV(Assumptions!C9)*AB106)+AB84)*AB$61>=15,((NORMSINV(Assumptions!C9)*AB106)+AB84)*AB$61,15) -> 1038.523603 | AC60: =IF(((NORMSINV(Assumptions!C9)*AC106)+AC84)*AC$61>=15,((NORMSINV(Assumptions!C9)*AC106)+AC84)*AC$61,15) -> 1276.797073 | AD60: =IF(((NORMSINV(Assumptions!C9)*AD106)+AD84)*AD$61>=15,((NORMSINV(Assumptions!C9)*AD106)+AD84)*AD$61,15) -> 1326.86163 | AE60: =IF(((NORMSINV(Assumptions!C9)*AE106)+AE84)*AE$61>=15,((NORMSINV(Assumptions!C9)*AE106)+AE84)*AE$61,15) -> 1699.902922 | AF60: =IF(((NORMSINV(Assumptions!C9)*AF106)+AF84)*AF$61>=15,((NORMSINV(Assumptions!C9)*AF106)+AF84)*AF$61,15) -> 1502.722605 | AG60: =IF(((NORMSINV(Assumptions!C9)*AG106)+AG84)*AG$61>=15,((NORMSINV(Assumptions!C9)*AG106)+AG84)*AG$61,15) -> 1667.59167 | AH60: =IF(((NORMSINV(Assumptions!C9)*AH106)+AH84)*AH$61>=15,((NORMSINV(Assumptions!C9)*AH106)+AH84)*AH$61,15) -> 1605.338154 | AI60: =IF(((NORMSINV(Assumptions!C9)*AI106)+AI84)*AI$61>=15,((NORMSINV(Assumptions!C9)*AI106)+AI84)*AI$61,15) -> 1935.700829 | AJ60: =IF(((NORMSINV(Assumptions!C9)*AJ106)+AJ84)*AJ$61>=15,((NORMSINV(Assumptions!C9)*AJ106)+AJ84)*AJ$61,15) -> 1925.956804 | AK60: =IF(((NORMSINV(Assumptions!C9)*AK106)+AK84)*AK$61>=15,((NORMSINV(Assumptions!C9)*AK106)+AK84)*AK$61,15) -> 1858.400085 | AL60: =IF(((NORMSINV(Assumptions!C9)*AL106)+AL84)*AL$61>=15,((NORMSINV(Assumptions!C9)*AL106)+AL84)*AL$61,15) -> 1505.895666 | AM60: =IF(((NORMSINV(Assumptions!C9)*AM106)+AM84)*AM$61>=15,((NORMSINV(Assumptions!C9)*AM106)+AM84)*AM$61,15) -> 1446.707671 | AN60: =IF(((NORMSINV(Assumptions!C9)*AN106)+AN84)*AN$61>=15,((NORMSINV(Assumptions!C9)*AN106)+AN84)*AN$61,15) -> 1593.855795 | AO60: =IF(((NORMSINV(Assumptions!C9)*AO106)+AO84)*AO$61>=15,((NORMSINV(Assumptions!C9)*AO106)+AO84)*AO$61,15) -> 1497.808837 | AP60: =IF(((NORMSINV(Assumptions!C9)*AP106)+AP84)*AP$61>=15,((NORMSINV(Assumptions!C9)*AP106)+AP84)*AP$61,15) -> 1630.663205 | AQ60: =IF(((NORMSINV(Assumptions!C9)*AQ106)+AQ84)*AQ$61>=15,((NORMSINV(Assumptions!C9)*AQ106)+AQ84)*AQ$61,15) -> 1613.547431 | AR60: =IF(((NORMSINV(Assumptions!C9)*AR106)+AR84)*AR$61>=15,((NORMSINV(Assumptions!C9)*AR106)+AR84)*AR$61,15) -> 1250.285063 | AS60: =IF(((NORMSINV(Assumptions!C9)*AS106)+AS84)*AS$61>=15,((NORMSINV(Assumptions!C9)*AS106)+AS84)*AS$61,15) -> 1281.681312 | AT60: =IF(((NORMSINV(Assumptions!C9)*AT106)+AT84)*AT$61>=15,((NORMSINV(Assumptions!C9)*AT106)+AT84)*AT$61,15) -> 1205.108222 | AU60: =IF(((NORMSINV(Assumptions!C9)*AU106)+AU84)*AU$61>=15,((NORMSINV(Assumptions!C9)*AU106)+AU84)*AU$61,15) -> 1264.359975 | AV60: =IF(((NORMSINV(Assumptions!C9)*AV106)+AV84)*AV$61>=15,((NORMSINV(Assumptions!C9)*AV106)+AV84)*AV$61,15) -> 1107.256297 | AW60: =IF(((NORMSINV(Assumptions!C9)*AW106)+AW84)*AW$61>=15,((NORMSINV(Assumptions!C9)*AW106)+AW84)*AW$61,15) -> 957.7995818 | AX60: =IF(((NORMSINV(Assumptions!C9)*AX106)+AX84)*AX$61>=15,((NORMSINV(Assumptions!C9)*AX106)+AX84)*AX$61,15) -> 795.9026665 | AY60: =IF(((NORMSINV(Assumptions!C9)*AY106)+AY84)*AY$61>=15,((NORMSINV(Assumptions!C9)*AY106)+AY84)*AY$61,15) -> 546.5020611 | AZ60: =IF(((NORMSINV(Assumptions!C9)*AZ106)+AZ84)*AZ$61>=15,((NORMSINV(Assumptions!C9)*AZ106)+AZ84)*AZ$61,15) -> 504.270915 | BA60: =IF(((NORMSINV(Assumptions!C9)*BA106)+BA84)*BA$61>=15,((NORMSINV(Assumptions!C9)*BA106)+BA84)*BA$61,15) -> 660.102953 | BB60: =IF(((NORMSINV(Assumptions!C9)*BB106)+BB84)*BB$61>=15,((NORMSINV(Assumptions!C9)*BB106)+BB84)*BB$61,15) -> 664.2100837 | BC60: =IF(((NORMSINV(Assumptions!C9)*BC106)+BC84)*BC$61>=15,((NORMSINV(Assumptions!C9)*BC106)+BC84)*BC$61,15) -> 807.5689286 | BD60: =IF(((NORMSINV(Assumptions!C9)*BD106)+BD84)*BD$61>=15,((NORMSINV(Assumptions!C9)*BD106)+BD84)*BD$61,15) -> 942.0888987 | BE60: =IF(((NORMSINV(Assumptions!C9)*BE106)+BE84)*BE$61>=15,((NORMSINV(Assumptions!C9)*BE106)+BE84)*BE$61,15) -> 812.2280898 | BF60: =IF(((NORMSINV(Assumptions!C9)*BF106)+BF84)*BF$61>=15,((NORMSINV(Assumptions!C9)*BF106)+BF84)*BF$61,15) -> 729.7255753 | BG60: =IF(((NORMSINV(Assumptions!C9)*BG106)+BG84)*BG$61>=15,((NORMSINV(Assumptions!C9)*BG106)+BG84)*BG$61,15) -> 589.943468 | BH60: =IF(((NORMSINV(Assumptions!C9)*BH106)+BH84)*BH$61>=15,((NORMSINV(Assumptions!C9)*BH106)+BH84)*BH$61,15) -> 404.0990063 | BI60: =IF(((NORMSINV(Assumptions!C9)*BI106)+BI84)*BI$61>=15,((NORMSINV(Assumptions!C9)*BI106)+BI84)*BI$61,15) -> 359.1973999 | BJ60: =IF(((NORMSINV(Assumptions!C9)*BJ106)+BJ84)*BJ$61>=15,((NORMSINV(Assumptions!C9)*BJ106)+BJ84)*BJ$61,15) -> 332.8145163 | BK60: =IF(((NORMSINV(Assumptions!C9)*BK106)+BK84)*BK$61>=15,((NORMSINV(Assumptions!C9)*BK106)+BK84)*BK$61,15) -> 250.9712056 | BL60: =IF(((NORMSINV(Assumptions!C9)*BL106)+BL84)*BL$61>=15,((NORMSINV(Assumptions!C9)*BL106)+BL84)*BL$61,15) -> 181.450929 | BM60: =IF(((NORMSINV(Assumptions!C9)*BM106)+BM84)*BM$61>=15,((NORMSINV(Assumptions!C9)*BM106)+BM84)*BM$61,15) -> 195.69056 | BN60: =IF(((NORMSINV(Assumptions!C9)*BN106)+BN84)*BN$61>=15,((NORMSINV(Assumptions!C9)*BN106)+BN84)*BN$61,15) -> 260.9596898 | BO60: =IF(((NORMSINV(Assumptions!C9)*BO106)+BO84)*BO$61>=15,((NORMSINV(Assumptions!C9)*BO106)+BO84)*BO$61,15) -> 187.3137102 | BP60: =IF(((NORMSINV(Assumptions!C9)*BP106)+BP84)*BP$61>=15,((NORMSINV(Assumptions!C9)*BP106)+BP84)*BP$61,15) -> 130.0156831 | BQ60: =IF(((NORMSINV(Assumptions!C9)*BQ106)+BQ84)*BQ$61>=15,((NORMSINV(Assumptions!C9)*BQ106)+BQ84)*BQ$61,15) -> 181.3956537 | BR60: =IF(((NORMSINV(Assumptions!C9)*BR106)+BR84)*BR$61>=15,((NORMSINV(Assumptions!C9)*BR106)+BR84)*BR$61,15) -> 43.10491248 | BS60: =IF(((NORMSINV(Assumptions!C9)*BS106)+BS84)*BS$61>=15,((NORMSINV(Assumptions!C9)*BS106)+BS84)*BS$61,15) -> 106.2261742 | BT60: =IF(((NORMSINV(Assumptions!C9)*BT106)+BT84)*BT$61>=15,((NORMSINV(Assumptions!C9)*BT106)+BT84)*BT$61,15) -> 52.57037381 | BU60: =IF(((NORMSINV(Assumptions!C9)*BU106)+BU84)*BU$61>=15,((NORMSINV(Assumptions!C9)*BU106)+BU84)*BU$61,15) -> 38.34583886 | BV60: =IF(((NORMSINV(Assumptions!C9)*BV106)+BV84)*BV$61>=15,((NORMSINV(Assumptions!C9)*BV106)+BV84)*BV$61,15) -> 56.45995914
C61: KOKKU | D61: 2181.8 | E61: 2539.4 | F61: 2841.6 | G61: 3120.2 | H61: 3269 | I61: 3396.6 | J61: 3409 | K61: 3353.8 | L61: 3316.4 | M61: 3268.8 | N61: 3166.6 | O61: 3076.2 | P61: 3051.4 | Q61: 2965.6 | R61: 2908 | S61: 2829.8 | T61: 2788 | U61: 2749.6 | V61: 2734.6 | W61: 2680.8 | X61: 2646.2 | Y61: 2557.2 | Z61: 2469.4 | AA61: 2407.4 | AB61: 2416 | AC61: 2490.8 | AD61: 2602.4 | AE61: 2779.4 | AF61: 2967.4 | AG61: 3114.2 | AH61: 3252 | AI61: 3358.2 | AJ61: 3392.4 | AK61: 3370.2 | AL61: 3388.4 | AM61: 3356.4 | AN61: 3298 | AO61: 3269.4 | AP61: 3222.2 | AQ61: 3120.4 | AR61: 3062.2 | AS61: 2969.4 | AT61: 2820.2 | AU61: 2618.6 | AV61: 2299.8 | AW61: 1933.4 | AX61: 1593.4 | AY61: 1362 | AZ61: 1369 | BA61: 1497.2 | BB61: 1692.4 | BC61: 1902.8 | BD61: 2059.4 | BE61: 1979.8 | BF61: 1866.8 | BG61: 1650.4 | BH61: 1446.4 | BI61: 1269.8 | BJ61: 1187.6 | BK61: 1142.6 | BL61: 1119 | BM61: 1091.2 | BN61: 1103.4 | BO61: 994.4 | BP61: 850.6 | BQ61: 712 | BR61: 584.2 | BS61: 439.4 | BT61: 332.8 | BU61: 268.2 | BV61: 213
A62: Woman | B62: Ethnic | C62: A) Basic education or lower | G62: =IF(((NORMSINV(Assumptions!C9)*G108)+G86)*G$66>=15,((NORMSINV(Assumptions!C9)*G108)+G86)*G$66,15) -> 2109.822373 | H62: =IF(((NORMSINV(Assumptions!C9)*H108)+H86)*H$66>=15,((NORMSINV(Assumptions!C9)*H108)+H86)*H$66,15) -> 662.2479634 | I62: =IF(((NORMSINV(Assumptions!C9)*I108)+I86)*I$66>=15,((NORMSINV(Assumptions!C9)*I108)+I86)*I$66,15) -> 317.2926016 | J62: =IF(((NORMSINV(Assumptions!C9)*J108)+J86)*J$66>=15,((NORMSINV(Assumptions!C9)*J108)+J86)*J$66,15) -> 271.2858937 | K62: =IF(((NORMSINV(Assumptions!C9)*K108)+K86)*K$66>=15,((NORMSINV(Assumptions!C9)*K108)+K86)*K$66,15) -> 221.1092428 | L62: =IF(((NORMSINV(Assumptions!C9)*L108)+L86)*L$66>=15,((NORMSINV(Assumptions!C9)*L108)+L86)*L$66,15) -> 140.0063401 | M62: =IF(((NORMSINV(Assumptions!C9)*M108)+M86)*M$66>=15,((NORMSINV(Assumptions!C9)*M108)+M86)*M$66,15) -> 154.5441579 | N62: =IF(((NORMSINV(Assumptions!C9)*N108)+N86)*N$66>=15,((NORMSINV(Assumptions!C9)*N108)+N86)*N$66,15) -> 34.25883487 | O62: =IF(((NORMSINV(Assumptions!C9)*O108)+O86)*O$66>=15,((NORMSINV(Assumptions!C9)*O108)+O86)*O$66,15) -> 154.4316589 | P62: =IF(((NORMSINV(Assumptions!C9)*P108)+P86)*P$66>=15,((NORMSINV(Assumptions!C9)*P108)+P86)*P$66,15) -> 102.2988315 | Q62: =IF(((NORMSINV(Assumptions!C9)*Q108)+Q86)*Q$66>=15,((NORMSINV(Assumptions!C9)*Q108)+Q86)*Q$66,15) -> 50.59801686 | R62: =IF(((NORMSINV(Assumptions!C9)*R108)+R86)*R$66>=15,((NORMSINV(Assumptions!C9)*R108)+R86)*R$66,15) -> 255.1105986 | S62: =IF(((NORMSINV(Assumptions!C9)*S108)+S86)*S$66>=15,((NORMSINV(Assumptions!C9)*S108)+S86)*S$66,15) -> 171.2025283 | T62: =IF(((NORMSINV(Assumptions!C9)*T108)+T86)*T$66>=15,((NORMSINV(Assumptions!C9)*T108)+T86)*T$66,15) -> 131.7543057 | U62: =IF(((NORMSINV(Assumptions!C9)*U108)+U86)*U$66>=15,((NORMSINV(Assumptions!C9)*U108)+U86)*U$66,15) -> 257.5264537 | V62: =IF(((NORMSINV(Assumptions!C9)*V108)+V86)*V$66>=15,((NORMSINV(Assumptions!C9)*V108)+V86)*V$66,15) -> 102.6331255 | W62: =IF(((NORMSINV(Assumptions!C9)*W108)+W86)*W$66>=15,((NORMSINV(Assumptions!C9)*W108)+W86)*W$66,15) -> 110.8581122 | X62: =IF(((NORMSINV(Assumptions!C9)*X108)+X86)*X$66>=15,((NORMSINV(Assumptions!C9)*X108)+X86)*X$66,15) -> 34.52639059 | Y62: =IF(((NORMSINV(Assumptions!C9)*Y108)+Y86)*Y$66>=15,((NORMSINV(Assumptions!C9)*Y108)+Y86)*Y$66,15) -> 58.58031234 | Z62: =IF(((NORMSINV(Assumptions!C9)*Z108)+Z86)*Z$66>=15,((NORMSINV(Assumptions!C9)*Z108)+Z86)*Z$66,15) -> 27.3801654 | AA62: =IF(((NORMSINV(Assumptions!C9)*AA108)+AA86)*AA$66>=15,((NORMSINV(Assumptions!C9)*AA108)+AA86)*AA$66,15) -> 87.50594758 | AB62: =IF(((NORMSINV(Assumptions!C9)*AB108)+AB86)*AB$66>=15,((NORMSINV(Assumptions!C9)*AB108)+AB86)*AB$66,15) -> 74.62011612 | AC62: =IF(((NORMSINV(Assumptions!C9)*AC108)+AC86)*AC$66>=15,((NORMSINV(Assumptions!C9)*AC108)+AC86)*AC$66,15) -> 36.24382621 | AD62: =IF(((NORMSINV(Assumptions!C9)*AD108)+AD86)*AD$66>=15,((NORMSINV(Assumptions!C9)*AD108)+AD86)*AD$66,15) -> 38.66889542 | AE62: =IF(((NORMSINV(Assumptions!C9)*AE108)+AE86)*AE$66>=15,((NORMSINV(Assumptions!C9)*AE108)+AE86)*AE$66,15) -> 15 | AF62: =IF(((NORMSINV(Assumptions!C9)*AF108)+AF86)*AF$66>=15,((NORMSINV(Assumptions!C9)*AF108)+AF86)*AF$66,15) -> 15 | AG62: =IF(((NORMSINV(Assumptions!C9)*AG108)+AG86)*AG$66>=15,((NORMSINV(Assumptions!C9)*AG108)+AG86)*AG$66,15) -> 15 | AH62: =IF(((NORMSINV(Assumptions!C9)*AH108)+AH86)*AH$66>=15,((NORMSINV(Assumptions!C9)*AH108)+AH86)*AH$66,15) -> 15 | AI62: =IF(((NORMSINV(Assumptions!C9)*AI108)+AI86)*AI$66>=15,((NORMSINV(Assumptions!C9)*AI108)+AI86)*AI$66,15) -> 29.23778215 | AJ62: =IF(((NORMSINV(Assumptions!C9)*AJ108)+AJ86)*AJ$66>=15,((NORMSINV(Assumptions!C9)*AJ108)+AJ86)*AJ$66,15) -> 15 | AK62: =IF(((NORMSINV(Assumptions!C9)*AK108)+AK86)*AK$66>=15,((NORMSINV(Assumptions!C9)*AK108)+AK86)*AK$66,15) -> 46.97017737 | AL62: =IF(((NORMSINV(Assumptions!C9)*AL108)+AL86)*AL$66>=15,((NORMSINV(Assumptions!C9)*AL108)+AL86)*AL$66,15) -> 43.14130736 | AM62: =IF(((NORMSINV(Assumptions!C9)*AM108)+AM86)*AM$66>=15,((NORMSINV(Assumptions!C9)*AM108)+AM86)*AM$66,15) -> 177.8812718 | AN62: =IF(((NORMSINV(Assumptions!C9)*AN108)+AN86)*AN$66>=15,((NORMSINV(Assumptions!C9)*AN108)+AN86)*AN$66,15) -> 131.6309694 | AO62: =IF(((NORMSINV(Assumptions!C9)*AO108)+AO86)*AO$66>=15,((NORMSINV(Assumptions!C9)*AO108)+AO86)*AO$66,15) -> 126.510757 | AP62: =IF(((NORMSINV(Assumptions!C9)*AP108)+AP86)*AP$66>=15,((NORMSINV(Assumptions!C9)*AP108)+AP86)*AP$66,15) -> 15 | AQ62: =IF(((NORMSINV(Assumptions!C9)*AQ108)+AQ86)*AQ$66>=15,((NORMSINV(Assumptions!C9)*AQ108)+AQ86)*AQ$66,15) -> 40.70013922 | AR62: =IF(((NORMSINV(Assumptions!C9)*AR108)+AR86)*AR$66>=15,((NORMSINV(Assumptions!C9)*AR108)+AR86)*AR$66,15) -> 69.08692611 | AS62: =IF(((NORMSINV(Assumptions!C9)*AS108)+AS86)*AS$66>=15,((NORMSINV(Assumptions!C9)*AS108)+AS86)*AS$66,15) -> 86.01853182 | AT62: =IF(((NORMSINV(Assumptions!C9)*AT108)+AT86)*AT$66>=15,((NORMSINV(Assumptions!C9)*AT108)+AT86)*AT$66,15) -> 150.6522674 | AU62: =IF(((NORMSINV(Assumptions!C9)*AU108)+AU86)*AU$66>=15,((NORMSINV(Assumptions!C9)*AU108)+AU86)*AU$66,15) -> 47.08449314 | AV62: =IF(((NORMSINV(Assumptions!C9)*AV108)+AV86)*AV$66>=15,((NORMSINV(Assumptions!C9)*AV108)+AV86)*AV$66,15) -> 95.80507294 | AW62: =IF(((NORMSINV(Assumptions!C9)*AW108)+AW86)*AW$66>=15,((NORMSINV(Assumptions!C9)*AW108)+AW86)*AW$66,15) -> 121.5924756 | AX62: =IF(((NORMSINV(Assumptions!C9)*AX108)+AX86)*AX$66>=15,((NORMSINV(Assumptions!C9)*AX108)+AX86)*AX$66,15) -> 123.5625713 | AY62: =IF(((NORMSINV(Assumptions!C9)*AY108)+AY86)*AY$66>=15,((NORMSINV(Assumptions!C9)*AY108)+AY86)*AY$66,15) -> 162.5526166 | AZ62: =IF(((NORMSINV(Assumptions!C9)*AZ108)+AZ86)*AZ$66>=15,((NORMSINV(Assumptions!C9)*AZ108)+AZ86)*AZ$66,15) -> 148.8861094 | BA62: =IF(((NORMSINV(Assumptions!C9)*BA108)+BA86)*BA$66>=15,((NORMSINV(Assumptions!C9)*BA108)+BA86)*BA$66,15) -> 95.32390757 | BB62: =IF(((NORMSINV(Assumptions!C9)*BB108)+BB86)*BB$66>=15,((NORMSINV(Assumptions!C9)*BB108)+BB86)*BB$66,15) -> 202.4862314 | BC62: =IF(((NORMSINV(Assumptions!C9)*BC108)+BC86)*BC$66>=15,((NORMSINV(Assumptions!C9)*BC108)+BC86)*BC$66,15) -> 254.8801157 | BD62: =IF(((NORMSINV(Assumptions!C9)*BD108)+BD86)*BD$66>=15,((NORMSINV(Assumptions!C9)*BD108)+BD86)*BD$66,15) -> 194.4155346 | BE62: =IF(((NORMSINV(Assumptions!C9)*BE108)+BE86)*BE$66>=15,((NORMSINV(Assumptions!C9)*BE108)+BE86)*BE$66,15) -> 369.7225777 | BF62: =IF(((NORMSINV(Assumptions!C9)*BF108)+BF86)*BF$66>=15,((NORMSINV(Assumptions!C9)*BF108)+BF86)*BF$66,15) -> 284.5586937 | BG62: =IF(((NORMSINV(Assumptions!C9)*BG108)+BG86)*BG$66>=15,((NORMSINV(Assumptions!C9)*BG108)+BG86)*BG$66,15) -> 227.2565499 | BH62: =IF(((NORMSINV(Assumptions!C9)*BH108)+BH86)*BH$66>=15,((NORMSINV(Assumptions!C9)*BH108)+BH86)*BH$66,15) -> 384.1438692 | BI62: =IF(((NORMSINV(Assumptions!C9)*BI108)+BI86)*BI$66>=15,((NORMSINV(Assumptions!C9)*BI108)+BI86)*BI$66,15) -> 388.2307018 | BJ62: =IF(((NORMSINV(Assumptions!C9)*BJ108)+BJ86)*BJ$66>=15,((NORMSINV(Assumptions!C9)*BJ108)+BJ86)*BJ$66,15) -> 535.0100106 | BK62: =IF(((NORMSINV(Assumptions!C9)*BK108)+BK86)*BK$66>=15,((NORMSINV(Assumptions!C9)*BK108)+BK86)*BK$66,15) -> 747.5842221 | BL62: =IF(((NORMSINV(Assumptions!C9)*BL108)+BL86)*BL$66>=15,((NORMSINV(Assumptions!C9)*BL108)+BL86)*BL$66,15) -> 784.5033173 | BM62: =IF(((NORMSINV(Assumptions!C9)*BM108)+BM86)*BM$66>=15,((NORMSINV(Assumptions!C9)*BM108)+BM86)*BM$66,15) -> 1006.066221 | BN62: =IF(((NORMSINV(Assumptions!C9)*BN108)+BN86)*BN$66>=15,((NORMSINV(Assumptions!C9)*BN108)+BN86)*BN$66,15) -> 1157.585614 | BO62: =IF(((NORMSINV(Assumptions!C9)*BO108)+BO86)*BO$66>=15,((NORMSINV(Assumptions!C9)*BO108)+BO86)*BO$66,15) -> 1171.935179 | BP62: =IF(((NORMSINV(Assumptions!C9)*BP108)+BP86)*BP$66>=15,((NORMSINV(Assumptions!C9)*BP108)+BP86)*BP$66,15) -> 1291.26708 | BQ62: =IF(((NORMSINV(Assumptions!C9)*BQ108)+BQ86)*BQ$66>=15,((NORMSINV(Assumptions!C9)*BQ108)+BQ86)*BQ$66,15) -> 1146.791546 | BR62: =IF(((NORMSINV(Assumptions!C9)*BR108)+BR86)*BR$66>=15,((NORMSINV(Assumptions!C9)*BR108)+BR86)*BR$66,15) -> 1236.772836 | BS62: =IF(((NORMSINV(Assumptions!C9)*BS108)+BS86)*BS$66>=15,((NORMSINV(Assumptions!C9)*BS108)+BS86)*BS$66,15) -> 1386.033999 | BT62: =IF(((NORMSINV(Assumptions!C9)*BT108)+BT86)*BT$66>=15,((NORMSINV(Assumptions!C9)*BT108)+BT86)*BT$66,15) -> 1518.228024 | BU62: =IF(((NORMSINV(Assumptions!C9)*BU108)+BU86)*BU$66>=15,((NORMSINV(Assumptions!C9)*BU108)+BU86)*BU$66,15) -> 1242.246754 | BV62: =IF(((NORMSINV(Assumptions!C9)*BV108)+BV86)*BV$66>=15,((NORMSINV(Assumptions!C9)*BV108)+BV86)*BV$66,15) -> 1094.888421
A63: Woman | B63: Ethnic | C63: B) Lower secondary education | G63: =IF(((NORMSINV(Assumptions!C9)*G109)+G87)*G$66>=15,((NORMSINV(Assumptions!C9)*G109)+G87)*G$66,15) -> 5589.584153 | H63: =IF(((NORMSINV(Assumptions!C9)*H109)+H87)*H$66>=15,((NORMSINV(Assumptions!C9)*H109)+H87)*H$66,15) -> 6839.678375 | I63: =IF(((NORMSINV(Assumptions!C9)*I109)+I87)*I$66>=15,((NORMSINV(Assumptions!C9)*I109)+I87)*I$66,15) -> 6046.276378 | J63: =IF(((NORMSINV(Assumptions!C9)*J109)+J87)*J$66>=15,((NORMSINV(Assumptions!C9)*J109)+J87)*J$66,15) -> 2507.448724 | K63: =IF(((NORMSINV(Assumptions!C9)*K109)+K87)*K$66>=15,((NORMSINV(Assumptions!C9)*K109)+K87)*K$66,15) -> 1505.023788 | L63: =IF(((NORMSINV(Assumptions!C9)*L109)+L87)*L$66>=15,((NORMSINV(Assumptions!C9)*L109)+L87)*L$66,15) -> 1085.189225 | M63: =IF(((NORMSINV(Assumptions!C9)*M109)+M87)*M$66>=15,((NORMSINV(Assumptions!C9)*M109)+M87)*M$66,15) -> 696.8243948 | N63: =IF(((NORMSINV(Assumptions!C9)*N109)+N87)*N$66>=15,((NORMSINV(Assumptions!C9)*N109)+N87)*N$66,15) -> 741.9791104 | O63: =IF(((NORMSINV(Assumptions!C9)*O109)+O87)*O$66>=15,((NORMSINV(Assumptions!C9)*O109)+O87)*O$66,15) -> 841.9769329 | P63: =IF(((NORMSINV(Assumptions!C9)*P109)+P87)*P$66>=15,((NORMSINV(Assumptions!C9)*P109)+P87)*P$66,15) -> 1321.684912 | Q63: =IF(((NORMSINV(Assumptions!C9)*Q109)+Q87)*Q$66>=15,((NORMSINV(Assumptions!C9)*Q109)+Q87)*Q$66,15) -> 1374.166002 | R63: =IF(((NORMSINV(Assumptions!C9)*R109)+R87)*R$66>=15,((NORMSINV(Assumptions!C9)*R109)+R87)*R$66,15) -> 1607.673666 | S63: =IF(((NORMSINV(Assumptions!C9)*S109)+S87)*S$66>=15,((NORMSINV(Assumptions!C9)*S109)+S87)*S$66,15) -> 1159.86462 | T63: =IF(((NORMSINV(Assumptions!C9)*T109)+T87)*T$66>=15,((NORMSINV(Assumptions!C9)*T109)+T87)*T$66,15) -> 920.3801521 | U63: =IF(((NORMSINV(Assumptions!C9)*U109)+U87)*U$66>=15,((NORMSINV(Assumptions!C9)*U109)+U87)*U$66,15) -> 911.2049442 | V63: =IF(((NORMSINV(Assumptions!C9)*V109)+V87)*V$66>=15,((NORMSINV(Assumptions!C9)*V109)+V87)*V$66,15) -> 705.9020591 | W63: =IF(((NORMSINV(Assumptions!C9)*W109)+W87)*W$66>=15,((NORMSINV(Assumptions!C9)*W109)+W87)*W$66,15) -> 722.2418828 | X63: =IF(((NORMSINV(Assumptions!C9)*X109)+X87)*X$66>=15,((NORMSINV(Assumptions!C9)*X109)+X87)*X$66,15) -> 612.4445755 | Y63: =IF(((NORMSINV(Assumptions!C9)*Y109)+Y87)*Y$66>=15,((NORMSINV(Assumptions!C9)*Y109)+Y87)*Y$66,15) -> 513.2166787 | Z63: =IF(((NORMSINV(Assumptions!C9)*Z109)+Z87)*Z$66>=15,((NORMSINV(Assumptions!C9)*Z109)+Z87)*Z$66,15) -> 694.7478005 | AA63: =IF(((NORMSINV(Assumptions!C9)*AA109)+AA87)*AA$66>=15,((NORMSINV(Assumptions!C9)*AA109)+AA87)*AA$66,15) -> 463.5236017 | AB63: =IF(((NORMSINV(Assumptions!C9)*AB109)+AB87)*AB$66>=15,((NORMSINV(Assumptions!C9)*AB109)+AB87)*AB$66,15) -> 482.9522928 | AC63: =IF(((NORMSINV(Assumptions!C9)*AC109)+AC87)*AC$66>=15,((NORMSINV(Assumptions!C9)*AC109)+AC87)*AC$66,15) -> 543.7379698 | AD63: =IF(((NORMSINV(Assumptions!C9)*AD109)+AD87)*AD$66>=15,((NORMSINV(Assumptions!C9)*AD109)+AD87)*AD$66,15) -> 453.0442055 | AE63: =IF(((NORMSINV(Assumptions!C9)*AE109)+AE87)*AE$66>=15,((NORMSINV(Assumptions!C9)*AE109)+AE87)*AE$66,15) -> 411.1777237 | AF63: =IF(((NORMSINV(Assumptions!C9)*AF109)+AF87)*AF$66>=15,((NORMSINV(Assumptions!C9)*AF109)+AF87)*AF$66,15) -> 467.460794 | AG63: =IF(((NORMSINV(Assumptions!C9)*AG109)+AG87)*AG$66>=15,((NORMSINV(Assumptions!C9)*AG109)+AG87)*AG$66,15) -> 592.8937162 | AH63: =IF(((NORMSINV(Assumptions!C9)*AH109)+AH87)*AH$66>=15,((NORMSINV(Assumptions!C9)*AH109)+AH87)*AH$66,15) -> 456.3595094 | AI63: =IF(((NORMSINV(Assumptions!C9)*AI109)+AI87)*AI$66>=15,((NORMSINV(Assumptions!C9)*AI109)+AI87)*AI$66,15) -> 577.6947806 | AJ63: =IF(((NORMSINV(Assumptions!C9)*AJ109)+AJ87)*AJ$66>=15,((NORMSINV(Assumptions!C9)*AJ109)+AJ87)*AJ$66,15) -> 474.7953027 | AK63: =IF(((NORMSINV(Assumptions!C9)*AK109)+AK87)*AK$66>=15,((NORMSINV(Assumptions!C9)*AK109)+AK87)*AK$66,15) -> 659.2134176 | AL63: =IF(((NORMSINV(Assumptions!C9)*AL109)+AL87)*AL$66>=15,((NORMSINV(Assumptions!C9)*AL109)+AL87)*AL$66,15) -> 559.4884466 | AM63: =IF(((NORMSINV(Assumptions!C9)*AM109)+AM87)*AM$66>=15,((NORMSINV(Assumptions!C9)*AM109)+AM87)*AM$66,15) -> 652.3107925 | AN63: =IF(((NORMSINV(Assumptions!C9)*AN109)+AN87)*AN$66>=15,((NORMSINV(Assumptions!C9)*AN109)+AN87)*AN$66,15) -> 781.6741108 | AO63: =IF(((NORMSINV(Assumptions!C9)*AO109)+AO87)*AO$66>=15,((NORMSINV(Assumptions!C9)*AO109)+AO87)*AO$66,15) -> 790.0828158 | AP63: =IF(((NORMSINV(Assumptions!C9)*AP109)+AP87)*AP$66>=15,((NORMSINV(Assumptions!C9)*AP109)+AP87)*AP$66,15) -> 871.0919454 | AQ63: =IF(((NORMSINV(Assumptions!C9)*AQ109)+AQ87)*AQ$66>=15,((NORMSINV(Assumptions!C9)*AQ109)+AQ87)*AQ$66,15) -> 854.2572309 | AR63: =IF(((NORMSINV(Assumptions!C9)*AR109)+AR87)*AR$66>=15,((NORMSINV(Assumptions!C9)*AR109)+AR87)*AR$66,15) -> 809.3388419 | AS63: =IF(((NORMSINV(Assumptions!C9)*AS109)+AS87)*AS$66>=15,((NORMSINV(Assumptions!C9)*AS109)+AS87)*AS$66,15) -> 1118.876629 | AT63: =IF(((NORMSINV(Assumptions!C9)*AT109)+AT87)*AT$66>=15,((NORMSINV(Assumptions!C9)*AT109)+AT87)*AT$66,15) -> 1214.026388 | AU63: =IF(((NORMSINV(Assumptions!C9)*AU109)+AU87)*AU$66>=15,((NORMSINV(Assumptions!C9)*AU109)+AU87)*AU$66,15) -> 1289.767133 | AV63: =IF(((NORMSINV(Assumptions!C9)*AV109)+AV87)*AV$66>=15,((NORMSINV(Assumptions!C9)*AV109)+AV87)*AV$66,15) -> 1120.236527 | AW63: =IF(((NORMSINV(Assumptions!C9)*AW109)+AW87)*AW$66>=15,((NORMSINV(Assumptions!C9)*AW109)+AW87)*AW$66,15) -> 1116.278915 | AX63: =IF(((NORMSINV(Assumptions!C9)*AX109)+AX87)*AX$66>=15,((NORMSINV(Assumptions!C9)*AX109)+AX87)*AX$66,15) -> 1144.086968 | AY63: =IF(((NORMSINV(Assumptions!C9)*AY109)+AY87)*AY$66>=15,((NORMSINV(Assumptions!C9)*AY109)+AY87)*AY$66,15) -> 1157.454477 | AZ63: =IF(((NORMSINV(Assumptions!C9)*AZ109)+AZ87)*AZ$66>=15,((NORMSINV(Assumptions!C9)*AZ109)+AZ87)*AZ$66,15) -> 1369.339523 | BA63: =IF(((NORMSINV(Assumptions!C9)*BA109)+BA87)*BA$66>=15,((NORMSINV(Assumptions!C9)*BA109)+BA87)*BA$66,15) -> 1740.499947 | BB63: =IF(((NORMSINV(Assumptions!C9)*BB109)+BB87)*BB$66>=15,((NORMSINV(Assumptions!C9)*BB109)+BB87)*BB$66,15) -> 1738.247139 | BC63: =IF(((NORMSINV(Assumptions!C9)*BC109)+BC87)*BC$66>=15,((NORMSINV(Assumptions!C9)*BC109)+BC87)*BC$66,15) -> 1821.73584 | BD63: =IF(((NORMSINV(Assumptions!C9)*BD109)+BD87)*BD$66>=15,((NORMSINV(Assumptions!C9)*BD109)+BD87)*BD$66,15) -> 1892.326516 | BE63: =IF(((NORMSINV(Assumptions!C9)*BE109)+BE87)*BE$66>=15,((NORMSINV(Assumptions!C9)*BE109)+BE87)*BE$66,15) -> 1764.028267 | BF63: =IF(((NORMSINV(Assumptions!C9)*BF109)+BF87)*BF$66>=15,((NORMSINV(Assumptions!C9)*BF109)+BF87)*BF$66,15) -> 1675.243576 | BG63: =IF(((NORMSINV(Assumptions!C9)*BG109)+BG87)*BG$66>=15,((NORMSINV(Assumptions!C9)*BG109)+BG87)*BG$66,15) -> 1588.400597 | BH63: =IF(((NORMSINV(Assumptions!C9)*BH109)+BH87)*BH$66>=15,((NORMSINV(Assumptions!C9)*BH109)+BH87)*BH$66,15) -> 1473.05834 | BI63: =IF(((NORMSINV(Assumptions!C9)*BI109)+BI87)*BI$66>=15,((NORMSINV(Assumptions!C9)*BI109)+BI87)*BI$66,15) -> 1735.433412 | BJ63: =IF(((NORMSINV(Assumptions!C9)*BJ109)+BJ87)*BJ$66>=15,((NORMSINV(Assumptions!C9)*BJ109)+BJ87)*BJ$66,15) -> 1828.085315 | BK63: =IF(((NORMSINV(Assumptions!C9)*BK109)+BK87)*BK$66>=15,((NORMSINV(Assumptions!C9)*BK109)+BK87)*BK$66,15) -> 2105.134076 | BL63: =IF(((NORMSINV(Assumptions!C9)*BL109)+BL87)*BL$66>=15,((NORMSINV(Assumptions!C9)*BL109)+BL87)*BL$66,15) -> 2265.9897 | BM63: =IF(((NORMSINV(Assumptions!C9)*BM109)+BM87)*BM$66>=15,((NORMSINV(Assumptions!C9)*BM109)+BM87)*BM$66,15) -> 1825.760509 | BN63: =IF(((NORMSINV(Assumptions!C9)*BN109)+BN87)*BN$66>=15,((NORMSINV(Assumptions!C9)*BN109)+BN87)*BN$66,15) -> 1602.54031 | BO63: =IF(((NORMSINV(Assumptions!C9)*BO109)+BO87)*BO$66>=15,((NORMSINV(Assumptions!C9)*BO109)+BO87)*BO$66,15) -> 1523.801397 | BP63: =IF(((NORMSINV(Assumptions!C9)*BP109)+BP87)*BP$66>=15,((NORMSINV(Assumptions!C9)*BP109)+BP87)*BP$66,15) -> 1291.497622 | BQ63: =IF(((NORMSINV(Assumptions!C9)*BQ109)+BQ87)*BQ$66>=15,((NORMSINV(Assumptions!C9)*BQ109)+BQ87)*BQ$66,15) -> 1463.90022 | BR63: =IF(((NORMSINV(Assumptions!C9)*BR109)+BR87)*BR$66>=15,((NORMSINV(Assumptions!C9)*BR109)+BR87)*BR$66,15) -> 1359.635842 | BS63: =IF(((NORMSINV(Assumptions!C9)*BS109)+BS87)*BS$66>=15,((NORMSINV(Assumptions!C9)*BS109)+BS87)*BS$66,15) -> 1203.790561 | BT63: =IF(((NORMSINV(Assumptions!C9)*BT109)+BT87)*BT$66>=15,((NORMSINV(Assumptions!C9)*BT109)+BT87)*BT$66,15) -> 865.6207075 | BU63: =IF(((NORMSINV(Assumptions!C9)*BU109)+BU87)*BU$66>=15,((NORMSINV(Assumptions!C9)*BU109)+BU87)*BU$66,15) -> 752.2834241 | BV63: =IF(((NORMSINV(Assumptions!C9)*BV109)+BV87)*BV$66>=15,((NORMSINV(Assumptions!C9)*BV109)+BV87)*BV$66,15) -> 684.2986497
A64: Woman | B64: Ethnic | C64: C) Upper secondary education | H64: =IF(((NORMSINV(Assumptions!C9)*H110)+H88)*H$66>=15,((NORMSINV(Assumptions!C9)*H110)+H88)*H$66,15) -> 77.80598668 | I64: =IF(((NORMSINV(Assumptions!C9)*I110)+I88)*I$66>=15,((NORMSINV(Assumptions!C9)*I110)+I88)*I$66,15) -> 1162.110553 | J64: =IF(((NORMSINV(Assumptions!C9)*J110)+J88)*J$66>=15,((NORMSINV(Assumptions!C9)*J110)+J88)*J$66,15) -> 4661.272018 | K64: =IF(((NORMSINV(Assumptions!C9)*K110)+K88)*K$66>=15,((NORMSINV(Assumptions!C9)*K110)+K88)*K$66,15) -> 5192.608469 | L64: =IF(((NORMSINV(Assumptions!C9)*L110)+L88)*L$66>=15,((NORMSINV(Assumptions!C9)*L110)+L88)*L$66,15) -> 4854.675484 | M64: =IF(((NORMSINV(Assumptions!C9)*M110)+M88)*M$66>=15,((NORMSINV(Assumptions!C9)*M110)+M88)*M$66,15) -> 4053.808089 | N64: =IF(((NORMSINV(Assumptions!C9)*N110)+N88)*N$66>=15,((NORMSINV(Assumptions!C9)*N110)+N88)*N$66,15) -> 3584.608898 | O64: =IF(((NORMSINV(Assumptions!C9)*O110)+O88)*O$66>=15,((NORMSINV(Assumptions!C9)*O110)+O88)*O$66,15) -> 3245.325324 | P64: =IF(((NORMSINV(Assumptions!C9)*P110)+P88)*P$66>=15,((NORMSINV(Assumptions!C9)*P110)+P88)*P$66,15) -> 2483.770759 | Q64: =IF(((NORMSINV(Assumptions!C9)*Q110)+Q88)*Q$66>=15,((NORMSINV(Assumptions!C9)*Q110)+Q88)*Q$66,15) -> 2589.433029 | R64: =IF(((NORMSINV(Assumptions!C9)*R110)+R88)*R$66>=15,((NORMSINV(Assumptions!C9)*R110)+R88)*R$66,15) -> 2165.423571 | S64: =IF(((NORMSINV(Assumptions!C9)*S110)+S88)*S$66>=15,((NORMSINV(Assumptions!C9)*S110)+S88)*S$66,15) -> 2486.027017 | T64: =IF(((NORMSINV(Assumptions!C9)*T110)+T88)*T$66>=15,((NORMSINV(Assumptions!C9)*T110)+T88)*T$66,15) -> 2580.229668 | U64: =IF(((NORMSINV(Assumptions!C9)*U110)+U88)*U$66>=15,((NORMSINV(Assumptions!C9)*U110)+U88)*U$66,15) -> 2918.044187 | V64: =IF(((NORMSINV(Assumptions!C9)*V110)+V88)*V$66>=15,((NORMSINV(Assumptions!C9)*V110)+V88)*V$66,15) -> 3093.45509 | W64: =IF(((NORMSINV(Assumptions!C9)*W110)+W88)*W$66>=15,((NORMSINV(Assumptions!C9)*W110)+W88)*W$66,15) -> 3012.979773 | X64: =IF(((NORMSINV(Assumptions!C9)*X110)+X88)*X$66>=15,((NORMSINV(Assumptions!C9)*X110)+X88)*X$66,15) -> 3115.573381 | Y64: =IF(((NORMSINV(Assumptions!C9)*Y110)+Y88)*Y$66>=15,((NORMSINV(Assumptions!C9)*Y110)+Y88)*Y$66,15) -> 3371.772143 | Z64: =IF(((NORMSINV(Assumptions!C9)*Z110)+Z88)*Z$66>=15,((NORMSINV(Assumptions!C9)*Z110)+Z88)*Z$66,15) -> 3462.53867 | AA64: =IF(((NORMSINV(Assumptions!C9)*AA110)+AA88)*AA$66>=15,((NORMSINV(Assumptions!C9)*AA110)+AA88)*AA$66,15) -> 3677.96082 | AB64: =IF(((NORMSINV(Assumptions!C9)*AB110)+AB88)*AB$66>=15,((NORMSINV(Assumptions!C9)*AB110)+AB88)*AB$66,15) -> 2915.352222 | AC64: =IF(((NORMSINV(Assumptions!C9)*AC110)+AC88)*AC$66>=15,((NORMSINV(Assumptions!C9)*AC110)+AC88)*AC$66,15) -> 3130.661537 | AD64: =IF(((NORMSINV(Assumptions!C9)*AD110)+AD88)*AD$66>=15,((NORMSINV(Assumptions!C9)*AD110)+AD88)*AD$66,15) -> 3225.176033 | AE64: =IF(((NORMSINV(Assumptions!C9)*AE110)+AE88)*AE$66>=15,((NORMSINV(Assumptions!C9)*AE110)+AE88)*AE$66,15) -> 3333.128859 | AF64: =IF(((NORMSINV(Assumptions!C9)*AF110)+AF88)*AF$66>=15,((NORMSINV(Assumptions!C9)*AF110)+AF88)*AF$66,15) -> 2984.74898 | AG64: =IF(((NORMSINV(Assumptions!C9)*AG110)+AG88)*AG$66>=15,((NORMSINV(Assumptions!C9)*AG110)+AG88)*AG$66,15) -> 2912.196629 | AH64: =IF(((NORMSINV(Assumptions!C9)*AH110)+AH88)*AH$66>=15,((NORMSINV(Assumptions!C9)*AH110)+AH88)*AH$66,15) -> 3124.518776 | AI64: =IF(((NORMSINV(Assumptions!C9)*AI110)+AI88)*AI$66>=15,((NORMSINV(Assumptions!C9)*AI110)+AI88)*AI$66,15) -> 2981.269705 | AJ64: =IF(((NORMSINV(Assumptions!C9)*AJ110)+AJ88)*AJ$66>=15,((NORMSINV(Assumptions!C9)*AJ110)+AJ88)*AJ$66,15) -> 3184.483844 | AK64: =IF(((NORMSINV(Assumptions!C9)*AK110)+AK88)*AK$66>=15,((NORMSINV(Assumptions!C9)*AK110)+AK88)*AK$66,15) -> 3068.184288 | AL64: =IF(((NORMSINV(Assumptions!C9)*AL110)+AL88)*AL$66>=15,((NORMSINV(Assumptions!C9)*AL110)+AL88)*AL$66,15) -> 3283.016604 | AM64: =IF(((NORMSINV(Assumptions!C9)*AM110)+AM88)*AM$66>=15,((NORMSINV(Assumptions!C9)*AM110)+AM88)*AM$66,15) -> 3215.728303 | AN64: =IF(((NORMSINV(Assumptions!C9)*AN110)+AN88)*AN$66>=15,((NORMSINV(Assumptions!C9)*AN110)+AN88)*AN$66,15) -> 3263.831179 | AO64: =IF(((NORMSINV(Assumptions!C9)*AO110)+AO88)*AO$66>=15,((NORMSINV(Assumptions!C9)*AO110)+AO88)*AO$66,15) -> 3073.935917 | AP64: =IF(((NORMSINV(Assumptions!C9)*AP110)+AP88)*AP$66>=15,((NORMSINV(Assumptions!C9)*AP110)+AP88)*AP$66,15) -> 3145.711989 | AQ64: =IF(((NORMSINV(Assumptions!C9)*AQ110)+AQ88)*AQ$66>=15,((NORMSINV(Assumptions!C9)*AQ110)+AQ88)*AQ$66,15) -> 2814.536826 | AR64: =IF(((NORMSINV(Assumptions!C9)*AR110)+AR88)*AR$66>=15,((NORMSINV(Assumptions!C9)*AR110)+AR88)*AR$66,15) -> 2989.131762 | AS64: =IF(((NORMSINV(Assumptions!C9)*AS110)+AS88)*AS$66>=15,((NORMSINV(Assumptions!C9)*AS110)+AS88)*AS$66,15) -> 2845.825557 | AT64: =IF(((NORMSINV(Assumptions!C9)*AT110)+AT88)*AT$66>=15,((NORMSINV(Assumptions!C9)*AT110)+AT88)*AT$66,15) -> 2998.770999 | AU64: =IF(((NORMSINV(Assumptions!C9)*AU110)+AU88)*AU$66>=15,((NORMSINV(Assumptions!C9)*AU110)+AU88)*AU$66,15) -> 2964.670291 | AV64: =IF(((NORMSINV(Assumptions!C9)*AV110)+AV88)*AV$66>=15,((NORMSINV(Assumptions!C9)*AV110)+AV88)*AV$66,15) -> 2883.172268 | AW64: =IF(((NORMSINV(Assumptions!C9)*AW110)+AW88)*AW$66>=15,((NORMSINV(Assumptions!C9)*AW110)+AW88)*AW$66,15) -> 2587.803641 | AX64: =IF(((NORMSINV(Assumptions!C9)*AX110)+AX88)*AX$66>=15,((NORMSINV(Assumptions!C9)*AX110)+AX88)*AX$66,15) -> 2348.326778 | AY64: =IF(((NORMSINV(Assumptions!C9)*AY110)+AY88)*AY$66>=15,((NORMSINV(Assumptions!C9)*AY110)+AY88)*AY$66,15) -> 2152.639064 | AZ64: =IF(((NORMSINV(Assumptions!C9)*AZ110)+AZ88)*AZ$66>=15,((NORMSINV(Assumptions!C9)*AZ110)+AZ88)*AZ$66,15) -> 2435.659946 | BA64: =IF(((NORMSINV(Assumptions!C9)*BA110)+BA88)*BA$66>=15,((NORMSINV(Assumptions!C9)*BA110)+BA88)*BA$66,15) -> 2254.528076 | BB64: =IF(((NORMSINV(Assumptions!C9)*BB110)+BB88)*BB$66>=15,((NORMSINV(Assumptions!C9)*BB110)+BB88)*BB$66,15) -> 2315.220769 | BC64: =IF(((NORMSINV(Assumptions!C9)*BC110)+BC88)*BC$66>=15,((NORMSINV(Assumptions!C9)*BC110)+BC88)*BC$66,15) -> 2249.841593 | BD64: =IF(((NORMSINV(Assumptions!C9)*BD110)+BD88)*BD$66>=15,((NORMSINV(Assumptions!C9)*BD110)+BD88)*BD$66,15) -> 1847.310087 | BE64: =IF(((NORMSINV(Assumptions!C9)*BE110)+BE88)*BE$66>=15,((NORMSINV(Assumptions!C9)*BE110)+BE88)*BE$66,15) -> 1765.933997 | BF64: =IF(((NORMSINV(Assumptions!C9)*BF110)+BF88)*BF$66>=15,((NORMSINV(Assumptions!C9)*BF110)+BF88)*BF$66,15) -> 2033.041634 | BG64: =IF(((NORMSINV(Assumptions!C9)*BG110)+BG88)*BG$66>=15,((NORMSINV(Assumptions!C9)*BG110)+BG88)*BG$66,15) -> 2160.248047 | BH64: =IF(((NORMSINV(Assumptions!C9)*BH110)+BH88)*BH$66>=15,((NORMSINV(Assumptions!C9)*BH110)+BH88)*BH$66,15) -> 2017.420293 | BI64: =IF(((NORMSINV(Assumptions!C9)*BI110)+BI88)*BI$66>=15,((NORMSINV(Assumptions!C9)*BI110)+BI88)*BI$66,15) -> 2006.351801 | BJ64: =IF(((NORMSINV(Assumptions!C9)*BJ110)+BJ88)*BJ$66>=15,((NORMSINV(Assumptions!C9)*BJ110)+BJ88)*BJ$66,15) -> 1807.885431 | BK64: =IF(((NORMSINV(Assumptions!C9)*BK110)+BK88)*BK$66>=15,((NORMSINV(Assumptions!C9)*BK110)+BK88)*BK$66,15) -> 1577.772779 | BL64: =IF(((NORMSINV(Assumptions!C9)*BL110)+BL88)*BL$66>=15,((NORMSINV(Assumptions!C9)*BL110)+BL88)*BL$66,15) -> 1458.748947 | BM64: =IF(((NORMSINV(Assumptions!C9)*BM110)+BM88)*BM$66>=15,((NORMSINV(Assumptions!C9)*BM110)+BM88)*BM$66,15) -> 1610.13727 | BN64: =IF(((NORMSINV(Assumptions!C9)*BN110)+BN88)*BN$66>=15,((NORMSINV(Assumptions!C9)*BN110)+BN88)*BN$66,15) -> 1762.754478 | BO64: =IF(((NORMSINV(Assumptions!C9)*BO110)+BO88)*BO$66>=15,((NORMSINV(Assumptions!C9)*BO110)+BO88)*BO$66,15) -> 1446.280313 | BP64: =IF(((NORMSINV(Assumptions!C9)*BP110)+BP88)*BP$66>=15,((NORMSINV(Assumptions!C9)*BP110)+BP88)*BP$66,15) -> 1134.128739 | BQ64: =IF(((NORMSINV(Assumptions!C9)*BQ110)+BQ88)*BQ$66>=15,((NORMSINV(Assumptions!C9)*BQ110)+BQ88)*BQ$66,15) -> 901.3316309 | BR64: =IF(((NORMSINV(Assumptions!C9)*BR110)+BR88)*BR$66>=15,((NORMSINV(Assumptions!C9)*BR110)+BR88)*BR$66,15) -> 850.64026 | BS64: =IF(((NORMSINV(Assumptions!C9)*BS110)+BS88)*BS$66>=15,((NORMSINV(Assumptions!C9)*BS110)+BS88)*BS$66,15) -> 797.8699001 | BT64: =IF(((NORMSINV(Assumptions!C9)*BT110)+BT88)*BT$66>=15,((NORMSINV(Assumptions!C9)*BT110)+BT88)*BT$66,15) -> 755.7221106 | BU64: =IF(((NORMSINV(Assumptions!C9)*BU110)+BU88)*BU$66>=15,((NORMSINV(Assumptions!C9)*BU110)+BU88)*BU$66,15) -> 790.427959 | BV64: =IF(((NORMSINV(Assumptions!C9)*BV110)+BV88)*BV$66>=15,((NORMSINV(Assumptions!C9)*BV110)+BV88)*BV$66,15) -> 516.6813789
A65: Woman | B65: Ethnic | C65: D) Higher education | J65: =IF(((NORMSINV(Assumptions!C9)*J111)+J89)*J$66>=15,((NORMSINV(Assumptions!C9)*J111)+J89)*J$66,15) -> 82.45549889 | K65: =IF(((NORMSINV(Assumptions!C9)*K111)+K89)*K$66>=15,((NORMSINV(Assumptions!C9)*K111)+K89)*K$66,15) -> 589.0417251 | L65: =IF(((NORMSINV(Assumptions!C9)*L111)+L89)*L$66>=15,((NORMSINV(Assumptions!C9)*L111)+L89)*L$66,15) -> 1383.726909 | M65: =IF(((NORMSINV(Assumptions!C9)*M111)+M89)*M$66>=15,((NORMSINV(Assumptions!C9)*M111)+M89)*M$66,15) -> 2579.238096 | N65: =IF(((NORMSINV(Assumptions!C9)*N111)+N89)*N$66>=15,((NORMSINV(Assumptions!C9)*N111)+N89)*N$66,15) -> 2976.184121 | O65: =IF(((NORMSINV(Assumptions!C9)*O111)+O89)*O$66>=15,((NORMSINV(Assumptions!C9)*O111)+O89)*O$66,15) -> 3016.053 | P65: =IF(((NORMSINV(Assumptions!C9)*P111)+P89)*P$66>=15,((NORMSINV(Assumptions!C9)*P111)+P89)*P$66,15) -> 3297.937789 | Q65: =IF(((NORMSINV(Assumptions!C9)*Q111)+Q89)*Q$66>=15,((NORMSINV(Assumptions!C9)*Q111)+Q89)*Q$66,15) -> 3141.262343 | R65: =IF(((NORMSINV(Assumptions!C9)*R111)+R89)*R$66>=15,((NORMSINV(Assumptions!C9)*R111)+R89)*R$66,15) -> 3209.378744 | S65: =IF(((NORMSINV(Assumptions!C9)*S111)+S89)*S$66>=15,((NORMSINV(Assumptions!C9)*S111)+S89)*S$66,15) -> 3353.42806 | T65: =IF(((NORMSINV(Assumptions!C9)*T111)+T89)*T$66>=15,((NORMSINV(Assumptions!C9)*T111)+T89)*T$66,15) -> 3461.002406 | U65: =IF(((NORMSINV(Assumptions!C9)*U111)+U89)*U$66>=15,((NORMSINV(Assumptions!C9)*U111)+U89)*U$66,15) -> 3036.08832 | V65: =IF(((NORMSINV(Assumptions!C9)*V111)+V89)*V$66>=15,((NORMSINV(Assumptions!C9)*V111)+V89)*V$66,15) -> 3223.316543 | W65: =IF(((NORMSINV(Assumptions!C9)*W111)+W89)*W$66>=15,((NORMSINV(Assumptions!C9)*W111)+W89)*W$66,15) -> 3417.837732 | X65: =IF(((NORMSINV(Assumptions!C9)*X111)+X89)*X$66>=15,((NORMSINV(Assumptions!C9)*X111)+X89)*X$66,15) -> 3530.539097 | Y65: =IF(((NORMSINV(Assumptions!C9)*Y111)+Y89)*Y$66>=15,((NORMSINV(Assumptions!C9)*Y111)+Y89)*Y$66,15) -> 3342.942615 | Z65: =IF(((NORMSINV(Assumptions!C9)*Z111)+Z89)*Z$66>=15,((NORMSINV(Assumptions!C9)*Z111)+Z89)*Z$66,15) -> 3047.758976 | AA65: =IF(((NORMSINV(Assumptions!C9)*AA111)+AA89)*AA$66>=15,((NORMSINV(Assumptions!C9)*AA111)+AA89)*AA$66,15) -> 2772.802738 | AB65: =IF(((NORMSINV(Assumptions!C9)*AB111)+AB89)*AB$66>=15,((NORMSINV(Assumptions!C9)*AB111)+AB89)*AB$66,15) -> 3329.800788 | AC65: =IF(((NORMSINV(Assumptions!C9)*AC111)+AC89)*AC$66>=15,((NORMSINV(Assumptions!C9)*AC111)+AC89)*AC$66,15) -> 2955.187572 | AD65: =IF(((NORMSINV(Assumptions!C9)*AD111)+AD89)*AD$66>=15,((NORMSINV(Assumptions!C9)*AD111)+AD89)*AD$66,15) -> 2842.681089 | AE65: =IF(((NORMSINV(Assumptions!C9)*AE111)+AE89)*AE$66>=15,((NORMSINV(Assumptions!C9)*AE111)+AE89)*AE$66,15) -> 2777.963652 | AF65: =IF(((NORMSINV(Assumptions!C9)*AF111)+AF89)*AF$66>=15,((NORMSINV(Assumptions!C9)*AF111)+AF89)*AF$66,15) -> 3165.072973 | AG65: =IF(((NORMSINV(Assumptions!C9)*AG111)+AG89)*AG$66>=15,((NORMSINV(Assumptions!C9)*AG111)+AG89)*AG$66,15) -> 3220.034125 | AH65: =IF(((NORMSINV(Assumptions!C9)*AH111)+AH89)*AH$66>=15,((NORMSINV(Assumptions!C9)*AH111)+AH89)*AH$66,15) -> 3142.053471 | AI65: =IF(((NORMSINV(Assumptions!C9)*AI111)+AI89)*AI$66>=15,((NORMSINV(Assumptions!C9)*AI111)+AI89)*AI$66,15) -> 3127.33325 | AJ65: =IF(((NORMSINV(Assumptions!C9)*AJ111)+AJ89)*AJ$66>=15,((NORMSINV(Assumptions!C9)*AJ111)+AJ89)*AJ$66,15) -> 2966.132844 | AK65: =IF(((NORMSINV(Assumptions!C9)*AK111)+AK89)*AK$66>=15,((NORMSINV(Assumptions!C9)*AK111)+AK89)*AK$66,15) -> 2827.43996 | AL65: =IF(((NORMSINV(Assumptions!C9)*AL111)+AL89)*AL$66>=15,((NORMSINV(Assumptions!C9)*AL111)+AL89)*AL$66,15) -> 2673.156234 | AM65: =IF(((NORMSINV(Assumptions!C9)*AM111)+AM89)*AM$66>=15,((NORMSINV(Assumptions!C9)*AM111)+AM89)*AM$66,15) -> 2525.423439 | AN65: =IF(((NORMSINV(Assumptions!C9)*AN111)+AN89)*AN$66>=15,((NORMSINV(Assumptions!C9)*AN111)+AN89)*AN$66,15) -> 2274.154299 | AO65: =IF(((NORMSINV(Assumptions!C9)*AO111)+AO89)*AO$66>=15,((NORMSINV(Assumptions!C9)*AO111)+AO89)*AO$66,15) -> 2400.692083 | AP65: =IF(((NORMSINV(Assumptions!C9)*AP111)+AP89)*AP$66>=15,((NORMSINV(Assumptions!C9)*AP111)+AP89)*AP$66,15) -> 2279.109728 | AQ65: =IF(((NORMSINV(Assumptions!C9)*AQ111)+AQ89)*AQ$66>=15,((NORMSINV(Assumptions!C9)*AQ111)+AQ89)*AQ$66,15) -> 2499.669363 | AR65: =IF(((NORMSINV(Assumptions!C9)*AR111)+AR89)*AR$66>=15,((NORMSINV(Assumptions!C9)*AR111)+AR89)*AR$66,15) -> 2324.045541 | AS65: =IF(((NORMSINV(Assumptions!C9)*AS111)+AS89)*AS$66>=15,((NORMSINV(Assumptions!C9)*AS111)+AS89)*AS$66,15) -> 2232.455704 | AT65: =IF(((NORMSINV(Assumptions!C9)*AT111)+AT89)*AT$66>=15,((NORMSINV(Assumptions!C9)*AT111)+AT89)*AT$66,15) -> 1947.872015 | AU65: =IF(((NORMSINV(Assumptions!C9)*AU111)+AU89)*AU$66>=15,((NORMSINV(Assumptions!C9)*AU111)+AU89)*AU$66,15) -> 1909.578859 | AV65: =IF(((NORMSINV(Assumptions!C9)*AV111)+AV89)*AV$66>=15,((NORMSINV(Assumptions!C9)*AV111)+AV89)*AV$66,15) -> 1990.055956 | AW65: =IF(((NORMSINV(Assumptions!C9)*AW111)+AW89)*AW$66>=15,((NORMSINV(Assumptions!C9)*AW111)+AW89)*AW$66,15) -> 2094.704548 | AX65: =IF(((NORMSINV(Assumptions!C9)*AX111)+AX89)*AX$66>=15,((NORMSINV(Assumptions!C9)*AX111)+AX89)*AX$66,15) -> 2176.731765 | AY65: =IF(((NORMSINV(Assumptions!C9)*AY111)+AY89)*AY$66>=15,((NORMSINV(Assumptions!C9)*AY111)+AY89)*AY$66,15) -> 2412.44841 | AZ65: =IF(((NORMSINV(Assumptions!C9)*AZ111)+AZ89)*AZ$66>=15,((NORMSINV(Assumptions!C9)*AZ111)+AZ89)*AZ$66,15) -> 2171.839649 | BA65: =IF(((NORMSINV(Assumptions!C9)*BA111)+BA89)*BA$66>=15,((NORMSINV(Assumptions!C9)*BA111)+BA89)*BA$66,15) -> 2189.574062 | BB65: =IF(((NORMSINV(Assumptions!C9)*BB111)+BB89)*BB$66>=15,((NORMSINV(Assumptions!C9)*BB111)+BB89)*BB$66,15) -> 2145.907898 | BC65: =IF(((NORMSINV(Assumptions!C9)*BC111)+BC89)*BC$66>=15,((NORMSINV(Assumptions!C9)*BC111)+BC89)*BC$66,15) -> 2186.570499 | BD65: =IF(((NORMSINV(Assumptions!C9)*BD111)+BD89)*BD$66>=15,((NORMSINV(Assumptions!C9)*BD111)+BD89)*BD$66,15) -> 2483.280088 | BE65: =IF(((NORMSINV(Assumptions!C9)*BE111)+BE89)*BE$66>=15,((NORMSINV(Assumptions!C9)*BE111)+BE89)*BE$66,15) -> 2336.149128 | BF65: =IF(((NORMSINV(Assumptions!C9)*BF111)+BF89)*BF$66>=15,((NORMSINV(Assumptions!C9)*BF111)+BF89)*BF$66,15) -> 2170.743659 | BG65: =IF(((NORMSINV(Assumptions!C9)*BG111)+BG89)*BG$66>=15,((NORMSINV(Assumptions!C9)*BG111)+BG89)*BG$66,15) -> 1979.009085 | BH65: =IF(((NORMSINV(Assumptions!C9)*BH111)+BH89)*BH$66>=15,((NORMSINV(Assumptions!C9)*BH111)+BH89)*BH$66,15) -> 1950.079736 | BI65: =IF(((NORMSINV(Assumptions!C9)*BI111)+BI89)*BI$66>=15,((NORMSINV(Assumptions!C9)*BI111)+BI89)*BI$66,15) -> 1617.474949 | BJ65: =IF(((NORMSINV(Assumptions!C9)*BJ111)+BJ89)*BJ$66>=15,((NORMSINV(Assumptions!C9)*BJ111)+BJ89)*BJ$66,15) -> 1548.243842 | BK65: =IF(((NORMSINV(Assumptions!C9)*BK111)+BK89)*BK$66>=15,((NORMSINV(Assumptions!C9)*BK111)+BK89)*BK$66,15) -> 1213.110588 | BL65: =IF(((NORMSINV(Assumptions!C9)*BL111)+BL89)*BL$66>=15,((NORMSINV(Assumptions!C9)*BL111)+BL89)*BL$66,15) -> 1067.499828 | BM65: =IF(((NORMSINV(Assumptions!C9)*BM111)+BM89)*BM$66>=15,((NORMSINV(Assumptions!C9)*BM111)+BM89)*BM$66,15) -> 1083.638765 | BN65: =IF(((NORMSINV(Assumptions!C9)*BN111)+BN89)*BN$66>=15,((NORMSINV(Assumptions!C9)*BN111)+BN89)*BN$66,15) -> 758.5763655 | BO65: =IF(((NORMSINV(Assumptions!C9)*BO111)+BO89)*BO$66>=15,((NORMSINV(Assumptions!C9)*BO111)+BO89)*BO$66,15) -> 828.912957 | BP65: =IF(((NORMSINV(Assumptions!C9)*BP111)+BP89)*BP$66>=15,((NORMSINV(Assumptions!C9)*BP111)+BP89)*BP$66,15) -> 948.498099 | BQ65: =IF(((NORMSINV(Assumptions!C9)*BQ111)+BQ89)*BQ$66>=15,((NORMSINV(Assumptions!C9)*BQ111)+BQ89)*BQ$66,15) -> 889.4667256 | BR65: =IF(((NORMSINV(Assumptions!C9)*BR111)+BR89)*BR$66>=15,((NORMSINV(Assumptions!C9)*BR111)+BR89)*BR$66,15) -> 683.1948648 | BS65: =IF(((NORMSINV(Assumptions!C9)*BS111)+BS89)*BS$66>=15,((NORMSINV(Assumptions!C9)*BS111)+BS89)*BS$66,15) -> 430.6676991 | BT65: =IF(((NORMSINV(Assumptions!C9)*BT111)+BT89)*BT$66>=15,((NORMSINV(Assumptions!C9)*BT111)+BT89)*BT$66,15) -> 328.9943308 | BU65: =IF(((NORMSINV(Assumptions!C9)*BU111)+BU89)*BU$66>=15,((NORMSINV(Assumptions!C9)*BU111)+BU89)*BU$66,15) -> 244.9729218 | BV65: =IF(((NORMSINV(Assumptions!C9)*BV111)+BV89)*BV$66>=15,((NORMSINV(Assumptions!C9)*BV111)+BV89)*BV$66,15) -> 320.9656335
C66: KOKKU | D66: 6695.6 | E66: 7132.6 | F66: 7338 | G66: 7433.8 | H66: 7371 | I66: 7264.8 | J66: 7140.6 | K66: 7046.6 | L66: 6970.2 | M66: 6899.2 | N66: 6743 | O66: 6618.4 | P66: 6535.4 | Q66: 6486.8 | R66: 6421.8 | S66: 6453.6 | T66: 6462.8 | U66: 6479 | V66: 6561.4 | W66: 6684.8 | X66: 6740.4 | Y66: 6757 | Z66: 6687 | AA66: 6499.2 | AB66: 6329.6 | AC66: 6207.2 | AD66: 6127 | AE66: 6131.6 | AF66: 6230 | AG66: 6285.6 | AH66: 6293.6 | AI66: 6283.8 | AJ66: 6238.6 | AK66: 6155.4 | AL66: 6114.4 | AM66: 6074.4 | AN66: 5965.8 | AO66: 5903.2 | AP66: 5849.6 | AQ66: 5754.8 | AR66: 5741.2 | AS66: 5809.8 | AT66: 5793 | AU66: 5732.2 | AV66: 5584.4 | AW66: 5424.8 | AX66: 5289.8 | AY66: 5392.4 | AZ66: 5603.6 | BA66: 5751 | BB66: 5871 | BC66: 5976.8 | BD66: 5882.4 | BE66: 5668.6 | BF66: 5585 | BG66: 5397.6 | BH66: 5265.6 | BI66: 5195.8 | BJ66: 5150.2 | BK66: 5062.8 | BL66: 5001.4 | BM66: 4914.8 | BN66: 4669.8 | BO66: 4415.8 | BP66: 4151 | BQ66: 3901 | BR66: 3632 | BS66: 3358.8 | BT66: 3062.2 | BU66: 2643.8 | BV66: 2232
A67: Woman | B67: Non-ethnic | C67: A) Basic education or lower | G67: =IF(((NORMSINV(Assumptions!C9)*G113)+G91)*G$71>=15,((NORMSINV(Assumptions!C9)*G113)+G91)*G$71,15) -> 589.8813251 | H67: =IF(((NORMSINV(Assumptions!C9)*H113)+H91)*H$71>=15,((NORMSINV(Assumptions!C9)*H113)+H91)*H$71,15) -> 109.6820358 | I67: =IF(((NORMSINV(Assumptions!C9)*I113)+I91)*I$71>=15,((NORMSINV(Assumptions!C9)*I113)+I91)*I$71,15) -> 15 | J67: =IF(((NORMSINV(Assumptions!C9)*J113)+J91)*J$71>=15,((NORMSINV(Assumptions!C9)*J113)+J91)*J$71,15) -> 74.47802928 | K67: =IF(((NORMSINV(Assumptions!C9)*K113)+K91)*K$71>=15,((NORMSINV(Assumptions!C9)*K113)+K91)*K$71,15) -> 44.87205809 | L67: =IF(((NORMSINV(Assumptions!C9)*L113)+L91)*L$71>=15,((NORMSINV(Assumptions!C9)*L113)+L91)*L$71,15) -> 20.75178086 | M67: =IF(((NORMSINV(Assumptions!C9)*M113)+M91)*M$71>=15,((NORMSINV(Assumptions!C9)*M113)+M91)*M$71,15) -> 22.70375807 | N67: =IF(((NORMSINV(Assumptions!C9)*N113)+N91)*N$71>=15,((NORMSINV(Assumptions!C9)*N113)+N91)*N$71,15) -> 33.58874827 | O67: =IF(((NORMSINV(Assumptions!C9)*O113)+O91)*O$71>=15,((NORMSINV(Assumptions!C9)*O113)+O91)*O$71,15) -> 30.59847106 | P67: =IF(((NORMSINV(Assumptions!C9)*P113)+P91)*P$71>=15,((NORMSINV(Assumptions!C9)*P113)+P91)*P$71,15) -> 15 | Q67: =IF(((NORMSINV(Assumptions!C9)*Q113)+Q91)*Q$71>=15,((NORMSINV(Assumptions!C9)*Q113)+Q91)*Q$71,15) -> 15 | R67: =IF(((NORMSINV(Assumptions!C9)*R113)+R91)*R$71>=15,((NORMSINV(Assumptions!C9)*R113)+R91)*R$71,15) -> 15 | S67: =IF(((NORMSINV(Assumptions!C9)*S113)+S91)*S$71>=15,((NORMSINV(Assumptions!C9)*S113)+S91)*S$71,15) -> 15 | T67: =IF(((NORMSINV(Assumptions!C9)*T113)+T91)*T$71>=15,((NORMSINV(Assumptions!C9)*T113)+T91)*T$71,15) -> 15 | U67: =IF(((NORMSINV(Assumptions!C9)*U113)+U91)*U$71>=15,((NORMSINV(Assumptions!C9)*U113)+U91)*U$71,15) -> 92.00078415 | V67: =IF(((NORMSINV(Assumptions!C9)*V113)+V91)*V$71>=15,((NORMSINV(Assumptions!C9)*V113)+V91)*V$71,15) -> 15 | W67: =IF(((NORMSINV(Assumptions!C9)*W113)+W91)*W$71>=15,((NORMSINV(Assumptions!C9)*W113)+W91)*W$71,15) -> 15 | X67: =IF(((NORMSINV(Assumptions!C9)*X113)+X91)*X$71>=15,((NORMSINV(Assumptions!C9)*X113)+X91)*X$71,15) -> 15 | Y67: =IF(((NORMSINV(Assumptions!C9)*Y113)+Y91)*Y$71>=15,((NORMSINV(Assumptions!C9)*Y113)+Y91)*Y$71,15) -> 15 | Z67: =IF(((NORMSINV(Assumptions!C9)*Z113)+Z91)*Z$71>=15,((NORMSINV(Assumptions!C9)*Z113)+Z91)*Z$71,15) -> 15 | AA67: =IF(((NORMSINV(Assumptions!C9)*AA113)+AA91)*AA$71>=15,((NORMSINV(Assumptions!C9)*AA113)+AA91)*AA$71,15) -> 15 | AB67: =IF(((NORMSINV(Assumptions!C9)*AB113)+AB91)*AB$71>=15,((NORMSINV(Assumptions!C9)*AB113)+AB91)*AB$71,15) -> 15 | AC67: =IF(((NORMSINV(Assumptions!C9)*AC113)+AC91)*AC$71>=15,((NORMSINV(Assumptions!C9)*AC113)+AC91)*AC$71,15) -> 43.79128403 | AD67: =IF(((NORMSINV(Assumptions!C9)*AD113)+AD91)*AD$71>=15,((NORMSINV(Assumptions!C9)*AD113)+AD91)*AD$71,15) -> 15 | AE67: =IF(((NORMSINV(Assumptions!C9)*AE113)+AE91)*AE$71>=15,((NORMSINV(Assumptions!C9)*AE113)+AE91)*AE$71,15) -> 15 | AF67: =IF(((NORMSINV(Assumptions!C9)*AF113)+AF91)*AF$71>=15,((NORMSINV(Assumptions!C9)*AF113)+AF91)*AF$71,15) -> 15 | AG67: =IF(((NORMSINV(Assumptions!C9)*AG113)+AG91)*AG$71>=15,((NORMSINV(Assumptions!C9)*AG113)+AG91)*AG$71,15) -> 15 | AH67: =IF(((NORMSINV(Assumptions!C9)*AH113)+AH91)*AH$71>=15,((NORMSINV(Assumptions!C9)*AH113)+AH91)*AH$71,15) -> 15 | AI67: =IF(((NORMSINV(Assumptions!C9)*AI113)+AI91)*AI$71>=15,((NORMSINV(Assumptions!C9)*AI113)+AI91)*AI$71,15) -> 15 | AJ67: =IF(((NORMSINV(Assumptions!C9)*AJ113)+AJ91)*AJ$71>=15,((NORMSINV(Assumptions!C9)*AJ113)+AJ91)*AJ$71,15) -> 15 | AK67: =IF(((NORMSINV(Assumptions!C9)*AK113)+AK91)*AK$71>=15,((NORMSINV(Assumptions!C9)*AK113)+AK91)*AK$71,15) -> 43.11260868 | AL67: =IF(((NORMSINV(Assumptions!C9)*AL113)+AL91)*AL$71>=15,((NORMSINV(Assumptions!C9)*AL113)+AL91)*AL$71,15) -> 39.12363101 | AM67: =IF(((NORMSINV(Assumptions!C9)*AM113)+AM91)*AM$71>=15,((NORMSINV(Assumptions!C9)*AM113)+AM91)*AM$71,15) -> 28.50638626 | AN67: =IF(((NORMSINV(Assumptions!C9)*AN113)+AN91)*AN$71>=15,((NORMSINV(Assumptions!C9)*AN113)+AN91)*AN$71,15) -> 24.15237656 | AO67: =IF(((NORMSINV(Assumptions!C9)*AO113)+AO91)*AO$71>=15,((NORMSINV(Assumptions!C9)*AO113)+AO91)*AO$71,15) -> 20.78688221 | AP67: =IF(((NORMSINV(Assumptions!C9)*AP113)+AP91)*AP$71>=15,((NORMSINV(Assumptions!C9)*AP113)+AP91)*AP$71,15) -> 26.29630437 | AQ67: =IF(((NORMSINV(Assumptions!C9)*AQ113)+AQ91)*AQ$71>=15,((NORMSINV(Assumptions!C9)*AQ113)+AQ91)*AQ$71,15) -> 27.20529147 | AR67: =IF(((NORMSINV(Assumptions!C9)*AR113)+AR91)*AR$71>=15,((NORMSINV(Assumptions!C9)*AR113)+AR91)*AR$71,15) -> 15 | AS67: =IF(((NORMSINV(Assumptions!C9)*AS113)+AS91)*AS$71>=15,((NORMSINV(Assumptions!C9)*AS113)+AS91)*AS$71,15) -> 15 | AT67: =IF(((NORMSINV(Assumptions!C9)*AT113)+AT91)*AT$71>=15,((NORMSINV(Assumptions!C9)*AT113)+AT91)*AT$71,15) -> 66.99123236 | AU67: =IF(((NORMSINV(Assumptions!C9)*AU113)+AU91)*AU$71>=15,((NORMSINV(Assumptions!C9)*AU113)+AU91)*AU$71,15) -> 37.00437338 | AV67: =IF(((NORMSINV(Assumptions!C9)*AV113)+AV91)*AV$71>=15,((NORMSINV(Assumptions!C9)*AV113)+AV91)*AV$71,15) -> 42.15883645 | AW67: =IF(((NORMSINV(Assumptions!C9)*AW113)+AW91)*AW$71>=15,((NORMSINV(Assumptions!C9)*AW113)+AW91)*AW$71,15) -> 33.56127766 | AX67: =IF(((NORMSINV(Assumptions!C9)*AX113)+AX91)*AX$71>=15,((NORMSINV(Assumptions!C9)*AX113)+AX91)*AX$71,15) -> 26.10062275 | AY67: =IF(((NORMSINV(Assumptions!C9)*AY113)+AY91)*AY$71>=15,((NORMSINV(Assumptions!C9)*AY113)+AY91)*AY$71,15) -> 114.9912432 | AZ67: =IF(((NORMSINV(Assumptions!C9)*AZ113)+AZ91)*AZ$71>=15,((NORMSINV(Assumptions!C9)*AZ113)+AZ91)*AZ$71,15) -> 135.2200824 | BA67: =IF(((NORMSINV(Assumptions!C9)*BA113)+BA91)*BA$71>=15,((NORMSINV(Assumptions!C9)*BA113)+BA91)*BA$71,15) -> 165.7080498 | BB67: =IF(((NORMSINV(Assumptions!C9)*BB113)+BB91)*BB$71>=15,((NORMSINV(Assumptions!C9)*BB113)+BB91)*BB$71,15) -> 244.4807068 | BC67: =IF(((NORMSINV(Assumptions!C9)*BC113)+BC91)*BC$71>=15,((NORMSINV(Assumptions!C9)*BC113)+BC91)*BC$71,15) -> 221.3413255 | BD67: =IF(((NORMSINV(Assumptions!C9)*BD113)+BD91)*BD$71>=15,((NORMSINV(Assumptions!C9)*BD113)+BD91)*BD$71,15) -> 212.2265344 | BE67: =IF(((NORMSINV(Assumptions!C9)*BE113)+BE91)*BE$71>=15,((NORMSINV(Assumptions!C9)*BE113)+BE91)*BE$71,15) -> 301.6782876 | BF67: =IF(((NORMSINV(Assumptions!C9)*BF113)+BF91)*BF$71>=15,((NORMSINV(Assumptions!C9)*BF113)+BF91)*BF$71,15) -> 345.5161952 | BG67: =IF(((NORMSINV(Assumptions!C9)*BG113)+BG91)*BG$71>=15,((NORMSINV(Assumptions!C9)*BG113)+BG91)*BG$71,15) -> 438.6565707 | BH67: =IF(((NORMSINV(Assumptions!C9)*BH113)+BH91)*BH$71>=15,((NORMSINV(Assumptions!C9)*BH113)+BH91)*BH$71,15) -> 598.1808509 | BI67: =IF(((NORMSINV(Assumptions!C9)*BI113)+BI91)*BI$71>=15,((NORMSINV(Assumptions!C9)*BI113)+BI91)*BI$71,15) -> 676.5472287 | BJ67: =IF(((NORMSINV(Assumptions!C9)*BJ113)+BJ91)*BJ$71>=15,((NORMSINV(Assumptions!C9)*BJ113)+BJ91)*BJ$71,15) -> 770.5128473 | BK67: =IF(((NORMSINV(Assumptions!C9)*BK113)+BK91)*BK$71>=15,((NORMSINV(Assumptions!C9)*BK113)+BK91)*BK$71,15) -> 1030.186686 | BL67: =IF(((NORMSINV(Assumptions!C9)*BL113)+BL91)*BL$71>=15,((NORMSINV(Assumptions!C9)*BL113)+BL91)*BL$71,15) -> 967.6581371 | BM67: =IF(((NORMSINV(Assumptions!C9)*BM113)+BM91)*BM$71>=15,((NORMSINV(Assumptions!C9)*BM113)+BM91)*BM$71,15) -> 928.3558381 | BN67: =IF(((NORMSINV(Assumptions!C9)*BN113)+BN91)*BN$71>=15,((NORMSINV(Assumptions!C9)*BN113)+BN91)*BN$71,15) -> 884.7033237 | BO67: =IF(((NORMSINV(Assumptions!C9)*BO113)+BO91)*BO$71>=15,((NORMSINV(Assumptions!C9)*BO113)+BO91)*BO$71,15) -> 902.9107513 | BP67: =IF(((NORMSINV(Assumptions!C9)*BP113)+BP91)*BP$71>=15,((NORMSINV(Assumptions!C9)*BP113)+BP91)*BP$71,15) -> 866.2861605 | BQ67: =IF(((NORMSINV(Assumptions!C9)*BQ113)+BQ91)*BQ$71>=15,((NORMSINV(Assumptions!C9)*BQ113)+BQ91)*BQ$71,15) -> 600.4702994 | BR67: =IF(((NORMSINV(Assumptions!C9)*BR113)+BR91)*BR$71>=15,((NORMSINV(Assumptions!C9)*BR113)+BR91)*BR$71,15) -> 541.4315677 | BS67: =IF(((NORMSINV(Assumptions!C9)*BS113)+BS91)*BS$71>=15,((NORMSINV(Assumptions!C9)*BS113)+BS91)*BS$71,15) -> 389.9768539 | BT67: =IF(((NORMSINV(Assumptions!C9)*BT113)+BT91)*BT$71>=15,((NORMSINV(Assumptions!C9)*BT113)+BT91)*BT$71,15) -> 474.7431031 | BU67: =IF(((NORMSINV(Assumptions!C9)*BU113)+BU91)*BU$71>=15,((NORMSINV(Assumptions!C9)*BU113)+BU91)*BU$71,15) -> 596.4322988 | BV67: =IF(((NORMSINV(Assumptions!C9)*BV113)+BV91)*BV$71>=15,((NORMSINV(Assumptions!C9)*BV113)+BV91)*BV$71,15) -> 378.7331802
A68: Woman | B68: Non-ethnic | C68: B) Lower secondary education | G68: =IF(((NORMSINV(Assumptions!C9)*G114)+G92)*G$71>=15,((NORMSINV(Assumptions!C9)*G114)+G92)*G$71,15) -> 2476.100205 | H68: =IF(((NORMSINV(Assumptions!C9)*H114)+H92)*H$71>=15,((NORMSINV(Assumptions!C9)*H114)+H92)*H$71,15) -> 3036.515864 | I68: =IF(((NORMSINV(Assumptions!C9)*I114)+I92)*I$71>=15,((NORMSINV(Assumptions!C9)*I114)+I92)*I$71,15) -> 2712.32681 | J68: =IF(((NORMSINV(Assumptions!C9)*J114)+J92)*J$71>=15,((NORMSINV(Assumptions!C9)*J114)+J92)*J$71,15) -> 1143.992531 | K68: =IF(((NORMSINV(Assumptions!C9)*K114)+K92)*K$71>=15,((NORMSINV(Assumptions!C9)*K114)+K92)*K$71,15) -> 604.5194178 | L68: =IF(((NORMSINV(Assumptions!C9)*L114)+L92)*L$71>=15,((NORMSINV(Assumptions!C9)*L114)+L92)*L$71,15) -> 391.545406 | M68: =IF(((NORMSINV(Assumptions!C9)*M114)+M92)*M$71>=15,((NORMSINV(Assumptions!C9)*M114)+M92)*M$71,15) -> 334.4080674 | N68: =IF(((NORMSINV(Assumptions!C9)*N114)+N92)*N$71>=15,((NORMSINV(Assumptions!C9)*N114)+N92)*N$71,15) -> 316.8593018 | O68: =IF(((NORMSINV(Assumptions!C9)*O114)+O92)*O$71>=15,((NORMSINV(Assumptions!C9)*O114)+O92)*O$71,15) -> 502.2978323 | P68: =IF(((NORMSINV(Assumptions!C9)*P114)+P92)*P$71>=15,((NORMSINV(Assumptions!C9)*P114)+P92)*P$71,15) -> 783.3588502 | Q68: =IF(((NORMSINV(Assumptions!C9)*Q114)+Q92)*Q$71>=15,((NORMSINV(Assumptions!C9)*Q114)+Q92)*Q$71,15) -> 724.1171877 | R68: =IF(((NORMSINV(Assumptions!C9)*R114)+R92)*R$71>=15,((NORMSINV(Assumptions!C9)*R114)+R92)*R$71,15) -> 497.7200696 | S68: =IF(((NORMSINV(Assumptions!C9)*S114)+S92)*S$71>=15,((NORMSINV(Assumptions!C9)*S114)+S92)*S$71,15) -> 455.9032578 | T68: =IF(((NORMSINV(Assumptions!C9)*T114)+T92)*T$71>=15,((NORMSINV(Assumptions!C9)*T114)+T92)*T$71,15) -> 465.2148898 | U68: =IF(((NORMSINV(Assumptions!C9)*U114)+U92)*U$71>=15,((NORMSINV(Assumptions!C9)*U114)+U92)*U$71,15) -> 267.6563748 | V68: =IF(((NORMSINV(Assumptions!C9)*V114)+V92)*V$71>=15,((NORMSINV(Assumptions!C9)*V114)+V92)*V$71,15) -> 553.4590022 | W68: =IF(((NORMSINV(Assumptions!C9)*W114)+W92)*W$71>=15,((NORMSINV(Assumptions!C9)*W114)+W92)*W$71,15) -> 443.0121065 | X68: =IF(((NORMSINV(Assumptions!C9)*X114)+X92)*X$71>=15,((NORMSINV(Assumptions!C9)*X114)+X92)*X$71,15) -> 326.7752138 | Y68: =IF(((NORMSINV(Assumptions!C9)*Y114)+Y92)*Y$71>=15,((NORMSINV(Assumptions!C9)*Y114)+Y92)*Y$71,15) -> 204.741057 | Z68: =IF(((NORMSINV(Assumptions!C9)*Z114)+Z92)*Z$71>=15,((NORMSINV(Assumptions!C9)*Z114)+Z92)*Z$71,15) -> 217.1509554 | AA68: =IF(((NORMSINV(Assumptions!C9)*AA114)+AA92)*AA$71>=15,((NORMSINV(Assumptions!C9)*AA114)+AA92)*AA$71,15) -> 99.87331605 | AB68: =IF(((NORMSINV(Assumptions!C9)*AB114)+AB92)*AB$71>=15,((NORMSINV(Assumptions!C9)*AB114)+AB92)*AB$71,15) -> 150.2101201 | AC68: =IF(((NORMSINV(Assumptions!C9)*AC114)+AC92)*AC$71>=15,((NORMSINV(Assumptions!C9)*AC114)+AC92)*AC$71,15) -> 59.65036572 | AD68: =IF(((NORMSINV(Assumptions!C9)*AD114)+AD92)*AD$71>=15,((NORMSINV(Assumptions!C9)*AD114)+AD92)*AD$71,15) -> 194.6958472 | AE68: =IF(((NORMSINV(Assumptions!C9)*AE114)+AE92)*AE$71>=15,((NORMSINV(Assumptions!C9)*AE114)+AE92)*AE$71,15) -> 106.0178003 | AF68: =IF(((NORMSINV(Assumptions!C9)*AF114)+AF92)*AF$71>=15,((NORMSINV(Assumptions!C9)*AF114)+AF92)*AF$71,15) -> 92.12333442 | AG68: =IF(((NORMSINV(Assumptions!C9)*AG114)+AG92)*AG$71>=15,((NORMSINV(Assumptions!C9)*AG114)+AG92)*AG$71,15) -> 140.9526565 | AH68: =IF(((NORMSINV(Assumptions!C9)*AH114)+AH92)*AH$71>=15,((NORMSINV(Assumptions!C9)*AH114)+AH92)*AH$71,15) -> 170.1785293 | AI68: =IF(((NORMSINV(Assumptions!C9)*AI114)+AI92)*AI$71>=15,((NORMSINV(Assumptions!C9)*AI114)+AI92)*AI$71,15) -> 138.0763788 | AJ68: =IF(((NORMSINV(Assumptions!C9)*AJ114)+AJ92)*AJ$71>=15,((NORMSINV(Assumptions!C9)*AJ114)+AJ92)*AJ$71,15) -> 146.4730299 | AK68: =IF(((NORMSINV(Assumptions!C9)*AK114)+AK92)*AK$71>=15,((NORMSINV(Assumptions!C9)*AK114)+AK92)*AK$71,15) -> 149.4358742 | AL68: =IF(((NORMSINV(Assumptions!C9)*AL114)+AL92)*AL$71>=15,((NORMSINV(Assumptions!C9)*AL114)+AL92)*AL$71,15) -> 321.8700237 | AM68: =IF(((NORMSINV(Assumptions!C9)*AM114)+AM92)*AM$71>=15,((NORMSINV(Assumptions!C9)*AM114)+AM92)*AM$71,15) -> 381.502429 | AN68: =IF(((NORMSINV(Assumptions!C9)*AN114)+AN92)*AN$71>=15,((NORMSINV(Assumptions!C9)*AN114)+AN92)*AN$71,15) -> 322.1916345 | AO68: =IF(((NORMSINV(Assumptions!C9)*AO114)+AO92)*AO$71>=15,((NORMSINV(Assumptions!C9)*AO114)+AO92)*AO$71,15) -> 467.0381123 | AP68: =IF(((NORMSINV(Assumptions!C9)*AP114)+AP92)*AP$71>=15,((NORMSINV(Assumptions!C9)*AP114)+AP92)*AP$71,15) -> 368.8823062 | AQ68: =IF(((NORMSINV(Assumptions!C9)*AQ114)+AQ92)*AQ$71>=15,((NORMSINV(Assumptions!C9)*AQ114)+AQ92)*AQ$71,15) -> 424.9362323 | AR68: =IF(((NORMSINV(Assumptions!C9)*AR114)+AR92)*AR$71>=15,((NORMSINV(Assumptions!C9)*AR114)+AR92)*AR$71,15) -> 540.0493792 | AS68: =IF(((NORMSINV(Assumptions!C9)*AS114)+AS92)*AS$71>=15,((NORMSINV(Assumptions!C9)*AS114)+AS92)*AS$71,15) -> 611.5854097 | AT68: =IF(((NORMSINV(Assumptions!C9)*AT114)+AT92)*AT$71>=15,((NORMSINV(Assumptions!C9)*AT114)+AT92)*AT$71,15) -> 743.838327 | AU68: =IF(((NORMSINV(Assumptions!C9)*AU114)+AU92)*AU$71>=15,((NORMSINV(Assumptions!C9)*AU114)+AU92)*AU$71,15) -> 556.3133538 | AV68: =IF(((NORMSINV(Assumptions!C9)*AV114)+AV92)*AV$71>=15,((NORMSINV(Assumptions!C9)*AV114)+AV92)*AV$71,15) -> 596.1300877 | AW68: =IF(((NORMSINV(Assumptions!C9)*AW114)+AW92)*AW$71>=15,((NORMSINV(Assumptions!C9)*AW114)+AW92)*AW$71,15) -> 565.4863849 | AX68: =IF(((NORMSINV(Assumptions!C9)*AX114)+AX92)*AX$71>=15,((NORMSINV(Assumptions!C9)*AX114)+AX92)*AX$71,15) -> 289.5365253 | AY68: =IF(((NORMSINV(Assumptions!C9)*AY114)+AY92)*AY$71>=15,((NORMSINV(Assumptions!C9)*AY114)+AY92)*AY$71,15) -> 306.6732043 | AZ68: =IF(((NORMSINV(Assumptions!C9)*AZ114)+AZ92)*AZ$71>=15,((NORMSINV(Assumptions!C9)*AZ114)+AZ92)*AZ$71,15) -> 307.9977733 | BA68: =IF(((NORMSINV(Assumptions!C9)*BA114)+BA92)*BA$71>=15,((NORMSINV(Assumptions!C9)*BA114)+BA92)*BA$71,15) -> 390.2183655 | BB68: =IF(((NORMSINV(Assumptions!C9)*BB114)+BB92)*BB$71>=15,((NORMSINV(Assumptions!C9)*BB114)+BB92)*BB$71,15) -> 524.9793131 | BC68: =IF(((NORMSINV(Assumptions!C9)*BC114)+BC92)*BC$71>=15,((NORMSINV(Assumptions!C9)*BC114)+BC92)*BC$71,15) -> 789.0148605 | BD68: =IF(((NORMSINV(Assumptions!C9)*BD114)+BD92)*BD$71>=15,((NORMSINV(Assumptions!C9)*BD114)+BD92)*BD$71,15) -> 741.2022512 | BE68: =IF(((NORMSINV(Assumptions!C9)*BE114)+BE92)*BE$71>=15,((NORMSINV(Assumptions!C9)*BE114)+BE92)*BE$71,15) -> 1017.564464 | BF68: =IF(((NORMSINV(Assumptions!C9)*BF114)+BF92)*BF$71>=15,((NORMSINV(Assumptions!C9)*BF114)+BF92)*BF$71,15) -> 1091.092547 | BG68: =IF(((NORMSINV(Assumptions!C9)*BG114)+BG92)*BG$71>=15,((NORMSINV(Assumptions!C9)*BG114)+BG92)*BG$71,15) -> 933.4663705 | BH68: =IF(((NORMSINV(Assumptions!C9)*BH114)+BH92)*BH$71>=15,((NORMSINV(Assumptions!C9)*BH114)+BH92)*BH$71,15) -> 812.525355 | BI68: =IF(((NORMSINV(Assumptions!C9)*BI114)+BI92)*BI$71>=15,((NORMSINV(Assumptions!C9)*BI114)+BI92)*BI$71,15) -> 688.48367 | BJ68: =IF(((NORMSINV(Assumptions!C9)*BJ114)+BJ92)*BJ$71>=15,((NORMSINV(Assumptions!C9)*BJ114)+BJ92)*BJ$71,15) -> 645.7656698 | BK68: =IF(((NORMSINV(Assumptions!C9)*BK114)+BK92)*BK$71>=15,((NORMSINV(Assumptions!C9)*BK114)+BK92)*BK$71,15) -> 710.1128186 | BL68: =IF(((NORMSINV(Assumptions!C9)*BL114)+BL92)*BL$71>=15,((NORMSINV(Assumptions!C9)*BL114)+BL92)*BL$71,15) -> 759.1436045 | BM68: =IF(((NORMSINV(Assumptions!C9)*BM114)+BM92)*BM$71>=15,((NORMSINV(Assumptions!C9)*BM114)+BM92)*BM$71,15) -> 802.5597133 | BN68: =IF(((NORMSINV(Assumptions!C9)*BN114)+BN92)*BN$71>=15,((NORMSINV(Assumptions!C9)*BN114)+BN92)*BN$71,15) -> 772.5187822 | BO68: =IF(((NORMSINV(Assumptions!C9)*BO114)+BO92)*BO$71>=15,((NORMSINV(Assumptions!C9)*BO114)+BO92)*BO$71,15) -> 919.2297388 | BP68: =IF(((NORMSINV(Assumptions!C9)*BP114)+BP92)*BP$71>=15,((NORMSINV(Assumptions!C9)*BP114)+BP92)*BP$71,15) -> 998.254539 | BQ68: =IF(((NORMSINV(Assumptions!C9)*BQ114)+BQ92)*BQ$71>=15,((NORMSINV(Assumptions!C9)*BQ114)+BQ92)*BQ$71,15) -> 1009.207492 | BR68: =IF(((NORMSINV(Assumptions!C9)*BR114)+BR92)*BR$71>=15,((NORMSINV(Assumptions!C9)*BR114)+BR92)*BR$71,15) -> 977.997176 | BS68: =IF(((NORMSINV(Assumptions!C9)*BS114)+BS92)*BS$71>=15,((NORMSINV(Assumptions!C9)*BS114)+BS92)*BS$71,15) -> 768.8674154 | BT68: =IF(((NORMSINV(Assumptions!C9)*BT114)+BT92)*BT$71>=15,((NORMSINV(Assumptions!C9)*BT114)+BT92)*BT$71,15) -> 560.7096414 | BU68: =IF(((NORMSINV(Assumptions!C9)*BU114)+BU92)*BU$71>=15,((NORMSINV(Assumptions!C9)*BU114)+BU92)*BU$71,15) -> 354.3350043 | BV68: =IF(((NORMSINV(Assumptions!C9)*BV114)+BV92)*BV$71>=15,((NORMSINV(Assumptions!C9)*BV114)+BV92)*BV$71,15) -> 165.2892848
A69: Woman | B69: Non-ethnic | C69: C) Upper secondary education | H69: =IF(((NORMSINV(Assumptions!C9)*H115)+H93)*H$71>=15,((NORMSINV(Assumptions!C9)*H115)+H93)*H$71,15) -> 20.0957989 | I69: =IF(((NORMSINV(Assumptions!C9)*I115)+I93)*I$71>=15,((NORMSINV(Assumptions!C9)*I115)+I93)*I$71,15) -> 727.6604896 | J69: =IF(((NORMSINV(Assumptions!C9)*J115)+J93)*J$71>=15,((NORMSINV(Assumptions!C9)*J115)+J93)*J$71,15) -> 2332.698521 | K69: =IF(((NORMSINV(Assumptions!C9)*K115)+K93)*K$71>=15,((NORMSINV(Assumptions!C9)*K115)+K93)*K$71,15) -> 2678.191205 | L69: =IF(((NORMSINV(Assumptions!C9)*L115)+L93)*L$71>=15,((NORMSINV(Assumptions!C9)*L115)+L93)*L$71,15) -> 2634.50197 | M69: =IF(((NORMSINV(Assumptions!C9)*M115)+M93)*M$71>=15,((NORMSINV(Assumptions!C9)*M115)+M93)*M$71,15) -> 2407.29922 | N69: =IF(((NORMSINV(Assumptions!C9)*N115)+N93)*N$71>=15,((NORMSINV(Assumptions!C9)*N115)+N93)*N$71,15) -> 2073.050559 | O69: =IF(((NORMSINV(Assumptions!C9)*O115)+O93)*O$71>=15,((NORMSINV(Assumptions!C9)*O115)+O93)*O$71,15) -> 1643.818177 | P69: =IF(((NORMSINV(Assumptions!C9)*P115)+P93)*P$71>=15,((NORMSINV(Assumptions!C9)*P115)+P93)*P$71,15) -> 1363.159597 | Q69: =IF(((NORMSINV(Assumptions!C9)*Q115)+Q93)*Q$71>=15,((NORMSINV(Assumptions!C9)*Q115)+Q93)*Q$71,15) -> 1132.639309 | R69: =IF(((NORMSINV(Assumptions!C9)*R115)+R93)*R$71>=15,((NORMSINV(Assumptions!C9)*R115)+R93)*R$71,15) -> 1321.859127 | S69: =IF(((NORMSINV(Assumptions!C9)*S115)+S93)*S$71>=15,((NORMSINV(Assumptions!C9)*S115)+S93)*S$71,15) -> 1335.07515 | T69: =IF(((NORMSINV(Assumptions!C9)*T115)+T93)*T$71>=15,((NORMSINV(Assumptions!C9)*T115)+T93)*T$71,15) -> 1574.548888 | U69: =IF(((NORMSINV(Assumptions!C9)*U115)+U93)*U$71>=15,((NORMSINV(Assumptions!C9)*U115)+U93)*U$71,15) -> 1688.592395 | V69: =IF(((NORMSINV(Assumptions!C9)*V115)+V93)*V$71>=15,((NORMSINV(Assumptions!C9)*V115)+V93)*V$71,15) -> 1589.481706 | W69: =IF(((NORMSINV(Assumptions!C9)*W115)+W93)*W$71>=15,((NORMSINV(Assumptions!C9)*W115)+W93)*W$71,15) -> 1318.040156 | X69: =IF(((NORMSINV(Assumptions!C9)*X115)+X93)*X$71>=15,((NORMSINV(Assumptions!C9)*X115)+X93)*X$71,15) -> 1550.507559 | Y69: =IF(((NORMSINV(Assumptions!C9)*Y115)+Y93)*Y$71>=15,((NORMSINV(Assumptions!C9)*Y115)+Y93)*Y$71,15) -> 1707.255837 | Z69: =IF(((NORMSINV(Assumptions!C9)*Z115)+Z93)*Z$71>=15,((NORMSINV(Assumptions!C9)*Z115)+Z93)*Z$71,15) -> 1662.7294 | AA69: =IF(((NORMSINV(Assumptions!C9)*AA115)+AA93)*AA$71>=15,((NORMSINV(Assumptions!C9)*AA115)+AA93)*AA$71,15) -> 1786.91365 | AB69: =IF(((NORMSINV(Assumptions!C9)*AB115)+AB93)*AB$71>=15,((NORMSINV(Assumptions!C9)*AB115)+AB93)*AB$71,15) -> 1716.643932 | AC69: =IF(((NORMSINV(Assumptions!C9)*AC115)+AC93)*AC$71>=15,((NORMSINV(Assumptions!C9)*AC115)+AC93)*AC$71,15) -> 1593.443528 | AD69: =IF(((NORMSINV(Assumptions!C9)*AD115)+AD93)*AD$71>=15,((NORMSINV(Assumptions!C9)*AD115)+AD93)*AD$71,15) -> 1615.951446 | AE69: =IF(((NORMSINV(Assumptions!C9)*AE115)+AE93)*AE$71>=15,((NORMSINV(Assumptions!C9)*AE115)+AE93)*AE$71,15) -> 1480.328284 | AF69: =IF(((NORMSINV(Assumptions!C9)*AF115)+AF93)*AF$71>=15,((NORMSINV(Assumptions!C9)*AF115)+AF93)*AF$71,15) -> 1946.55173 | AG69: =IF(((NORMSINV(Assumptions!C9)*AG115)+AG93)*AG$71>=15,((NORMSINV(Assumptions!C9)*AG115)+AG93)*AG$71,15) -> 1933.852435 | AH69: =IF(((NORMSINV(Assumptions!C9)*AH115)+AH93)*AH$71>=15,((NORMSINV(Assumptions!C9)*AH115)+AH93)*AH$71,15) -> 2135.265452 | AI69: =IF(((NORMSINV(Assumptions!C9)*AI115)+AI93)*AI$71>=15,((NORMSINV(Assumptions!C9)*AI115)+AI93)*AI$71,15) -> 1901.655388 | AJ69: =IF(((NORMSINV(Assumptions!C9)*AJ115)+AJ93)*AJ$71>=15,((NORMSINV(Assumptions!C9)*AJ115)+AJ93)*AJ$71,15) -> 1975.09758 | AK69: =IF(((NORMSINV(Assumptions!C9)*AK115)+AK93)*AK$71>=15,((NORMSINV(Assumptions!C9)*AK115)+AK93)*AK$71,15) -> 2016.956688 | AL69: =IF(((NORMSINV(Assumptions!C9)*AL115)+AL93)*AL$71>=15,((NORMSINV(Assumptions!C9)*AL115)+AL93)*AL$71,15) -> 2315.096478 | AM69: =IF(((NORMSINV(Assumptions!C9)*AM115)+AM93)*AM$71>=15,((NORMSINV(Assumptions!C9)*AM115)+AM93)*AM$71,15) -> 2346.344381 | AN69: =IF(((NORMSINV(Assumptions!C9)*AN115)+AN93)*AN$71>=15,((NORMSINV(Assumptions!C9)*AN115)+AN93)*AN$71,15) -> 2152.131731 | AO69: =IF(((NORMSINV(Assumptions!C9)*AO115)+AO93)*AO$71>=15,((NORMSINV(Assumptions!C9)*AO115)+AO93)*AO$71,15) -> 2165.471752 | AP69: =IF(((NORMSINV(Assumptions!C9)*AP115)+AP93)*AP$71>=15,((NORMSINV(Assumptions!C9)*AP115)+AP93)*AP$71,15) -> 2073.583171 | AQ69: =IF(((NORMSINV(Assumptions!C9)*AQ115)+AQ93)*AQ$71>=15,((NORMSINV(Assumptions!C9)*AQ115)+AQ93)*AQ$71,15) -> 1920.136916 | AR69: =IF(((NORMSINV(Assumptions!C9)*AR115)+AR93)*AR$71>=15,((NORMSINV(Assumptions!C9)*AR115)+AR93)*AR$71,15) -> 2291.254743 | AS69: =IF(((NORMSINV(Assumptions!C9)*AS115)+AS93)*AS$71>=15,((NORMSINV(Assumptions!C9)*AS115)+AS93)*AS$71,15) -> 2070.283773 | AT69: =IF(((NORMSINV(Assumptions!C9)*AT115)+AT93)*AT$71>=15,((NORMSINV(Assumptions!C9)*AT115)+AT93)*AT$71,15) -> 1836.119645 | AU69: =IF(((NORMSINV(Assumptions!C9)*AU115)+AU93)*AU$71>=15,((NORMSINV(Assumptions!C9)*AU115)+AU93)*AU$71,15) -> 1699.599599 | AV69: =IF(((NORMSINV(Assumptions!C9)*AV115)+AV93)*AV$71>=15,((NORMSINV(Assumptions!C9)*AV115)+AV93)*AV$71,15) -> 1435.37931 | AW69: =IF(((NORMSINV(Assumptions!C9)*AW115)+AW93)*AW$71>=15,((NORMSINV(Assumptions!C9)*AW115)+AW93)*AW$71,15) -> 1112.754537 | AX69: =IF(((NORMSINV(Assumptions!C9)*AX115)+AX93)*AX$71>=15,((NORMSINV(Assumptions!C9)*AX115)+AX93)*AX$71,15) -> 1133.169733 | AY69: =IF(((NORMSINV(Assumptions!C9)*AY115)+AY93)*AY$71>=15,((NORMSINV(Assumptions!C9)*AY115)+AY93)*AY$71,15) -> 1103.739262 | AZ69: =IF(((NORMSINV(Assumptions!C9)*AZ115)+AZ93)*AZ$71>=15,((NORMSINV(Assumptions!C9)*AZ115)+AZ93)*AZ$71,15) -> 1212.255489 | BA69: =IF(((NORMSINV(Assumptions!C9)*BA115)+BA93)*BA$71>=15,((NORMSINV(Assumptions!C9)*BA115)+BA93)*BA$71,15) -> 1107.71761 | BB69: =IF(((NORMSINV(Assumptions!C9)*BB115)+BB93)*BB$71>=15,((NORMSINV(Assumptions!C9)*BB115)+BB93)*BB$71,15) -> 1257.622084 | BC69: =IF(((NORMSINV(Assumptions!C9)*BC115)+BC93)*BC$71>=15,((NORMSINV(Assumptions!C9)*BC115)+BC93)*BC$71,15) -> 1215.534586 | BD69: =IF(((NORMSINV(Assumptions!C9)*BD115)+BD93)*BD$71>=15,((NORMSINV(Assumptions!C9)*BD115)+BD93)*BD$71,15) -> 1394.66855 | BE69: =IF(((NORMSINV(Assumptions!C9)*BE115)+BE93)*BE$71>=15,((NORMSINV(Assumptions!C9)*BE115)+BE93)*BE$71,15) -> 1125.287011 | BF69: =IF(((NORMSINV(Assumptions!C9)*BF115)+BF93)*BF$71>=15,((NORMSINV(Assumptions!C9)*BF115)+BF93)*BF$71,15) -> 1023.278809 | BG69: =IF(((NORMSINV(Assumptions!C9)*BG115)+BG93)*BG$71>=15,((NORMSINV(Assumptions!C9)*BG115)+BG93)*BG$71,15) -> 1042.905748 | BH69: =IF(((NORMSINV(Assumptions!C9)*BH115)+BH93)*BH$71>=15,((NORMSINV(Assumptions!C9)*BH115)+BH93)*BH$71,15) -> 1076.25925 | BI69: =IF(((NORMSINV(Assumptions!C9)*BI115)+BI93)*BI$71>=15,((NORMSINV(Assumptions!C9)*BI115)+BI93)*BI$71,15) -> 912.5894201 | BJ69: =IF(((NORMSINV(Assumptions!C9)*BJ115)+BJ93)*BJ$71>=15,((NORMSINV(Assumptions!C9)*BJ115)+BJ93)*BJ$71,15) -> 792.1597805 | BK69: =IF(((NORMSINV(Assumptions!C9)*BK115)+BK93)*BK$71>=15,((NORMSINV(Assumptions!C9)*BK115)+BK93)*BK$71,15) -> 594.3858617 | BL69: =IF(((NORMSINV(Assumptions!C9)*BL115)+BL93)*BL$71>=15,((NORMSINV(Assumptions!C9)*BL115)+BL93)*BL$71,15) -> 756.9920118 | BM69: =IF(((NORMSINV(Assumptions!C9)*BM115)+BM93)*BM$71>=15,((NORMSINV(Assumptions!C9)*BM115)+BM93)*BM$71,15) -> 759.84976 | BN69: =IF(((NORMSINV(Assumptions!C9)*BN115)+BN93)*BN$71>=15,((NORMSINV(Assumptions!C9)*BN115)+BN93)*BN$71,15) -> 619.5693103 | BO69: =IF(((NORMSINV(Assumptions!C9)*BO115)+BO93)*BO$71>=15,((NORMSINV(Assumptions!C9)*BO115)+BO93)*BO$71,15) -> 474.5735355 | BP69: =IF(((NORMSINV(Assumptions!C9)*BP115)+BP93)*BP$71>=15,((NORMSINV(Assumptions!C9)*BP115)+BP93)*BP$71,15) -> 366.1295301 | BQ69: =IF(((NORMSINV(Assumptions!C9)*BQ115)+BQ93)*BQ$71>=15,((NORMSINV(Assumptions!C9)*BQ115)+BQ93)*BQ$71,15) -> 267.2349222 | BR69: =IF(((NORMSINV(Assumptions!C9)*BR115)+BR93)*BR$71>=15,((NORMSINV(Assumptions!C9)*BR115)+BR93)*BR$71,15) -> 483.9929558 | BS69: =IF(((NORMSINV(Assumptions!C9)*BS115)+BS93)*BS$71>=15,((NORMSINV(Assumptions!C9)*BS115)+BS93)*BS$71,15) -> 370.1446085 | BT69: =IF(((NORMSINV(Assumptions!C9)*BT115)+BT93)*BT$71>=15,((NORMSINV(Assumptions!C9)*BT115)+BT93)*BT$71,15) -> 400.2131333 | BU69: =IF(((NORMSINV(Assumptions!C9)*BU115)+BU93)*BU$71>=15,((NORMSINV(Assumptions!C9)*BU115)+BU93)*BU$71,15) -> 228.3249459 | BV69: =IF(((NORMSINV(Assumptions!C9)*BV115)+BV93)*BV$71>=15,((NORMSINV(Assumptions!C9)*BV115)+BV93)*BV$71,15) -> 275.4189399
A70: Woman | B70: Non-ethnic | C70: D) Higher education | J70: =IF(((NORMSINV(Assumptions!C9)*J116)+J94)*J$71>=15, ((NORMSINV(Assumptions!C9)*J116)+J94)*J$71,15) -> 35.69155331 | K70: =IF(((NORMSINV(Assumptions!C9)*K116)+K94)*K$71>=15,((NORMSINV(Assumptions!C9)*K116)+K94)*K$71,15) -> 215.4393522 | L70: =IF(((NORMSINV(Assumptions!C9)*L116)+L94)*L$71>=15,((NORMSINV(Assumptions!C9)*L116)+L94)*L$71,15) -> 501.4518272 | M70: =IF(((NORMSINV(Assumptions!C9)*M116)+M94)*M$71>=15,((NORMSINV(Assumptions!C9)*M116)+M94)*M$71,15) -> 753.9831412 | N70: =IF(((NORMSINV(Assumptions!C9)*N116)+N94)*N$71>=15,((NORMSINV(Assumptions!C9)*N116)+N94)*N$71,15) -> 1078.245836 | O70: =IF(((NORMSINV(Assumptions!C9)*O116)+O94)*O$71>=15,((NORMSINV(Assumptions!C9)*O116)+O94)*O$71,15) -> 1204.82876 | P70: =IF(((NORMSINV(Assumptions!C9)*P116)+P94)*P$71>=15,((NORMSINV(Assumptions!C9)*P116)+P94)*P$71,15) -> 1167.940982 | Q70: =IF(((NORMSINV(Assumptions!C9)*Q116)+Q94)*Q$71>=15,((NORMSINV(Assumptions!C9)*Q116)+Q94)*Q$71,15) -> 1432.821415 | R70: =IF(((NORMSINV(Assumptions!C9)*R116)+R94)*R$71>=15,((NORMSINV(Assumptions!C9)*R116)+R94)*R$71,15) -> 1451.635647 | S70: =IF(((NORMSINV(Assumptions!C9)*S116)+S94)*S$71>=15,((NORMSINV(Assumptions!C9)*S116)+S94)*S$71,15) -> 1441.008251 | T70: =IF(((NORMSINV(Assumptions!C9)*T116)+T94)*T$71>=15,((NORMSINV(Assumptions!C9)*T116)+T94)*T$71,15) -> 1199.330852 | U70: =IF(((NORMSINV(Assumptions!C9)*U116)+U94)*U$71>=15,((NORMSINV(Assumptions!C9)*U116)+U94)*U$71,15) -> 1185.243406 | V70: =IF(((NORMSINV(Assumptions!C9)*V116)+V94)*V$71>=15,((NORMSINV(Assumptions!C9)*V116)+V94)*V$71,15) -> 1112.892994 | W70: =IF(((NORMSINV(Assumptions!C9)*W116)+W94)*W$71>=15,((NORMSINV(Assumptions!C9)*W116)+W94)*W$71,15) -> 1404.11525 | X70: =IF(((NORMSINV(Assumptions!C9)*X116)+X94)*X$71>=15,((NORMSINV(Assumptions!C9)*X116)+X94)*X$71,15) -> 1218.555918 | Y70: =IF(((NORMSINV(Assumptions!C9)*Y116)+Y94)*Y$71>=15,((NORMSINV(Assumptions!C9)*Y116)+Y94)*Y$71,15) -> 1113.176061 | Z70: =IF(((NORMSINV(Assumptions!C9)*Z116)+Z94)*Z$71>=15,((NORMSINV(Assumptions!C9)*Z116)+Z94)*Z$71,15) -> 1122.511202 | AA70: =IF(((NORMSINV(Assumptions!C9)*AA116)+AA94)*AA$71>=15,((NORMSINV(Assumptions!C9)*AA116)+AA94)*AA$71,15) -> 1060.222598 | AB70: =IF(((NORMSINV(Assumptions!C9)*AB116)+AB94)*AB$71>=15,((NORMSINV(Assumptions!C9)*AB116)+AB94)*AB$71,15) -> 1161.977237 | AC70: =IF(((NORMSINV(Assumptions!C9)*AC116)+AC94)*AC$71>=15,((NORMSINV(Assumptions!C9)*AC116)+AC94)*AC$71,15) -> 1443.803853 | AD70: =IF(((NORMSINV(Assumptions!C9)*AD116)+AD94)*AD$71>=15,((NORMSINV(Assumptions!C9)*AD116)+AD94)*AD$71,15) -> 1517.44758 | AE70: =IF(((NORMSINV(Assumptions!C9)*AE116)+AE94)*AE$71>=15,((NORMSINV(Assumptions!C9)*AE116)+AE94)*AE$71,15) -> 1956.288943 | AF70: =IF(((NORMSINV(Assumptions!C9)*AF116)+AF94)*AF$71>=15,((NORMSINV(Assumptions!C9)*AF116)+AF94)*AF$71,15) -> 1739.824015 | AG70: =IF(((NORMSINV(Assumptions!C9)*AG116)+AG94)*AG$71>=15,((NORMSINV(Assumptions!C9)*AG116)+AG94)*AG$71,15) -> 1964.247564 | AH70: =IF(((NORMSINV(Assumptions!C9)*AH116)+AH94)*AH$71>=15,((NORMSINV(Assumptions!C9)*AH116)+AH94)*AH$71,15) -> 1895.009873 | AI70: =IF(((NORMSINV(Assumptions!C9)*AI116)+AI94)*AI$71>=15,((NORMSINV(Assumptions!C9)*AI116)+AI94)*AI$71,15) -> 2302.06717 | AJ70: =IF(((NORMSINV(Assumptions!C9)*AJ116)+AJ94)*AJ$71>=15,((NORMSINV(Assumptions!C9)*AJ116)+AJ94)*AJ$71,15) -> 2315.417471 | AK70: =IF(((NORMSINV(Assumptions!C9)*AK116)+AK94)*AK$71>=15,((NORMSINV(Assumptions!C9)*AK116)+AK94)*AK$71,15) -> 2259.283375 | AL70: =IF(((NORMSINV(Assumptions!C9)*AL116)+AL94)*AL$71>=15,((NORMSINV(Assumptions!C9)*AL116)+AL94)*AL$71,15) -> 1831.838258 | AM70: =IF(((NORMSINV(Assumptions!C9)*AM116)+AM94)*AM$71>=15,((NORMSINV(Assumptions!C9)*AM116)+AM94)*AM$71,15) -> 1784.290035 | AN70: =IF(((NORMSINV(Assumptions!C9)*AN116)+AN94)*AN$71>=15,((NORMSINV(Assumptions!C9)*AN116)+AN94)*AN$71,15) -> 1993.334631 | AO70: =IF(((NORMSINV(Assumptions!C9)*AO116)+AO94)*AO$71>=15,((NORMSINV(Assumptions!C9)*AO116)+AO94)*AO$71,15) -> 1895.098806 | AP70: =IF(((NORMSINV(Assumptions!C9)*AP116)+AP94)*AP$71>=15,((NORMSINV(Assumptions!C9)*AP116)+AP94)*AP$71,15) -> 2103.030232 | AQ70: =IF(((NORMSINV(Assumptions!C9)*AQ116)+AQ94)*AQ$71>=15,((NORMSINV(Assumptions!C9)*AQ116)+AQ94)*AQ$71,15) -> 2099.617993 | AR70: =IF(((NORMSINV(Assumptions!C9)*AR116)+AR94)*AR$71>=15,((NORMSINV(Assumptions!C9)*AR116)+AR94)*AR$71,15) -> 1660.377911 | AS70: =IF(((NORMSINV(Assumptions!C9)*AS116)+AS94)*AS$71>=15,((NORMSINV(Assumptions!C9)*AS116)+AS94)*AS$71,15) -> 1713.91532 | AT70: =IF(((NORMSINV(Assumptions!C9)*AT116)+AT94)*AT$71>=15,((NORMSINV(Assumptions!C9)*AT116)+AT94)*AT$71,15) -> 1636.267075 | AU70: =IF(((NORMSINV(Assumptions!C9)*AU116)+AU94)*AU$71>=15,((NORMSINV(Assumptions!C9)*AU116)+AU94)*AU$71,15) -> 1745.459906 | AV70: =IF(((NORMSINV(Assumptions!C9)*AV116)+AV94)*AV$71>=15,((NORMSINV(Assumptions!C9)*AV116)+AV94)*AV$71,15) -> 1557.996946 | AW70: =IF(((NORMSINV(Assumptions!C9)*AW116)+AW94)*AW$71>=15,((NORMSINV(Assumptions!C9)*AW116)+AW94)*AW$71,15) -> 1353.522301 | AX70: =IF(((NORMSINV(Assumptions!C9)*AX116)+AX94)*AX$71>=15,((NORMSINV(Assumptions!C9)*AX116)+AX94)*AX$71,15) -> 1148.349586 | AY70: =IF(((NORMSINV(Assumptions!C9)*AY116)+AY94)*AY$71>=15,((NORMSINV(Assumptions!C9)*AY116)+AY94)*AY$71,15) -> 800.3326072 | AZ70: =IF(((NORMSINV(Assumptions!C9)*AZ116)+AZ94)*AZ$71>=15,((NORMSINV(Assumptions!C9)*AZ116)+AZ94)*AZ$71,15) -> 748.855201 | BA70: =IF(((NORMSINV(Assumptions!C9)*BA116)+BA94)*BA$71>=15,((NORMSINV(Assumptions!C9)*BA116)+BA94)*BA$71,15) -> 989.5371811 | BB70: =IF(((NORMSINV(Assumptions!C9)*BB116)+BB94)*BB$71>=15,((NORMSINV(Assumptions!C9)*BB116)+BB94)*BB$71,15) -> 1025.828597 | BC70: =IF(((NORMSINV(Assumptions!C9)*BC116)+BC94)*BC$71>=15,((NORMSINV(Assumptions!C9)*BC116)+BC94)*BC$71,15) -> 1282.484648 | BD70: =IF(((NORMSINV(Assumptions!C9)*BD116)+BD94)*BD$71>=15,((NORMSINV(Assumptions!C9)*BD116)+BD94)*BD$71,15) -> 1550.233495 | BE70: =IF(((NORMSINV(Assumptions!C9)*BE116)+BE94)*BE$71>=15,((NORMSINV(Assumptions!C9)*BE116)+BE94)*BE$71,15) -> 1374.609272 | BF70: =IF(((NORMSINV(Assumptions!C9)*BF116)+BF94)*BF$71>=15,((NORMSINV(Assumptions!C9)*BF116)+BF94)*BF$71,15) -> 1276.824309 | BG70: =IF(((NORMSINV(Assumptions!C9)*BG116)+BG94)*BG$71>=15,((NORMSINV(Assumptions!C9)*BG116)+BG94)*BG$71,15) -> 1078.083798 | BH70: =IF(((NORMSINV(Assumptions!C9)*BH116)+BH94)*BH$71>=15,((NORMSINV(Assumptions!C9)*BH116)+BH94)*BH$71,15) -> 764.5584491 | BI70: =IF(((NORMSINV(Assumptions!C9)*BI116)+BI94)*BI$71>=15,((NORMSINV(Assumptions!C9)*BI116)+BI94)*BI$71,15) -> 715.8489055 | BJ70: =IF(((NORMSINV(Assumptions!C9)*BJ116)+BJ94)*BJ$71>=15,((NORMSINV(Assumptions!C9)*BJ116)+BJ94)*BJ$71,15) -> 679.9213366 | BK70: =IF(((NORMSINV(Assumptions!C9)*BK116)+BK94)*BK$71>=15,((NORMSINV(Assumptions!C9)*BK116)+BK94)*BK$71,15) -> 532.6493729 | BL70: =IF(((NORMSINV(Assumptions!C9)*BL116)+BL94)*BL$71>=15,((NORMSINV(Assumptions!C9)*BL116)+BL94)*BL$71,15) -> 396.2408312 | BM70: =IF(((NORMSINV(Assumptions!C9)*BM116)+BM94)*BM$71>=15,((NORMSINV(Assumptions!C9)*BM116)+BM94)*BM$71,15) -> 447.1184973 | BN70: =IF(((NORMSINV(Assumptions!C9)*BN116)+BN94)*BN$71>=15,((NORMSINV(Assumptions!C9)*BN116)+BN94)*BN$71,15) -> 566.2877299 | BO70: =IF(((NORMSINV(Assumptions!C9)*BO116)+BO94)*BO$71>=15,((NORMSINV(Assumptions!C9)*BO116)+BO94)*BO$71,15) -> 437.5801978 | BP70: =IF(((NORMSINV(Assumptions!C9)*BP116)+BP94)*BP$71>=15,((NORMSINV(Assumptions!C9)*BP116)+BP94)*BP$71,15) -> 332.5136574 | BQ70: =IF(((NORMSINV(Assumptions!C9)*BQ116)+BQ94)*BQ$71>=15,((NORMSINV(Assumptions!C9)*BQ116)+BQ94)*BQ$71,15) -> 509.3345377 | BR70: =IF(((NORMSINV(Assumptions!C9)*BR116)+BR94)*BR$71>=15,((NORMSINV(Assumptions!C9)*BR116)+BR94)*BR$71,15) -> 132.0152506 | BS70: =IF(((NORMSINV(Assumptions!C9)*BS116)+BS94)*BS$71>=15,((NORMSINV(Assumptions!C9)*BS116)+BS94)*BS$71,15) -> 373.6047554 | BT70: =IF(((NORMSINV(Assumptions!C9)*BT116)+BT94)*BT$71>=15,((NORMSINV(Assumptions!C9)*BT116)+BT94)*BT$71,15) -> 201.277555 | BU70: =IF(((NORMSINV(Assumptions!C9)*BU116)+BU94)*BU$71>=15,((NORMSINV(Assumptions!C9)*BU116)+BU94)*BU$71,15) -> 146.5491604 | BV70: =IF(((NORMSINV(Assumptions!C9)*BV116)+BV94)*BV$71>=15,((NORMSINV(Assumptions!C9)*BV116)+BV94)*BV$71,15) -> 213.0104374
C71: KOKKU | D71: 2026.2 | E71: 2360 | F71: 2652.2 | G71: 2891.2 | H71: 3085 | I71: 3229.2 | J71: 3306.4 | K71: 3286.6 | L71: 3279.4 | M71: 3210.2 | N71: 3111.6 | O71: 2989.2 | P71: 2907.8 | Q71: 2859.4 | R71: 2839.4 | S71: 2818.2 | T71: 2773 | U71: 2791.6 | V71: 2771.8 | W71: 2741 | X71: 2706.8 | Y71: 2684.6 | Z71: 2632 | AA71: 2645.8 | AB71: 2703.2 | AC71: 2816.6 | AD71: 2976.2 | AE71: 3198.6 | AF71: 3435.6 | AG71: 3668.2 | AH71: 3838.8 | AI71: 3993.8 | AJ71: 4078.4 | AK71: 4097.2 | AL71: 4121.8 | AM71: 4139.6 | AN71: 4124.6 | AO71: 4136.6 | AP71: 4155.6 | AQ71: 4060.4 | AR71: 4066.6 | AS71: 3970.8 | AT71: 3829.2 | AU71: 3615 | AV71: 3236 | AW71: 2732.2 | AX71: 2299 | AY71: 1994.6 | AZ71: 2033 | BA71: 2244.4 | BB71: 2613.8 | BC71: 3021.8 | BD71: 3388.8 | BE71: 3350.6 | BF71: 3266.4 | BG71: 3016 | BH71: 2736.6 | BI71: 2530.6 | BJ71: 2426.2 | BK71: 2425 | BL71: 2443.6 | BM71: 2493.2 | BN71: 2394.4 | BO71: 2323 | BP71: 2175.4 | BQ71: 1999.2 | BR71: 1789.2 | BS71: 1545.4 | BT71: 1274.2 | BU71: 1025 | BV71: 803.6
A72: Source: Statistics Estonia, authors calculations
A74: POPULATION SHARES DERIVED FROM ESS (AVERAGE 2004-2008) | G74: 17 | H74: 18 | I74: 19 | J74: 20 | K74: 21 | L74: 22 | M74: 23 | N74: 24 | O74: 25 | P74: 26 | Q74: 27 | R74: 28 | S74: 29 | T74: 30 | U74: 31 | V74: 32 | W74: 33 | X74: 34 | Y74: 35 | Z74: 36 | AA74: 37 | AB74: 38 | AC74: 39 | AD74: 40 | AE74: 41 | AF74: 42 | AG74: 43 | AH74: 44 | AI74: 45 | AJ74: 46 | AK74: 47 | AL74: 48 | AM74: 49 | AN74: 50 | AO74: 51 | AP74: 52 | AQ74: 53 | AR74: 54 | AS74: 55 | AT74: 56 | AU74: 57 | AV74: 58 | AW74: 59 | AX74: 60 | AY74: 61 | AZ74: 62 | BA74: 63 | BB74: 64 | BC74: 65 | BD74: 66 | BE74: 67 | BF74: 68 | BG74: 69 | BH74: 70 | BI74: 71 | BJ74: 72 | BK74: 73 | BL74: 74 | BM74: 75 | BN74: 76 | BO74: 77 | BP74: 78 | BQ74: 79 | BR74: 80 | BS74: 81 | BT74: 82 | BU74: 83 | BV74: 84
A76: Man | B76: Ethnic Estonian | C76: A) Basic education or lower | G76: 0.3851 | H76: 0.179 | I76: 0.0609 | J76: 0.0457 | K76: 0.0288 | L76: 0.0216 | M76: 0.025 | N76: 0.0283 | O76: 0.0275 | P76: 0.0293 | Q76: 0.0351 | R76: 0.0484 | S76: 0.0315 | T76: 0.0356 | U76: 0.0231 | V76: 0.0146 | W76: 0.0067 | X76: 0.0176 | Y76: 0.0091 | Z76: 0.0126 | AA76: 0.0153 | AB76: 0.009 | AC76: 0.0112 | AD76: 0.0189 | AE76: 0.0093 | AF76: 0.0053 | AG76: 0.0021 | AH76: 0.0113 | AI76: 0.009 | AJ76: 0.0093 | AK76: 0.0167 | AL76: 0.0133 | AM76: 0.004 | AN76: 0.015 | AO76: 0.0062 | AP76: 0.0056 | AQ76: 0.0178 | AR76: 0.0118 | AS76: 0.0116 | AT76: 0.0313 | AU76: 0.0169 | AV76: 0.0074 | AW76: 0.0187 | AX76: 0.0258 | AY76: 0.0511 | AZ76: 0.0701 | BA76: 0.087 | BB76: 0.0766 | BC76: 0.0669 | BD76: 0.0908 | BE76: 0.0938 | BF76: 0.1436 | BG76: 0.1848 | BH76: 0.1587 | BI76: 0.151 | BJ76: 0.1388 | BK76: 0.1212 | BL76: 0.1201 | BM76: 0.1443 | BN76: 0.1658 | BO76: 0.2065 | BP76: 0.2603 | BQ76: 0.2529 | BR76: 0.331 | BS76: 0.4477 | BT76: 0.3436 | BU76: 0.372 | BV76: 0.3368
A77: Man | B77: Ethnic Estonian | C77: B) Lower secondary education | G77: 0.6149 | H77: 0.8151 | I77: 0.8324 | J77: 0.5151 | K77: 0.3171 | L77: 0.2555 | M77: 0.1749 | N77: 0.1677 | O77: 0.1964 | P77: 0.2202 | Q77: 0.2491 | R77: 0.2372 | S77: 0.2521 | T77: 0.2255 | U77: 0.2641 | V77: 0.2701 | W77: 0.2419 | X77: 0.1802 | Y77: 0.1636 | Z77: 0.1647 | AA77: 0.1332 | AB77: 0.1322 | AC77: 0.1163 | AD77: 0.1261 | AE77: 0.1458 | AF77: 0.1216 | AG77: 0.1526 | AH77: 0.1355 | AI77: 0.1264 | AJ77: 0.1303 | AK77: 0.1408 | AL77: 0.1395 | AM77: 0.2044 | AN77: 0.1975 | AO77: 0.2477 | AP77: 0.3141 | AQ77: 0.3023 | AR77: 0.2396 | AS77: 0.3134 | AT77: 0.3112 | AU77: 0.3422 | AV77: 0.3241 | AW77: 0.3219 | AX77: 0.3535 | AY77: 0.3516 | AZ77: 0.3242 | BA77: 0.3625 | BB77: 0.3263 | BC77: 0.3067 | BD77: 0.3367 | BE77: 0.4226 | BF77: 0.3462 | BG77: 0.3791 | BH77: 0.3909 | BI77: 0.414 | BJ77: 0.4114 | BK77: 0.3702 | BL77: 0.3336 | BM77: 0.3455 | BN77: 0.2935 | BO77: 0.2782 | BP77: 0.3311 | BQ77: 0.3672 | BR77: 0.3098 | BS77: 0.3066 | BT77: 0.3429 | BU77: 0.267 | BV77: 0.2987
A78: Man | B78: Ethnic Estonian | C78: C) Upper secondary education | G78: 0 | H78: 0.0059 | I78: 0.105 | J78: 0.428 | K78: 0.6413 | L78: 0.6628 | M78: 0.647 | N78: 0.5942 | O78: 0.5014 | P78: 0.4588 | Q78: 0.4076 | R78: 0.4054 | S78: 0.3835 | T78: 0.4945 | U78: 0.5015 | V78: 0.5019 | W78: 0.4924 | X78: 0.5524 | Y78: 0.5482 | Z78: 0.5513 | AA78: 0.6239 | AB78: 0.6154 | AC78: 0.6283 | AD78: 0.5859 | AE78: 0.5966 | AF78: 0.62 | AG78: 0.5933 | AH78: 0.612 | AI78: 0.6187 | AJ78: 0.6117 | AK78: 0.5405 | AL78: 0.5837 | AM78: 0.5903 | AN78: 0.6025 | AO78: 0.526 | AP78: 0.4608 | AQ78: 0.4433 | AR78: 0.466 | AS78: 0.3893 | AT78: 0.3857 | AU78: 0.4001 | AV78: 0.4717 | AW78: 0.4709 | AX78: 0.4631 | AY78: 0.3998 | AZ78: 0.4097 | BA78: 0.3888 | BB78: 0.4156 | BC78: 0.3889 | BD78: 0.366 | BE78: 0.2998 | BF78: 0.2738 | BG78: 0.2426 | BH78: 0.2455 | BI78: 0.2557 | BJ78: 0.2679 | BK78: 0.2686 | BL78: 0.2857 | BM78: 0.2807 | BN78: 0.315 | BO78: 0.3085 | BP78: 0.195 | BQ78: 0.1607 | BR78: 0.1489 | BS78: 0.1354 | BT78: 0.1674 | BU78: 0.2157 | BV78: 0.1953
A79: Man | B79: Ethnic Estonian | C79: D) Higher education | G79: 0 | H79: 0 | I79: 0.0017 | J79: 0.0113 | K79: 0.0127 | L79: 0.0601 | M79: 0.153 | N79: 0.2097 | O79: 0.2747 | P79: 0.2917 | Q79: 0.3083 | R79: 0.309 | S79: 0.3328 | T79: 0.2445 | U79: 0.2114 | V79: 0.2135 | W79: 0.259 | X79: 0.2498 | Y79: 0.2791 | Z79: 0.2714 | AA79: 0.2276 | AB79: 0.2434 | AC79: 0.2441 | AD79: 0.2691 | AE79: 0.2483 | AF79: 0.253 | AG79: 0.252 | AH79: 0.2412 | AI79: 0.2459 | AJ79: 0.2487 | AK79: 0.302 | AL79: 0.2635 | AM79: 0.2013 | AN79: 0.185 | AO79: 0.22 | AP79: 0.2194 | AQ79: 0.2365 | AR79: 0.2826 | AS79: 0.2857 | AT79: 0.2718 | AU79: 0.2409 | AV79: 0.1968 | AW79: 0.1885 | AX79: 0.1576 | AY79: 0.1974 | AZ79: 0.196 | BA79: 0.1617 | BB79: 0.1815 | BC79: 0.2375 | BD79: 0.2065 | BE79: 0.1837 | BF79: 0.2363 | BG79: 0.1934 | BH79: 0.2048 | BI79: 0.1793 | BJ79: 0.182 | BK79: 0.24 | BL79: 0.2606 | BM79: 0.2296 | BN79: 0.2258 | BO79: 0.2068 | BP79: 0.2136 | BQ79: 0.2191 | BR79: 0.2104 | BS79: 0.1103 | BT79: 0.1462 | BU79: 0.1452 | BV79: 0.1692
A81: Man | B81: Non-ethnic Estonian | C81: A) Basic education or lower | G81: 0.2382 | H81: 0.0863 | I81: 0.0376 | J81: 0.043 | K81: 0.0766 | L81: 0.0794 | M81: 0.0319 | N81: 0.0341 | O81: 0.0328 | P81: 0.021 | Q81: 0.016 | R81: 0.0038 | S81: 0 | T81: 0 | U81: 0 | V81: 0.0264 | W81: 0.0161 | X81: 0.0037 | Y81: 0.0119 | Z81: 0 | AA81: 0 | AB81: 0 | AC81: 0 | AD81: 0 | AE81: 0 | AF81: 0 | AG81: 0 | AH81: 0.019 | AI81: 0.0164 | AJ81: 0 | AK81: 0 | AL81: 0 | AM81: 0.0028 | AN81: 0 | AO81: 0 | AP81: 0 | AQ81: 0 | AR81: 0 | AS81: 0 | AT81: 0 | AU81: 0 | AV81: 0.0061 | AW81: 0 | AX81: 0 | AY81: 0.0089 | AZ81: 0 | BA81: 0.0169 | BB81: 0.0217 | BC81: 0.0194 | BD81: 0.1085 | BE81: 0.1314 | BF81: 0.0987 | BG81: 0.0994 | BH81: 0.0337 | BI81: 0.1719 | BJ81: 0.1571 | BK81: 0.2007 | BL81: 0.227 | BM81: 0.2095 | BN81: 0.2955 | BO81: 0.3538 | BP81: 0.3238 | BQ81: 0.2106 | BR81: 0.1305 | BS81: 0.2447 | BT81: 0.0785 | BU81: 0.0579 | BV81: 0.3283
A82: Man | B82: Non-ethnic Estonian | C82: B) Lower secondary education | G82: 0.7618 | H82: 0.9137 | I82: 0.8042 | J82: 0.3646 | K82: 0.1882 | L82: 0.2068 | M82: 0.2024 | N82: 0.2318 | O82: 0.2939 | P82: 0.2705 | Q82: 0.2735 | R82: 0.3328 | S82: 0.2774 | T82: 0.353 | U82: 0.3241 | V82: 0.2437 | W82: 0.2208 | X82: 0.1209 | Y82: 0.1339 | Z82: 0.0961 | AA82: 0.0727 | AB82: 0.0988 | AC82: 0.0681 | AD82: 0.0782 | AE82: 0.138 | AF82: 0.0813 | AG82: 0.0419 | AH82: 0.108 | AI82: 0.1324 | AJ82: 0.0754 | AK82: 0.0872 | AL82: 0.1124 | AM82: 0.1069 | AN82: 0.1311 | AO82: 0.0702 | AP82: 0.1666 | AQ82: 0.1785 | AR82: 0.24 | AS82: 0.2736 | AT82: 0.306 | AU82: 0.2555 | AV82: 0.1842 | AW82: 0.1942 | AX82: 0.2396 | AY82: 0.3433 | AZ82: 0.3827 | BA82: 0.4737 | BB82: 0.3271 | BC82: 0.3202 | BD82: 0.2806 | BE82: 0.2313 | BF82: 0.3215 | BG82: 0.3344 | BH82: 0.324 | BI82: 0.4264 | BJ82: 0.3464 | BK82: 0.3368 | BL82: 0.3216 | BM82: 0.3207 | BN82: 0.254 | BO82: 0.3255 | BP82: 0.22 | BQ82: 0.2775 | BR82: 0.4337 | BS82: 0.4596 | BT82: 0.3558 | BU82: 0.2915 | BV82: 0.2895
A83: Man | B83: Non-ethnic Estonian | C83: C) Upper secondary education | G83: 0 | H83: 0 | I83: 0.1582 | J83: 0.5901 | K83: 0.7083 | L83: 0.6435 | M83: 0.6678 | N83: 0.6247 | O83: 0.5323 | P83: 0.4907 | Q83: 0.5273 | R83: 0.5247 | S83: 0.56 | T83: 0.5328 | U83: 0.5189 | V83: 0.5396 | W83: 0.5699 | X83: 0.5655 | Y83: 0.5203 | Z83: 0.6688 | AA83: 0.7226 | AB83: 0.6829 | AC83: 0.7596 | AD83: 0.7223 | AE83: 0.6663 | AF83: 0.6969 | AG83: 0.7069 | AH83: 0.6203 | AI83: 0.6049 | AJ83: 0.614 | AK83: 0.5963 | AL83: 0.5525 | AM83: 0.5673 | AN83: 0.5543 | AO83: 0.5674 | AP83: 0.4414 | AQ83: 0.4714 | AR83: 0.4713 | AS83: 0.4472 | AT83: 0.434 | AU83: 0.4396 | AV83: 0.3923 | AW83: 0.4073 | AX83: 0.3593 | AY83: 0.353 | AZ83: 0.3438 | BA83: 0.2634 | BB83: 0.4092 | BC83: 0.4092 | BD83: 0.3109 | BE83: 0.3107 | BF83: 0.2653 | BG83: 0.3345 | BH83: 0.3585 | BI83: 0.1991 | BJ83: 0.19 | BK83: 0.1952 | BL83: 0.1641 | BM83: 0.1937 | BN83: 0.1365 | BO83: 0.1358 | BP83: 0.1953 | BQ83: 0.2114 | BR83: 0.2174 | BS83: 0.1133 | BT83: 0.2984 | BU83: 0.3891 | BV83: 0.293
A84: Man | B84: Non-ethnic Estonian | C84: D) Higher education | G84: 0 | H84: 0 | I84: 0 | J84: 0.0058 | K84: 0.0485 | L84: 0.1263 | M84: 0.2012 | N84: 0.2983 | O84: 0.3563 | P84: 0.3524 | Q84: 0.4446 | R84: 0.452 | S84: 0.4544 | T84: 0.3705 | U84: 0.3686 | V84: 0.3451 | W84: 0.4556 | X84: 0.3955 | Y84: 0.3635 | Z84: 0.3712 | AA84: 0.3506 | AB84: 0.3787 | AC84: 0.4624 | AD84: 0.46 | AE84: 0.5639 | AF84: 0.4612 | AG84: 0.4907 | AH84: 0.453 | AI84: 0.5374 | AJ84: 0.5282 | AK84: 0.5131 | AL84: 0.408 | AM84: 0.394 | AN84: 0.4478 | AO84: 0.4211 | AP84: 0.4662 | AQ84: 0.478 | AR84: 0.3692 | AS84: 0.3915 | AT84: 0.3877 | AU84: 0.4409 | AV84: 0.4384 | AW84: 0.4532 | AX84: 0.4505 | AY84: 0.3507 | AZ84: 0.3147 | BA84: 0.3844 | BB84: 0.3414 | BC84: 0.373 | BD84: 0.4082 | BE84: 0.3672 | BF84: 0.3487 | BG84: 0.315 | BH84: 0.2371 | BI84: 0.2387 | BJ84: 0.2315 | BK84: 0.1784 | BL84: 0.1259 | BM84: 0.1411 | BN84: 0.1894 | BO84: 0.1491 | BP84: 0.1172 | BQ84: 0.2031 | BR84: 0.0495 | BS84: 0.1844 | BT84: 0.1013 | BU84: 0.0901 | BV84: 0.1917
A86: Woman | B86: Ethnic Estonian | C86: A) Basic education or lower | G86: 0.2653 | H86: 0.0771 | I86: 0.0367 | J86: 0.0305 | K86: 0.0238 | L86: 0.0138 | M86: 0.0162 | N86: 0.0031 | O86: 0.0161 | P86: 0.0104 | Q86: 0.0047 | R86: 0.025 | S86: 0.0174 | T86: 0.011 | U86: 0.0264 | V86: 0.0097 | W86: 0.0109 | X86: 0.0034 | Y86: 0.006 | Z86: 0.0022 | AA86: 0.0089 | AB86: 0.008 | AC86: 0.0036 | AD86: 0.0039 | AE86: 0.00067 | AF86: 0.00072 | AG86: 0 | AH86: 0 | AI86: 0.0025 | AJ86: 0 | AK86: 0.0041 | AL86: 0.0043 | AM86: 0.0205 | AN86: 0.0144 | AO86: 0.0148 | AP86: 0 | AQ86: 0.0038 | AR86: 0.0079 | AS86: 0.0105 | AT86: 0.0186 | AU86: 0.0052 | AV86: 0.0113 | AW86: 0.0163 | AX86: 0.0169 | AY86: 0.0236 | AZ86: 0.0208 | BA86: 0.0127 | BB86: 0.0276 | BC86: 0.033 | BD86: 0.0253 | BE86: 0.0511 | BF86: 0.0401 | BG86: 0.0322 | BH86: 0.0584 | BI86: 0.0612 | BJ86: 0.0864 | BK86: 0.1251 | BL86: 0.1324 | BM86: 0.1768 | BN86: 0.2168 | BO86: 0.2356 | BP86: 0.2799 | BQ86: 0.2628 | BR86: 0.3053 | BS86: 0.3727 | BT86: 0.4536 | BU86: 0.4238 | BV86: 0.4387
A87: Woman | B87: Ethnic Estonian | C87: B) Lower secondary education | G87: 0.7334 | H87: 0.915 | I87: 0.8172 | J87: 0.3304 | K87: 0.193 | L87: 0.1364 | M87: 0.0855 | N87: 0.0929 | O87: 0.1081 | P87: 0.1733 | Q87: 0.1817 | R87: 0.2128 | S87: 0.1501 | T87: 0.1245 | U87: 0.1229 | V87: 0.0926 | W87: 0.0928 | X87: 0.0776 | Y87: 0.0645 | Z87: 0.0865 | AA87: 0.0578 | AB87: 0.0639 | AC87: 0.0727 | AD87: 0.0618 | AE87: 0.0575 | AF87: 0.0647 | AG87: 0.0796 | AH87: 0.0608 | AI87: 0.0785 | AJ87: 0.0656 | AK87: 0.0928 | AL87: 0.0785 | AM87: 0.0918 | AN87: 0.1132 | AO87: 0.1161 | AP87: 0.1304 | AQ87: 0.1301 | AR87: 0.1228 | AS87: 0.1714 | AT87: 0.1858 | AU87: 0.2027 | AV87: 0.1789 | AW87: 0.1839 | AX87: 0.1926 | AY87: 0.1926 | AZ87: 0.2206 | BA87: 0.275 | BB87: 0.2711 | BC87: 0.28 | BD87: 0.2956 | BE87: 0.2851 | BF87: 0.273 | BG87: 0.2681 | BH87: 0.2534 | BI87: 0.3049 | BJ87: 0.3249 | BK87: 0.3842 | BL87: 0.4194 | BM87: 0.3385 | BN87: 0.3095 | BO87: 0.3127 | BP87: 0.2803 | BQ87: 0.3403 | BR87: 0.3362 | BS87: 0.3218 | BT87: 0.2503 | BU87: 0.247 | BV87: 0.2637
A88: Woman | B88: Ethnic Estonian | C88: C) Upper secondary education | G88: 0.0014 | H88: 0.0078 | I88: 0.1461 | J88: 0.6316 | K88: 0.7133 | L88: 0.671 | M88: 0.5558 | N88: 0.4969 | O88: 0.4553 | P88: 0.3481 | Q88: 0.3656 | R88: 0.3037 | S88: 0.3512 | T88: 0.3654 | U88: 0.4168 | V88: 0.4396 | W88: 0.4186 | X88: 0.4295 | Y88: 0.4674 | Z88: 0.4868 | AA88: 0.5362 | AB88: 0.432 | AC88: 0.4762 | AD88: 0.4984 | AE88: 0.5163 | AF88: 0.453 | AG88: 0.4361 | AH88: 0.4683 | AI88: 0.448 | AJ88: 0.4847 | AK88: 0.4715 | AL88: 0.5086 | AM88: 0.5008 | AN88: 0.5185 | AO88: 0.4911 | AP88: 0.5084 | AQ88: 0.4604 | AR88: 0.4924 | AS88: 0.4615 | AT88: 0.4876 | AU88: 0.4874 | AV88: 0.4846 | AW88: 0.4456 | AX88: 0.4119 | AY88: 0.3688 | AZ88: 0.4034 | BA88: 0.3624 | BB88: 0.3655 | BC88: 0.3487 | BD88: 0.287 | BE88: 0.2838 | BF88: 0.3325 | BG88: 0.3675 | BH88: 0.3517 | BI88: 0.3542 | BJ88: 0.3196 | BK88: 0.2815 | BL88: 0.2617 | BM88: 0.2948 | BN88: 0.3389 | BO88: 0.2917 | BP88: 0.2417 | BQ88: 0.2016 | BR88: 0.202 | BS88: 0.2031 | BT88: 0.212 | BU88: 0.2585 | BV88: 0.1911
A89: Woman | B89: Ethnic Estonian | C89: D) Higher education | G89: 0 | H89: 0 | I89: 0 | J89: 0.0075 | K89: 0.0699 | L89: 0.1788 | M89: 0.3425 | N89: 0.4071 | O89: 0.4204 | P89: 0.4682 | Q89: 0.448 | R89: 0.4586 | S89: 0.4813 | T89: 0.4991 | U89: 0.4339 | V89: 0.4581 | W89: 0.4777 | X89: 0.4896 | Y89: 0.4621 | Z89: 0.4246 | AA89: 0.3971 | AB89: 0.4961 | AC89: 0.4475 | AD89: 0.4358 | AE89: 0.4255 | AF89: 0.4816 | AG89: 0.4843 | AH89: 0.471 | AI89: 0.4709 | AJ89: 0.4497 | AK89: 0.4317 | AL89: 0.4086 | AM89: 0.3869 | AN89: 0.3539 | AO89: 0.378 | AP89: 0.3612 | AQ89: 0.4056 | AR89: 0.3769 | AS89: 0.3567 | AT89: 0.308 | AU89: 0.3048 | AV89: 0.3251 | AW89: 0.3541 | AX89: 0.3786 | AY89: 0.415 | AZ89: 0.3552 | BA89: 0.3499 | BB89: 0.3358 | BC89: 0.3382 | BD89: 0.3921 | BE89: 0.38 | BF89: 0.3544 | BG89: 0.3322 | BH89: 0.3365 | BI89: 0.2797 | BJ89: 0.2691 | BK89: 0.2093 | BL89: 0.1864 | BM89: 0.19 | BN89: 0.1348 | BO89: 0.1599 | BP89: 0.1981 | BQ89: 0.1952 | BR89: 0.1565 | BS89: 0.1023 | BT89: 0.0841 | BU89: 0.0707 | BV89: 0.1066
A91: Woman | B91: Non-ethnic Estonian | C91: A) Basic education or lower | G91: 0.1738 | H91: 0.0241 | I91: 0 | J91: 0.014 | K91: 0.0084 | L91: 0.0034 | M91: 0.0038 | N91: 0.0058 | O91: 0.0055 | P91: 0 | Q91: 0 | R91: 0 | S91: 0 | T91: 0 | U91: 0.0178 | V91: 0 | W91: 0 | X91: 0 | Y91: 0 | Z91: 0 | AA91: 0 | AB91: 0 | AC91: 0.0084 | AD91: 0 | AE91: 0 | AF91: 0 | AG91: 0 | AH91: 0 | AI91: 0 | AJ91: 0 | AK91: 0.0057 | AL91: 0.0051 | AM91: 0.0037 | AN91: 0.0031 | AO91: 0.0027 | AP91: 0.0034 | AQ91: 0.0036 | AR91: 0 | AS91: 0 | AT91: 0.0094 | AU91: 0.0055 | AV91: 0.007 | AW91: 0.0066 | AX91: 0.0061 | AY91: 0.0313 | AZ91: 0.0362 | BA91: 0.0486 | BB91: 0.0677 | BC91: 0.0537 | BD91: 0.0448 | BE91: 0.0698 | BF91: 0.0827 | BG91: 0.1147 | BH91: 0.1757 | BI91: 0.2236 | BJ91: 0.2697 | BK91: 0.3716 | BL91: 0.3445 | BM91: 0.3237 | BN91: 0.3198 | BO91: 0.3371 | BP91: 0.345 | BQ91: 0.2486 | BR91: 0.2481 | BS91: 0.2024 | BT91: 0.2999 | BU91: 0.4869 | BV91: 0.3894
A92: Woman | B92: Non-ethnic Estonian | C92: B) Lower secondary education | G92: 0.8262 | H92: 0.9724 | I92: 0.8073 | J92: 0.3106 | K92: 0.1581 | L92: 0.0989 | M92: 0.0829 | N92: 0.0797 | O92: 0.1385 | P92: 0.2297 | Q92: 0.2107 | R92: 0.1405 | S92: 0.1281 | T92: 0.126 | U92: 0.0666 | V92: 0.1437 | W92: 0.1196 | X92: 0.088 | Y92: 0.0531 | Z92: 0.054 | AA92: 0.0244 | AB92: 0.038 | AC92: 0.0136 | AD92: 0.0463 | AE92: 0.0204 | AF92: 0.0176 | AG92: 0.0268 | AH92: 0.0315 | AI92: 0.0251 | AJ92: 0.0267 | AK92: 0.027 | AL92: 0.0619 | AM92: 0.0733 | AN92: 0.0627 | AO92: 0.0906 | AP92: 0.0712 | AQ92: 0.0839 | AR92: 0.108 | AS92: 0.1281 | AT92: 0.1642 | AU92: 0.1253 | AV92: 0.1527 | AW92: 0.1733 | AX92: 0.0989 | AY92: 0.1181 | AZ92: 0.1118 | BA92: 0.1327 | BB92: 0.1627 | BC92: 0.2196 | BD92: 0.1835 | BE92: 0.2677 | BF92: 0.2958 | BG92: 0.2686 | BH92: 0.2517 | BI92: 0.2247 | BJ92: 0.2188 | BK92: 0.2465 | BL92: 0.2658 | BM92: 0.276 | BN92: 0.2751 | BO92: 0.3449 | BP92: 0.4042 | BQ92: 0.4453 | BR92: 0.4828 | BS92: 0.4288 | BT92: 0.3591 | BU92: 0.2675 | BV92: 0.1504
A93: Woman | B93: Non-ethnic Estonian | C93: C) Upper secondary education | G93: 0 | H93: 0.0035 | I93: 0.1927 | J93: 0.6696 | K93: 0.785 | L93: 0.7714 | M93: 0.712 | N93: 0.6162 | O93: 0.4998 | P93: 0.4179 | Q93: 0.3447 | R93: 0.4075 | S93: 0.4175 | T93: 0.5034 | U93: 0.5471 | V93: 0.5111 | W93: 0.4248 | X93: 0.5165 | Y93: 0.5835 | Z93: 0.5749 | AA93: 0.625 | AB93: 0.5832 | AC93: 0.5157 | AD93: 0.4937 | AE93: 0.4157 | AF93: 0.5212 | AG93: 0.4825 | AH93: 0.5155 | AI93: 0.4374 | AJ93: 0.4451 | AK93: 0.4543 | AL93: 0.5249 | AM93: 0.529 | AN93: 0.4863 | AO93: 0.4856 | AP93: 0.4592 | AQ93: 0.4344 | AR93: 0.5227 | AS93: 0.4803 | AT93: 0.4386 | AU93: 0.4283 | AV93: 0.4018 | AW93: 0.3668 | AX93: 0.4445 | AY93: 0.4998 | AZ93: 0.5373 | BA93: 0.4343 | BB93: 0.4281 | BC93: 0.3536 | BD93: 0.3635 | BE93: 0.2952 | BF93: 0.2728 | BG93: 0.3017 | BH93: 0.3355 | BI93: 0.313 | BJ93: 0.28 | BK93: 0.2036 | BL93: 0.2638 | BM93: 0.2593 | BN93: 0.2157 | BO93: 0.1689 | BP93: 0.1336 | BQ93: 0.1031 | BR93: 0.2197 | BS93: 0.1844 | BT93: 0.2396 | BU93: 0.1555 | BV93: 0.2685
A94: Woman | B94: Non-ethnic Estonian | C94: D) Higher education | G94: 0 | H94: 0 | I94: 0 | J94: 0.0058 | K94: 0.0485 | L94: 0.1263 | M94: 0.2012 | N94: 0.2983 | O94: 0.3563 | P94: 0.3524 | Q94: 0.4446 | R94: 0.452 | S94: 0.4544 | T94: 0.3705 | U94: 0.3686 | V94: 0.3451 | W94: 0.4556 | X94: 0.3955 | Y94: 0.3635 | Z94: 0.3712 | AA94: 0.3506 | AB94: 0.3787 | AC94: 0.4624 | AD94: 0.46 | AE94: 0.5639 | AF94: 0.4612 | AG94: 0.4907 | AH94: 0.453 | AI94: 0.5374 | AJ94: 0.5282 | AK94: 0.5131 | AL94: 0.408 | AM94: 0.394 | AN94: 0.4478 | AO94: 0.4211 | AP94: 0.4662 | AQ94: 0.478 | AR94: 0.3692 | AS94: 0.3915 | AT94: 0.3877 | AU94: 0.4409 | AV94: 0.4384 | AW94: 0.4532 | AX94: 0.4505 | AY94: 0.3507 | AZ94: 0.3147 | BA94: 0.3844 | BB94: 0.3414 | BC94: 0.373 | BD94: 0.4082 | BE94: 0.3672 | BF94: 0.3487 | BG94: 0.315 | BH94: 0.2371 | BI94: 0.2387 | BJ94: 0.2315 | BK94: 0.1784 | BL94: 0.1259 | BM94: 0.1411 | BN94: 0.1894 | BO94: 0.1491 | BP94: 0.1172 | BQ94: 0.2031 | BR94: 0.0495 | BS94: 0.1844 | BT94: 0.1013 | BU94: 0.0901 | BV94: 0.1917
A95: Source: Statistics Estonia, authors calculations
A97: STANDARD ERRORS OF POPULATION SHARES DERIVED FROM ESS (AVERAGE 2004-2008)
A98: Man | B98: Ethnic Estonian | C98: A) Basic education or lower | G98: 0.0237 | H98: 0.0194 | I98: 0.0119 | J98: 0.0104 | K98: 0.0078 | L98: 0.0069 | M98: 0.0085 | N98: 0.01 | O98: 0.0092 | P98: 0.0104 | Q98: 0.0137 | R98: 0.0181 | S98: 0.0114 | T98: 0.0116 | U98: 0.009 | V98: 0.0063 | W98: 0.0044 | X98: 0.0086 | Y98: 0.0056 | Z98: 0.0068 | AA98: 0.0075 | AB98: 0.0049 | AC98: 0.0058 | AD98: 0.0076 | AE98: 0.0053 | AF98: 0.0033 | AG98: 0.0015 | AH98: 0.0105 | AI98: 0.0063 | AJ98: 0.0052 | AK98: 0.0084 | AL98: 0.007 | AM98: 0.0028 | AN98: 0.0083 | AO98: 0.0032 | AP98: 0.0033 | AQ98: 0.0107 | AR98: 0.0072 | AS98: 0.0071 | AT98: 0.0138 | AU98: 0.0091 | AV98: 0.0058 | AW98: 0.0099 | AX98: 0.0102 | AY98: 0.0269 | AZ98: 0.021 | BA98: 0.0211 | BB98: 0.0194 | BC98: 0.0166 | BD98: 0.0218 | BE98: 0.0295 | BF98: 0.0352 | BG98: 0.0371 | BH98: 0.0345 | BI98: 0.0335 | BJ98: 0.0332 | BK98: 0.0291 | BL98: 0.0311 | BM98: 0.0376 | BN98: 0.0369 | BO98: 0.0432 | BP98: 0.0466 | BQ98: 0.0457 | BR98: 0.0598 | BS98: 0.0694 | BT98: 0.0632 | BU98: 0.0734 | BV98: 0.0845
A99: Man | B99: Ethnic Estonian | C99: B) Lower secondary education | G99: 0.0237 | H99: 0.0197 | I99: 0.0191 | J99: 0.0259 | K99: 0.0262 | L99: 0.0265 | M99: 0.0224 | N99: 0.0239 | O99: 0.0275 | P99: 0.0294 | Q99: 0.0384 | R99: 0.0328 | S99: 0.0398 | T99: 0.039 | U99: 0.0386 | V99: 0.0324 | W99: 0.0312 | X99: 0.0279 | Y99: 0.0264 | Z99: 0.0252 | AA99: 0.0244 | AB99: 0.0246 | AC99: 0.0227 | AD99: 0.0252 | AE99: 0.0276 | AF99: 0.0202 | AG99: 0.024 | AH99: 0.0211 | AI99: 0.0231 | AJ99: 0.0193 | AK99: 0.021 | AL99: 0.0217 | AM99: 0.0293 | AN99: 0.0271 | AO99: 0.029 | AP99: 0.0345 | AQ99: 0.0346 | AR99: 0.0308 | AS99: 0.0374 | AT99: 0.0345 | AU99: 0.0365 | AV99: 0.037 | AW99: 0.036 | AX99: 0.0391 | AY99: 0.0394 | AZ99: 0.038 | BA99: 0.0384 | BB99: 0.0352 | BC99: 0.0352 | BD99: 0.0372 | BE99: 0.0422 | BF99: 0.0399 | BG99: 0.0401 | BH99: 0.0405 | BI99: 0.0432 | BJ99: 0.0447 | BK99: 0.0437 | BL99: 0.0442 | BM99: 0.0505 | BN99: 0.0461 | BO99: 0.0444 | BP99: 0.0485 | BQ99: 0.0575 | BR99: 0.0632 | BS99: 0.065 | BT99: 0.0626 | BU99: 0.0619 | BV99: 0.0775
A100: Man | B100: Ethnic Estonian | C100: C) Upper secondary education | G100: 0 | H100: 0.0038 | I100: 0.016 | J100: 0.0259 | K100: 0.0267 | L100: 0.0301 | M100: 0.0336 | N100: 0.0379 | O100: 0.042 | P100: 0.0377 | Q100: 0.04 | R100: 0.0385 | S100: 0.0434 | T100: 0.0468 | U100: 0.042 | V100: 0.0402 | W100: 0.039 | X100: 0.039 | Y100: 0.0388 | Z100: 0.0383 | AA100: 0.038 | AB100: 0.038 | AC100: 0.0388 | AD100: 0.0394 | AE100: 0.0414 | AF100: 0.0344 | AG100: 0.0345 | AH100: 0.0343 | AI100: 0.033 | AJ100: 0.0315 | AK100: 0.0344 | AL100: 0.0362 | AM100: 0.0358 | AN100: 0.0347 | AO100: 0.0359 | AP100: 0.0353 | AQ100: 0.0368 | AR100: 0.0397 | AS100: 0.0398 | AT100: 0.0373 | AU100: 0.0391 | AV100: 0.0387 | AW100: 0.0388 | AX100: 0.0398 | AY100: 0.0403 | AZ100: 0.0409 | BA100: 0.0406 | BB100: 0.041 | BC100: 0.041 | BD100: 0.04 | BE100: 0.0392 | BF100: 0.0371 | BG100: 0.0347 | BH100: 0.0385 | BI100: 0.0397 | BJ100: 0.0415 | BK100: 0.0438 | BL100: 0.0433 | BM100: 0.0522 | BN100: 0.0535 | BO100: 0.0528 | BP100: 0.0409 | BQ100: 0.04 | BR100: 0.041 | BS100: 0.0454 | BT100: 0.0467 | BU100: 0.0675 | BV100: 0.0727
A101: Man | B101: Ethnic Estonian | C101: D) Higher education | G101: 0 | H101: 0 | I101: 0.0017 | J101: 0.0113 | K101: 0.0127 | L101: 0.0601 | M101: 0.153 | N101: 0.2097 | O101: 0.2747 | P101: 0.2917 | Q101: 0.3083 | R101: 0.309 | S101: 0.3328 | T101: 0.2445 | U101: 0.2114 | V101: 0.2135 | W101: 0.259 | X101: 0.2498 | Y101: 0.2791 | Z101: 0.2714 | AA101: 0.2276 | AB101: 0.2434 | AC101: 0.2441 | AD101: 0.2691 | AE101: 0.2483 | AF101: 0.253 | AG101: 0.252 | AH101: 0.2412 | AI101: 0.2459 | AJ101: 0.2487 | AK101: 0.302 | AL101: 0.2635 | AM101: 0.2013 | AN101: 0.185 | AO101: 0.22 | AP101: 0.2194 | AQ101: 0.2365 | AR101: 0.2826 | AS101: 0.2857 | AT101: 0.2718 | AU101: 0.2409 | AV101: 0.1968 | AW101: 0.1885 | AX101: 0.1576 | AY101: 0.1974 | AZ101: 0.196 | BA101: 0.1617 | BB101: 0.1815 | BC101: 0.2375 | BD101: 0.2065 | BE101: 0.1837 | BF101: 0.2363 | BG101: 0.1934 | BH101: 0.2048 | BI101: 0.1793 | BJ101: 0.182 | BK101: 0.24 | BL101: 0.2606 | BM101: 0.2296 | BN101: 0.2258 | BO101: 0.2068 | BP101: 0.2136 | BQ101: 0.2191 | BR101: 0.2104 | BS101: 0.1103 | BT101: 0.1462 | BU101: 0.1452 | BV101: 0.1692
A103: Man | B103: Non-ethnic Estonian | C103: A) Basic education or lower | G103: 0.0386 | H103: 0.0249 | I103: 0.0163 | J103: 0.017 | K103: 0.0372 | L103: 0.04 | M103: 0.016 | N103: 0.0176 | O103: 0.0157 | P103: 0.0121 | Q103: 0.0097 | R103: 0.0038 | S103: 0 | T103: 0 | U103: 0 | V103: 0.0186 | W103: 0.0131 | X103: 0.0037 | Y103: 0.0119 | Z103: 0 | AA103: 0 | AB103: 0 | AC103: 0 | AD103: 0 | AE103: 0 | AF103: 0 | AG103: 0 | AH103: 0.0188 | AI103: 0.0163 | AJ103: 0 | AK103: 0 | AL103: 0 | AM103: 0.0028 | AN103: 0 | AO103: 0 | AP103: 0 | AQ103: 0 | AR103: 0 | AS103: 0 | AT103: 0 | AU103: 0 | AV103: 0.0061 | AW103: 0 | AX103: 0 | AY103: 0.0089 | AZ103: 0 | BA103: 0.0168 | BB103: 0.0159 | BC103: 0.0139 | BD103: 0.0411 | BE103: 0.0469 | BF103: 0.0393 | BG103: 0.0385 | BH103: 0.0207 | BI103: 0.0691 | BJ103: 0.0658 | BK103: 0.0704 | BL103: 0.067 | BM103: 0.066 | BN103: 0.0736 | BO103: 0.0816 | BP103: 0.0824 | BQ103: 0.0766 | BR103: 0.057 | BS103: 0.1077 | BT103: 0.0544 | BU103: 0.0568 | BV103: 0.1668
A104: Man | B104: Non-ethnic Estonian | C104: B) Lower secondary education | G104: 0.0386 | H104: 0.0249 | I104: 0.0356 | J104: 0.0435 | K104: 0.0328 | L104: 0.0403 | M104: 0.0433 | N104: 0.0513 | O104: 0.051 | P104: 0.0519 | Q104: 0.0535 | R104: 0.0631 | S104: 0.0565 | T104: 0.0607 | U104: 0.0619 | V104: 0.0549 | W104: 0.0541 | X104: 0.0469 | Y104: 0.0498 | Z104: 0.0426 | AA104: 0.0368 | AB104: 0.0377 | AC104: 0.0302 | AD104: 0.0321 | AE104: 0.0473 | AF104: 0.0338 | AG104: 0.0182 | AH104: 0.0377 | AI104: 0.0384 | AJ104: 0.0258 | AK104: 0.0292 | AL104: 0.0292 | AM104: 0.0322 | AN104: 0.0331 | AO104: 0.0231 | AP104: 0.0431 | AQ104: 0.0404 | AR104: 0.0476 | AS104: 0.0523 | AT104: 0.0521 | AU104: 0.0509 | AV104: 0.0387 | AW104: 0.0421 | AX104: 0.0531 | AY104: 0.0661 | AZ104: 0.074 | BA104: 0.0842 | BB104: 0.0784 | BC104: 0.0726 | BD104: 0.0626 | BE104: 0.0485 | BF104: 0.0617 | BG104: 0.066 | BH104: 0.0702 | BI104: 0.073 | BJ104: 0.0682 | BK104: 0.07 | BL104: 0.0722 | BM104: 0.079 | BN104: 0.0755 | BO104: 0.0801 | BP104: 0.0716 | BQ104: 0.0886 | BR104: 0.0943 | BS104: 0.1366 | BT104: 0.1096 | BU104: 0.1265 | BV104: 0.1756
A105: Man | B105: Non-ethnic Estonian | C105: C) Upper secondary education | G105: 0 | H105: 0 | I105: 0.033 | J105: 0.0446 | K105: 0.0456 | L105: 0.0509 | M105: 0.0488 | N105: 0.0549 | O105: 0.0576 | P105: 0.0586 | Q105: 0.0628 | R105: 0.0678 | S105: 0.0638 | T105: 0.064 | U105: 0.0654 | V105: 0.0643 | W105: 0.0643 | X105: 0.0713 | Y105: 0.0723 | Z105: 0.071 | AA105: 0.0604 | AB105: 0.0679 | AC105: 0.0558 | AD105: 0.0547 | AE105: 0.0611 | AF105: 0.0568 | AG105: 0.0539 | AH105: 0.0598 | AI105: 0.0537 | AJ105: 0.0544 | AK105: 0.0527 | AL105: 0.0475 | AM105: 0.0523 | AN105: 0.0496 | AO105: 0.0522 | AP105: 0.0552 | AQ105: 0.053 | AR105: 0.0543 | AS105: 0.052 | AT105: 0.0533 | AU105: 0.055 | AV105: 0.0532 | AW105: 0.0559 | AX105: 0.0602 | AY105: 0.0669 | AZ105: 0.0749 | BA105: 0.0732 | BB105: 0.0874 | BC105: 0.0795 | BD105: 0.0646 | BE105: 0.0549 | BF105: 0.057 | BG105: 0.0638 | BH105: 0.067 | BI105: 0.0523 | BJ105: 0.0514 | BK105: 0.0552 | BL105: 0.056 | BM105: 0.0827 | BN105: 0.0588 | BO105: 0.0551 | BP105: 0.0789 | BQ105: 0.0889 | BR105: 0.0804 | BS105: 0.0829 | BT105: 0.1056 | BU105: 0.1355 | BV105: 0.1718
A106: Man | B106: Non-ethnic Estonian | C106: D) Higher education | G106: 0 | H106: 0 | I106: 0 | J106: 0.0058 | K106: 0.0198 | L106: 0.0309 | M106: 0.0391 | N106: 0.056 | O106: 0.0543 | P106: 0.0572 | Q106: 0.0656 | R106: 0.0688 | S106: 0.0661 | T106: 0.072 | U106: 0.065 | V106: 0.0655 | W106: 0.0658 | X106: 0.0635 | Y106: 0.0594 | Z106: 0.0642 | AA106: 0.0582 | AB106: 0.0594 | AC106: 0.0583 | AD106: 0.0579 | AE106: 0.0554 | AF106: 0.0525 | AG106: 0.052 | AH106: 0.0472 | AI106: 0.0453 | AJ106: 0.0459 | AK106: 0.0445 | AL106: 0.0423 | AM106: 0.043 | AN106: 0.0412 | AO106: 0.043 | AP106: 0.0463 | AQ106: 0.0454 | AR106: 0.0454 | AS106: 0.0466 | AT106: 0.046 | AU106: 0.0487 | AV106: 0.05 | AW106: 0.049 | AX106: 0.0569 | AY106: 0.0587 | AZ106: 0.0623 | BA106: 0.0656 | BB106: 0.0593 | BC106: 0.0597 | BD106: 0.0572 | BE106: 0.05 | BF106: 0.049 | BG106: 0.0493 | BH106: 0.0491 | BI106: 0.0513 | BJ106: 0.0566 | BK106: 0.0479 | BL106: 0.0421 | BM106: 0.0444 | BN106: 0.0547 | BO106: 0.0456 | BP106: 0.0414 | BQ106: 0.06 | BR106: 0.0282 | BS106: 0.0666 | BT106: 0.0658 | BU106: 0.0614 | BV106: 0.0852
A108: Woman | B108: Ethnic Estonian | C108: A) Basic education or lower | G108: 0.0215 | H108: 0.0148 | I108: 0.0081 | J108: 0.0087 | K108: 0.0088 | L108: 0.0073 | M108: 0.0072 | N108: 0.0023 | O108: 0.0084 | P108: 0.0061 | Q108: 0.0036 | R108: 0.0171 | S108: 0.0106 | T108: 0.0109 | U108: 0.0155 | V108: 0.0069 | W108: 0.0066 | X108: 0.002 | Y108: 0.0031 | Z108: 0.0022 | AA108: 0.0053 | AB108: 0.0044 | AC108: 0.0026 | AD108: 0.0028 | AE108: 0.00067 | AF108: 0.00072 | AG108: 0 | AH108: 0 | AI108: 0.0025 | AJ108: 0 | AK108: 0.0041 | AL108: 0.0032 | AM108: 0.0102 | AN108: 0.0089 | AO108: 0.0077 | AP108: 0 | AQ108: 0.0038 | AR108: 0.0048 | AS108: 0.005 | AT108: 0.0086 | AU108: 0.0035 | AV108: 0.0068 | AW108: 0.0071 | AX108: 0.0075 | AY108: 0.0076 | AZ108: 0.0067 | BA108: 0.0045 | BB108: 0.008 | BC108: 0.0112 | BD108: 0.009 | BE108: 0.0164 | BF108: 0.0126 | BG108: 0.0115 | BH108: 0.0169 | BI108: 0.0157 | BJ108: 0.0203 | BK108: 0.0262 | BL108: 0.0284 | BM108: 0.0324 | BN108: 0.0361 | BO108: 0.0346 | BP108: 0.0362 | BQ108: 0.0362 | BR108: 0.0409 | BS108: 0.0464 | BT108: 0.049 | BU108: 0.0535 | BV108: 0.0602
A109: Woman | B109: Ethnic Estonian | C109: B) Lower secondary education | G109: 0.0215 | H109: 0.015 | I109: 0.0175 | J109: 0.0241 | K109: 0.0239 | L109: 0.0224 | M109: 0.018 | N109: 0.0199 | O109: 0.0222 | P109: 0.0336 | Q109: 0.035 | R109: 0.0436 | S109: 0.0344 | T109: 0.0208 | U109: 0.0206 | V109: 0.0174 | W109: 0.0177 | X109: 0.0154 | Y109: 0.0133 | Z109: 0.0202 | AA109: 0.0157 | AB109: 0.0144 | AC109: 0.0173 | AD109: 0.0141 | AE109: 0.0111 | AF109: 0.012 | AG109: 0.0171 | AH109: 0.0136 | AI109: 0.0156 | AJ109: 0.0122 | AK109: 0.0166 | AL109: 0.0151 | AM109: 0.0181 | AN109: 0.0207 | AO109: 0.0206 | AP109: 0.0215 | AQ109: 0.0213 | AR109: 0.0211 | AS109: 0.0246 | AT109: 0.0276 | AU109: 0.0259 | AV109: 0.0252 | AW109: 0.0254 | AX109: 0.0275 | AY109: 0.0256 | AZ109: 0.0276 | BA109: 0.0321 | BB109: 0.029 | BC109: 0.0288 | BD109: 0.0303 | BE109: 0.0303 | BF109: 0.0313 | BG109: 0.0304 | BH109: 0.0306 | BI109: 0.0338 | BJ109: 0.0349 | BK109: 0.0367 | BL109: 0.0391 | BM109: 0.0383 | BN109: 0.0391 | BO109: 0.0376 | BP109: 0.0358 | BQ109: 0.0406 | BR109: 0.0443 | BS109: 0.0425 | BT109: 0.0376 | BU109: 0.0436 | BV109: 0.0498
A110: Woman | B110: Ethnic Estonian | C110: C) Upper secondary education | G110: 0.0014 | H110: 0.0032 | I110: 0.0161 | J110: 0.0246 | K110: 0.0274 | L110: 0.0296 | M110: 0.0369 | N110: 0.0403 | O110: 0.0407 | P110: 0.0371 | Q110: 0.039 | R110: 0.0389 | S110: 0.0395 | T110: 0.0393 | U110: 0.039 | V110: 0.037 | W110: 0.0373 | X110: 0.038 | Y110: 0.0367 | Z110: 0.036 | AA110: 0.0345 | AB110: 0.0332 | AC110: 0.0327 | AD110: 0.0325 | AE110: 0.0317 | AF110: 0.0303 | AG110: 0.0316 | AH110: 0.0327 | AI110: 0.0307 | AJ110: 0.0299 | AK110: 0.0313 | AL110: 0.0329 | AM110: 0.0332 | AN110: 0.0332 | AO110: 0.0344 | AP110: 0.0341 | AQ110: 0.0333 | AR110: 0.0328 | AS110: 0.0329 | AT110: 0.0349 | AU110: 0.0346 | AV110: 0.0368 | AW110: 0.0365 | AX110: 0.0372 | AY110: 0.0353 | AZ110: 0.0363 | BA110: 0.0344 | BB110: 0.0335 | BC110: 0.0322 | BD110: 0.0314 | BE110: 0.0322 | BF110: 0.0366 | BG110: 0.038 | BH110: 0.0365 | BI110: 0.0371 | BJ110: 0.0365 | BK110: 0.035 | BL110: 0.0348 | BM110: 0.0381 | BN110: 0.0448 | BO110: 0.0416 | BP110: 0.0366 | BQ110: 0.0342 | BR110: 0.0374 | BS110: 0.04 | BT110: 0.0404 | BU110: 0.047 | BV110: 0.0469
A111: Woman | B111: Ethnic Estonian | C111: D) Higher education | G111: 0 | H111: 0 | I111: 0 | J111: 0.0047 | K111: 0.0159 | L111: 0.0229 | M111: 0.0364 | N111: 0.0398 | O111: 0.041 | P111: 0.0423 | Q111: 0.0421 | R111: 0.0478 | S111: 0.0445 | T111: 0.0423 | U111: 0.0403 | V111: 0.0385 | W111: 0.039 | X111: 0.0397 | Y111: 0.0379 | Z111: 0.0362 | AA111: 0.0343 | AB111: 0.0348 | AC111: 0.0332 | AD111: 0.0327 | AE111: 0.032 | AF111: 0.0307 | AG111: 0.0325 | AH111: 0.0328 | AI111: 0.0311 | AJ111: 0.0299 | AK111: 0.0321 | AL111: 0.0332 | AM111: 0.0335 | AN111: 0.0317 | AO111: 0.0333 | AP111: 0.033 | AQ111: 0.0334 | AR111: 0.0324 | AS111: 0.032 | AT111: 0.0328 | AU111: 0.0329 | AV111: 0.0363 | AW111: 0.0372 | AX111: 0.0382 | AY111: 0.0376 | AZ111: 0.0376 | BA111: 0.0358 | BB111: 0.0345 | BC111: 0.0321 | BD111: 0.0349 | BE111: 0.0373 | BF111: 0.0398 | BG111: 0.04 | BH111: 0.0393 | BI111: 0.0367 | BJ111: 0.0366 | BK111: 0.0352 | BL111: 0.0314 | BM111: 0.0354 | BN111: 0.0321 | BO111: 0.0323 | BP111: 0.0353 | BQ111: 0.0381 | BR111: 0.0367 | BS111: 0.0301 | BT111: 0.0271 | BU111: 0.0255 | BV111: 0.0432
A113: Woman | B113: Non-ethnic Estonian | C113: A) Basic education or lower | G113: 0.0351 | H113: 0.0133 | I113: 0 | J113: 0.0099 | K113: 0.0061 | L113: 0.0034 | M113: 0.0038 | N113: 0.0058 | O113: 0.0055 | P113: 0 | Q113: 0 | R113: 0 | S113: 0 | T113: 0 | U113: 0.0176 | V113: 0 | W113: 0 | X113: 0 | Y113: 0 | Z113: 0 | AA113: 0 | AB113: 0 | AC113: 0.0083 | AD113: 0 | AE113: 0 | AF113: 0 | AG113: 0 | AH113: 0 | AI113: 0 | AJ113: 0 | AK113: 0.0056 | AL113: 0.0051 | AM113: 0.0037 | AN113: 0.0032 | AO113: 0.0027 | AP113: 0.0034 | AQ113: 0.0036 | AR113: 0 | AS113: 0 | AT113: 0.0094 | AU113: 0.0055 | AV113: 0.007 | AW113: 0.0066 | AX113: 0.0061 | AY113: 0.0306 | AZ113: 0.0352 | BA113: 0.0293 | BB113: 0.03 | BC113: 0.0227 | BD113: 0.0207 | BE113: 0.0235 | BF113: 0.0268 | BG113: 0.0357 | BH113: 0.0498 | BI113: 0.0508 | BJ113: 0.0556 | BK113: 0.0618 | BL113: 0.0598 | BM113: 0.0565 | BN113: 0.0577 | BO113: 0.0599 | BP113: 0.0618 | BQ113: 0.0601 | BR113: 0.0633 | BS113: 0.058 | BT113: 0.0844 | BU113: 0.1103 | BV113: 0.0951
A114: Woman | B114: Non-ethnic Estonian | C114: B) Lower secondary education | G114: 0.0351 | H114: 0.0138 | I114: 0.0379 | J114: 0.0411 | K114: 0.03 | L114: 0.0238 | M114: 0.0247 | N114: 0.0257 | O114: 0.0343 | P114: 0.0461 | Q114: 0.0494 | R114: 0.0404 | S114: 0.0391 | T114: 0.0485 | U114: 0.034 | V114: 0.065 | W114: 0.0488 | X114: 0.038 | Y114: 0.0269 | Z114: 0.0331 | AA114: 0.0155 | AB114: 0.0204 | AC114: 0.0088 | AD114: 0.0222 | AE114: 0.0148 | AF114: 0.0107 | AG114: 0.0135 | AH114: 0.0149 | AI114: 0.011 | AJ114: 0.0107 | AK114: 0.011 | AL114: 0.0188 | AM114: 0.0219 | AN114: 0.0179 | AO114: 0.0259 | AP114: 0.0204 | AQ114: 0.0241 | AR114: 0.0288 | AS114: 0.0301 | AT114: 0.0349 | AU114: 0.0332 | AV114: 0.0366 | AW114: 0.0391 | AX114: 0.0314 | AY114: 0.0414 | AZ114: 0.0461 | BA114: 0.0478 | BB114: 0.0443 | BC114: 0.0482 | BD114: 0.0409 | BE114: 0.0418 | BF114: 0.0444 | BG114: 0.0475 | BH114: 0.0525 | BI114: 0.055 | BJ114: 0.055 | BK114: 0.0538 | BL114: 0.0521 | BM114: 0.0533 | BN114: 0.0552 | BO114: 0.059 | BP114: 0.0635 | BQ114: 0.0691 | BR114: 0.0741 | BS114: 0.0798 | BT114: 0.094 | BU114: 0.0908 | BV114: 0.0642
A115: Woman | B115: Non-ethnic Estonian | C115: C) Upper secondary education | G115: 0 | H115: 0.0035 | I115: 0.0379 | J115: 0.0417 | K115: 0.0347 | L115: 0.0371 | M115: 0.044 | N115: 0.0581 | O115: 0.0582 | P115: 0.0591 | Q115: 0.0597 | R115: 0.0674 | S115: 0.0653 | T115: 0.0748 | U115: 0.0671 | V115: 0.0724 | W115: 0.0651 | X115: 0.0654 | Y115: 0.0609 | Z115: 0.066 | AA115: 0.0585 | AB115: 0.0602 | AC115: 0.0581 | AD115: 0.0572 | AE115: 0.0547 | AF115: 0.0527 | AG115: 0.0519 | AH115: 0.0473 | AI115: 0.045 | AJ115: 0.0455 | AK115: 0.0441 | AL115: 0.0427 | AM115: 0.0439 | AN115: 0.0412 | AO115: 0.044 | AP115: 0.0462 | AQ115: 0.0447 | AR115: 0.0473 | AS115: 0.0477 | AT115: 0.0475 | AU115: 0.0486 | AV115: 0.0485 | AW115: 0.047 | AX115: 0.0562 | AY115: 0.0622 | AZ115: 0.0685 | BA115: 0.0688 | BB115: 0.0616 | BC115: 0.0565 | BD115: 0.0558 | BE115: 0.0472 | BF115: 0.047 | BG115: 0.0512 | BH115: 0.0671 | BI115: 0.0553 | BJ115: 0.054 | BK115: 0.0482 | BL115: 0.0534 | BM115: 0.0528 | BN115: 0.05 | BO115: 0.0411 | BP115: 0.0403 | BQ115: 0.0355 | BR115: 0.059 | BS115: 0.064 | BT115: 0.0865 | BU115: 0.0781 | BV115: 0.0862
A116: Woman | B116: Non-ethnic Estonian | C116: D) Higher education | G116: 0 | H116: 0 | I116: 0 | J116: 0.0058 | K116: 0.0198 | L116: 0.0309 | M116: 0.0391 | N116: 0.056 | O116: 0.0543 | P116: 0.0572 | Q116: 0.0656 | R116: 0.0688 | S116: 0.0661 | T116: 0.072 | U116: 0.065 | V116: 0.0655 | W116: 0.0658 | X116: 0.0635 | Y116: 0.0594 | Z116: 0.0642 | AA116: 0.0582 | AB116: 0.0594 | AC116: 0.0583 | AD116: 0.0579 | AE116: 0.0554 | AF116: 0.0525 | AG116: 0.052 | AH116: 0.0472 | AI116: 0.0453 | AJ116: 0.0459 | AK116: 0.0445 | AL116: 0.0423 | AM116: 0.043 | AN116: 0.0412 | AO116: 0.043 | AP116: 0.0463 | AQ116: 0.0454 | AR116: 0.0454 | AS116: 0.0466 | AT116: 0.046 | AU116: 0.0487 | AV116: 0.05 | AW116: 0.049 | AX116: 0.0569 | AY116: 0.0587 | AZ116: 0.0623 | BA116: 0.0656 | BB116: 0.0593 | BC116: 0.0597 | BD116: 0.0572 | BE116: 0.05 | BF116: 0.049 | BG116: 0.0493 | BH116: 0.0491 | BI116: 0.0513 | BJ116: 0.0566 | BK116: 0.0479 | BL116: 0.0421 | BM116: 0.0444 | BN116: 0.0547 | BO116: 0.0456 | BP116: 0.0414 | BQ116: 0.06 | BR116: 0.0282 | BS116: 0.0666 | BT116: 0.0658 | BU116: 0.0614 | BV116: 0.0852
A117: Source: Statistics Estonia, authors calculations
A119: POPULATION FIGURES FROM ESS (AVERAGE 2004-2008), (corrected Higher education)
A120: 2004-2008 - RAHVAARV (ESU) | D120: 14 | E120: 15 | F120: 16 | G120: 17 | H120: 18 | I120: 19 | J120: 20 | K120: 21 | L120: 22 | M120: 23 | N120: 24 | O120: 25 | P120: 26 | Q120: 27 | R120: 28 | S120: 29 | T120: 30 | U120: 31 | V120: 32 | W120: 33 | X120: 34 | Y120: 35 | Z120: 36 | AA120: 37 | AB120: 38 | AC120: 39 | AD120: 40 | AE120: 41 | AF120: 42 | AG120: 43 | AH120: 44 | AI120: 45 | AJ120: 46 | AK120: 47 | AL120: 48 | AM120: 49 | AN120: 50 | AO120: 51 | AP120: 52 | AQ120: 53 | AR120: 54 | AS120: 55 | AT120: 56 | AU120: 57 | AV120: 58 | AW120: 59 | AX120: 60 | AY120: 61 | AZ120: 62 | BA120: 63 | BB120: 64 | BC120: 65 | BD120: 66 | BE120: 67 | BF120: 68 | BG120: 69 | BH120: 70 | BI120: 71 | BJ120: 72 | BK120: 73 | BL120: 74 | BM120: 75 | BN120: 76 | BO120: 77 | BP120: 78 | BQ120: 79 | BR120: 80 | BS120: 81 | BT120: 82 | BU120: 83 | BV120: 84
A121: Man | B121: Ethnic | C121: E) Higher education | G121: =G8*G143 -> 0 | H121: 0 | I121: 0 | J121: 0 | K121: 9.49182 | L121: 174.2496 | M121: 740.82288 | N121: 1280.4064 | O121: 1724.9696 | P121: 1690.61438 | Q121: 1653.3367 | R121: 1730.88154 | S121: 1841.9565 | T121: 1525.3692 | U121: 1341.76794 | V121: 1321.99118 | W121: 1633.7373 | X121: 1606.74818 | Y121: 1817.06238 | Z121: 1626.3294 | AA121: 1321.9502 | AB121: 1328.00964 | AC121: 1430.7721 | AD121: 1497.5572 | AE121: 1393.81386 | AF121: 1341.58696 | AG121: 1287.05808 | AH121: 1275.06736 | AI121: 1352.8506 | AJ121: 1346.60908 | AK121: 1622.3536 | AL121: 1419.08386 | AM121: =AM8*AM143 -> 1075.60376 | AN121: 964.69296 | AO121: 1109.76536 | AP121: 1042.0014 | AQ121: 1065.62196 | AR121: 1326.77656 | AS121: 1326.4947 | AT121: 1246.01806 | AU121: 1105.47756 | AV121: 816.63248 | AW121: 730.21764 | AX121: 632.80602 | AY121: 727.09164 | AZ121: 760.85058 | BA121: 662.8732 | BB121: 758.0529 | BC121: 984.3425 | BD121: 816.8314 | BE121: 686.04602 | BF121: 851.6252 | BG121: 621.35132 | BH121: 668.01664 | BI121: 563.5399 | BJ121: 547.6016 | BK121: 690.48 | BL121: 684.80256 | BM121: 517.07812 | BN121: 507.6456 | BO121: 422.86464 | BP121: 379.22544 | BQ121: 336.88816 | BR121: 280.00032 | BS121: 125.4111 | BT121: 144.35788 | BU121: 117.96048 | BV121: 111.40128
A122: Man | B122: Non-ethnic | C122: E) Higher education | G122: =G13*G144 -> 0 | H122: 0 | I122: 0 | J122: 0 | K122: 62.71606 | L122: 177.75904 | M122: 307.92096 | N122: 300.19368 | O122: 375.60402 | P122: 638.96316 | Q122: 535.58736 | R122: 379.2032 | S122: 392.21028 | T122: 258.1688 | U122: 421.78864 | V122: 397.33738 | W122: 423.5664 | X122: 591.95494 | Y122: 669.73068 | Z122: 523.26586 | AA122: 414.0728 | AB122: 513.6416 | AC122: 356.1844 | AD122: 456.46096 | AE122: 502.23758 | AF122: 658.16932 | AG122: 750.83362 | AH122: 800.6424 | AI122: 693.4683 | AJ122: 996.68712 | AK122: 949.38534 | AL122: 930.1158 | AM122: =AM13*AM144 -> 921.3318 | AN122: 899.0348 | AO122: 1044.5733 | AP122: 1170.94748 | AQ122: 1092.45204 | AR122: 853.43514 | AS122: 829.35342 | AT122: 710.6904 | AU122: 775.36746 | AV122: 929.1192 | AW122: 753.83266 | AX122: 623.17874 | AY122: 401.6538 | AZ122: 278.4546 | BA122: 368.3112 | BB122: 298.7086 | BC122: 400.34912 | BD122: 538.5331 | BE122: 606.41274 | BF122: 587.1086 | BG122: 382.56272 | BH122: 410.48832 | BI122: 245.19838 | BJ122: 338.82228 | BK122: 291.82004 | BL122: 306.9417 | BM122: 301.28032 | BN122: 286.11162 | BO122: 183.86456 | BP122: 222.0066 | BQ122: 213.956 | BR122: 127.58928 | BS122: 80.14656 | BT122: 88.99072 | BU122: 70.10748 | BV122: 19.0209
A123: Woman | B123: Ethnic | C123: E) Higher education | G123: =G18*G145 -> 0 | H123: 0 | I123: 0 | J123: 0 | K123: 249.44964 | L123: 800.17896 | M123: 1922.11712 | N123: 2343.8668 | O123: 2397.84632 | P123: 2671.67152 | Q123: 2527.25728 | R123: 2674.6797 | S123: 2665.98216 | T123: 2727.3016 | U123: 2339.5669 | V123: 2543.85478 | W123: 2687.95808 | X123: 2819.50932 | Y123: 2741.3149 | Z123: 2547.0783 | AA123: 2339.06208 | AB123: 2778.06144 | AC123: 2570.40152 | AD123: 2414.6507 | AE123: 2437.311 | AF123: 2760.513 | AG123: 2817.20592 | AH123: 2682.96168 | AI123: 2676.27042 | AJ123: 2678.85484 | AK123: 2602.50312 | AL123: 2321.63768 | AM123: =AM18*AM145 -> 2258.46192 | AN123: 1976.46954 | AO123: 2122.79072 | AP123: 2022.79168 | AQ123: 2216.17348 | AR123: 2026.06948 | AS123: 1993.92336 | AT123: 1653.3222 | AU123: 1693.8651 | AV123: 1716.64456 | AW123: 1784.7592 | AX123: 1877.879 | AY123: 2074.45628 | AZ123: 1888.97356 | BA123: 1917.3834 | BB123: 1897.5072 | BC123: 1874.92216 | BD123: 2095.89912 | BE123: 2002.71638 | BF123: 1930.176 | BG123: 1775.8104 | BH123: 1751.86512 | BI123: 1429.88416 | BJ123: 1285.48992 | BK123: 994.8402 | BL123: 830.73254 | BM123: 818.3142 | BN123: 586.99386 | BO123: 643.38206 | BP123: 774.1615 | BQ123: 741.19 | BR123: 525.5504 | BS123: 343.60524 | BT123: 257.53102 | BU123: 176.87022 | BV123: 135.036
A124: Woman | B124: Non-ethnic | C124: E) Higher education | G124: =G23*G146 -> 0 | H124: 0 | I124: 0 | J124: 0 | K124: 91.36748 | L124: 327.61206 | M124: 553.7595 | N124: 775.41072 | O124: 912.00492 | P124: 958.1201 | Q124: 1094.00644 | R124: 1113.89662 | S124: 1156.02564 | T124: 892.6287 | U124: 870.42088 | V124: 786.91402 | W124: 1039.1131 | X124: 977.1548 | Y124: 781.48706 | Z124: 904.6184 | AA124: 875.49522 | AB124: 805.5536 | AC124: 1163.2558 | AD124: 1213.09912 | AE124: 1625.84838 | AF124: 1498.60872 | AG124: 1618.40984 | AH124: 1417.66884 | AI124: 1726.12036 | AJ124: 1790.82544 | AK124: 1876.5176 | AL124: 1659.84886 | AM124: =AM23*AM146 -> 1465.4184 | AN124: 1558.68634 | AO124: 1591.35002 | AP124: 1778.5968 | AQ124: 1732.97872 | AR124: 1351.73784 | AS124: 1461.2544 | AT124: 1385.40456 | AU124: 1538.9055 | AV124: 1340.9984 | AW124: 1159.8189 | AX124: 1004.4331 | AY124: 666.39586 | AZ124: 596.4822 | BA124: 830.20356 | BB124: 857.06502 | BC124: 1127.1314 | BD124: 1283.67744 | BE124: 1134.51316 | BF124: 1011.60408 | BG124: 807.3832 | BH124: 621.75552 | BI124: 574.19314 | BJ124: 507.80366 | BK124: 360.84 | BL124: 240.45024 | BM124: 305.91564 | BN124: 400.58312 | BO124: 346.3593 | BP124: 254.95688 | BQ124: 406.03752 | BR124: 88.5654 | BS124: 284.97176 | BT124: 129.07646 | BU124: 92.3525 | BV124: 154.05012
A125: Source: Statistics Estonia, authors calculations
A127: POPULATION FIGURES DERIVED FROM ESS (AVERAGE 2004-2008) (corrected Higher education), RANDOM, CORRECTED FOR ZEROES
G128: 17 | H128: 18 | I128: 19 | J128: 20 | K128: 21 | L128: 22 | M128: 23 | N128: 24 | O128: 25 | P128: 26 | Q128: 27 | R128: 28 | S128: 29 | T128: 30 | U128: 31 | V128: 32 | W128: 33 | X128: 34 | Y128: 35 | Z128: 36 | AA128: 37 | AB128: 38 | AC128: 39 | AD128: 40 | AE128: 41 | AF128: 42 | AG128: 43 | AH128: 44 | AI128: 45 | AJ128: 46 | AK128: 47 | AL128: 48 | AM128: 49 | AN128: 50 | AO128: 51 | AP128: 52 | AQ128: 53 | AR128: 54 | AS128: 55 | AT128: 56 | AU128: 57 | AV128: 58 | AW128: 59 | AX128: 60 | AY128: 61 | AZ128: 62 | BA128: 63 | BB128: 64 | BC128: 65 | BD128: 66 | BE128: 67 | BF128: 68 | BG128: 69 | BH128: 70 | BI128: 71 | BJ128: 72 | BK128: 73 | BL128: 74 | BM128: 75 | BN128: 76 | BO128: 77 | BP128: 78 | BQ128: 79 | BR128: 80 | BS128: 81 | BT128: 82 | BU128: 83 | BV128: 84
A129: Man | B129: Ethnic | C129: E) Higher education | K129: =IF(K136>=15,K136,15) -> 17.66572872 | L129: =IF(L136>=15,L136,15) -> 240.5241371 | M129: 899.0817442 | N129: 1481.544722 | O129: 1958.770557 | P129: 1897.767941 | Q129: 1873.037569 | R129: 1956.191219 | S129: 2092.380568 | T129: 1768.375193 | U129: 1544.353532 | V129: 1517.863414 | W129: 1844.002689 | X129: 1805.802443 | Y129: 2034.629915 | Z129: 1836.68614 | AA129: 1512.858851 | AB129: 1510.020825 | AC129: 1619.018841 | AD129: 1691.051721 | AE129: 1598.541656 | AF129: 1498.966863 | AG129: 1440.3958 | AH129: 1431.636125 | AI129: 1502.962682 | AJ129: 1491.873491 | AK129: 1789.810232 | AL129: 1590.658095 | AM129: 1212.134668 | AN129: 1084.674713 | AO129: 1240.532881 | AP129: 1163.702152 | AQ129: 1203.829464 | AR129: 1482.463849 | AS129: 1484.272989 | AT129: 1382.06884 | AU129: 1233.054888 | AV129: 934.6786364 | AW129: 836.6744001 | AX129: 746.1144574 | AY129: 842.8599435 | AZ129: 879.8483104 | BA129: 790.4079012 | BB129: 881.0597452 | BC129: 1126.037139 | BD129: 935.0326673 | BE129: 788.9599969 | BF129: 969.5618178 | BG129: 719.0919378 | BH129: 763.5195347 | BI129: 661.2482935 | BJ129: 651.2430789 | BK129: 806.676486 | BL129: 795.1387452 | BM129: 611.565612 | BN129: 603.5401471 | BO129: 501.9284006 | BP129: 450.4717575 | BQ129: 402.5639547 | BR129: 344.750582 | BS129: 172.0177306 | BT129: 194.1856015 | BU129: 156.718356 | BV129: 152.6209512
A130: Man | B130: Non-ethnic | C130: E) Higher education | K130: =IF(K137>=15,K137,15) -> 100.8394385 | L130: =IF(L137>=15,L137,15) -> 240.8750404 | M130: 390.3986064 | N130: 384.1830287 | O130: 469.9112211 | P130: 773.7653031 | Q130: 683.9651831 | R130: 508.4216102 | S130: 498.7023991 | T130: 335.9577787 | U130: 525.2626419 | V130: 505.1922047 | W130: 531.1461724 | X130: 732.1000893 | Y130: 823.6602873 | Z130: 661.2777268 | AA130: 518.7663495 | AB130: 646.3804035 | AC130: 454.2090605 | AD130: 554.8436879 | AE130: 613.5347947 | AF130: 790.282737 | AG130: 889.4828089 | AH130: 948.7872296 | AI130: 822.7372944 | AJ130: 1151.22787 | AK130: 1090.435062 | AL130: 1052.96068 | AM130: 1053.42188 | AN130: 1023.998426 | AO130: 1187.035244 | AP130: 1314.127522 | AQ130: 1224.659409 | AR130: 980.8033287 | AS130: 946.7246564 | AT130: 823.8642564 | AU130: 896.0107676 | AV130: 1047.15578 | AW130: 857.7257334 | AX130: 722.1115552 | AY130: 476.9533577 | AZ130: 352.7264578 | BA130: 466.2993821 | BB130: 389.5055694 | BC130: 496.0434662 | BD130: 642.4577605 | BE130: 699.8418406 | BF130: 681.3139783 | BG130: 459.3100481 | BH130: 492.3223752 | BI130: 305.2310911 | BJ130: 407.1389897 | BK130: 356.7609612 | BL130: 381.7193991 | BM130: 384.067017 | BN130: 365.0729206 | BO130: 251.4290353 | BP130: 290.2020421 | BQ130: 268.5868537 | BR130: 173.0682136 | BS130: 138.494391 | BT130: 121.8054696 | BU130: 97.38399998 | BV130: 35.03395285
A131: Woman | B131: Ethnic | C131: E) Higher education | K131: =IF(K138>=15,K138,15) -> 330.7635243 | L131: 921.4276064 | M131: 2136.00271 | N131: 2572.652919 | O131: 2629.814124 | P131: 2911.423423 | Q131: 2759.640159 | R131: 2939.573979 | S131: 2916.071308 | T131: 2969.399077 | U131: 2563.859179 | V131: 2760.263909 | W131: 2914.769506 | X131: 3054.592189 | Y131: 2960.102172 | Z131: 2754.961223 | AA131: 2529.913137 | AB131: 2972.653346 | AC131: 2748.401627 | AD131: 2587.185189 | AE131: 2606.806877 | AF131: 2925.754471 | AG131: 2994.206538 | AH131: 2859.6456 | AI131: 2843.479987 | AJ131: 2838.952025 | AK131: 2772.6569 | AL131: 2493.817357 | AM131: 2434.223098 | AN131: 2137.272233 | AO131: 2291.056491 | AP131: 2187.514668 | AQ131: 2381.200386 | AR131: 2185.267931 | AS131: 2153.022778 | AT131: 1812.959288 | AU131: 1855.282139 | AV131: 1890.250272 | AW131: 1957.607752 | AX131: 2051.436952 | AY131: 2248.594322 | AZ131: 2069.931934 | BA131: 2093.692064 | BB131: 2070.922132 | BC131: 2037.565429 | BD131: 2270.663909 | BE131: 2184.309354 | BF131: 2121.595659 | BG131: 1961.736765 | BH131: 1929.617008 | BI131: 1593.646412 | BJ131: 1444.266854 | BK131: 1146.998795 | BL131: 960.3723468 | BM131: 962.2156124 | BN131: 714.0704795 | BO131: 762.4059178 | BP131: 898.2017115 | BQ131: 868.8455899 | BR131: 638.4606403 | BS131: 430.6676991 | BT131: 328.9943308 | BU131: 234.4711386 | BV131: 179.2441474
A132: Woman | B132: Non-ethnic | C132: E) Higher education | K132: =IF(K139>=15,K139,15) -> 137.7838303 | L132: 410.3571633 | M132: 657.7036914 | N132: 920.3751051 | O132: 1047.148235 | P132: 1099.59952 | Q132: 1251.10633 | R132: 1280.167341 | S132: 1316.201121 | T132: 1061.458682 | U132: 1022.834135 | V132: 930.8467267 | W132: 1187.819574 | X132: 1121.208671 | Y132: 907.4829498 | Z132: 1048.091303 | AA132: 1007.416807 | AB132: 936.3798172 | AC132: 1304.663813 | AD132: 1361.238404 | AE132: 1782.578508 | AF132: 1653.3423 | AG132: 1782.355775 | AH132: 1569.404781 | AI132: 1881.231555 | AJ132: 1951.680818 | AK132: 2034.586149 | AL132: 1809.637768 | AM132: 1615.497689 | AN132: 1701.82837 | AO132: 1742.032995 | AP132: 1943.928451 | AQ132: 1891.026188 | AR132: 1506.87487 | AS132: 1619.575681 | AT132: 1535.112279 | AU132: 1689.889293 | AV132: 1479.775608 | AW132: 1274.402309 | AX132: 1117.083186 | AY132: 766.3634193 | AZ132: 703.801577 | BA132: 955.8337182 | BB132: 989.6419439 | BC132: 1282.484648 | BD132: 1448.85181 | BE132: 1275.03112 | BF132: 1145.496691 | BG132: 927.8950095 | BH132: 735.5808042 | BI132: 684.2444386 | BJ132: 621.2542393 | BK132: 446.6689609 | BL132: 312.8386186 | BM132: 395.2319431 | BN132: 508.0104339 | BO132: 437.5801978 | BP132: 332.5136574 | BQ132: 509.3345377 | BR132: 132.0152506 | BS132: 373.6047554 | BT132: 201.277555 | BU132: 146.5491604 | BV132: 213.0104374
A134: POPULATION FIGURES DERIVED FROM ESS (AVERAGE 2004-2008) (corrected Higher education), RANDOM
G135: 17 | H135: 18 | I135: 19 | J135: 20 | K135: 21 | L135: 22 | M135: 23 | N135: 24 | O135: 25 | P135: 26 | Q135: 27 | R135: 28 | S135: 29 | T135: 30 | U135: 31 | V135: 32 | W135: 33 | X135: 34 | Y135: 35 | Z135: 36 | AA135: 37 | AB135: 38 | AC135: 39 | AD135: 40 | AE135: 41 | AF135: 42 | AG135: 43 | AH135: 44 | AI135: 45 | AJ135: 46 | AK135: 47 | AL135: 48 | AM135: 49 | AN135: 50 | AO135: 51 | AP135: 52 | AQ135: 53 | AR135: 54 | AS135: 55 | AT135: 56 | AU135: 57 | AV135: 58 | AW135: 59 | AX135: 60 | AY135: 61 | AZ135: 62 | BA135: 63 | BB135: 64 | BC135: 65 | BD135: 66 | BE135: 67 | BF135: 68 | BG135: 69 | BH135: 70 | BI135: 71 | BJ135: 72 | BK135: 73 | BL135: 74 | BM135: 75 | BN135: 76 | BO135: 77 | BP135: 78 | BQ135: 79 | BR135: 80 | BS135: 81 | BT135: 82 | BU135: 83 | BV135: 84
A136: Man | B136: Ethnic | C136: E) Higher education | K136: =((NORMSINV(Assumptions!C9)*K150)+K143)*K$8 -> 17.66572872 | L136: =((NORMSINV(Assumptions!C9)*L150)+L143)*L$8 -> 240.5241371 | M136: =((NORMSINV(Assumptions!C9)*M150)+M143)*M$8 -> 899.0817442 | N136: =((NORMSINV(Assumptions!C9)*N150)+N143)*N$8 -> 1481.544722 | O136: =((NORMSINV(Assumptions!C9)*O150)+O143)*O$8 -> 1958.770557 | P136: =((NORMSINV(Assumptions!C9)*P150)+P143)*P$8 -> 1897.767941 | Q136: =((NORMSINV(Assumptions!C9)*Q150)+Q143)*Q$8 -> 1873.037569 | R136: =((NORMSINV(Assumptions!C9)*R150)+R143)*R$8 -> 1956.191219 | S136: =((NORMSINV(Assumptions!C9)*S150)+S143)*S$8 -> 2092.380568 | T136: =((NORMSINV(Assumptions!C9)*T150)+T143)*T$8 -> 1768.375193 | U136: =((NORMSINV(Assumptions!C9)*U150)+U143)*U$8 -> 1544.353532 | V136: =((NORMSINV(Assumptions!C9)*V150)+V143)*V$8 -> 1517.863414 | W136: =((NORMSINV(Assumptions!C9)*W150)+W143)*W$8 -> 1844.002689 | X136: =((NORMSINV(Assumptions!C9)*X150)+X143)*X$8 -> 1805.802443 | Y136: =((NORMSINV(Assumptions!C9)*Y150)+Y143)*Y$8 -> 2034.629915 | Z136: =((NORMSINV(Assumptions!C9)*Z150)+Z143)*Z$8 -> 1836.68614 | AA136: =((NORMSINV(Assumptions!C9)*AA150)+AA143)*AA$8 -> 1512.858851 | AB136: =((NORMSINV(Assumptions!C9)*AB150)+AB143)*AB$8 -> 1510.020825 | AC136: =((NORMSINV(Assumptions!C9)*AC150)+AC143)*AC$8 -> 1619.018841 | AD136: =((NORMSINV(Assumptions!C9)*AD150)+AD143)*AD$8 -> 1691.051721 | AE136: =((NORMSINV(Assumptions!C9)*AE150)+AE143)*AE$8 -> 1598.541656 | AF136: =((NORMSINV(Assumptions!C9)*AF150)+AF143)*AF$8 -> 1498.966863 | AG136: =((NORMSINV(Assumptions!C9)*AG150)+AG143)*AG$8 -> 1440.3958 | AH136: =((NORMSINV(Assumptions!C9)*AH150)+AH143)*AH$8 -> 1431.636125 | AI136: =((NORMSINV(Assumptions!C9)*AI150)+AI143)*AI$8 -> 1502.962682 | AJ136: =((NORMSINV(Assumptions!C9)*AJ150)+AJ143)*AJ$8 -> 1491.873491 | AK136: =((NORMSINV(Assumptions!C9)*AK150)+AK143)*AK$8 -> 1789.810232 | AL136: =((NORMSINV(Assumptions!C9)*AL150)+AL143)*AL$8 -> 1590.658095 | AM136: =((NORMSINV(Assumptions!C9)*AM150)+AM143)*AM$8 -> 1212.134668 | AN136: =((NORMSINV(Assumptions!C9)*AN150)+AN143)*AN$8 -> 1084.674713 | AO136: =((NORMSINV(Assumptions!C9)*AO150)+AO143)*AO$8 -> 1240.532881 | AP136: =((NORMSINV(Assumptions!C9)*AP150)+AP143)*AP$8 -> 1163.702152 | AQ136: =((NORMSINV(Assumptions!C9)*AQ150)+AQ143)*AQ$8 -> 1203.829464 | AR136: =((NORMSINV(Assumptions!C9)*AR150)+AR143)*AR$8 -> 1482.463849 | AS136: =((NORMSINV(Assumptions!C9)*AS150)+AS143)*AS$8 -> 1484.272989 | AT136: =((NORMSINV(Assumptions!C9)*AT150)+AT143)*AT$8 -> 1382.06884 | AU136: =((NORMSINV(Assumptions!C9)*AU150)+AU143)*AU$8 -> 1233.054888 | AV136: =((NORMSINV(Assumptions!C9)*AV150)+AV143)*AV$8 -> 934.6786364 | AW136: =((NORMSINV(Assumptions!C9)*AW150)+AW143)*AW$8 -> 836.6744001 | AX136: =((NORMSINV(Assumptions!C9)*AX150)+AX143)*AX$8 -> 746.1144574 | AY136: =((NORMSINV(Assumptions!C9)*AY150)+AY143)*AY$8 -> 842.8599435 | AZ136: =((NORMSINV(Assumptions!C9)*AZ150)+AZ143)*AZ$8 -> 879.8483104 | BA136: =((NORMSINV(Assumptions!C9)*BA150)+BA143)*BA$8 -> 790.4079012 | BB136: =((NORMSINV(Assumptions!C9)*BB150)+BB143)*BB$8 -> 881.0597452 | BC136: =((NORMSINV(Assumptions!C9)*BC150)+BC143)*BC$8 -> 1126.037139 | BD136: =((NORMSINV(Assumptions!C9)*BD150)+BD143)*BD$8 -> 935.0326673 | BE136: =((NORMSINV(Assumptions!C9)*BE150)+BE143)*BE$8 -> 788.9599969 | BF136: =((NORMSINV(Assumptions!C9)*BF150)+BF143)*BF$8 -> 969.5618178 | BG136: =((NORMSINV(Assumptions!C9)*BG150)+BG143)*BG$8 -> 719.0919378 | BH136: =((NORMSINV(Assumptions!C9)*BH150)+BH143)*BH$8 -> 763.5195347 | BI136: =((NORMSINV(Assumptions!C9)*BI150)+BI143)*BI$8 -> 661.2482935 | BJ136: =((NORMSINV(Assumptions!C9)*BJ150)+BJ143)*BJ$8 -> 651.2430789 | BK136: =((NORMSINV(Assumptions!C9)*BK150)+BK143)*BK$8 -> 806.676486 | BL136: =((NORMSINV(Assumptions!C9)*BL150)+BL143)*BL$8 -> 795.1387452 | BM136: =((NORMSINV(Assumptions!C9)*BM150)+BM143)*BM$8 -> 611.565612 | BN136: =((NORMSINV(Assumptions!C9)*BN150)+BN143)*BN$8 -> 603.5401471 | BO136: =((NORMSINV(Assumptions!C9)*BO150)+BO143)*BO$8 -> 501.9284006 | BP136: =((NORMSINV(Assumptions!C9)*BP150)+BP143)*BP$8 -> 450.4717575 | BQ136: =((NORMSINV(Assumptions!C9)*BQ150)+BQ143)*BQ$8 -> 402.5639547 | BR136: =((NORMSINV(Assumptions!C9)*BR150)+BR143)*BR$8 -> 344.750582 | BS136: =((NORMSINV(Assumptions!C9)*BS150)+BS143)*BS$8 -> 172.0177306 | BT136: =((NORMSINV(Assumptions!C9)*BT150)+BT143)*BT$8 -> 194.1856015 | BU136: =((NORMSINV(Assumptions!C9)*BU150)+BU143)*BU$8 -> 156.718356 | BV136: =((NORMSINV(Assumptions!C9)*BV150)+BV143)*BV$8 -> 152.6209512
A137: Man | B137: Non-ethnic | C137: E) Higher education | K137: =((NORMSINV(Assumptions!C9)*K151)+K144)*K$13 -> 100.8394385 | L137: =((NORMSINV(Assumptions!C9)*L151)+L144)*L$13 -> 240.8750404 | M137: =((NORMSINV(Assumptions!C9)*M151)+M144)*M$13 -> 390.3986064 | N137: =((NORMSINV(Assumptions!C9)*N151)+N144)*N$13 -> 384.1830287 | O137: =((NORMSINV(Assumptions!C9)*O151)+O144)*O$13 -> 469.9112211 | P137: =((NORMSINV(Assumptions!C9)*P151)+P144)*P$13 -> 773.7653031 | Q137: =((NORMSINV(Assumptions!C9)*Q151)+Q144)*Q$13 -> 683.9651831 | R137: =((NORMSINV(Assumptions!C9)*R151)+R144)*R$13 -> 508.4216102 | S137: =((NORMSINV(Assumptions!C9)*S151)+S144)*S$13 -> 498.7023991 | T137: =((NORMSINV(Assumptions!C9)*T151)+T144)*T$13 -> 335.9577787 | U137: =((NORMSINV(Assumptions!C9)*U151)+U144)*U$13 -> 525.2626419 | V137: =((NORMSINV(Assumptions!C9)*V151)+V144)*V$13 -> 505.1922047 | W137: =((NORMSINV(Assumptions!C9)*W151)+W144)*W$13 -> 531.1461724 | X137: =((NORMSINV(Assumptions!C9)*X151)+X144)*X$13 -> 732.1000893 | Y137: =((NORMSINV(Assumptions!C9)*Y151)+Y144)*Y$13 -> 823.6602873 | Z137: =((NORMSINV(Assumptions!C9)*Z151)+Z144)*Z$13 -> 661.2777268 | AA137: =((NORMSINV(Assumptions!C9)*AA151)+AA144)*AA$13 -> 518.7663495 | AB137: =((NORMSINV(Assumptions!C9)*AB151)+AB144)*AB$13 -> 646.3804035 | AC137: =((NORMSINV(Assumptions!C9)*AC151)+AC144)*AC$13 -> 454.2090605 | AD137: =((NORMSINV(Assumptions!C9)*AD151)+AD144)*AD$13 -> 554.8436879 | AE137: =((NORMSINV(Assumptions!C9)*AE151)+AE144)*AE$13 -> 613.5347947 | AF137: =((NORMSINV(Assumptions!C9)*AF151)+AF144)*AF$13 -> 790.282737 | AG137: =((NORMSINV(Assumptions!C9)*AG151)+AG144)*AG$13 -> 889.4828089 | AH137: =((NORMSINV(Assumptions!C9)*AH151)+AH144)*AH$13 -> 948.7872296 | AI137: =((NORMSINV(Assumptions!C9)*AI151)+AI144)*AI$13 -> 822.7372944 | AJ137: =((NORMSINV(Assumptions!C9)*AJ151)+AJ144)*AJ$13 -> 1151.22787 | AK137: =((NORMSINV(Assumptions!C9)*AK151)+AK144)*AK$13 -> 1090.435062 | AL137: =((NORMSINV(Assumptions!C9)*AL151)+AL144)*AL$13 -> 1052.96068 | AM137: =((NORMSINV(Assumptions!C9)*AM151)+AM144)*AM$13 -> 1053.42188 | AN137: =((NORMSINV(Assumptions!C9)*AN151)+AN144)*AN$13 -> 1023.998426 | AO137: =((NORMSINV(Assumptions!C9)*AO151)+AO144)*AO$13 -> 1187.035244 | AP137: =((NORMSINV(Assumptions!C9)*AP151)+AP144)*AP$13 -> 1314.127522 | AQ137: =((NORMSINV(Assumptions!C9)*AQ151)+AQ144)*AQ$13 -> 1224.659409 | AR137: =((NORMSINV(Assumptions!C9)*AR151)+AR144)*AR$13 -> 980.8033287 | AS137: =((NORMSINV(Assumptions!C9)*AS151)+AS144)*AS$13 -> 946.7246564 | AT137: =((NORMSINV(Assumptions!C9)*AT151)+AT144)*AT$13 -> 823.8642564 | AU137: =((NORMSINV(Assumptions!C9)*AU151)+AU144)*AU$13 -> 896.0107676 | AV137: =((NORMSINV(Assumptions!C9)*AV151)+AV144)*AV$13 -> 1047.15578 | AW137: =((NORMSINV(Assumptions!C9)*AW151)+AW144)*AW$13 -> 857.7257334 | AX137: =((NORMSINV(Assumptions!C9)*AX151)+AX144)*AX$13 -> 722.1115552 | AY137: =((NORMSINV(Assumptions!C9)*AY151)+AY144)*AY$13 -> 476.9533577 | AZ137: =((NORMSINV(Assumptions!C9)*AZ151)+AZ144)*AZ$13 -> 352.7264578 | BA137: =((NORMSINV(Assumptions!C9)*BA151)+BA144)*BA$13 -> 466.2993821 | BB137: =((NORMSINV(Assumptions!C9)*BB151)+BB144)*BB$13 -> 389.5055694 | BC137: =((NORMSINV(Assumptions!C9)*BC151)+BC144)*BC$13 -> 496.0434662 | BD137: =((NORMSINV(Assumptions!C9)*BD151)+BD144)*BD$13 -> 642.4577605 | BE137: =((NORMSINV(Assumptions!C9)*BE151)+BE144)*BE$13 -> 699.8418406 | BF137: =((NORMSINV(Assumptions!C9)*BF151)+BF144)*BF$13 -> 681.3139783 | BG137: =((NORMSINV(Assumptions!C9)*BG151)+BG144)*BG$13 -> 459.3100481 | BH137: =((NORMSINV(Assumptions!C9)*BH151)+BH144)*BH$13 -> 492.3223752 | BI137: =((NORMSINV(Assumptions!C9)*BI151)+BI144)*BI$13 -> 305.2310911 | BJ137: =((NORMSINV(Assumptions!C9)*BJ151)+BJ144)*BJ$13 -> 407.1389897 | BK137: =((NORMSINV(Assumptions!C9)*BK151)+BK144)*BK$13 -> 356.7609612 | BL137: =((NORMSINV(Assumptions!C9)*BL151)+BL144)*BL$13 -> 381.7193991 | BM137: =((NORMSINV(Assumptions!C9)*BM151)+BM144)*BM$13 -> 384.067017 | BN137: =((NORMSINV(Assumptions!C9)*BN151)+BN144)*BN$13 -> 365.0729206 | BO137: =((NORMSINV(Assumptions!C9)*BO151)+BO144)*BO$13 -> 251.4290353 | BP137: =((NORMSINV(Assumptions!C9)*BP151)+BP144)*BP$13 -> 290.2020421 | BQ137: =((NORMSINV(Assumptions!C9)*BQ151)+BQ144)*BQ$13 -> 268.5868537 | BR137: =((NORMSINV(Assumptions!C9)*BR151)+BR144)*BR$13 -> 173.0682136 | BS137: =((NORMSINV(Assumptions!C9)*BS151)+BS144)*BS$13 -> 138.494391 | BT137: =((NORMSINV(Assumptions!C9)*BT151)+BT144)*BT$13 -> 121.8054696 | BU137: =((NORMSINV(Assumptions!C9)*BU151)+BU144)*BU$13 -> 97.38399998 | BV137: =((NORMSINV(Assumptions!C9)*BV151)+BV144)*BV$13 -> 35.03395285
A138: Woman | B138: Ethnic | C138: E) Higher education | K138: =((NORMSINV(Assumptions!C9)*K152)+K145)*K$18 -> 330.7635243 | L138: =((NORMSINV(Assumptions!C9)*L152)+L145)*L$18 -> 921.4276064 | M138: =((NORMSINV(Assumptions!C9)*M152)+M145)*M$18 -> 2136.00271 | N138: =((NORMSINV(Assumptions!C9)*N152)+N145)*N$18 -> 2572.652919 | O138: =((NORMSINV(Assumptions!C9)*O152)+O145)*O$18 -> 2629.814124 | P138: =((NORMSINV(Assumptions!C9)*P152)+P145)*P$18 -> 2911.423423 | Q138: =((NORMSINV(Assumptions!C9)*Q152)+Q145)*Q$18 -> 2759.640159 | R138: =((NORMSINV(Assumptions!C9)*R152)+R145)*R$18 -> 2939.573979 | S138: =((NORMSINV(Assumptions!C9)*S152)+S145)*S$18 -> 2916.071308 | T138: =((NORMSINV(Assumptions!C9)*T152)+T145)*T$18 -> 2969.399077 | U138: =((NORMSINV(Assumptions!C9)*U152)+U145)*U$18 -> 2563.859179 | V138: =((NORMSINV(Assumptions!C9)*V152)+V145)*V$18 -> 2760.263909 | W138: =((NORMSINV(Assumptions!C9)*W152)+W145)*W$18 -> 2914.769506 | X138: =((NORMSINV(Assumptions!C9)*X152)+X145)*X$18 -> 3054.592189 | Y138: =((NORMSINV(Assumptions!C9)*Y152)+Y145)*Y$18 -> 2960.102172 | Z138: =((NORMSINV(Assumptions!C9)*Z152)+Z145)*Z$18 -> 2754.961223 | AA138: =((NORMSINV(Assumptions!C9)*AA152)+AA145)*AA$18 -> 2529.913137 | AB138: =((NORMSINV(Assumptions!C9)*AB152)+AB145)*AB$18 -> 2972.653346 | AC138: =((NORMSINV(Assumptions!C9)*AC152)+AC145)*AC$18 -> 2748.401627 | AD138: =((NORMSINV(Assumptions!C9)*AD152)+AD145)*AD$18 -> 2587.185189 | AE138: =((NORMSINV(Assumptions!C9)*AE152)+AE145)*AE$18 -> 2606.806877 | AF138: =((NORMSINV(Assumptions!C9)*AF152)+AF145)*AF$18 -> 2925.754471 | AG138: =((NORMSINV(Assumptions!C9)*AG152)+AG145)*AG$18 -> 2994.206538 | AH138: =((NORMSINV(Assumptions!C9)*AH152)+AH145)*AH$18 -> 2859.6456 | AI138: =((NORMSINV(Assumptions!C9)*AI152)+AI145)*AI$18 -> 2843.479987 | AJ138: =((NORMSINV(Assumptions!C9)*AJ152)+AJ145)*AJ$18 -> 2838.952025 | AK138: =((NORMSINV(Assumptions!C9)*AK152)+AK145)*AK$18 -> 2772.6569 | AL138: =((NORMSINV(Assumptions!C9)*AL152)+AL145)*AL$18 -> 2493.817357 | AM138: =((NORMSINV(Assumptions!C9)*AM152)+AM145)*AM$18 -> 2434.223098 | AN138: =((NORMSINV(Assumptions!C9)*AN152)+AN145)*AN$18 -> 2137.272233 | AO138: =((NORMSINV(Assumptions!C9)*AO152)+AO145)*AO$18 -> 2291.056491 | AP138: =((NORMSINV(Assumptions!C9)*AP152)+AP145)*AP$18 -> 2187.514668 | AQ138: =((NORMSINV(Assumptions!C9)*AQ152)+AQ145)*AQ$18 -> 2381.200386 | AR138: =((NORMSINV(Assumptions!C9)*AR152)+AR145)*AR$18 -> 2185.267931 | AS138: =((NORMSINV(Assumptions!C9)*AS152)+AS145)*AS$18 -> 2153.022778 | AT138: =((NORMSINV(Assumptions!C9)*AT152)+AT145)*AT$18 -> 1812.959288 | AU138: =((NORMSINV(Assumptions!C9)*AU152)+AU145)*AU$18 -> 1855.282139 | AV138: =((NORMSINV(Assumptions!C9)*AV152)+AV145)*AV$18 -> 1890.250272 | AW138: =((NORMSINV(Assumptions!C9)*AW152)+AW145)*AW$18 -> 1957.607752 | AX138: =((NORMSINV(Assumptions!C9)*AX152)+AX145)*AX$18 -> 2051.436952 | AY138: =((NORMSINV(Assumptions!C9)*AY152)+AY145)*AY$18 -> 2248.594322 | AZ138: =((NORMSINV(Assumptions!C9)*AZ152)+AZ145)*AZ$18 -> 2069.931934 | BA138: =((NORMSINV(Assumptions!C9)*BA152)+BA145)*BA$18 -> 2093.692064 | BB138: =((NORMSINV(Assumptions!C9)*BB152)+BB145)*BB$18 -> 2070.922132 | BC138: =((NORMSINV(Assumptions!C9)*BC152)+BC145)*BC$18 -> 2037.565429 | BD138: =((NORMSINV(Assumptions!C9)*BD152)+BD145)*BD$18 -> 2270.663909 | BE138: =((NORMSINV(Assumptions!C9)*BE152)+BE145)*BE$18 -> 2184.309354 | BF138: =((NORMSINV(Assumptions!C9)*BF152)+BF145)*BF$18 -> 2121.595659 | BG138: =((NORMSINV(Assumptions!C9)*BG152)+BG145)*BG$18 -> 1961.736765 | BH138: =((NORMSINV(Assumptions!C9)*BH152)+BH145)*BH$18 -> 1929.617008 | BI138: =((NORMSINV(Assumptions!C9)*BI152)+BI145)*BI$18 -> 1593.646412 | BJ138: =((NORMSINV(Assumptions!C9)*BJ152)+BJ145)*BJ$18 -> 1444.266854 | BK138: =((NORMSINV(Assumptions!C9)*BK152)+BK145)*BK$18 -> 1146.998795 | BL138: =((NORMSINV(Assumptions!C9)*BL152)+BL145)*BL$18 -> 960.3723468 | BM138: =((NORMSINV(Assumptions!C9)*BM152)+BM145)*BM$18 -> 962.2156124 | BN138: =((NORMSINV(Assumptions!C9)*BN152)+BN145)*BN$18 -> 714.0704795 | BO138: =((NORMSINV(Assumptions!C9)*BO152)+BO145)*BO$18 -> 762.4059178 | BP138: =((NORMSINV(Assumptions!C9)*BP152)+BP145)*BP$18 -> 898.2017115 | BQ138: =((NORMSINV(Assumptions!C9)*BQ152)+BQ145)*BQ$18 -> 868.8455899 | BR138: =((NORMSINV(Assumptions!C9)*BR152)+BR145)*BR$18 -> 638.4606403 | BS138: =((NORMSINV(Assumptions!C9)*BS152)+BS145)*BS$18 -> 430.6676991 | BT138: =((NORMSINV(Assumptions!C9)*BT152)+BT145)*BT$18 -> 328.9943308 | BU138: =((NORMSINV(Assumptions!C9)*BU152)+BU145)*BU$18 -> 234.4711386 | BV138: =((NORMSINV(Assumptions!C9)*BV152)+BV145)*BV$18 -> 179.2441474
A139: Woman | B139: Non-ethnic | C139: E) Higher education | K139: =((NORMSINV(Assumptions!C9)*K153)+K146)*K$23 -> 137.7838303 | L139: =((NORMSINV(Assumptions!C9)*L153)+L146)*L$23 -> 410.3571633 | M139: =((NORMSINV(Assumptions!C9)*M153)+M146)*M$23 -> 657.7036914 | N139: =((NORMSINV(Assumptions!C9)*N153)+N146)*N$23 -> 920.3751051 | O139: =((NORMSINV(Assumptions!C9)*O153)+O146)*O$23 -> 1047.148235 | P139: =((NORMSINV(Assumptions!C9)*P153)+P146)*P$23 -> 1099.59952 | Q139: =((NORMSINV(Assumptions!C9)*Q153)+Q146)*Q$23 -> 1251.10633 | R139: =((NORMSINV(Assumptions!C9)*R153)+R146)*R$23 -> 1280.167341 | S139: =((NORMSINV(Assumptions!C9)*S153)+S146)*S$23 -> 1316.201121 | T139: =((NORMSINV(Assumptions!C9)*T153)+T146)*T$23 -> 1061.458682 | U139: =((NORMSINV(Assumptions!C9)*U153)+U146)*U$23 -> 1022.834135 | V139: =((NORMSINV(Assumptions!C9)*V153)+V146)*V$23 -> 930.8467267 | W139: =((NORMSINV(Assumptions!C9)*W153)+W146)*W$23 -> 1187.819574 | X139: =((NORMSINV(Assumptions!C9)*X153)+X146)*X$23 -> 1121.208671 | Y139: =((NORMSINV(Assumptions!C9)*Y153)+Y146)*Y$23 -> 907.4829498 | Z139: =((NORMSINV(Assumptions!C9)*Z153)+Z146)*Z$23 -> 1048.091303 | AA139: =((NORMSINV(Assumptions!C9)*AA153)+AA146)*AA$23 -> 1007.416807 | AB139: =((NORMSINV(Assumptions!C9)*AB153)+AB146)*AB$23 -> 936.3798172 | AC139: =((NORMSINV(Assumptions!C9)*AC153)+AC146)*AC$23 -> 1304.663813 | AD139: =((NORMSINV(Assumptions!C9)*AD153)+AD146)*AD$23 -> 1361.238404 | AE139: =((NORMSINV(Assumptions!C9)*AE153)+AE146)*AE$23 -> 1782.578508 | AF139: =((NORMSINV(Assumptions!C9)*AF153)+AF146)*AF$23 -> 1653.3423 | AG139: =((NORMSINV(Assumptions!C9)*AG153)+AG146)*AG$23 -> 1782.355775 | AH139: =((NORMSINV(Assumptions!C9)*AH153)+AH146)*AH$23 -> 1569.404781 | AI139: =((NORMSINV(Assumptions!C9)*AI153)+AI146)*AI$23 -> 1881.231555 | AJ139: =((NORMSINV(Assumptions!C9)*AJ153)+AJ146)*AJ$23 -> 1951.680818 | AK139: =((NORMSINV(Assumptions!C9)*AK153)+AK146)*AK$23 -> 2034.586149 | AL139: =((NORMSINV(Assumptions!C9)*AL153)+AL146)*AL$23 -> 1809.637768 | AM139: =((NORMSINV(Assumptions!C9)*AM153)+AM146)*AM$23 -> 1615.497689 | AN139: =((NORMSINV(Assumptions!C9)*AN153)+AN146)*AN$23 -> 1701.82837 | AO139: =((NORMSINV(Assumptions!C9)*AO153)+AO146)*AO$23 -> 1742.032995 | AP139: =((NORMSINV(Assumptions!C9)*AP153)+AP146)*AP$23 -> 1943.928451 | AQ139: =((NORMSINV(Assumptions!C9)*AQ153)+AQ146)*AQ$23 -> 1891.026188 | AR139: =((NORMSINV(Assumptions!C9)*AR153)+AR146)*AR$23 -> 1506.87487 | AS139: =((NORMSINV(Assumptions!C9)*AS153)+AS146)*AS$23 -> 1619.575681 | AT139: =((NORMSINV(Assumptions!C9)*AT153)+AT146)*AT$23 -> 1535.112279 | AU139: =((NORMSINV(Assumptions!C9)*AU153)+AU146)*AU$23 -> 1689.889293 | AV139: =((NORMSINV(Assumptions!C9)*AV153)+AV146)*AV$23 -> 1479.775608 | AW139: =((NORMSINV(Assumptions!C9)*AW153)+AW146)*AW$23 -> 1274.402309 | AX139: =((NORMSINV(Assumptions!C9)*AX153)+AX146)*AX$23 -> 1117.083186 | AY139: =((NORMSINV(Assumptions!C9)*AY153)+AY146)*AY$23 -> 766.3634193 | AZ139: =((NORMSINV(Assumptions!C9)*AZ153)+AZ146)*AZ$23 -> 703.801577 | BA139: =((NORMSINV(Assumptions!C9)*BA153)+BA146)*BA$23 -> 955.8337182 | BB139: =((NORMSINV(Assumptions!C9)*BB153)+BB146)*BB$23 -> 989.6419439 | BC139: =((NORMSINV(Assumptions!C9)*BC153)+BC146)*BC$23 -> 1282.484648 | BD139: =((NORMSINV(Assumptions!C9)*BD153)+BD146)*BD$23 -> 1448.85181 | BE139: =((NORMSINV(Assumptions!C9)*BE153)+BE146)*BE$23 -> 1275.03112 | BF139: =((NORMSINV(Assumptions!C9)*BF153)+BF146)*BF$23 -> 1145.496691 | BG139: =((NORMSINV(Assumptions!C9)*BG153)+BG146)*BG$23 -> 927.8950095 | BH139: =((NORMSINV(Assumptions!C9)*BH153)+BH146)*BH$23 -> 735.5808042 | BI139: =((NORMSINV(Assumptions!C9)*BI153)+BI146)*BI$23 -> 684.2444386 | BJ139: =((NORMSINV(Assumptions!C9)*BJ153)+BJ146)*BJ$23 -> 621.2542393 | BK139: =((NORMSINV(Assumptions!C9)*BK153)+BK146)*BK$23 -> 446.6689609 | BL139: =((NORMSINV(Assumptions!C9)*BL153)+BL146)*BL$23 -> 312.8386186 | BM139: =((NORMSINV(Assumptions!C9)*BM153)+BM146)*BM$23 -> 395.2319431 | BN139: =((NORMSINV(Assumptions!C9)*BN153)+BN146)*BN$23 -> 508.0104339 | BO139: =((NORMSINV(Assumptions!C9)*BO153)+BO146)*BO$23 -> 437.5801978 | BP139: =((NORMSINV(Assumptions!C9)*BP153)+BP146)*BP$23 -> 332.5136574 | BQ139: =((NORMSINV(Assumptions!C9)*BQ153)+BQ146)*BQ$23 -> 509.3345377 | BR139: =((NORMSINV(Assumptions!C9)*BR153)+BR146)*BR$23 -> 132.0152506 | BS139: =((NORMSINV(Assumptions!C9)*BS153)+BS146)*BS$23 -> 373.6047554 | BT139: =((NORMSINV(Assumptions!C9)*BT153)+BT146)*BT$23 -> 201.277555 | BU139: =((NORMSINV(Assumptions!C9)*BU153)+BU146)*BU$23 -> 146.5491604 | BV139: =((NORMSINV(Assumptions!C9)*BV153)+BV146)*BV$23 -> 213.0104374
A141: POPULATION SHARES DERIVED FROM ESS (AVERAGE 2004-2008) (corrected Higher education)
G142: 17 | H142: 18 | I142: 19 | J142: 20 | K142: 21 | L142: 22 | M142: 23 | N142: 24 | O142: 25 | P142: 26 | Q142: 27 | R142: 28 | S142: 29 | T142: 30 | U142: 31 | V142: 32 | W142: 33 | X142: 34 | Y142: 35 | Z142: 36 | AA142: 37 | AB142: 38 | AC142: 39 | AD142: 40 | AE142: 41 | AF142: 42 | AG142: 43 | AH142: 44 | AI142: 45 | AJ142: 46 | AK142: 47 | AL142: 48 | AM142: 49 | AN142: 50 | AO142: 51 | AP142: 52 | AQ142: 53 | AR142: 54 | AS142: 55 | AT142: 56 | AU142: 57 | AV142: 58 | AW142: 59 | AX142: 60 | AY142: 61 | AZ142: 62 | BA142: 63 | BB142: 64 | BC142: 65 | BD142: 66 | BE142: 67 | BF142: 68 | BG142: 69 | BH142: 70 | BI142: 71 | BJ142: 72 | BK142: 73 | BL142: 74 | BM142: 75 | BN142: 76 | BO142: 77 | BP142: 78 | BQ142: 79 | BR142: 80 | BS142: 81 | BT142: 82 | BU142: 83 | BV142: 84
A143: Man | B143: Ethnic | C143: E) Higher education | K143: 0.0013 | L143: 0.024 | M143: 0.1036 | N143: 0.182 | O143: 0.2516 | P143: 0.2509 | Q143: 0.2495 | R143: 0.2633 | S143: 0.2825 | T143: 0.2346 | U143: 0.2059 | V143: 0.2011 | W143: 0.2469 | X143: 0.2419 | Y143: 0.2733 | Z143: 0.251 | AA143: 0.2099 | AB143: 0.2174 | AC143: 0.2389 | AD143: 0.2546 | AE143: 0.2351 | AF143: 0.2261 | AG143: 0.2154 | AH143: 0.2146 | AI143: 0.2305 | AJ143: 0.2339 | AK143: 0.287 | AL143: 0.2557 | AM143: 0.1981 | AN143: 0.1821 | AO143: 0.2134 | AP143: 0.2035 | AQ143: 0.2138 | AR143: 0.2686 | AS143: 0.2715 | AT143: 0.2579 | AU143: 0.2358 | AV143: 0.1817 | AW143: 0.1713 | AX143: 0.1539 | AY143: 0.1774 | AZ143: 0.1817 | BA143: 0.158 | BB143: 0.1815 | BC143: 0.2375 | BD143: 0.2065 | BE143: 0.1837 | BF143: 0.2363 | BG143: 0.1823 | BH143: 0.2048 | BI143: 0.1793 | BJ143: 0.182 | BK143: 0.24 | BL143: 0.2496 | BM143: 0.2017 | BN143: 0.2211 | BO143: 0.2068 | BP143: 0.2136 | BQ143: 0.2191 | BR143: 0.2104 | BS143: 0.1103 | BT143: 0.1462 | BU143: 0.1452 | BV143: 0.1692
A144: Man | B144: Non-ethnic | C144: E) Higher education | K144: 0.0187 | L144: 0.0536 | M144: 0.0942 | N144: 0.0948 | O144: 0.1221 | P144: 0.2094 | Q144: 0.1806 | R144: 0.1304 | S144: 0.1386 | T144: 0.0926 | U144: 0.1534 | V144: 0.1453 | W144: 0.158 | X144: 0.2237 | Y144: 0.2619 | Z144: 0.2119 | AA144: 0.172 | AB144: 0.2126 | AC144: 0.143 | AD144: 0.1754 | AE144: 0.1807 | AF144: 0.2218 | AG144: 0.2411 | AH144: 0.2462 | AI144: 0.2065 | AJ144: 0.2938 | AK144: 0.2817 | AL144: 0.2745 | AM144: 0.2745 | AN144: 0.2726 | AO144: 0.3195 | AP144: 0.3634 | AQ144: 0.3501 | AR144: 0.2787 | AS144: 0.2793 | AT144: 0.252 | AU144: 0.2961 | AV144: 0.404 | AW144: 0.3899 | AX144: 0.3911 | AY144: 0.2949 | AZ144: 0.2034 | BA144: 0.246 | BB144: 0.1765 | BC144: 0.2104 | BD144: 0.2615 | BE144: 0.3063 | BF144: 0.3145 | BG144: 0.2318 | BH144: 0.2838 | BI144: 0.1931 | BJ144: 0.2853 | BK144: 0.2554 | BL144: 0.2743 | BM144: 0.2761 | BN144: 0.2593 | BO144: 0.1849 | BP144: 0.261 | BQ144: 0.3005 | BR144: 0.2184 | BS144: 0.1824 | BT144: 0.2674 | BU144: 0.2614 | BV144: 0.0893
A145: Woman | B145: Ethnic | C145: E) Higher education | K145: 0.0354 | L145: 0.1148 | M145: 0.2786 | N145: 0.3476 | O145: 0.3623 | P145: 0.4088 | Q145: 0.3896 | R145: 0.4165 | S145: 0.4131 | T145: 0.422 | U145: 0.3611 | V145: 0.3877 | W145: 0.4021 | X145: 0.4183 | Y145: 0.4057 | Z145: 0.3809 | AA145: 0.3599 | AB145: 0.4389 | AC145: 0.4141 | AD145: 0.3941 | AE145: 0.3975 | AF145: 0.4431 | AG145: 0.4482 | AH145: 0.4263 | AI145: 0.4259 | AJ145: 0.4294 | AK145: 0.4228 | AL145: 0.3797 | AM145: 0.3718 | AN145: 0.3313 | AO145: 0.3596 | AP145: 0.3458 | AQ145: 0.3851 | AR145: 0.3529 | AS145: 0.3432 | AT145: 0.2854 | AU145: 0.2955 | AV145: 0.3074 | AW145: 0.329 | AX145: 0.355 | AY145: 0.3847 | AZ145: 0.3371 | BA145: 0.3334 | BB145: 0.3232 | BC145: 0.3137 | BD145: 0.3563 | BE145: 0.3533 | BF145: 0.3456 | BG145: 0.329 | BH145: 0.3327 | BI145: 0.2752 | BJ145: 0.2496 | BK145: 0.1965 | BL145: 0.1661 | BM145: 0.1665 | BN145: 0.1257 | BO145: 0.1457 | BP145: 0.1865 | BQ145: 0.19 | BR145: 0.1447 | BS145: 0.1023 | BT145: 0.0841 | BU145: 0.0669 | BV145: 0.0605
A146: Woman | B146: Non-ethnic | C146: E) Higher education | K146: 0.0278 | L146: 0.0999 | M146: 0.1725 | N146: 0.2492 | O146: 0.3051 | P146: 0.3295 | Q146: 0.3826 | R146: 0.3923 | S146: 0.4102 | T146: 0.3219 | U146: 0.3118 | V146: 0.2839 | W146: 0.3791 | X146: 0.361 | Y146: 0.2911 | Z146: 0.3437 | AA146: 0.3309 | AB146: 0.298 | AC146: 0.413 | AD146: 0.4076 | AE146: 0.5083 | AF146: 0.4362 | AG146: 0.4412 | AH146: 0.3693 | AI146: 0.4322 | AJ146: 0.4391 | AK146: 0.458 | AL146: 0.4027 | AM146: 0.354 | AN146: 0.3779 | AO146: 0.3847 | AP146: 0.428 | AQ146: 0.4268 | AR146: 0.3324 | AS146: 0.368 | AT146: 0.3618 | AU146: 0.4257 | AV146: 0.4144 | AW146: 0.4245 | AX146: 0.4369 | AY146: 0.3341 | AZ146: 0.2934 | BA146: 0.3699 | BB146: 0.3279 | BC146: 0.373 | BD146: 0.3788 | BE146: 0.3386 | BF146: 0.3097 | BG146: 0.2677 | BH146: 0.2272 | BI146: 0.2269 | BJ146: 0.2093 | BK146: 0.1488 | BL146: 0.0984 | BM146: 0.1227 | BN146: 0.1673 | BO146: 0.1491 | BP146: 0.1172 | BQ146: 0.2031 | BR146: 0.0495 | BS146: 0.1844 | BT146: 0.1013 | BU146: 0.0901 | BV146: 0.1917
A147: Source: Statistics Estonia, authors calculations
A149: STANDARD ERRORS OF POPULATION SHARES DERIVED FROM ESS (AVERAGE 2004-2008) (corrected higher education)
A150: Man | B150: Ethnic | C150: E) Higher education | K150: 0.0013 | L150: 0.0106 | M150: 0.0257 | N150: 0.0332 | O150: 0.0396 | P150: 0.0357 | Q150: 0.0385 | R150: 0.0398 | S150: 0.0446 | T150: 0.0434 | U150: 0.0361 | V150: 0.0346 | W150: 0.0369 | X150: 0.0348 | Y150: 0.038 | Z150: 0.0377 | AA150: 0.0352 | AB150: 0.0346 | AC150: 0.0365 | AD150: 0.0382 | AE150: 0.0401 | AF150: 0.0308 | AG150: 0.0298 | AH150: 0.0306 | AI150: 0.0297 | AJ150: 0.0293 | AK150: 0.0344 | AL150: 0.0359 | AM150: 0.0292 | AN150: 0.0263 | AO150: 0.0292 | AP150: 0.0276 | AQ150: 0.0322 | AR150: 0.0366 | AS150: 0.0375 | AT150: 0.0327 | AU150: 0.0316 | AV150: 0.0305 | AW150: 0.029 | AX150: 0.032 | AY150: 0.0328 | AZ150: 0.033 | BA150: 0.0353 | BB150: 0.0342 | BC150: 0.0397 | BD150: 0.0347 | BE150: 0.032 | BF150: 0.038 | BG150: 0.0333 | BH150: 0.034 | BI150: 0.0361 | BJ150: 0.04 | BK150: 0.0469 | BL150: 0.0467 | BM150: 0.0428 | BN150: 0.0485 | BO150: 0.0449 | BP150: 0.0466 | BQ150: 0.0496 | BR150: 0.0565 | BS150: 0.0476 | BT150: 0.0586 | BU150: 0.0554 | BV150: 0.0727
A151: Man | B151: Non-ethnic | C151: E) Higher education | K151: 0.0132 | L151: 0.0221 | M151: 0.0293 | N151: 0.0308 | O151: 0.0356 | P151: 0.0513 | Q151: 0.0581 | R151: 0.0516 | S151: 0.0437 | T151: 0.0324 | U151: 0.0437 | V151: 0.0458 | W151: 0.0466 | X151: 0.0615 | Y151: 0.0699 | Z151: 0.0649 | AA151: 0.0505 | AB151: 0.0638 | AC151: 0.0457 | AD151: 0.0439 | AE151: 0.0465 | AF151: 0.0517 | AG151: 0.0517 | AH151: 0.0529 | AI151: 0.0447 | AJ151: 0.0529 | AK151: 0.0486 | AL151: 0.0421 | AM151: 0.0457 | AN151: 0.044 | AO151: 0.0506 | AP151: 0.0516 | AQ151: 0.0492 | AR151: 0.0483 | AS151: 0.0459 | AT151: 0.0466 | AU151: 0.0535 | AV151: 0.0596 | AW151: 0.0624 | AX151: 0.0721 | AY151: 0.0642 | AZ151: 0.063 | BA151: 0.076 | BB151: 0.0623 | BC151: 0.0584 | BD151: 0.0586 | BE151: 0.0548 | BF151: 0.0586 | BG151: 0.054 | BH151: 0.0657 | BI151: 0.0549 | BJ151: 0.0668 | BK151: 0.066 | BL151: 0.0776 | BM151: 0.0881 | BN151: 0.0831 | BO151: 0.0789 | BP151: 0.0931 | BQ151: 0.0891 | BR151: 0.0904 | BS151: 0.1542 | BT151: 0.1145 | BU151: 0.1181 | BV151: 0.0873
A152: Woman | B152: Ethnic | C152: E) Higher education | K152: 0.0134 | L152: 0.0202 | M152: 0.036 | N152: 0.0394 | O152: 0.0407 | P152: 0.0426 | Q152: 0.0416 | R152: 0.0479 | S152: 0.045 | T152: 0.0435 | U152: 0.0402 | V152: 0.0383 | W152: 0.0394 | X152: 0.0405 | Y152: 0.0376 | Z152: 0.0361 | AA152: 0.0341 | AB152: 0.0357 | AC152: 0.0333 | AD152: 0.0327 | AE152: 0.0321 | AF152: 0.0308 | AG152: 0.0327 | AH152: 0.0326 | AI152: 0.0309 | AJ152: 0.0298 | AK152: 0.0321 | AL152: 0.0327 | AM152: 0.0336 | AN152: 0.0313 | AO152: 0.0331 | AP152: 0.0327 | AQ152: 0.0333 | AR152: 0.0322 | AS152: 0.0318 | AT152: 0.032 | AU152: 0.0327 | AV152: 0.0361 | AW152: 0.037 | AX152: 0.0381 | AY152: 0.0375 | AZ152: 0.0375 | BA152: 0.0356 | BB152: 0.0343 | BC152: 0.0316 | BD152: 0.0345 | BE152: 0.0372 | BF152: 0.0398 | BG152: 0.04 | BH152: 0.0392 | BI152: 0.0366 | BJ152: 0.0358 | BK152: 0.0349 | BL152: 0.0301 | BM152: 0.034 | BN152: 0.0316 | BO152: 0.0313 | BP152: 0.0347 | BQ152: 0.038 | BR152: 0.0361 | BS152: 0.0301 | BT152: 0.0271 | BU152: 0.0253 | BV152: 0.023
A153: Woman | B153: Non-ethnic | C153: E) Higher education | K153: 0.0164 | L153: 0.0293 | M153: 0.0376 | N153: 0.0541 | O153: 0.0525 | P153: 0.0565 | Q153: 0.0638 | R153: 0.068 | S153: 0.066 | T153: 0.0707 | U153: 0.0634 | V153: 0.0603 | W153: 0.063 | X153: 0.0618 | Y153: 0.0545 | Z153: 0.0633 | AA153: 0.0579 | AB153: 0.0562 | AC153: 0.0583 | AD153: 0.0578 | AE153: 0.0569 | AF153: 0.0523 | AG153: 0.0519 | AH153: 0.0459 | AI153: 0.0451 | AJ153: 0.0458 | AK153: 0.0448 | AL153: 0.0422 | AM153: 0.0421 | AN153: 0.0403 | AO153: 0.0423 | AP153: 0.0462 | AQ153: 0.0452 | AR153: 0.0443 | AS153: 0.0463 | AT153: 0.0454 | AU153: 0.0485 | AV153: 0.0498 | AW153: 0.0487 | AX153: 0.0569 | AY153: 0.0582 | AZ153: 0.0613 | BA153: 0.065 | BB153: 0.0589 | BC153: 0.0597 | BD153: 0.0566 | BE153: 0.0487 | BF153: 0.0476 | BG153: 0.0464 | BH153: 0.0483 | BI153: 0.0505 | BJ153: 0.0543 | BK153: 0.0411 | BL153: 0.0344 | BM153: 0.0416 | BN153: 0.0521 | BO153: 0.0456 | BP153: 0.0414 | BQ153: 0.06 | BR153: 0.0282 | BS153: 0.0666 | BT153: 0.0658 | BU153: 0.0614 | BV153: 0.0852
A154: Source: Statistics Estonia, authors calculations
A162: POPULATION (Changing randomly - corrected for zeroes)(AVERAGE 2004-2008)
C163: age | D163: 14 | E163: 15 | F163: 16 | G163: 17 | H163: 18 | I163: 19 | J163: 20 | K163: 21 | L163: 22 | M163: 23 | N163: 24 | O163: 25 | P163: 26 | Q163: 27 | R163: 28 | S163: 29 | T163: 30 | U163: 31 | V163: 32 | W163: 33 | X163: 34 | Y163: 35 | Z163: 36 | AA163: 37 | AB163: 38 | AC163: 39 | AD163: 40 | AE163: 41 | AF163: 42 | AG163: 43 | AH163: 44 | AI163: 45 | AJ163: 46 | AK163: 47 | AL163: 48 | AM163: 49 | AN163: 50 | AO163: 51 | AP163: 52 | AQ163: 53 | AR163: 54 | AS163: 55 | AT163: 56 | AU163: 57 | AV163: 58 | AW163: 59 | AX163: 60 | AY163: 61 | AZ163: 62 | BA163: 63 | BB163: 64 | BC163: 65 | BD163: 66 | BE163: 67 | BF163: 68 | BG163: 69 | BH163: 70 | BI163: 71 | BJ163: 72 | BK163: 73 | BL163: 74 | BM163: 75 | BN163: 76 | BO163: 77 | BP163: 78 | BQ163: 79 | BR163: 80 | BS163: 81 | BT163: 82 | BU163: 83 | BV163: 84
A164: Man | B164: Ethnic | C164: A) Basic education or lower | G164: =IF(G194>=15,G194,15) -> 15 | H164: =IF(H194>=15,H194,15) -> 15 | I164: 15 | J164: 15 | K164: 15 | L164: 15 | M164: 15 | N164: 15 | O164: 15 | P164: 15 | Q164: 15 | R164: 15 | S164: 15 | T164: 15 | U164: 15 | V164: 15 | W164: 15 | X164: 15 | Y164: 15 | Z164: 15 | AA164: 15 | AB164: 15 | AC164: 15 | AD164: 15 | AE164: 15 | AF164: 15 | AG164: 15 | AH164: 15 | AI164: 15 | AJ164: 15 | AK164: 15 | AL164: 15 | AM164: 15 | AN164: 15 | AO164: 15 | AP164: 15 | AQ164: 15 | AR164: 15 | AS164: 15 | AT164: 15 | AU164: 15 | AV164: 15 | AW164: 15 | AX164: 15 | AY164: 15 | AZ164: 15 | BA164: 15 | BB164: 15 | BC164: 15 | BD164: 15 | BE164: 15 | BF164: 15 | BG164: 15 | BH164: 15 | BI164: 15 | BJ164: 15 | BK164: 15 | BL164: 15 | BM164: 15 | BN164: 15 | BO164: 15 | BP164: 15 | BQ164: 15 | BR164: 15 | BS164: 15 | BT164: =IF(BT194>=15,BT194,15) -> 15 | BU164: 15
A165: Man | B165: Ethnic | C165: B) Lower secondary education | G165: =IF(G195>=15,G195,15) -> 15 | H165: 15 | I165: 15 | J165: 15 | K165: 15 | L165: 15 | M165: 15 | N165: 15 | O165: 15 | P165: 15 | Q165: 15 | R165: 15 | S165: 15 | T165: 15 | U165: 15 | V165: 15 | W165: 15 | X165: 15 | Y165: 15 | Z165: 15 | AA165: 15 | AB165: 15 | AC165: 15 | AD165: 15 | AE165: 15 | AF165: 15 | AG165: 15 | AH165: 15 | AI165: 15 | AJ165: 15 | AK165: 15 | AL165: 15 | AM165: 15 | AN165: 15 | AO165: 15 | AP165: 15 | AQ165: 15 | AR165: 15 | AS165: 15 | AT165: 15 | AU165: 15 | AV165: 15 | AW165: 15 | AX165: 15 | AY165: 15 | AZ165: 15 | BA165: 15 | BB165: 15 | BC165: 15 | BD165: 15 | BE165: 15 | BF165: 15 | BG165: 15 | BH165: 15 | BI165: 15 | BJ165: 15 | BK165: 15 | BL165: 15 | BM165: 15 | BN165: 15 | BO165: 15 | BP165: 15 | BQ165: 15 | BR165: 15 | BS165: =IF(BS195>=15,BS195,15) -> 15 | BT165: 15 | BU165: 15
A166: Man | B166: Ethnic | C166: C) Upper secondary education | H166: =IF(H196>=15,H196,15) -> 15 | I166: 15 | J166: 15 | K166: 15 | L166: 15 | M166: 15 | N166: 15 | O166: 15 | P166: 15 | Q166: 15 | R166: 15 | S166: 15 | T166: 15 | U166: 15 | V166: 15 | W166: 15 | X166: 15 | Y166: 15 | Z166: 15 | AA166: 15 | AB166: 15 | AC166: 15 | AD166: 15 | AE166: 15 | AF166: 15 | AG166: 15 | AH166: 15 | AI166: 15 | AJ166: 15 | AK166: 15 | AL166: 15 | AM166: 15 | AN166: 15 | AO166: 15 | AP166: 15 | AQ166: 15 | AR166: 15 | AS166: 15 | AT166: 15 | AU166: 15 | AV166: 15 | AW166: 15 | AX166: 15 | AY166: 15 | AZ166: 15 | BA166: 15 | BB166: 15 | BC166: 15 | BD166: 15 | BE166: 15 | BF166: 15 | BG166: 15 | BH166: 15 | BI166: 15 | BJ166: 15 | BK166: 15 | BL166: 15 | BM166: 15 | BN166: 15 | BO166: 15 | BP166: 15 | BQ166: 15 | BR166: 15 | BS166: 15 | BT166: =IF(BT196>=15,BT196,15) -> 15 | BU166: 15 | BV166: 15
A167: Man | B167: Ethnic | C167: D) Higher education | J167: =IF(J197>=15,J197,15) -> 15 | K167: 15 | L167: 15 | M167: 15 | N167: 15 | O167: 15 | P167: 15 | Q167: 15 | R167: 15 | S167: 15 | T167: 15 | U167: 15 | V167: 15 | W167: 15 | X167: 15 | Y167: 15 | Z167: 15 | AA167: 15 | AB167: 15 | AC167: 15 | AD167: 15 | AE167: 15 | AF167: 15 | AG167: 15 | AH167: 15 | AI167: 15 | AJ167: 15 | AK167: 15 | AL167: 15 | AM167: 15 | AN167: 15 | AO167: 15 | AP167: 15 | AQ167: 15 | AR167: 15 | AS167: 15 | AT167: 15 | AU167: 15 | AV167: 15 | AW167: 15 | AX167: 15 | AY167: 15 | AZ167: 15 | BA167: 15 | BB167: 15 | BC167: 15 | BD167: 15 | BE167: 15 | BF167: 15 | BG167: 15 | BH167: 15 | BI167: 15 | BJ167: 15 | BK167: 15 | BL167: 15 | BM167: 15 | BN167: 15 | BO167: 15 | BP167: 15 | BQ167: 15 | BR167: 15 | BS167: 15 | BT167: 15 | BU167: 15 | BV167: =IF(BV197>=15,BV197,15) -> 15
C168: KOKKU | D168: 7048 | E168: 7450 | F168: 7686.8 | G168: 7774.8 | H168: 7690.8 | I168: 7513.8 | J168: 7434.6 | K168: 7301.4 | L168: 7260.4 | M168: 7150.8 | N168: 7035.2 | O168: 6856 | P168: 6738.2 | Q168: 6626.6 | R168: 6573.8 | S168: 6520.2 | T168: 6502 | U168: 6516.6 | V168: 6573.8 | W168: 6617 | X168: 6642.2 | Y168: 6648.6 | Z168: 6479.4 | AA168: 6298 | AB168: 6108.6 | AC168: 5989 | AD168: 5882 | AE168: 5928.6 | AF168: 5933.6 | AG168: 5975.2 | AH168: 5941.6 | AI168: 5869.2 | AJ168: 5757.2 | AK168: 5652.8 | AL168: 5549.8 | AM168: 5429.6 | AN168: 5297.6 | AO168: 5200.4 | AP168: 5120.4 | AQ168: 4984.2 | AR168: 4939.6 | AS168: 4885.8 | AT168: 4831.4 | AU168: 4688.2 | AV168: 4494.4 | AW168: 4262.8 | AX168: 4111.8 | AY168: 4098.6 | AZ168: 4187.4 | BA168: 4195.4 | BB168: 4176.6 | BC168: 4144.6 | BD168: 3955.6 | BE168: 3734.6 | BF168: 3604 | BG168: 3408.4 | BH168: 3261.8 | BI168: 3143 | BJ168: 3008.8 | BK168: 2877 | BL168: 2743.6 | BM168: 2563.6 | BN168: 2296 | BO168: 2044.8 | BP168: 1775.4 | BQ168: 1537.6 | BR168: 1330.8 | BS168: 1137 | BT168: 987.4 | BU168: 812.4 | BV168: 658.4
A169: Man | B169: Non-ethnic | C169: A) Basic education or lower | I169: =IF(I199>=15,I199,15) -> 15 | J169: 15 | K169: 15 | L169: 15 | M169: 15 | N169: 15 | O169: 15 | P169: 15 | Q169: 15 | R169: 15 | S169: 15 | T169: 15 | U169: 15 | V169: 15 | W169: 15 | X169: 15 | Y169: 15 | Z169: 15 | AA169: 15 | AB169: 15 | AC169: 15 | AD169: 15 | AE169: 15 | AF169: 15 | AG169: 15 | AH169: 15 | AI169: 15 | AJ169: 15 | AK169: 15 | AL169: 15 | AM169: 15 | AN169: 15 | AO169: 15 | AP169: 15 | AQ169: 15 | AR169: 15 | AS169: 15 | AT169: 15 | AU169: 15 | AV169: 15 | AW169: 15 | AX169: 15 | AY169: 15 | AZ169: 15 | BA169: 15 | BB169: 15 | BC169: 15 | BD169: 15 | BE169: 15 | BF169: 15 | BG169: 15 | BH169: 15 | BI169: 15 | BJ169: 15 | BK169: 15 | BL169: 15 | BM169: 15 | BN169: 15 | BO169: 15 | BP169: 15 | BQ169: 15 | BR169: 15 | BS169: =IF(BS199>=15,BS199,15) -> 15 | BT169: 15 | BU169: 15
A170: Man | B170: Non-ethnic | C170: B) Lower secondary education | I170: =IF(I200>=15,I200,15) -> 15 | J170: 15 | K170: 15 | L170: 15 | M170: 15 | N170: 15 | O170: 15 | P170: 15 | Q170: 15 | R170: 15 | S170: 15 | T170: 15 | U170: 15 | V170: 15 | W170: 15 | X170: 15 | Y170: 15 | Z170: 15 | AA170: 15 | AB170: 15 | AC170: 15 | AD170: 15 | AE170: 15 | AF170: 15 | AG170: 15 | AH170: 15 | AI170: 15 | AJ170: 15 | AK170: 15 | AL170: 15 | AM170: 15 | AN170: 15 | AO170: 15 | AP170: 15 | AQ170: 15 | AR170: 15 | AS170: 15 | AT170: 15 | AU170: 15 | AV170: 15 | AW170: 15 | AX170: 15 | AY170: 15 | AZ170: 15 | BA170: 15 | BB170: 15 | BC170: 15 | BD170: 15 | BE170: 15 | BF170: 15 | BG170: 15 | BH170: 15 | BI170: 15 | BJ170: 15 | BK170: 15 | BL170: 15 | BM170: 15 | BN170: 15 | BO170: 15 | BP170: 15 | BQ170: 15 | BR170: 15 | BS170: =IF(BS200>=15,BS200,15) -> 15 | BT170: 15 | BU170: 15
